Workbook

Sheet 1 Hist
C1: ABA 1 | N1: FAAP - MÓDULO II
C2: HISTÓRICO FUNCIONAL
C4: ESTADO DO RIO DE JANEIRO
B6: 1 | C6: ENTE DA FEDERAÇÃO: | F6: ESTADO DO RIO DE JANEIRO
C7: PODER:
C8: ÓRGÃO/ ENTIDADE:
C10: IDENTIFICAÇÃO PESSOAL
B12: 2 | C12: NOME DO SERVIDOR: | N12: NACIONALIDADE: | Q12: BRASILEIRA | W12: INSS - INICIATIVA PRIVADA
C13: NOME DA MÃE: | N13: ESTADO CIVIL: | W13: INSS - ATVS. INSALUBRES/PENOSAS/PERIGOSAS
C14: NASCIMENTO: | L14: SEXO: | N14: MASCULINO | O14: X | Q14: FEMININO
C15: IDENTIDADE | H15: ORGÃO | K15: UF | L15: RJ | N15: C.P.F.: | W15: REGIME GERAL DE PREVIDÊNCIA SOCIAL - INSS - INICIATIVA PRIVADA | AH15: INSS - INICIATIVA PRIVADA
C17: SITUAÇÕES PRETÉRITAS (averbações antes da data do início do vínculo continuado) | W17: ANTES DA EC 20 | Z17: ENTRE EC 20 E EC41 | AC17: APÓS EC41 | AF17: SOMA TOTAL | AG17: TEMPO TOTAL | AH17: TEMPO TOTAL-1 | AI17: TEMPO TOTAL-2 | AJ17: TEMPO TOTAL-3
A19: =IF(I19>0,F19,0) -> 00:00:00 | B19: 3 | C19: INSS - INICIATIVA PRIVADA | G19: a | J19: =IF(I19>AG19,"SB 40?","") ->  | K19: =IF(T19>0,Q19,0) -> 00:00:00 | L19: OUTROS PODERES e/ou ORIGEM - INSS | R19: a | W19: =IF(F19<CRÍTICA_IGP1!$Q$11,F19,0) -> 00:00:00 | X19: =IF(AND(H19<>0,W19<>0),IF(H19<CRÍTICA_IGP1!$Q$11,H19,CRÍTICA_IGP1!$Q$11-1),0) -> 00:00:00 | Y19: =IF(AND(AG19<>0,I19<=AG19),(AH19/AG19)*I19,IF(AND(C19=$W$13,I19>AG19),(AH19/AG19)*I19,0)) -> 0 | Z19: =IF(AND(F19>=CRÍTICA_IGP1!$Q$11,F19<CRÍTICA_IGP1!$Q$13),F19,IF(X19=CRÍTICA_IGP1!$Q$11-1,CRÍTICA_IGP1!$Q$11,0)) -> 00:00:00 | AA19: =IF(AND(H19<>0,Z19<>0),IF(H19<CRÍTICA_IGP1!$Q$13,H19,CRÍTICA_IGP1!$Q$13-1),0) -> 00:00:00 | AB19: =IF(AND(AG19<>0,I19<=AG19),(AI19/AG19)*I19,IF(AND(C19=$W$13,I19>AG19),(AI19/AG19)*I19,0)) -> 0 | AC19: =IF(F19>=CRÍTICA_IGP1!$Q$13,F19,IF(AA19=CRÍTICA_IGP1!$Q$13-1,CRÍTICA_IGP1!$Q$13,0)) -> 00:00:00 | AD19: =IF(AND(H19<>0,AC19<>0),IF(H19>=CRÍTICA_IGP1!$Q$13,H19,0),0) -> 00:00:00 | AE19: =IF(AND(AG19<>0,I19<=AG19),(AJ19/AG19)*I19,IF(AND(C19=$W$13,I19>AG19),(AJ19/AG19)*I19,0)) -> 0 | AF19: =Y19+AB19+AE19 -> 0 | AG19: =IF(AND(F19<>0,H19<>0),(H19-F19)+1,0) -> 0 | AH19: =IF(AND(W19<>0,X19<>0),(X19-W19)+1,0) -> 0 | AI19: =IF(AND(Z19<>0,AA19<>0),(AA19-Z19)+1,0) -> 0 | AJ19: =IF(AND(AC19<>0,AD19<>0),(AD19-AC19)+1,0) -> 0
A20: =IF(I20>0,F20,0) -> 00:00:00 | C20: INSS - INICIATIVA PRIVADA | G20: a | J20: =IF(I20>AG20,"SB 40?","") ->  | K20: =IF(T20>0,Q20,0) -> 00:00:00 | L20: OUTROS PODERES e/ou ORIGEM - INSS | R20: a | W20: =IF(F20<CRÍTICA_IGP1!$Q$11,F20,0) -> 00:00:00 | X20: =IF(AND(H20<>0,W20<>0),IF(H20<CRÍTICA_IGP1!$Q$11,H20,CRÍTICA_IGP1!$Q$11-1),0) -> 00:00:00 | Y20: =IF(AND(AG20<>0,I20<=AG20),(AH20/AG20)*I20,IF(AND(C20=$W$13,I20>AG20),(AH20/AG20)*I20,0)) -> 0 | Z20: =IF(AND(F20>=CRÍTICA_IGP1!$Q$11,F20<CRÍTICA_IGP1!$Q$13),F20,IF(X20=CRÍTICA_IGP1!$Q$11-1,CRÍTICA_IGP1!$Q$11,0)) -> 00:00:00 | AA20: =IF(AND(H20<>0,Z20<>0),IF(H20<CRÍTICA_IGP1!$Q$13,H20,CRÍTICA_IGP1!$Q$13-1),0) -> 00:00:00 | AB20: =IF(AND(AG20<>0,I20<=AG20),(AI20/AG20)*I20,IF(AND(C20=$W$13,I20>AG20),(AI20/AG20)*I20,0)) -> 0 | AC20: =IF(F20>=CRÍTICA_IGP1!$Q$13,F20,IF(AA20=CRÍTICA_IGP1!$Q$13-1,CRÍTICA_IGP1!$Q$13,0)) -> 00:00:00 | AD20: =IF(AND(H20<>0,AC20<>0),IF(H20>=CRÍTICA_IGP1!$Q$13,H20,0),0) -> 00:00:00 | AE20: =IF(AND(AG20<>0,I20<=AG20),(AJ20/AG20)*I20,IF(AND(C20=$W$13,I20>AG20),(AJ20/AG20)*I20,0)) -> 0 | AF20: =Y20+AB20+AE20 -> 0 | AG20: =IF(AND(F20<>0,H20<>0),(H20-F20)+1,0) -> 0 | AH20: =IF(AND(W20<>0,X20<>0),(X20-W20)+1,0) -> 0 | AI20: =IF(AND(Z20<>0,AA20<>0),(AA20-Z20)+1,0) -> 0 | AJ20: =IF(AND(AC20<>0,AD20<>0),(AD20-AC20)+1,0) -> 0
A21: 00:00:00 | C21: INSS - INICIATIVA PRIVADA | G21: a | K21: 00:00:00 | L21: OUTROS PODERES e/ou ORIGEM - INSS | R21: a | W21: =IF(F21<CRÍTICA_IGP1!$Q$11,F21,0) -> 00:00:00 | X21: =IF(AND(H21<>0,W21<>0),IF(H21<CRÍTICA_IGP1!$Q$11,H21,CRÍTICA_IGP1!$Q$11-1),0) -> 00:00:00 | Y21: 0 | Z21: =IF(AND(F21>=CRÍTICA_IGP1!$Q$11,F21<CRÍTICA_IGP1!$Q$13),F21,IF(X21=CRÍTICA_IGP1!$Q$11-1,CRÍTICA_IGP1!$Q$11,0)) -> 00:00:00 | AA21: =IF(AND(H21<>0,Z21<>0),IF(H21<CRÍTICA_IGP1!$Q$13,H21,CRÍTICA_IGP1!$Q$13-1),0) -> 00:00:00 | AB21: 0 | AC21: =IF(F21>=CRÍTICA_IGP1!$Q$13,F21,IF(AA21=CRÍTICA_IGP1!$Q$13-1,CRÍTICA_IGP1!$Q$13,0)) -> 00:00:00 | AD21: =IF(AND(H21<>0,AC21<>0),IF(H21>=CRÍTICA_IGP1!$Q$13,H21,0),0) -> 00:00:00 | AE21: 0 | AF21: 0 | AG21: 0 | AH21: 0 | AI21: 0 | AJ21: 0
A22: 00:00:00 | C22: INSS - INICIATIVA PRIVADA | G22: a | K22: 00:00:00 | L22: OUTROS PODERES e/ou ORIGEM - INSS | R22: a | W22: =IF(F22<CRÍTICA_IGP1!$Q$11,F22,0) -> 00:00:00 | X22: =IF(AND(H22<>0,W22<>0),IF(H22<CRÍTICA_IGP1!$Q$11,H22,CRÍTICA_IGP1!$Q$11-1),0) -> 00:00:00 | Y22: 0 | Z22: =IF(AND(F22>=CRÍTICA_IGP1!$Q$11,F22<CRÍTICA_IGP1!$Q$13),F22,IF(X22=CRÍTICA_IGP1!$Q$11-1,CRÍTICA_IGP1!$Q$11,0)) -> 00:00:00 | AA22: =IF(AND(H22<>0,Z22<>0),IF(H22<CRÍTICA_IGP1!$Q$13,H22,CRÍTICA_IGP1!$Q$13-1),0) -> 00:00:00 | AB22: 0 | AC22: =IF(F22>=CRÍTICA_IGP1!$Q$13,F22,IF(AA22=CRÍTICA_IGP1!$Q$13-1,CRÍTICA_IGP1!$Q$13,0)) -> 00:00:00 | AD22: =IF(AND(H22<>0,AC22<>0),IF(H22>=CRÍTICA_IGP1!$Q$13,H22,0),0) -> 00:00:00 | AE22: 0 | AF22: 0 | AG22: 0 | AH22: 0 | AI22: 0 | AJ22: 0
A23: 00:00:00 | C23: INSS - INICIATIVA PRIVADA | G23: a | K23: 00:00:00 | L23: OUTROS PODERES e/ou ORIGEM - INSS | R23: a | W23: =IF(F23<CRÍTICA_IGP1!$Q$11,F23,0) -> 00:00:00 | X23: =IF(AND(H23<>0,W23<>0),IF(H23<CRÍTICA_IGP1!$Q$11,H23,CRÍTICA_IGP1!$Q$11-1),0) -> 00:00:00 | Y23: 0 | Z23: =IF(AND(F23>=CRÍTICA_IGP1!$Q$11,F23<CRÍTICA_IGP1!$Q$13),F23,IF(X23=CRÍTICA_IGP1!$Q$11-1,CRÍTICA_IGP1!$Q$11,0)) -> 00:00:00 | AA23: =IF(AND(H23<>0,Z23<>0),IF(H23<CRÍTICA_IGP1!$Q$13,H23,CRÍTICA_IGP1!$Q$13-1),0) -> 00:00:00 | AB23: 0 | AC23: =IF(F23>=CRÍTICA_IGP1!$Q$13,F23,IF(AA23=CRÍTICA_IGP1!$Q$13-1,CRÍTICA_IGP1!$Q$13,0)) -> 00:00:00 | AD23: =IF(AND(H23<>0,AC23<>0),IF(H23>=CRÍTICA_IGP1!$Q$13,H23,0),0) -> 00:00:00 | AE23: 0 | AF23: 0 | AG23: 0 | AH23: 0 | AI23: 0 | AJ23: 0
A24: 00:00:00 | C24: INSS - INICIATIVA PRIVADA | G24: a | K24: 00:00:00 | L24: OUTROS PODERES e/ou ORIGEM - INSS | R24: a | W24: =IF(F24<CRÍTICA_IGP1!$Q$11,F24,0) -> 00:00:00 | X24: =IF(AND(H24<>0,W24<>0),IF(H24<CRÍTICA_IGP1!$Q$11,H24,CRÍTICA_IGP1!$Q$11-1),0) -> 00:00:00 | Y24: 0 | Z24: =IF(AND(F24>=CRÍTICA_IGP1!$Q$11,F24<CRÍTICA_IGP1!$Q$13),F24,IF(X24=CRÍTICA_IGP1!$Q$11-1,CRÍTICA_IGP1!$Q$11,0)) -> 00:00:00 | AA24: =IF(AND(H24<>0,Z24<>0),IF(H24<CRÍTICA_IGP1!$Q$13,H24,CRÍTICA_IGP1!$Q$13-1),0) -> 00:00:00 | AB24: 0 | AC24: =IF(F24>=CRÍTICA_IGP1!$Q$13,F24,IF(AA24=CRÍTICA_IGP1!$Q$13-1,CRÍTICA_IGP1!$Q$13,0)) -> 00:00:00 | AD24: =IF(AND(H24<>0,AC24<>0),IF(H24>=CRÍTICA_IGP1!$Q$13,H24,0),0) -> 00:00:00 | AE24: 0 | AF24: 0 | AG24: 0 | AH24: 0 | AI24: 0 | AJ24: 0
A25: 00:00:00 | C25: INSS - INICIATIVA PRIVADA | G25: a | K25: 00:00:00 | L25: OUTROS PODERES e/ou ORIGEM - INSS | R25: a | W25: =IF(F25<CRÍTICA_IGP1!$Q$11,F25,0) -> 00:00:00 | X25: =IF(AND(H25<>0,W25<>0),IF(H25<CRÍTICA_IGP1!$Q$11,H25,CRÍTICA_IGP1!$Q$11-1),0) -> 00:00:00 | Y25: 0 | Z25: =IF(AND(F25>=CRÍTICA_IGP1!$Q$11,F25<CRÍTICA_IGP1!$Q$13),F25,IF(X25=CRÍTICA_IGP1!$Q$11-1,CRÍTICA_IGP1!$Q$11,0)) -> 00:00:00 | AA25: =IF(AND(H25<>0,Z25<>0),IF(H25<CRÍTICA_IGP1!$Q$13,H25,CRÍTICA_IGP1!$Q$13-1),0) -> 00:00:00 | AB25: 0 | AC25: =IF(F25>=CRÍTICA_IGP1!$Q$13,F25,IF(AA25=CRÍTICA_IGP1!$Q$13-1,CRÍTICA_IGP1!$Q$13,0)) -> 00:00:00 | AD25: =IF(AND(H25<>0,AC25<>0),IF(H25>=CRÍTICA_IGP1!$Q$13,H25,0),0) -> 00:00:00 | AE25: 0 | AF25: 0 | AG25: 0 | AH25: 0 | AI25: 0 | AJ25: 0
A26: 00:00:00 | C26: INSS - INICIATIVA PRIVADA | G26: a | K26: 00:00:00 | L26: OUTROS PODERES e/ou ORIGEM - INSS | R26: a | W26: =IF(F26<CRÍTICA_IGP1!$Q$11,F26,0) -> 00:00:00 | X26: =IF(AND(H26<>0,W26<>0),IF(H26<CRÍTICA_IGP1!$Q$11,H26,CRÍTICA_IGP1!$Q$11-1),0) -> 00:00:00 | Y26: 0 | Z26: =IF(AND(F26>=CRÍTICA_IGP1!$Q$11,F26<CRÍTICA_IGP1!$Q$13),F26,IF(X26=CRÍTICA_IGP1!$Q$11-1,CRÍTICA_IGP1!$Q$11,0)) -> 00:00:00 | AA26: =IF(AND(H26<>0,Z26<>0),IF(H26<CRÍTICA_IGP1!$Q$13,H26,CRÍTICA_IGP1!$Q$13-1),0) -> 00:00:00 | AB26: 0 | AC26: =IF(F26>=CRÍTICA_IGP1!$Q$13,F26,IF(AA26=CRÍTICA_IGP1!$Q$13-1,CRÍTICA_IGP1!$Q$13,0)) -> 00:00:00 | AD26: =IF(AND(H26<>0,AC26<>0),IF(H26>=CRÍTICA_IGP1!$Q$13,H26,0),0) -> 00:00:00 | AE26: 0 | AF26: 0 | AG26: 0 | AH26: 0 | AI26: 0 | AJ26: 0
A27: 00:00:00 | C27: INSS - INICIATIVA PRIVADA | G27: a | K27: 00:00:00 | L27: OUTROS PODERES e/ou ORIGEM - INSS | R27: a | W27: =IF(F27<CRÍTICA_IGP1!$Q$11,F27,0) -> 00:00:00 | X27: =IF(AND(H27<>0,W27<>0),IF(H27<CRÍTICA_IGP1!$Q$11,H27,CRÍTICA_IGP1!$Q$11-1),0) -> 00:00:00 | Y27: 0 | Z27: =IF(AND(F27>=CRÍTICA_IGP1!$Q$11,F27<CRÍTICA_IGP1!$Q$13),F27,IF(X27=CRÍTICA_IGP1!$Q$11-1,CRÍTICA_IGP1!$Q$11,0)) -> 00:00:00 | AA27: =IF(AND(H27<>0,Z27<>0),IF(H27<CRÍTICA_IGP1!$Q$13,H27,CRÍTICA_IGP1!$Q$13-1),0) -> 00:00:00 | AB27: 0 | AC27: =IF(F27>=CRÍTICA_IGP1!$Q$13,F27,IF(AA27=CRÍTICA_IGP1!$Q$13-1,CRÍTICA_IGP1!$Q$13,0)) -> 00:00:00 | AD27: =IF(AND(H27<>0,AC27<>0),IF(H27>=CRÍTICA_IGP1!$Q$13,H27,0),0) -> 00:00:00 | AE27: 0 | AF27: 0 | AG27: 0 | AH27: 0 | AI27: 0 | AJ27: 0
A28: 00:00:00 | C28: INSS - INICIATIVA PRIVADA | G28: a | K28: 00:00:00 | L28: OUTROS PODERES e/ou ORIGEM - INSS | R28: a | W28: =IF(F28<CRÍTICA_IGP1!$Q$11,F28,0) -> 00:00:00 | X28: =IF(AND(H28<>0,W28<>0),IF(H28<CRÍTICA_IGP1!$Q$11,H28,CRÍTICA_IGP1!$Q$11-1),0) -> 00:00:00 | Y28: 0 | Z28: =IF(AND(F28>=CRÍTICA_IGP1!$Q$11,F28<CRÍTICA_IGP1!$Q$13),F28,IF(X28=CRÍTICA_IGP1!$Q$11-1,CRÍTICA_IGP1!$Q$11,0)) -> 00:00:00 | AA28: =IF(AND(H28<>0,Z28<>0),IF(H28<CRÍTICA_IGP1!$Q$13,H28,CRÍTICA_IGP1!$Q$13-1),0) -> 00:00:00 | AB28: 0 | AC28: =IF(F28>=CRÍTICA_IGP1!$Q$13,F28,IF(AA28=CRÍTICA_IGP1!$Q$13-1,CRÍTICA_IGP1!$Q$13,0)) -> 00:00:00 | AD28: =IF(AND(H28<>0,AC28<>0),IF(H28>=CRÍTICA_IGP1!$Q$13,H28,0),0) -> 00:00:00 | AE28: 0 | AF28: 0 | AG28: 0 | AH28: 0 | AI28: 0 | AJ28: 0
C29: =IF(OR(AND(F28<>0,F28>=F27,F28<=H27),AND(F28<>0,F28>=F26,F28<=H26),AND(F28<>0,F28>=F25,F28<=H25),AND(F28<>0,F28>=F24,F28<=H24),AND(F28<>0,F28>=F23,F28<=H23),AND(F28<>0,F28>=F22,F28<=H22),AND(F28<>0,F28>=F21,F28<=H21),AND(F28<>0,F28>=F20,F28<=H20),AND(F28<>0,F28>=F19,F28<=H19),AND(F27<>0,F27>=F26,F27<=H26),AND(F27<>0,F27>=F25,F27<=H25),AND(F27<>0,F27>=F24,F27<=H24),AND(F27<>0,F27>=F23,F27<=H23),AND(F27<>0,F27>=F22,F27<=H22),AND(F27<>0,F27>=F21,F27<=H21),AND(F27<>0,F27>=F20,F27<=H20),AND(F27<>0,F27>=F19,F27<=H19),AND(F26<>0,F26>=F25,F26<=H25),AND(F26<>0,F26>=F24,F26<=H24),AND(F26<>0,F26>=F23,F26<=H23),AND(F26<>0,F26>=F22,F26<=H22),AND(F26<>0,F26>=F21,F26<=H21),AND(F26<>0,F26>=F20,F26<=H20),AND(F26<>0,F26>=F19,F26<=H19),AND(F25<>0,F25>=F24,F25<=H24),AND(F25<>0,F25>=F23,F25<=H23),AND(F25<>0,F25>=F22,F25<=H22),AND(F25<>0,F25>=F21,F25<=H21),AND(F25<>0,F25>=F20,F25<=H20),AND(F25<>0,F25>=F19,F25<=H19),AND(F24<>0,F24>=F23,F24<=H23),AND(F24<>0,F24>=F22,F24<=H22),AND(F24<>0,F24>=F21,F24<=H21),AND(F24<>0,F24>=F20,F24<=H20),AND(F24<>0,F24>=F19,F24<=H19),AND(F23<>0,F23>=F22,F23<=H22),AND(F23<>0,F23>=F21,F23<=H21),AND(F23<>0,F23>=F20,F23<=H20),AND(F23<>0,F23>=F19,F23<=H19),AND(F22<>0,F22>=F21,F22<=H21),AND(F22<>0,F22>=F20,F22<=H20),AND(F22<>0,F22>=F19,F22<=H19),AND(F21<>0,F21>=F20,F21<=H20),AND(F21<>0,F21>=F19,F21<=H19),AND(F20<>0,F20>=F19,F20<=H19)),"TEMPO CONCOMITANTE - REVER","") ->  | F29: TOTAL EM DIAS | I29: =SUM(I19:I28) -> 0 | N29: =IF(OR(AND(Q28<>0,Q28>=Q27,Q28<=S27),AND(Q28<>0,Q28>=Q26,Q28<=S26),AND(Q28<>0,Q28>=Q25,Q28<=S25),AND(Q28<>0,Q28>=Q24,Q28<=S24),AND(Q28<>0,Q28>=Q23,Q28<=S23),AND(Q28<>0,Q28>=Q22,Q28<=S22),AND(Q28<>0,Q28>=Q21,Q28<=S21),AND(Q28<>0,Q28>=Q20,Q28<=S20),AND(Q28<>0,Q28>=Q19,Q26<=S19),AND(Q27<>0,Q27>=Q26,Q27<=S26),AND(Q27<>0,Q27>=Q25,Q27<=S25),AND(Q27<>0,Q27>=Q24,Q27<=S24),AND(Q27<>0,Q27>=Q23,Q27<=S23),AND(Q27<>0,Q27>=Q22,Q27<=S22),AND(Q27<>0,Q27>=Q21,Q27<=S21),AND(Q27<>0,Q27>=Q20,Q27<=S20),AND(Q27<>0,Q27>=Q19,Q27<=S19),AND(Q26<>0,Q26>=Q25,Q26<=S25),AND(Q26<>0,Q26>=Q24,Q26<=S24),AND(Q26<>0,Q26>=Q23,Q26<=S23),AND(Q26<>0,Q26>=Q22,Q26<=S22),AND(Q26<>0,Q26>=Q21,Q26<=S21),AND(Q26<>0,Q26>=Q20,Q26<=S20),AND(Q26<>0,Q26>=Q19,Q26<=S19),AND(Q25<>0,Q25>=Q24,Q25<=S24),AND(Q25<>0,Q25>=Q23,Q25<=S23),AND(Q25<>0,Q25>=Q22,Q25<=S22),AND(Q25<>0,Q25>=Q21,Q25<=S21),AND(Q25<>0,Q25>=Q20,Q25<=S20),AND(Q25<>0,Q25>=Q19,Q25<=S19),AND(Q24<>0,Q24>=Q23,Q24<=S23),AND(Q24<>0,Q24>=Q22,Q24<=S22),AND(Q24<>0,Q24>=Q21,Q24<=S21),AND(Q24<>0,Q24>=Q20,Q24<=S20),AND(Q24<>0,Q24>=Q19,Q24<=S19),AND(Q23<>0,Q23>=Q22,Q23<=S22),AND(Q23<>0,Q23>=Q21,Q23<=S21),AND(Q23<>0,Q23>=Q20,Q23<=S20),AND(Q23<>0,Q23>=Q19,Q23<=S19),AND(Q22<>0,Q22>=Q21,Q22<=S21),AND(Q22<>0,Q22>=Q20,Q22<=S20),AND(Q22<>0,Q22>=Q19,Q22<=S19),AND(Q21<>0,Q21>=Q20,Q21<=S20),AND(Q21<>0,Q21>=Q19,Q21<=S19),AND(Q20<>0,Q20>=Q19,Q20<=S19)),"TEMPO CONCOMITANTE - REVER","") ->  | Q29: TOTAL EM DIAS | T29: =SUM(T19:T28) -> 0 | W29: =IF(AND(Q61>$F$42,Q61<CRÍTICA_IGP1!$Q$11),Q61,0) -> 00:00:00 | X29: =IF(AND(S61<>0,W29<>0),IF(S61<CRÍTICA_IGP1!$Q$11,S61,CRÍTICA_IGP1!$Q$11-1),0) -> 00:00:00 | Y29: =IF(AND(AG29<>0,T61<=AG29),(AH29/AG29)*T61,IF(AND(N61=$W$13,T61>AG29),(AH29/AG29)*T61,0)) -> 0 | Z29: =IF(AND(Q61>$F$42,Q61>=CRÍTICA_IGP1!$Q$11,Q61<CRÍTICA_IGP1!$Q$13),Q61,IF(X29=CRÍTICA_IGP1!$Q$11-1,CRÍTICA_IGP1!$Q$11,0)) -> 00:00:00 | AA29: =IF(AND(S61<>0,Z29<>0),IF(S61<CRÍTICA_IGP1!$Q$13,S61,CRÍTICA_IGP1!$Q$13-1),0) -> 00:00:00 | AB29: =IF(AND(AG29<>0,T61<=AG29),(AI29/AG29)*T61,IF(AND(N61=$W$13,T61>AG29),(AI29/AG29)*T61,0)) -> 0 | AC29: =IF(AND(Q61>$F$42,Q61>=CRÍTICA_IGP1!$Q$13),Q61,IF(AA29=CRÍTICA_IGP1!$Q$13-1,CRÍTICA_IGP1!$Q$13,0)) -> 00:00:00 | AD29: =IF(AND(S61<>0,AC29<>0),IF(S61>=CRÍTICA_IGP1!$Q$13,S61,0),0) -> 00:00:00 | AE29: =IF(AND(AG29<>0,T61<=AG29),(AJ29/AG29)*T61,IF(AND(N61=$W$13,T61>AG29),(AJ29/AG29)*T61,0)) -> 0 | AF29: 0 | AG29: =IF(AND(Q61<>0,S61<>0),(S61-Q61)+1,0) -> 0 | AH29: =IF(AND(W29<>0,X29<>0),(X29-W29)+1,0) -> 0 | AI29: =IF(AND(Z29<>0,AA29<>0),(AA29-Z29)+1,0) -> 0 | AJ29: 0
W30: =IF(AND(Q62>$F$42,Q62<CRÍTICA_IGP1!$Q$11),Q62,0) -> 00:00:00 | X30: =IF(AND(S62<>0,W30<>0),IF(S62<CRÍTICA_IGP1!$Q$11,S62,CRÍTICA_IGP1!$Q$11-1),0) -> 00:00:00 | Y30: =IF(AND(AG30<>0,T62<=AG30),(AH30/AG30)*T62,IF(AND(N62=$W$13,T62>AG30),(AH30/AG30)*T62,0)) -> 0 | Z30: =IF(AND(Q62>$F$42,Q62>=CRÍTICA_IGP1!$Q$11,Q62<CRÍTICA_IGP1!$Q$13),Q62,IF(X30=CRÍTICA_IGP1!$Q$11-1,CRÍTICA_IGP1!$Q$11,0)) -> 00:00:00 | AA30: =IF(AND(S62<>0,Z30<>0),IF(S62<CRÍTICA_IGP1!$Q$13,S62,CRÍTICA_IGP1!$Q$13-1),0) -> 00:00:00 | AB30: =IF(AND(AG30<>0,T62<=AG30),(AI30/AG30)*T62,IF(AND(N62=$W$13,T62>AG30),(AI30/AG30)*T62,0)) -> 0 | AC30: =IF(AND(Q62>$F$42,Q62>=CRÍTICA_IGP1!$Q$13),Q62,IF(AA30=CRÍTICA_IGP1!$Q$13-1,CRÍTICA_IGP1!$Q$13,0)) -> 00:00:00 | AD30: =IF(AND(S62<>0,AC30<>0),IF(S62>=CRÍTICA_IGP1!$Q$13,S62,0),0) -> 00:00:00 | AE30: =IF(AND(AG30<>0,T62<=AG30),(AJ30/AG30)*T62,IF(AND(N62=$W$13,T62>AG30),(AJ30/AG30)*T62,0)) -> 0 | AF30: 0 | AG30: =IF(AND(Q62<>0,S62<>0),(S62-Q62)+1,0) -> 0 | AH30: =IF(AND(W30<>0,X30<>0),(X30-W30)+1,0) -> 0 | AI30: =IF(AND(Z30<>0,AA30<>0),(AA30-Z30)+1,0) -> 0 | AJ30: 0
C31: OUTROS PODERES | G31: a | L31: FORÇAS ARMADAS | R31: a | W31: =IF(AND(Q63>$F$42,Q63<CRÍTICA_IGP1!$Q$11),Q63,0) -> 00:00:00 | X31: =IF(AND(S63<>0,W31<>0),IF(S63<CRÍTICA_IGP1!$Q$11,S63,CRÍTICA_IGP1!$Q$11-1),0) -> 00:00:00 | Y31: =IF(AND(AG31<>0,T63<=AG31),(AH31/AG31)*T63,IF(AND(N63=$W$13,T63>AG31),(AH31/AG31)*T63,0)) -> 0 | Z31: =IF(AND(Q63>$F$42,Q63>=CRÍTICA_IGP1!$Q$11,Q63<CRÍTICA_IGP1!$Q$13),Q63,IF(X31=CRÍTICA_IGP1!$Q$11-1,CRÍTICA_IGP1!$Q$11,0)) -> 00:00:00 | AA31: =IF(AND(S63<>0,Z31<>0),IF(S63<CRÍTICA_IGP1!$Q$13,S63,CRÍTICA_IGP1!$Q$13-1),0) -> 00:00:00 | AB31: =IF(AND(AG31<>0,T63<=AG31),(AI31/AG31)*T63,IF(AND(N63=$W$13,T63>AG31),(AI31/AG31)*T63,0)) -> 0 | AC31: =IF(AND(Q63>$F$42,Q63>=CRÍTICA_IGP1!$Q$13),Q63,IF(AA31=CRÍTICA_IGP1!$Q$13-1,CRÍTICA_IGP1!$Q$13,0)) -> 00:00:00 | AD31: =IF(AND(S63<>0,AC31<>0),IF(S63>=CRÍTICA_IGP1!$Q$13,S63,0),0) -> 00:00:00 | AE31: =IF(AND(AG31<>0,T63<=AG31),(AJ31/AG31)*T63,IF(AND(N63=$W$13,T63>AG31),(AJ31/AG31)*T63,0)) -> 0 | AF31: 0 | AG31: =IF(AND(Q63<>0,S63<>0),(S63-Q63)+1,0) -> 0 | AH31: =IF(AND(W31<>0,X31<>0),(X31-W31)+1,0) -> 0 | AI31: =IF(AND(Z31<>0,AA31<>0),(AA31-Z31)+1,0) -> 0 | AJ31: 0
C32: OUTROS PODERES | G32: a | K32: =IF(T32>0,Q32,0) -> 00:00:00 | L32: ÓRGÃO DE ORIGEM | R32: a | W32: SOMA OU TOTAL | X32: 1998-12-15 | Y32: =SUM(Y19:Y31) -> 0 | Z32: 1998-12-16 | AA32: 2003-12-30 | AB32: =SUM(AB19:AB31) -> 0 | AC32: 2003-12-31 | AE32: =SUM(AE19:AE31) -> 0 | AF32: 0 | AG32: =SUM(AF19:AF31) -> 0
C33: OUTROS PODERES | G33: a | K33: =IF(T33>0,Q33,0) -> 00:00:00 | L33: ÓRGÃO DE ORIGEM | R33: a | W33: CONCOMITÂNCIA | X33: =COUNTIF(W19:X31,X32) -> 0 | Z33: =COUNTIF(Z19:AA31,Z32) -> 0 | AA33: =COUNTIF(Z19:AA31,AA32) -> 0 | AC33: =COUNTIF(AC19:AD31,AC32) -> 0
C34: OUTROS PODERES | G34: a | L34: ÓRGÃO DE ORIGEM | R34: a | W34: CONCOMITÂNCIA | X34: =IF(OR(X33>1,Z33>1,AA33>1,AC33>1),"FOI COMPUTADO TEMPO CONCOMITANTE - REVER","") -> 
C35: OUTROS PODERES | G35: a | L35: ÓRGÃO DE ORIGEM | R35: a | W35: MÍNIMO | X35: =IF(X37<CRÍTICA_IGP1!$Q$11,$X$37,0) -> 00:00:00 | Z35: =IF(AND(X35<CRÍTICA_IGP1!$Q$11,X35<>0,X38>CRÍTICA_IGP1!$Q$11),CRÍTICA_IGP1!$Q$11,IF(AND(X38>=CRÍTICA_IGP1!$Q$11,Z37<CRÍTICA_IGP1!$Q$13),Z37,0)) -> 00:00:00 | AC35: =IF(AND(Z35<CRÍTICA_IGP1!$Q$12,Z35<>0,X38>=CRÍTICA_IGP1!$Q$12),CRÍTICA_IGP1!$Q$12,IF(AND(X38>=CRÍTICA_IGP1!$Q$12,AC37>=CRÍTICA_IGP1!$Q$12),AC37,0)) -> 00:00:00
C36: =IF(OR(AND(F35<>0,F35>=F34,F35<=H34),AND(F35<>0,F35>=F33,F35<=H33),AND(F35<>0,F35>=F32,F35<=H32),AND(F35<>0,F35>=F31,F35<=H31),AND(F34<>0,F34>=F33,F34<=H33),AND(F34<>0,F34>=F32,F34<=H32),AND(F34<>0,F34>=F31,F34<=H31),AND(F33<>0,F33>=F32,F33<=H32),AND(F33<>0,F33>=F31,F33<=H31),AND(F32<>0,F32>=F31,F32<=H31)),"TEMPO CONCOMITANTE - REVER","") ->  | F36: TOTAL EM DIAS | I36: =SUM(I31:I35) -> 0 | N36: =IF(OR(AND(Q35<>0,Q35>=Q34,Q35<=S34),AND(Q35<>0,Q35>=Q33,Q35<=S33),AND(Q35<>0,Q35>=Q32,Q35<=S32),AND(Q35<>0,Q35>=Q31,Q35<=S31),AND(Q34<>0,Q34>=Q33,Q34<=S33),AND(Q34<>0,Q34>=Q32,Q34<=S32),AND(Q34<>0,Q34>=Q31,Q34<=S31),AND(Q33<>0,Q33>=Q32,Q33<=S32),AND(Q33<>0,Q33>=Q31,Q33<=S31),AND(Q32<>0,Q32>=Q31,Q32<=S31)),"TEMPO CONCOMITANTE - REVER","") ->  | Q36: TOTAL EM DIAS | T36: =SUM(T32:T35) -> 0 | W36: MÁXIMO | X36: =MAXA(X19:X31) -> 00:00:00 | AA36: =MAXA(AA19:AA31) -> 00:00:00 | AD36: =MAXA(AD19:AD31) -> 00:00:00
W37: MÍNIMO | X37: =MINA(F19:F28,Q61:Q63) -> 00:00:00 | Z37: =IF(X37<CRÍTICA_IGP1!$Q$11,X37,MINA(F19:F28,Q61:Q63)) -> 00:00:00 | AC37: =IF(Z37<CRÍTICA_IGP1!$Q$13,Z37,MINA(F19:F28,Q61:Q63)) -> 00:00:00
C38: VIDA FUNCIONAL (a partir da data de admissão com vínculo continuado) | W38: MÁXIMO | X38: =MAXA(X19:X31,AA19:AA31,AD19:AD31) -> 00:00:00
B40: 4 | C40: CARGO / EMPREGO INICIAL: | R40: MATRÍCULA :
C41: CARREIRA INICIAL:
C42: ADMISSÃO: | H42: FORMA DE ADMISSÃO:
C43: DATA DA EFETIVAÇÃO : | H43: =IF(F43>F42,"TEMPO CERTIDÃO - INSS:","") ->  | W43: REGIME GERAL DE PREVIDÊNCIA SOCIAL - INSS - OUTROS PODERES - ORIGEM | AH43: INSS - OUTROS PODERES - ORIGEM
C45: ENQUADRAMENTOS (mudanças de cargo/emprego a partir do início do vínculo continuado) | W45: ANTES DA EC 20 | Z45: ENTRE EC 20 E EC41 | AC45: APÓS EC41 | AF45: SOMA TOTAL | AG45: TEMPO TOTAL | AH45: TEMPO TOTAL-1 | AI45: TEMPO TOTAL-2 | AJ45: TEMPO TOTAL-3
B47: 5 | C47: CARGO / EMPREGO INICIAL | E47: CARREIRA INICIAL | I47: NOVO CARGO / EMPREGO | L47: NOVA CARREIRA | O47: TIPO DE ENQUADRAMENTO | T47: DATA | W47: =IF(Q19<CRÍTICA_IGP1!$Q$11,Q19,0) -> 00:00:00 | X47: =IF(AND(S19<>0,W47<>0),IF(S19<CRÍTICA_IGP1!$Q$11,S19,CRÍTICA_IGP1!$Q$11-1),0) -> 00:00:00 | Y47: =IF(AG47<>0,IF(T19<=AG47,(AH47/AG47)*T19,0),0) -> 0 | Z47: =IF(AND(Q19>=CRÍTICA_IGP1!$Q$11,Q19<CRÍTICA_IGP1!$Q$13),Q19,IF(X47=CRÍTICA_IGP1!$Q$11-1,CRÍTICA_IGP1!$Q$11,0)) -> 00:00:00 | AA47: =IF(AND(S19<>0,Z47<>0),IF(S19<CRÍTICA_IGP1!$Q$13,S19,CRÍTICA_IGP1!$Q$13-1),0) -> 00:00:00 | AB47: =IF(AG47<>0,IF(T19<=AG47,(AI47/AG47)*T19,0),0) -> 0 | AC47: =IF(Q19>=CRÍTICA_IGP1!$Q$13,Q19,IF(AA47=CRÍTICA_IGP1!$Q$13-1,CRÍTICA_IGP1!$Q$13,0)) -> 00:00:00 | AD47: =IF(AND(S19<>0,AC47<>0),IF(S19>=CRÍTICA_IGP1!$Q$13,S19,0),0) -> 00:00:00 | AE47: =IF(AG47<>0,IF(T19<=AG47,(AJ47/AG47)*T19,0),0) -> 0 | AF47: =Y47+AB47+AE47 -> 0 | AG47: =IF(AND(Q19<>0,S19<>0),(S19-Q19)+1,0) -> 0 | AH47: =IF(AND(W47<>0,X47<>0),(X47-W47)+1,0) -> 0 | AI47: =IF(AND(Z47<>0,AA47<>0),(AA47-Z47)+1,0) -> 0 | AJ47: =IF(AND(AC47<>0,AD47<>0),(AD47-AC47)+1,0) -> 0
C48: =IF($F$40<>"",$F$40,"") ->  | E48: =IF($F$41<>"",$F$41,"") ->  | G48: =IF($F$40<>"",$F$40,"") ->  | W48: =IF(Q20<CRÍTICA_IGP1!$Q$11,Q20,0) -> 00:00:00 | X48: =IF(AND(S20<>0,W48<>0),IF(S20<CRÍTICA_IGP1!$Q$11,S20,CRÍTICA_IGP1!$Q$11-1),0) -> 00:00:00 | Y48: 0 | Z48: =IF(AND(Q20>=CRÍTICA_IGP1!$Q$11,Q20<CRÍTICA_IGP1!$Q$13),Q20,IF(X48=CRÍTICA_IGP1!$Q$11-1,CRÍTICA_IGP1!$Q$11,0)) -> 00:00:00 | AA48: =IF(AND(S20<>0,Z48<>0),IF(S20<CRÍTICA_IGP1!$Q$13,S20,CRÍTICA_IGP1!$Q$13-1),0) -> 00:00:00 | AB48: 0 | AC48: =IF(Q20>=CRÍTICA_IGP1!$Q$13,Q20,IF(AA48=CRÍTICA_IGP1!$Q$13-1,CRÍTICA_IGP1!$Q$13,0)) -> 00:00:00 | AD48: =IF(AND(S20<>0,AC48<>0),IF(S20>=CRÍTICA_IGP1!$Q$13,S20,0),0) -> 00:00:00 | AE48: 0 | AF48: =Y48+AB48+AE48 -> 0 | AG48: 0 | AH48: =IF(AND(W48<>0,X48<>0),(X48-W48)+1,0) -> 0 | AI48: =IF(AND(Z48<>0,AA48<>0),(AA48-Z48)+1,0) -> 0 | AJ48: =IF(AND(AC48<>0,AD48<>0),(AD48-AC48)+1,0) -> 0
C49: =IF(I48<>"",I48,"") ->  | E49: =IF(L48<>"",L48,"") ->  | G49: =IF(AND(M48<>"",OR(S48=$L$101,S48=$L$102)),M48,"") ->  | W49: =IF(Q21<CRÍTICA_IGP1!$Q$11,Q21,0) -> 00:00:00 | X49: =IF(AND(S21<>0,W49<>0),IF(S21<CRÍTICA_IGP1!$Q$11,S21,CRÍTICA_IGP1!$Q$11-1),0) -> 00:00:00 | Y49: 0 | Z49: =IF(AND(Q21>=CRÍTICA_IGP1!$Q$11,Q21<CRÍTICA_IGP1!$Q$13),Q21,IF(X49=CRÍTICA_IGP1!$Q$11-1,CRÍTICA_IGP1!$Q$11,0)) -> 00:00:00 | AA49: =IF(AND(S21<>0,Z49<>0),IF(S21<CRÍTICA_IGP1!$Q$13,S21,CRÍTICA_IGP1!$Q$13-1),0) -> 00:00:00 | AB49: 0 | AC49: =IF(Q21>=CRÍTICA_IGP1!$Q$13,Q21,IF(AA49=CRÍTICA_IGP1!$Q$13-1,CRÍTICA_IGP1!$Q$13,0)) -> 00:00:00 | AD49: =IF(AND(S21<>0,AC49<>0),IF(S21>=CRÍTICA_IGP1!$Q$13,S21,0),0) -> 00:00:00 | AE49: 0 | AF49: 0 | AG49: 0 | AH49: 0 | AI49: 0 | AJ49: 0
C50: =IF(I49<>"",I49,"") ->  | E50: =IF(L49<>"",L49,"") ->  | G50: =IF(AND(M49<>"",OR(S49=$L$101,S49=$L$102)),M49,"") ->  | W50: =IF(Q22<CRÍTICA_IGP1!$Q$11,Q22,0) -> 00:00:00 | X50: =IF(AND(S22<>0,W50<>0),IF(S22<CRÍTICA_IGP1!$Q$11,S22,CRÍTICA_IGP1!$Q$11-1),0) -> 00:00:00 | Y50: 0 | Z50: =IF(AND(Q22>=CRÍTICA_IGP1!$Q$11,Q22<CRÍTICA_IGP1!$Q$13),Q22,IF(X50=CRÍTICA_IGP1!$Q$11-1,CRÍTICA_IGP1!$Q$11,0)) -> 00:00:00 | AA50: =IF(AND(S22<>0,Z50<>0),IF(S22<CRÍTICA_IGP1!$Q$13,S22,CRÍTICA_IGP1!$Q$13-1),0) -> 00:00:00 | AB50: 0 | AC50: =IF(Q22>=CRÍTICA_IGP1!$Q$13,Q22,IF(AA50=CRÍTICA_IGP1!$Q$13-1,CRÍTICA_IGP1!$Q$13,0)) -> 00:00:00 | AD50: =IF(AND(S22<>0,AC50<>0),IF(S22>=CRÍTICA_IGP1!$Q$13,S22,0),0) -> 00:00:00 | AE50: 0 | AF50: 0 | AG50: 0 | AH50: 0 | AI50: 0 | AJ50: 0
W51: =IF(Q23<CRÍTICA_IGP1!$Q$11,Q23,0) -> 00:00:00 | X51: =IF(AND(S23<>0,W51<>0),IF(S23<CRÍTICA_IGP1!$Q$11,S23,CRÍTICA_IGP1!$Q$11-1),0) -> 00:00:00 | Y51: 0 | Z51: =IF(AND(Q23>=CRÍTICA_IGP1!$Q$11,Q23<CRÍTICA_IGP1!$Q$13),Q23,IF(X51=CRÍTICA_IGP1!$Q$11-1,CRÍTICA_IGP1!$Q$11,0)) -> 00:00:00 | AA51: =IF(AND(S23<>0,Z51<>0),IF(S23<CRÍTICA_IGP1!$Q$13,S23,CRÍTICA_IGP1!$Q$13-1),0) -> 00:00:00 | AB51: 0 | AC51: =IF(Q23>=CRÍTICA_IGP1!$Q$13,Q23,IF(AA51=CRÍTICA_IGP1!$Q$13-1,CRÍTICA_IGP1!$Q$13,0)) -> 00:00:00 | AD51: =IF(AND(S23<>0,AC51<>0),IF(S23>=CRÍTICA_IGP1!$Q$13,S23,0),0) -> 00:00:00 | AE51: 0 | AF51: 0 | AG51: 0 | AH51: 0 | AI51: 0 | AJ51: 0
W52: =IF(Q24<CRÍTICA_IGP1!$Q$11,Q24,0) -> 00:00:00 | X52: =IF(AND(S24<>0,W52<>0),IF(S24<CRÍTICA_IGP1!$Q$11,S24,CRÍTICA_IGP1!$Q$11-1),0) -> 00:00:00 | Y52: 0 | Z52: =IF(AND(Q24>=CRÍTICA_IGP1!$Q$11,Q24<CRÍTICA_IGP1!$Q$13),Q24,IF(X52=CRÍTICA_IGP1!$Q$11-1,CRÍTICA_IGP1!$Q$11,0)) -> 00:00:00 | AA52: =IF(AND(S24<>0,Z52<>0),IF(S24<CRÍTICA_IGP1!$Q$13,S24,CRÍTICA_IGP1!$Q$13-1),0) -> 00:00:00 | AB52: 0 | AC52: =IF(Q24>=CRÍTICA_IGP1!$Q$13,Q24,IF(AA52=CRÍTICA_IGP1!$Q$13-1,CRÍTICA_IGP1!$Q$13,0)) -> 00:00:00 | AD52: =IF(AND(S24<>0,AC52<>0),IF(S24>=CRÍTICA_IGP1!$Q$13,S24,0),0) -> 00:00:00 | AE52: 0 | AF52: 0 | AG52: 0 | AH52: 0 | AI52: 0 | AJ52: 0
W53: =IF(Q25<CRÍTICA_IGP1!$Q$11,Q25,0) -> 00:00:00 | X53: =IF(AND(S25<>0,W53<>0),IF(S25<CRÍTICA_IGP1!$Q$11,S25,CRÍTICA_IGP1!$Q$11-1),0) -> 00:00:00 | Y53: 0 | Z53: =IF(AND(Q25>=CRÍTICA_IGP1!$Q$11,Q25<CRÍTICA_IGP1!$Q$13),Q25,IF(X53=CRÍTICA_IGP1!$Q$11-1,CRÍTICA_IGP1!$Q$11,0)) -> 00:00:00 | AA53: =IF(AND(S25<>0,Z53<>0),IF(S25<CRÍTICA_IGP1!$Q$13,S25,CRÍTICA_IGP1!$Q$13-1),0) -> 00:00:00 | AB53: 0 | AC53: =IF(Q25>=CRÍTICA_IGP1!$Q$13,Q25,IF(AA53=CRÍTICA_IGP1!$Q$13-1,CRÍTICA_IGP1!$Q$13,0)) -> 00:00:00 | AD53: =IF(AND(S25<>0,AC53<>0),IF(S25>=CRÍTICA_IGP1!$Q$13,S25,0),0) -> 00:00:00 | AE53: 0 | AF53: 0 | AG53: 0 | AH53: 0 | AI53: 0 | AJ53: 0
W54: =IF(Q26<CRÍTICA_IGP1!$Q$11,Q26,0) -> 00:00:00 | X54: =IF(AND(S26<>0,W54<>0),IF(S26<CRÍTICA_IGP1!$Q$11,S26,CRÍTICA_IGP1!$Q$11-1),0) -> 00:00:00 | Y54: 0 | Z54: =IF(AND(Q26>=CRÍTICA_IGP1!$Q$11,Q26<CRÍTICA_IGP1!$Q$13),Q26,IF(X54=CRÍTICA_IGP1!$Q$11-1,CRÍTICA_IGP1!$Q$11,0)) -> 00:00:00 | AA54: =IF(AND(S26<>0,Z54<>0),IF(S26<CRÍTICA_IGP1!$Q$13,S26,CRÍTICA_IGP1!$Q$13-1),0) -> 00:00:00 | AB54: 0 | AC54: =IF(Q26>=CRÍTICA_IGP1!$Q$13,Q26,IF(AA54=CRÍTICA_IGP1!$Q$13-1,CRÍTICA_IGP1!$Q$13,0)) -> 00:00:00 | AD54: =IF(AND(S26<>0,AC54<>0),IF(S26>=CRÍTICA_IGP1!$Q$13,S26,0),0) -> 00:00:00 | AE54: 0 | AF54: 0 | AG54: 0 | AH54: 0 | AI54: 0 | AJ54: 0
W55: =IF(Q27<CRÍTICA_IGP1!$Q$11,Q27,0) -> 00:00:00 | X55: =IF(AND(S27<>0,W55<>0),IF(S27<CRÍTICA_IGP1!$Q$11,S27,CRÍTICA_IGP1!$Q$11-1),0) -> 00:00:00 | Y55: 0 | Z55: =IF(AND(Q27>=CRÍTICA_IGP1!$Q$11,Q27<CRÍTICA_IGP1!$Q$13),Q27,IF(X55=CRÍTICA_IGP1!$Q$11-1,CRÍTICA_IGP1!$Q$11,0)) -> 00:00:00 | AA55: =IF(AND(S27<>0,Z55<>0),IF(S27<CRÍTICA_IGP1!$Q$13,S27,CRÍTICA_IGP1!$Q$13-1),0) -> 00:00:00 | AB55: 0 | AC55: =IF(Q27>=CRÍTICA_IGP1!$Q$13,Q27,IF(AA55=CRÍTICA_IGP1!$Q$13-1,CRÍTICA_IGP1!$Q$13,0)) -> 00:00:00 | AD55: =IF(AND(S27<>0,AC55<>0),IF(S27>=CRÍTICA_IGP1!$Q$13,S27,0),0) -> 00:00:00 | AE55: 0 | AF55: 0 | AG55: 0 | AH55: 0 | AI55: 0 | AJ55: 0
W56: =IF(Q28<CRÍTICA_IGP1!$Q$11,Q28,0) -> 00:00:00 | X56: =IF(AND(S28<>0,W56<>0),IF(S28<CRÍTICA_IGP1!$Q$11,S28,CRÍTICA_IGP1!$Q$11-1),0) -> 00:00:00 | Y56: 0 | Z56: =IF(AND(Q28>=CRÍTICA_IGP1!$Q$11,Q28<CRÍTICA_IGP1!$Q$13),Q28,IF(X56=CRÍTICA_IGP1!$Q$11-1,CRÍTICA_IGP1!$Q$11,0)) -> 00:00:00 | AA56: =IF(AND(S28<>0,Z56<>0),IF(S28<CRÍTICA_IGP1!$Q$13,S28,CRÍTICA_IGP1!$Q$13-1),0) -> 00:00:00 | AB56: 0 | AC56: =IF(Q28>=CRÍTICA_IGP1!$Q$13,Q28,IF(AA56=CRÍTICA_IGP1!$Q$13-1,CRÍTICA_IGP1!$Q$13,0)) -> 00:00:00 | AD56: =IF(AND(S28<>0,AC56<>0),IF(S28>=CRÍTICA_IGP1!$Q$13,S28,0),0) -> 00:00:00 | AE56: 0 | AF56: 0 | AG56: 0 | AH56: 0 | AI56: 0 | AJ56: 0
W57: =IF(AND($Q$65>$F$42,$Q$65<CRÍTICA_IGP1!$Q$11),$Q$65,0) -> 00:00:00 | X57: =IF(AND($S$65<>0,W57<>0),IF($S$65<CRÍTICA_IGP1!$Q$11,$S$65,CRÍTICA_IGP1!$Q$11-1),0) -> 00:00:00 | Y57: =IF(AG57<>0,IF($T$65<=AG57,(AH57/AG57)*$T$65,0),0) -> 0 | Z57: =IF(AND($Q$65>$F$42,$Q$65>=CRÍTICA_IGP1!$Q$11,$Q$65<CRÍTICA_IGP1!$Q$13),$Q$65,IF(X57=CRÍTICA_IGP1!$Q$11-1,CRÍTICA_IGP1!$Q$11,0)) -> 00:00:00 | AA57: =IF(AND($S$65<>0,Z57<>0),IF($S$65<CRÍTICA_IGP1!$Q$13,$S$65,CRÍTICA_IGP1!$Q$13-1),0) -> 00:00:00 | AB57: =IF(AG57<>0,IF($T$65<=AG57,(AI57/AG57)*$T$65,0),0) -> 0 | AC57: =IF(AND($Q$65>$F$42,$Q$65>=CRÍTICA_IGP1!$Q$13),$Q$65,IF(AA57=CRÍTICA_IGP1!$Q$13-1,CRÍTICA_IGP1!$Q$13,0)) -> 00:00:00 | AD57: =IF(AND($S$65<>0,AC57<>0),IF($S$65>=CRÍTICA_IGP1!$Q$13,$S$65,0),0) -> 00:00:00 | AE57: =IF(AG57<>0,IF($T$65<=AG57,(AJ57/AG57)*$T$65,0),0) -> 0 | AF57: =Y57+AB57+AE57 -> 0 | AG57: =IF(AND($Q$65<>0,$S$65<>0),($S$65-$Q$65)+1,0) -> 0 | AH57: =IF(AND(W57<>0,X57<>0),(X57-W57)+1,0) -> 0 | AI57: =IF(AND(Z57<>0,AA57<>0),(AA57-Z57)+1,0) -> 0 | AJ57: =IF(AND(AC57<>0,AD57<>0),(AD57-AC57)+1,0) -> 0
W58: SOMA OU TOTAL | X58: 1998-12-15 | Y58: =SUM(Y47:Y57) -> 0 | Z58: 1998-12-16 | AA58: 2003-12-30 | AB58: =SUM(AB47:AB57) -> 0 | AC58: 2003-12-31 | AD58: =MAXA(AD47:AD57) -> 00:00:00 | AE58: =SUM(AE47:AE57) -> 0 | AF58: =$Y$58+$AB$58+$AE$58 -> 0 | AG58: =SUM(AF47:AF57) -> 0 | AI58: =COUNTIF(AI47:AI57,1841) -> 0
B59: 6 | C59: AFASTAMENTOS | L59: 7 | N59: AVERBAÇÕES | V59: OUTROS PODERES | W59: CONCOMITÂNCIA | X59: =COUNTIF(W47:X57,X58) -> 0 | Z59: =COUNTIF(Y47:Z57,Z58) -> 0 | AA59: =COUNTIF(Z47:AA57,AA58) -> 0 | AC59: =COUNTIF(AB47:AC57,AC58) -> 0
W60: CONCOMITÂNCIA | X60: =IF(OR(X59>1,Z59>1,AA59>1,AC59>1),"FOI COMPUTADO TEMPO CONCOMITANTE - REVER","") -> 
F61: ANTES EC 20 (16/12/98) | G61: ENTRE EC 20 E EC41 (16/12/98 A 30/12/03) | I61: =IF(OR(G63>0,G64>0,G65>0,G66),"HOUVE CONTRIBUIÇÃO?","") ->  | J61: APÓS EC41 (31/12/03) | L61: =IF(OR(J63>0,J64>0,J65>0,J66),"HOUVE CONTRIBUIÇÃO?","") ->  | M61: =IF(T61>0,Q61,0) -> 00:00:00 | N61: INSS - INICIATIVA PRIVADA | R61: a | U61: =IF(T61>AG29,"SB 40?","") ->  | W61: MÍNIMO | X61: =IF(X63<CRÍTICA_IGP1!$Q$11,X63,0) -> 00:00:00 | Z61: =IF(AND(X61<CRÍTICA_IGP1!$Q$11,X61<>0,X64>CRÍTICA_IGP1!$Q$11),CRÍTICA_IGP1!$Q$11,IF(AND(X64>=CRÍTICA_IGP1!$Q$11,Z63<CRÍTICA_IGP1!$Q$12),Z63,0)) -> 00:00:00 | AC61: =IF(AND(Z61<CRÍTICA_IGP1!$Q$12,Z61<>0,X64>=CRÍTICA_IGP1!$Q$12),CRÍTICA_IGP1!$Q$12,IF(AND(X64>=CRÍTICA_IGP1!$Q$12,AC63>=CRÍTICA_IGP1!$Q$12),AC63,0)) -> 00:00:00
C62: FALTAS | M62: =IF(T62>0,Q62,0) -> 00:00:00 | N62: INSS - INICIATIVA PRIVADA | R62: a | U62: =IF(T62>AG30,"SB 40?","") ->  | W62: MÁXIMO | X62: =MAXA(X47:X57) -> 00:00:00 | AA62: =MAXA(AA47:AA57) -> 00:00:00 | AD62: =MAXA(AD47:AD57) -> 00:00:00
C63: LICENÇA SEM VENCIMENTOS | M63: 00:00:00 | N63: INSS - INICIATIVA PRIVADA | R63: a | U63: =IF(T63>AG31,"SB 40?","") ->  | W63: MÍNIMO | X63: =MINA(Q19:Q28,Q65) -> 00:00:00 | Z63: =IF(X63<CRÍTICA_IGP1!$Q$11,X63,MINA(Q19:Q28,Q65)) -> 00:00:00 | AC63: =IF(Z63<CRÍTICA_IGP1!$Q$13,Z63,MINA(Q19:Q28,Q65)) -> 00:00:00
C64: SUSPENSÕES | N64: =IF(OR(AND(Q63<>0,Q63>=Q62,Q63<=S62),AND(Q63<>0,Q63>=Q61,Q63<=S61),AND(Q62<>0,Q62>=Q61,Q62<=S61)),"TEMPO CONCOMITANTE - REVER","") ->  | Q64: TOTAL EM DIAS | T64: =SUM(T61:T63) -> 0 | W64: MÁXIMO | X64: =MAXA(X47:X57,AA47:AA57,AD47:AD57) -> 00:00:00
C65: DISPONIBILIDADE | M65: 00:00:00 | N65: OUTROS PODERES - INSS | R65: a | W65: DIFERENÇA: ADMISSÃO E DT AVERBAÇÃO | AA65: =IF(AND(X59>=1,Z59>=1,$F$42>=$Z$58,$F$42<$AC$58),$F$42-$AA$62,0) -> 0 | AB65: =IF($F$42>=$AC$58,$F$42-$AD$62,0) -> 0
C66: OUTROS | M66: 00:00:00 | N66: OUTROS PODERES | R66: a | T66: =IF(AND(Q66<>0,S66<>0),S66-Q66+1,0) -> 0
M67: 00:00:00 | N67: OUTROS PODERES | R67: a | T67: =IF(AND(Q67<>0,S67<>0),S67-Q67+1,0) -> 0
N68: =IF(OR(AND(Q67<>0,Q67>=Q66,Q67<=S66),AND(Q67<>0,Q67>=Q65,Q67<=S65),AND(Q66<>0,Q66>=Q65,Q66<=S65)),"TEMPO CONCOMITANTE - REVER","") ->  | Q68: TOTAL EM DIAS | T68: =SUM(T65:T67) -> 0 | AB68: MAGISTÉRIO OU NÃO
B70: 8 | C70: TEMPO FICTO | F70: PERÍODO DE COMPETÊNCIA | I70: NÚMERO DE PERÍODOS | J70: PRÊMIO POR PERÍODO | L70: TOTAL EM DOBRO | W70: AFASTAMENTOS | Y70: ENTRE EC 20 E EC41 | Z70: APÓS EC41 | AB70: TEMPO FICTO | AC70: NÚMERO PERÍODOS | AD70: TOTAL EM DOBRO
C71: LICENÇA ESPECIAL | G71: a | L71: =IF(AND(H71<36145,H71>F71),IF(AND(I71>0,J71>0),I71*J71*2,""),0) -> 0 | N71: =IF(H71>=36145," NÃO HÁ POSSIBILIDADE DE TEMPO FICTO A PARTIR DE 16/12/98.","") ->  | W71: LICENÇA S/VCTOS. | Y71: =IF(I63=$H$98,0,G63) -> 0 | Z71: =IF(L63=$H$98,0,J63) -> 0 | AB71: LICENÇA ESPECIAL | AC71: =I71 -> 0 | AD71: =L71 -> 0
C72: LICENÇA ESPECIAL | G72: a | L72: =IF(AND(H72<36145,H72>F72),IF(AND(I72>0,J72>0),I72*J72*2,""),0) -> 0 | N72: =IF(H72>=36145," NÃO HÁ POSSIBILIDADE DE TEMPO FICTO A PARTIR DE 16/12/98.","") ->  | W72: SUSPENSÕES | Y72: =IF(I64=$H$98,0,G64) -> 0 | Z72: =IF(L64=$H$98,0,J64) -> 0 | AB72: LICENÇA ESPECIAL | AC72: 0 | AD72: 0
C73: LICENÇA ESPECIAL | G73: a | L73: =IF(AND(H73<36145,H73>F73),IF(AND(I73>0,J73>0),I73*J73*2,""),0) -> 0 | N73: =IF(H73>=36145," NÃO HÁ POSSIBILIDADE DE TEMPO FICTO A PARTIR DE 16/12/98.","") ->  | W73: DISPONIBILIDADE | Y73: =IF(I65=$H$98,0,G65) -> 0 | Z73: =IF(L65=$H$98,0,J65) -> 0 | AB73: LICENÇA ESPECIAL | AC73: 0 | AD73: 0
C74: LICENÇA ESPECIAL | G74: a | L74: =IF(AND(H74<36145,H74>F74),IF(AND(I74>0,J74>0),I74*J74*2,""),0) -> 0 | N74: =IF(H74>=36145," NÃO HÁ POSSIBILIDADE DE TEMPO FICTO A PARTIR DE 16/12/98.","") ->  | W74: OUTROS | Y74: =IF(I66=$H$98,0,G66) -> 0 | Z74: =IF(L66=$H$98,0,J66) -> 0 | AB74: LICENÇA ESPECIAL | AC74: 0 | AD74: 0
C75: LICENÇA ESPECIAL | G75: a | L75: =IF(AND(H75<36145,H75>F75),IF(AND(I75>0,J75>0),I75*J75*2,""),0) -> 0 | N75: =IF(H75>=36145," NÃO HÁ POSSIBILIDADE DE TEMPO FICTO A PARTIR DE 16/12/98.","") ->  | W75: SOMA OU TOTAL | Y75: =SUM(Y71:Y74) -> 0 | Z75: =SUM(Z71:Z74) -> 0 | AA75: =SUM(Y75:Z75) -> 0 | AB75: LICENÇA ESPECIAL | AC75: 0 | AD75: 0
C76: FÉRIAS EM DOBRO | I76: =COUNTA(F76:H76) -> 0 | L76: =IF(U76<=1998,IF(I76>0,I76*30*2,0),0) -> 0 | N76: =IF(U76=1998," OBSERVE A DATA LIMITE DE 16/12/98.",IF(U76>1998," NÃO HÁ POSSIBILIDADE DE TEMPO FICTO A PARTIR DE 16/12/98.","")) ->  | U76: =MAXA(F76:H76) -> 0 | AB76: FÉRIAS EM DOBRO | AC76: 0 | AD76: 0
C77: FÉRIAS EM DOBRO | I77: =COUNTA(F77:H77) -> 0 | L77: =IF(U77<=1998,IF(I77>0,I77*30*2,0),0) -> 0 | N77: =IF(U77=1998," OBSERVE A DATA LIMITE DE 16/12/98.",IF(U77>1998," NÃO HÁ POSSIBILIDADE DE TEMPO FICTO A PARTIR DE 16/12/98.","")) ->  | U77: =MAXA(F77:H77) -> 0 | AB77: FÉRIAS EM DOBRO | AC77: 0 | AD77: 0
N78: =COUNTIF(N71:N77," NÃO HÁ POSSIBILIDADE DE TEMPO FICTO A PARTIR DE 16/12/98.") -> 0
C79: SITUAÇÃO NO MOMENTO DA APOSENTADORIA | AB79: SOMA | AC79: =SUM(AC71:AC77) -> 0 | AD79: =SUM(AD71:AD77) -> 0
B81: 9 | C81: CARGO / EMPREGO : | D81: =IF($C$57<>"",$C$57,IF($C$56<>"",$C$56,IF($C$55<>"",$C$55,IF($C$54<>"",$C$54,IF($C$53<>"",$C$53,IF($C$52<>"",$C$52,IF($C$51<>"",$C$51,IF($C$50<>"",$C$50,IF($C$49<>"",$C$49,$C$48))))))))) ->  | I81: DESDE: | J81: =IF(AND($T$57<>"",OR($O$57=$L$101,$O$57=$L$102)),$T$57,IF(AND($T$56<>"",OR($O$56=$L$101,$O$56=$L$102)),$T$56,IF(AND($T$55<>"",OR($O$55=$L$101,$O$55=$L$102)),$T$55,IF(AND($T$54<>"",OR($O$54=$L$101,$O$54=$L$102)),$T$54,IF(AND($T$53<>"",OR($O$53=$L$101,$O$53=$L$102)),$T$53,IF(AND($T$52<>"",OR($O$52=$L$101,$O$52=$L$102)),$T$52,IF(AND($T$51<>"",OR($O$51=$L$101,$O$51=$L$102)),$T$51,IF(AND($T$50<>"",OR($O$50=$L$101,$O$50=$L$102)),$T$50,IF(AND($T$49<>"",OR($O$49=$L$101,$O$49=$L$102)),$T$49,IF(AND($T$48<>"",OR($O$48=$L$101,$O$48=$L$102)),$T$48,$F$42)))))))))) -> 00:00:00 | L81: NÍVEL/REFERÊNCIA: | R81: MATRÍCULA: | T81: =R41 -> 0
C82: CARREIRA: | D82: =IF($E$57<>"",$E$57,IF($E$56<>"",$E$56,IF($E$55<>"",$E$55,IF($E$54<>"",$E$54,IF($E$53<>"",$E$53,IF($E$52<>"",$E$52,IF($E$51<>"",$E$51,IF($E$50<>"",$E$50,IF($E$49<>"",$E$49,$E$48))))))))) ->  | I82: DESDE: | J82: =IF(AND($T$57<>"",OR($O$57=$L$101,$O$57=$L$102)),$T$57,IF(AND($T$56<>"",OR($O$56=$L$101,$O$56=$L$102)),$T$56,IF(AND($T$55<>"",OR($O$55=$L$101,$O$55=$L$102)),$T$55,IF(AND($T$54<>"",OR($O$54=$L$101,$O$54=$L$102)),$T$54,IF(AND($T$53<>"",OR($O$53=$L$101,$O$53=$L$102)),$T$53,IF(AND($T$52<>"",OR($O$52=$L$101,$O$52=$L$102)),$T$52,IF(AND($T$51<>"",OR($O$51=$L$101,$O$51=$L$102)),$T$51,IF(AND($T$50<>"",OR($O$50=$L$101,$O$50=$L$102)),$T$50,IF(AND($T$49<>"",OR($O$49=$L$101,$O$49=$L$102)),$T$49,IF(AND($T$48<>"",OR($O$48=$L$101,$O$48=$L$102)),$T$48,$F$42)))))))))) -> 00:00:00 | M82: LOTAÇÃO: | W82: REGIME PRÓPRIO DE PREVIDÊNCIA SOCIAL - RPPS - OUTROS PODERES E ÓRGÃO DE ORIGEM | AH82: RPPS - OUTROS PODERES - ORGÃO DE ORIGEM
C83: DETALHAMENTO | K83: SIM | L83: DATA | N83: =IF(P104<>"",P104,IF(P105<>"",P105,IF(P106<>"",P106,IF(P107<>"",P107,"")))) -> PREENCHA A DATA DE VALIDADE. | W83: ANTES DA EC 20 | Z83: ENTRE EC 20 E EC41 | AC83: APÓS EC41 | AF83: SOMA TOTAL | AG83: TEMPO TOTAL | AH83: TEMPO TOTAL-1 | AI83: TEMPO TOTAL-2 | AJ83: TEMPO TOTAL-3
C84: A VALIDADE É A DATA DO EFETIVO AFASTAMENTO (OU OUTRA)? FUNDAMENTE. | N84: =IF(K84="X","FUNDAMENTAÇÃO:","") ->  | W84: =IF(F31<CRÍTICA_IGP1!$Q$11,F31,0) -> 00:00:00 | X84: =IF(AND(H31<>0,W84<>0),IF(H31<CRÍTICA_IGP1!$Q$11,H31,CRÍTICA_IGP1!$Q$11-1),0) -> 00:00:00 | Y84: =IF(AG84<>0,IF(I31<=AG84,(AH84/AG84)*I31,0),0) -> 0 | Z84: =IF(AND(F31>=CRÍTICA_IGP1!$Q$11,F31<CRÍTICA_IGP1!$Q$13),F31,IF(X84=CRÍTICA_IGP1!$Q$11-1,CRÍTICA_IGP1!$Q$11,0)) -> 00:00:00 | AA84: =IF(AND(H31<>0,Z84<>0),IF(H31<CRÍTICA_IGP1!$Q$13,H31,CRÍTICA_IGP1!$Q$13-1),0) -> 00:00:00 | AB84: =IF(AG84<>0,IF(I31<=AG84,(AI84/AG84)*I31,0),0) -> 0 | AC84: =IF(F31>=CRÍTICA_IGP1!$Q$13,F31,IF(AA84=CRÍTICA_IGP1!$Q$13-1,CRÍTICA_IGP1!$Q$13,0)) -> 00:00:00 | AD84: =IF(AND(H31<>0,AC84<>0),IF(H31>=CRÍTICA_IGP1!$Q$13,H31,0),0) -> 00:00:00 | AE84: =IF(AG84<>0,IF(I31<=AG84,(AJ84/AG84)*I31,0),0) -> 0 | AF84: =Y84+AB84+AE84 -> 0 | AG84: =IF(AND(F31<>0,H31<>0),(H31-F31)+1,0) -> 0 | AH84: =IF(AND(W84<>0,X84<>0),(X84-W84)+1,0) -> 0 | AI84: =IF(AND(Z84<>0,AA84<>0),(AA84-Z84)+1,0) -> 0 | AJ84: =IF(AND(AC84<>0,AD84<>0),(AD84-AC84)+1,0) -> 0
C85: A VALIDADE É A DATA DA PUBLICAÇÃO ? | K85: X | W85: =IF(F32<CRÍTICA_IGP1!$Q$11,F32,0) -> 00:00:00 | X85: =IF(AND(H32<>0,W85<>0),IF(H32<CRÍTICA_IGP1!$Q$11,H32,CRÍTICA_IGP1!$Q$11-1),0) -> 00:00:00 | Y85: =IF(AG85<>0,IF(I32<=AG85,(AH85/AG85)*I32,0),0) -> 0 | Z85: =IF(AND(F32>=CRÍTICA_IGP1!$Q$11,F32<CRÍTICA_IGP1!$Q$13),F32,IF(X85=CRÍTICA_IGP1!$Q$11-1,CRÍTICA_IGP1!$Q$11,0)) -> 00:00:00 | AA85: =IF(AND(H32<>0,Z85<>0),IF(H32<CRÍTICA_IGP1!$Q$13,H32,CRÍTICA_IGP1!$Q$13-1),0) -> 00:00:00 | AB85: =IF(AG85<>0,IF(I32<=AG85,(AI85/AG85)*I32,0),0) -> 0 | AC85: =IF(F32>=CRÍTICA_IGP1!$Q$13,F32,IF(AA85=CRÍTICA_IGP1!$Q$13-1,CRÍTICA_IGP1!$Q$13,0)) -> 00:00:00 | AD85: =IF(AND(H32<>0,AC85<>0),IF(H32>=CRÍTICA_IGP1!$Q$13,H32,0),0) -> 00:00:00 | AE85: =IF(AG85<>0,IF(I32<=AG85,(AJ85/AG85)*I32,0),0) -> 0 | AF85: =Y85+AB85+AE85 -> 0 | AG85: =IF(AND(F32<>0,H32<>0),(H32-F32)+1,0) -> 0 | AH85: =IF(AND(W85<>0,X85<>0),(X85-W85)+1,0) -> 0 | AI85: =IF(AND(Z85<>0,AA85<>0),(AA85-Z85)+1,0) -> 0 | AJ85: =IF(AND(AC85<>0,AD85<>0),(AD85-AC85)+1,0) -> 0
C86: A VALIDADE É A DATA DO LAUDO MÉDICO ? | W86: =IF(F33<CRÍTICA_IGP1!$Q$11,F33,0) -> 00:00:00 | X86: =IF(AND(H33<>0,W86<>0),IF(H33<CRÍTICA_IGP1!$Q$11,H33,CRÍTICA_IGP1!$Q$11-1),0) -> 00:00:00 | Y86: =IF(AG86<>0,IF(I33<=AG86,(AH86/AG86)*I33,0),0) -> 0 | Z86: =IF(AND(F33>=CRÍTICA_IGP1!$Q$11,F33<CRÍTICA_IGP1!$Q$13),F33,IF(X86=CRÍTICA_IGP1!$Q$11-1,CRÍTICA_IGP1!$Q$11,0)) -> 00:00:00 | AA86: =IF(AND(H33<>0,Z86<>0),IF(H33<CRÍTICA_IGP1!$Q$13,H33,CRÍTICA_IGP1!$Q$13-1),0) -> 00:00:00 | AB86: =IF(AG86<>0,IF(I33<=AG86,(AI86/AG86)*I33,0),0) -> 0 | AC86: =IF(F33>=CRÍTICA_IGP1!$Q$13,F33,IF(AA86=CRÍTICA_IGP1!$Q$13-1,CRÍTICA_IGP1!$Q$13,0)) -> 00:00:00 | AD86: =IF(AND(H33<>0,AC86<>0),IF(H33>=CRÍTICA_IGP1!$Q$13,H33,0),0) -> 00:00:00 | AE86: =IF(AG86<>0,IF(I33<=AG86,(AJ86/AG86)*I33,0),0) -> 0 | AF86: 0 | AG86: =IF(AND(F33<>0,H33<>0),(H33-F33)+1,0) -> 0 | AH86: 0 | AI86: 0 | AJ86: 0
C87: HOUVE INCORPORAÇÃO DE CARGO COMISSAO / FUNÇÃO GRATIFICADA? | N87: É EFETIVO EXERCÍCIO DE FUNÇÕES DE MAGISTÉRIO? | T87: NÃO | W87: =IF(F34<CRÍTICA_IGP1!$Q$11,F34,0) -> 00:00:00 | X87: =IF(AND(H34<>0,W87<>0),IF(H34<CRÍTICA_IGP1!$Q$11,H34,CRÍTICA_IGP1!$Q$11-1),0) -> 00:00:00 | Y87: =IF(AG87<>0,IF(I34<=AG87,(AH87/AG87)*I34,0),0) -> 0 | Z87: =IF(AND(F34>=CRÍTICA_IGP1!$Q$11,F34<CRÍTICA_IGP1!$Q$13),F34,IF(X87=CRÍTICA_IGP1!$Q$11-1,CRÍTICA_IGP1!$Q$11,0)) -> 00:00:00 | AA87: =IF(AND(H34<>0,Z87<>0),IF(H34<CRÍTICA_IGP1!$Q$13,H34,CRÍTICA_IGP1!$Q$13-1),0) -> 00:00:00 | AB87: =IF(AG87<>0,IF(I34<=AG87,(AI87/AG87)*I34,0),0) -> 0 | AC87: =IF(F34>=CRÍTICA_IGP1!$Q$13,F34,IF(AA87=CRÍTICA_IGP1!$Q$13-1,CRÍTICA_IGP1!$Q$13,0)) -> 00:00:00 | AD87: =IF(AND(H34<>0,AC87<>0),IF(H34>=CRÍTICA_IGP1!$Q$13,H34,0),0) -> 00:00:00 | AE87: =IF(AG87<>0,IF(I34<=AG87,(AJ87/AG87)*I34,0),0) -> 0 | AF87: 0 | AG87: =IF(AND(F34<>0,H34<>0),(H34-F34)+1,0) -> 0 | AH87: 0 | AI87: 0 | AJ87: 0
C88: HOUVE INCORPORAÇÃO DE GRATIFICAÇÃO ? | V88: OUTROS PODERES | W88: =IF(F35<CRÍTICA_IGP1!$Q$11,F35,0) -> 00:00:00 | X88: =IF(AND(H35<>0,W88<>0),IF(H35<CRÍTICA_IGP1!$Q$11,H35,CRÍTICA_IGP1!$Q$11-1),0) -> 00:00:00 | Y88: =IF(AG88<>0,IF(I35<=AG88,(AH88/AG88)*I35,0),0) -> 0 | Z88: =IF(AND(F35>=CRÍTICA_IGP1!$Q$11,F35<CRÍTICA_IGP1!$Q$13),F35,IF(X88=CRÍTICA_IGP1!$Q$11-1,CRÍTICA_IGP1!$Q$11,0)) -> 00:00:00 | AA88: =IF(AND(H35<>0,Z88<>0),IF(H35<CRÍTICA_IGP1!$Q$13,H35,CRÍTICA_IGP1!$Q$13-1),0) -> 00:00:00 | AB88: =IF(AG88<>0,IF(I35<=AG88,(AI88/AG88)*I35,0),0) -> 0 | AC88: =IF(F35>=CRÍTICA_IGP1!$Q$13,F35,IF(AA88=CRÍTICA_IGP1!$Q$13-1,CRÍTICA_IGP1!$Q$13,0)) -> 00:00:00 | AD88: =IF(AND(H35<>0,AC88<>0),IF(H35>=CRÍTICA_IGP1!$Q$13,H35,0),0) -> 00:00:00 | AE88: =IF(AG88<>0,IF(I35<=AG88,(AJ88/AG88)*I35,0),0) -> 0 | AF88: 0 | AG88: =IF(AND(F35<>0,H35<>0),(H35-F35)+1,0) -> 0 | AH88: 0 | AI88: 0 | AJ88: 0
C89: HOUVE PROMOÇÃO EM DECORRÊNCIA DE CURSO DE FORMAÇÃO / ESPECIALIZAÇÃO ? | V89: OUTROS PODERES | W89: =IF(Q32<CRÍTICA_IGP1!$Q$11,Q32,0) -> 00:00:00 | X89: =IF(AND(S32<>0,W89<>0),IF(S32<CRÍTICA_IGP1!$Q$11,S32,CRÍTICA_IGP1!$Q$11-1),0) -> 00:00:00 | Y89: =IF(AG89<>0,IF(T32<=AG89,(AH89/AG89)*T32,0),0) -> 0 | Z89: =IF(AND(Q32>=CRÍTICA_IGP1!$Q$11,Q32<CRÍTICA_IGP1!$Q$13),Q32,IF(X89=CRÍTICA_IGP1!$Q$11-1,CRÍTICA_IGP1!$Q$11,0)) -> 00:00:00 | AA89: =IF(AND(S32<>0,Z89<>0),IF(S32<CRÍTICA_IGP1!$Q$13,S32,CRÍTICA_IGP1!$Q$13-1),0) -> 00:00:00 | AB89: =IF(AG89<>0,IF(T32<=AG89,(AI89/AG89)*T32,0),0) -> 0 | AC89: =IF(Q32>=CRÍTICA_IGP1!$Q$13,Q32,IF(AA89=CRÍTICA_IGP1!$Q$13-1,CRÍTICA_IGP1!$Q$13,0)) -> 00:00:00 | AD89: =IF(AND(S32<>0,AC89<>0),IF(S32>=CRÍTICA_IGP1!$Q$13,S32,0),0) -> 00:00:00 | AE89: =IF(AG89<>0,IF(T32<=AG89,(AJ89/AG89)*T32,0),0) -> 0 | AF89: 0 | AG89: =IF(AND(Q32<>0,S32<>0),(S32-Q32)+1,0) -> 0 | AH89: 0 | AI89: 0 | AJ89: 0
C90: HOUVE INCORPORAÇÃO DE GRATIFICAÇÃO POR CURSO DE FORMAÇÃO / ESPECIALIZAÇÃO? | N90: VALIDOU OS REGISTROS? | S90: SIM | V90: OUTROS PODERES | W90: =IF(Q33<CRÍTICA_IGP1!$Q$11,Q33,0) -> 00:00:00 | X90: =IF(AND(S33<>0,W90<>0),IF(S33<CRÍTICA_IGP1!$Q$11,S33,CRÍTICA_IGP1!$Q$11-1),0) -> 00:00:00 | Y90: =IF(AG90<>0,IF(T33<=AG90,(AH90/AG90)*T33,0),0) -> 0 | Z90: =IF(AND(Q33>=CRÍTICA_IGP1!$Q$11,Q33<CRÍTICA_IGP1!$Q$13),Q33,IF(X90=CRÍTICA_IGP1!$Q$11-1,CRÍTICA_IGP1!$Q$11,0)) -> 00:00:00 | AA90: =IF(AND(S33<>0,Z90<>0),IF(S33<CRÍTICA_IGP1!$Q$13,S33,CRÍTICA_IGP1!$Q$13-1),0) -> 00:00:00 | AB90: =IF(AG90<>0,IF(T33<=AG90,(AI90/AG90)*T33,0),0) -> 0 | AC90: =IF(Q33>=CRÍTICA_IGP1!$Q$13,Q33,IF(AA90=CRÍTICA_IGP1!$Q$13-1,CRÍTICA_IGP1!$Q$13,0)) -> 00:00:00 | AD90: =IF(AND(S33<>0,AC90<>0),IF(S33>=CRÍTICA_IGP1!$Q$13,S33,0),0) -> 00:00:00 | AE90: =IF(AG90<>0,IF(T33<=AG90,(AJ90/AG90)*T33,0),0) -> 0 | AF90: 0 | AG90: =IF(AND(Q33<>0,S33<>0),(S33-Q33)+1,0) -> 0 | AH90: 0 | AI90: 0 | AJ90: 0
C91: A (S) INCORPORAÇÃO (ÕES) É (SÃO) POR DECISÃO JUDICIAL? | N91: =IF(OR($C$29<>"",$N$29<>"",$C$36<>"",$N$36<>"",$N$64<>"",$N$68<>"",$X$34<>"",$X$60<>"",$X$97<>""),"FOI COMPUTADO TEMPO CONCOMITANTE - REVER",IF($N$147<>"",$N$147,"")) ->  | V91: OUTROS PODERES | W91: =IF(Q34<CRÍTICA_IGP1!$Q$11,Q34,0) -> 00:00:00 | X91: =IF(AND(S34<>0,W91<>0),IF(S34<CRÍTICA_IGP1!$Q$11,S34,CRÍTICA_IGP1!$Q$11-1),0) -> 00:00:00 | Y91: =IF(AG91<>0,IF(T34<=AG91,(AH91/AG91)*T34,0),0) -> 0 | Z91: =IF(AND(Q34>=CRÍTICA_IGP1!$Q$11,Q34<CRÍTICA_IGP1!$Q$13),Q34,IF(X91=CRÍTICA_IGP1!$Q$11-1,CRÍTICA_IGP1!$Q$11,0)) -> 00:00:00 | AA91: =IF(AND(S34<>0,Z91<>0),IF(S34<CRÍTICA_IGP1!$Q$13,S34,CRÍTICA_IGP1!$Q$13-1),0) -> 00:00:00 | AB91: =IF(AG91<>0,IF(T34<=AG91,(AI91/AG91)*T34,0),0) -> 0 | AC91: =IF(Q34>=CRÍTICA_IGP1!$Q$13,Q34,IF(AA91=CRÍTICA_IGP1!$Q$13-1,CRÍTICA_IGP1!$Q$13,0)) -> 00:00:00 | AD91: =IF(AND(S34<>0,AC91<>0),IF(S34>=CRÍTICA_IGP1!$Q$13,S34,0),0) -> 00:00:00 | AE91: =IF(AG91<>0,IF(T34<=AG91,(AJ91/AG91)*T34,0),0) -> 0 | AF91: =Y91+AB91+AE91 -> 0 | AG91: =IF(AND(Q34<>0,S34<>0),(S34-Q34)+1,0) -> 0 | AH91: =IF(AND(W91<>0,X91<>0),(X91-W91)+1,0) -> 0 | AI91: =IF(AND(Z91<>0,AA91<>0),(AA91-Z91)+1,0) -> 0 | AJ91: =IF(AND(AC91<>0,AD91<>0),(AD91-AC91)+1,0) -> 0
V92: OUTROS PODERES | W92: =IF(Q35<CRÍTICA_IGP1!$Q$11,Q35,0) -> 00:00:00 | X92: =IF(AND(S35<>0,W92<>0),IF(S35<CRÍTICA_IGP1!$Q$11,S35,CRÍTICA_IGP1!$Q$11-1),0) -> 00:00:00 | Y92: =IF(AG92<>0,IF(T35<=AG92,(AH92/AG92)*T35,0),0) -> 0 | Z92: =IF(AND(Q35>=CRÍTICA_IGP1!$Q$11,Q35<CRÍTICA_IGP1!$Q$13),Q35,IF(X92=CRÍTICA_IGP1!$Q$11-1,CRÍTICA_IGP1!$Q$11,0)) -> 00:00:00 | AA92: =IF(AND(S35<>0,Z92<>0),IF(S35<CRÍTICA_IGP1!$Q$13,S35,CRÍTICA_IGP1!$Q$13-1),0) -> 00:00:00 | AB92: =IF(AG92<>0,IF(T35<=AG92,(AI92/AG92)*T35,0),0) -> 0 | AC92: =IF(Q35>=CRÍTICA_IGP1!$Q$13,Q35,IF(AA92=CRÍTICA_IGP1!$Q$13-1,CRÍTICA_IGP1!$Q$13,0)) -> 00:00:00 | AD92: =IF(AND(S35<>0,AC92<>0),IF(S35>=CRÍTICA_IGP1!$Q$13,S35,0),0) -> 00:00:00 | AE92: =IF(AG92<>0,IF(T35<=AG92,(AJ92/AG92)*T35,0),0) -> 0 | AF92: =Y92+AB92+AE92 -> 0 | AG92: =IF(AND(Q35<>0,S35<>0),(S35-Q35)+1,0) -> 0 | AH92: =IF(AND(W92<>0,X92<>0),(X92-W92)+1,0) -> 0 | AI92: =IF(AND(Z92<>0,AA92<>0),(AA92-Z92)+1,0) -> 0 | AJ92: =IF(AND(AC92<>0,AD92<>0),(AD92-AC92)+1,0) -> 0
B93: 10 | C93: ATENÇÃO: | D93: =IF(F14<>0,"IDADE","") ->  | G93: =IF(F14<>0,CRÍTICA_IGP1!$W$20,"") ->  | I93: =IF(S90="NÃO","VALIDAR OS REGISTROS.","") ->  | V93: ORIGEM | W93: =IF(AND(Q66>$F$42,Q66<CRÍTICA_IGP1!$Q$11),Q66,0) -> 00:00:00 | X93: =IF(AND($S$66<>0,W93<>0),IF($S$66<CRÍTICA_IGP1!$Q$11,$S$66,CRÍTICA_IGP1!$Q$11-1),0) -> 00:00:00 | Y93: =IF(AG93<>0,IF(T66<=AG93,(AH93/AG93)*T66,0),0) -> 0 | Z93: =IF(AND(Q66>$F$42,Q66>=CRÍTICA_IGP1!$Q$11,Q66<CRÍTICA_IGP1!$Q$13),Q66,IF(X93=CRÍTICA_IGP1!$Q$11-1,CRÍTICA_IGP1!$Q$11,0)) -> 00:00:00 | AA93: =IF(AND(S66<>0,Z93<>0),IF(S66<CRÍTICA_IGP1!$Q$13,S66,CRÍTICA_IGP1!$Q$13-1),0) -> 00:00:00 | AB93: =IF(AG93<>0,IF(T66<=AG93,(AI93/AG93)*T66,0),0) -> 0 | AC93: =IF(AND(Q66>$F$42,Q66>=CRÍTICA_IGP1!$Q$13),Q66,IF(AA93=CRÍTICA_IGP1!$Q$13-1,CRÍTICA_IGP1!$Q$13,0)) -> 00:00:00 | AD93: =IF(AND(S66<>0,AC93<>0),IF(S66>=CRÍTICA_IGP1!$Q$13,S66,0),0) -> 00:00:00 | AE93: =IF(AG93<>0,IF(T66<=AG93,(AJ93/AG93)*T66,0),0) -> 0 | AF93: =Y93+AB93+AE93 -> 0 | AG93: =IF(AND(Q66<>0,S66<>0),(S66-Q66)+1,0) -> 0 | AH93: =IF(AND(W93<>0,X93<>0),(X93-W93)+1,0) -> 0 | AI93: =IF(AND(Z93<>0,AA93<>0),(AA93-Z93)+1,0) -> 0 | AJ93: =IF(AND(AC93<>0,AD93<>0),(AD93-AC93)+1,0) -> 0
F94: =IF(OR(AND(L84<=P100,L84<>0),AND(L85<=P100,L85<>0),AND(L86<=P100,L86<>0)),"",IF(CRÍTICA_IGP1!$H$19>=$L$92,IF(CRÍTICA_IGP1!$W$20>=75,CONCATENATE(CRÍTICA_IGP1!T16,", ",P101,"."),IF(CRÍTICA_IGP1!$W$20>=60,CONCATENATE("O SERVIDOR ATINGIRÁ A COMPULSÓRIA EM ",CRÍTICA_IGP1!$V$20," DIAS, "," OU SEJA, EM ", P101, "."),"")),IF(CRÍTICA_IGP1!$W$20>=70,CONCATENATE(CRÍTICA_IGP1!T16,", ",P101,"."),IF(CRÍTICA_IGP1!$W$20>=60,CONCATENATE("O SERVIDOR ATINGIRÁ A COMPULSÓRIA EM ",CRÍTICA_IGP1!$V$20," DIAS, "," OU SEJA, EM ", P101, "."),"")))) ->  | O94: HOJE | Q94: RUBRICA: | S94: _________________ | V94: ORIGEM | W94: =IF(AND(Q67>$F$42,Q67<CRÍTICA_IGP1!$Q$11),Q67,0) -> 00:00:00 | X94: =IF(AND($S$67<>0,W94<>0),IF($S$67<CRÍTICA_IGP1!$Q$11,$S$67,CRÍTICA_IGP1!$Q$11-1),0) -> 00:00:00 | Y94: =IF(AG94<>0,IF(T67<=AG94,(AH94/AG94)*T67,0),0) -> 0 | Z94: =IF(AND(Q67>$F$42,Q67>=CRÍTICA_IGP1!$Q$11,Q67<CRÍTICA_IGP1!$Q$13),Q67,IF(X94=CRÍTICA_IGP1!$Q$11-1,CRÍTICA_IGP1!$Q$11,0)) -> 00:00:00 | AA94: =IF(AND(S67<>0,Z94<>0),IF(S67<CRÍTICA_IGP1!$Q$13,S67,CRÍTICA_IGP1!$Q$13-1),0) -> 00:00:00 | AB94: =IF(AG94<>0,IF(T67<=AG94,(AI94/AG94)*T67,0),0) -> 0 | AC94: =IF(AND(Q67>$F$42,Q67>=CRÍTICA_IGP1!$Q$13),Q67,IF(AA94=CRÍTICA_IGP1!$Q$13-1,CRÍTICA_IGP1!$Q$13,0)) -> 00:00:00 | AD94: =IF(AND(S67<>0,AC94<>0),IF(S67>=CRÍTICA_IGP1!$Q$13,S67,0),0) -> 00:00:00 | AE94: =IF(AG94<>0,IF(T67<=AG94,(AJ94/AG94)*T67,0),0) -> 0 | AF94: =Y94+AB94+AE94 -> 0 | AG94: =IF(AND(Q67<>0,S67<>0),(S67-Q67)+1,0) -> 0 | AH94: =IF(AND(W94<>0,X94<>0),(X94-W94)+1,0) -> 0 | AI94: =IF(AND(Z94<>0,AA94<>0),(AA94-Z94)+1,0) -> 0 | AJ94: =IF(AND(AC94<>0,AD94<>0),(AD94-AC94)+1,0) -> 0
O95: =TODAY() -> 2017-10-19 | Q95: MATRÍCULA: | S95: _________________ | V95: OUTROS PODERES | W95: SOMA OU TOTAL | X95: 1998-12-15 | Y95: =SUM(Y84:Y94) -> 0 | Z95: 1998-12-16 | AA95: 2003-12-30 | AB95: =SUM(AB84:AB94) -> 0 | AC95: 2003-12-31 | AE95: =SUM(AE84:AE94) -> 0 | AF95: =$Y$95+$AB$95+$AE$95 -> 0 | AG95: =SUM(AG84:AG94) -> 0 | AI95: =COUNTIF(AI84:AI94,1841) -> 0
C96: TRIBUNAL DE CONTAS DO ESTADO DO RIO DE JANEIRO - SUP | V96: OUTROS PODERES | W96: CONCOMITÂNCIA | X96: =COUNTIF(W84:X94,X95) -> 0 | Z96: =COUNTIF(Y84:Z94,Z95) -> 0 | AA96: =COUNTIF(Z84:AA94,AA95) -> 0 | AC96: =COUNTIF(AB84:AC94,AC95) -> 0
C97: Virgílio de Oliveira Souza (Técnica / Lógica) | K97: Luiz Cláudio Lopes de Sá - (Revisão / Lay out) | W97: CONCOMITÂNCIA | X97: =IF(OR(X96>1,Z96>1,AA96>1,AC96>1),"FOI COMPUTADO TEMPO CONCOMITANTE - REVER","") -> 
H98: SIM - RPPS ORIGEM | J98: SIM | W98: MÍNIMO | X98: =IF(X100<CRÍTICA_IGP1!$Q$11,$X$100,0) -> 00:00:00 | Z98: =IF(AND(X98<CRÍTICA_IGP1!$Q$11,X98<>0,$X$101>CRÍTICA_IGP1!$Q$11),CRÍTICA_IGP1!$Q$11,IF(AND($X$101>=CRÍTICA_IGP1!$Q$11,Z100<CRÍTICA_IGP1!$Q$13),Z100,0)) -> 00:00:00 | AC98: =IF(AND(Z98<CRÍTICA_IGP1!$Q$12,Z98<>0,$X$101>=CRÍTICA_IGP1!$Q$12),CRÍTICA_IGP1!$Q$12,IF(AND($X$101>=CRÍTICA_IGP1!$Q$12,AC100>=CRÍTICA_IGP1!$Q$12),AC100,0)) -> 00:00:00
C99: NATURALIDADE / ESTADOS | F99: UF | H99: SIM - RPPS OUTRO | J99: NÃO | L99: ALTERAÇÃO DE DENOMINAÇÃO | W99: MÁXIMO | X99: =MAXA($X$84:$X$94) -> 00:00:00 | AA99: =MAXA(AA84:AA94) -> 00:00:00 | AD99: =MAXA(AD84:AD94) -> 00:00:00
B100: 1 | C100: ACRE | F100: AC | H100: SIM - INSS - RGPS | L100: APROVEITAMENTO | P100: =IF(CRÍTICA_IGP1!$H$19>=CRÍTICA_IGP1!$L$92,IF(CRÍTICA_IGP1!$W$20>=75,CRÍTICA_IGP1!$U$22,IF(CRÍTICA_IGP1!$W$20>=60,CRÍTICA_IGP1!$U$22,0)),IF(CRÍTICA_IGP1!$W$20>=70,CRÍTICA_IGP1!$U$22,IF(CRÍTICA_IGP1!$W$20>=60,CRÍTICA_IGP1!$U$22,0))) ->  | W100: MÍNIMO | X100: =MINA($F$31:$F$35,$Q$32:$Q$35,$Q$66:$Q$67) -> 00:00:00 | Z100: =IF(X100<CRÍTICA_IGP1!$Q$11,X100,MINA(F31:F35,Q34:Q35,Q66:Q67)) -> 00:00:00 | AC100: =IF(Z100<CRÍTICA_IGP1!$Q$13,Z100,MINA(F31:F35,Q34:Q35,Q66:Q67)) -> 00:00:00
B101: 2 | C101: AMAPÁ | F101: AP | H101: NÃO | L101: ASCENSÃO | P101: =TEXT(P100,"dd/mm/aaaa") ->  | W101: MÁXIMO | X101: =MAXA($H$31:$H$35,$S$32:$S$35,$S$66:$S$67) -> 00:00:00
B102: 3 | C102: AMAZONAS | F102: AM | L102: CONCURSO PÚBLICO
B103: 4 | C103: PARÁ | F103: PA | H103: FORMAS DE ADMISSÃO | L103: READAPTAÇÃO | P103: CRÍTICA: DATA DE VALIDADE | W103: CONCOMITÂNCIA GERAL | X103: =X33+X59+X96 -> 0 | Z103: =Z33+Z59+Z96 -> 0 | AA103: =AA33+AA59+AA96 -> 0 | AC103: =AC33+AC59+AC96 -> 0
B104: 5 | C104: RONDÔNIA | F104: RO | H104: CONTRATO TEMPORÁRIO | L104: REINTEGRAÇÃO | P104: =IF($L$84<>0,"",IF(AND($K$84="X",$K$85="X",$K$86="X"),"SÓ PODE HAVER UMA DATA DE VALIDADE.",IF(AND($K$84="X",$K$85="X",$K$86<>"X"),"SÓ PODE HAVER UMA DATA DE VALIDADE.",IF(AND($K$84="X",$K$85<>"X",$K$86="X"),"SÓ PODE HAVER UMA DATA DE VALIDADE.",IF(AND($K$84<>"X",$K$85="X",$K$86="X"),"SÓ PODE HAVER UMA DATA DE VALIDADE.",IF(AND($K$84="X",$K$85<>"X",$K$86<>"X"),"PREENCHA A DATA DE VALIDADE.","")))))) ->  | W104: CONCOMITÂNCIA GERAL | X104: =IF(OR(X103>1,Z103>1,AA103>1,AC103>1),"FOI COMPUTADO TEMPO CONCOMITANTE - REVER","") -> 
B105: 6 | C105: RORAIMA | F105: RR | H105: CONTRATO POR PRAZO INDETERMINADO | L105: REVERSÃO | P105: =IF($L$85<>0,"",IF(AND($K$84="X",$K$85="X",$K$86="X"),"SÓ PODE HAVER UMA DATA DE VALIDADE.",IF(AND($K$84="X",$K$85="X",$K$86<>"X"),"SÓ PODE HAVER UMA DATA DE VALIDADE.",IF(AND($K$84="X",$K$85<>"X",$K$86="X"),"SÓ PODE HAVER UMA DATA DE VALIDADE.",IF(AND($K$84<>"X",$K$85="X",$K$86="X"),"SÓ PODE HAVER UMA DATA DE VALIDADE.",IF(AND($K$84<>"X",$K$85="X",$K$86<>"X"),"PREENCHA A DATA DE VALIDADE.","")))))) -> PREENCHA A DATA DE VALIDADE.
B106: 7 | C106: TOCANTINS | F106: TO | H106: CONCURSO PÚBLICO | L106: TRANSFERÊNCIA DO MUNICÍPIO MÃE | P106: =IF($L$86<>0,"",IF(AND($K$84="X",$K$85="X",$K$86="X"),"SÓ PODE HAVER UMA DATA DE VALIDADE.",IF(AND($K$84="X",$K$85="X",$K$86<>"X"),"SÓ PODE HAVER UMA DATA DE VALIDADE.",IF(AND($K$84="X",$K$85<>"X",$K$86="X"),"SÓ PODE HAVER UMA DATA DE VALIDADE.",IF(AND($K$84<>"X",$K$85="X",$K$86="X"),"SÓ PODE HAVER UMA DATA DE VALIDADE.",IF(AND($K$84<>"X",$K$85<>"X",$K$86="X"),"PREENCHA A DATA DE VALIDADE.","")))))) ->  | W106: DIFERENÇA: ADMISSÃO E DT AVERBAÇÃO | AA106: =IF(AND($X$96=1,Z96=1,$F$42>=$Z$95,$F$42<$AC$95),$F$42-$AA$99,0) -> 0 | AB106: =IF($F$42>=$AC$95,$F$42-$AD$99,0) -> 0
B107: 8 | C107: ALAGOAS | F107: AL | H107: NOMEAÇÃO DIRETA | L107: TRANSFORMAÇÃO | P107: =IF(AND($L$84<>0,$L$85<>0,$L$86<>0),"SÓ PODE HAVER UMA DATA DE VALIDADE.",IF(AND($L$84<>0,$L$85<>0),"SÓ PODE HAVER UMA DATA DE VALIDADE.",IF(AND($L$84<>0,$L$86<>0),"SÓ PODE HAVER UMA DATA DE VALIDADE.",IF(AND($L$85<>0,$L$84<>0,$L$86<>0),"SÓ PODE HAVER UMA DATA DE VALIDADE.",IF(AND($L$85<>0,$L$84<>0),"SÓ PODE HAVER UMA DATA DE VALIDADE.",IF(AND($L$85<>0,$L$86<>0),"SÓ PODE HAVER UMA DATA DE VALIDADE.",IF(AND($L$86<>0,$L$85<>0,$L$84<>0),"SÓ PODE HAVER UMA DATA DE VALIDADE.",IF(AND($L$86<>0,$L$84<>0),"SÓ PODE HAVER UMA DATA DE VALIDADE.",IF(AND($L$86<>0,$L$85<>0),"SÓ PODE HAVER UMA DATA DE VALIDADE.",""))))))))) -> 
B108: 9 | C108: BAHIA | F108: BA | H108: TRANSPOSIÇÃO | L108: TRANSPOSIÇÃO
B109: 10 | C109: CEARÁ | F109: CE | H109: OUTRA | L109: OUTRO
B110: 11 | C110: MARANHÃO | F110: MA | Q110: DATA INICIO | R110: A | S110: DATA FIM | T110: TOTAL | W110: COMUNICAÇÃO AO REGIME PRÓPRIO DE PREVIDÊNCIA SOCIAL - RPPS
B111: 12 | C111: PARAÍBA | F111: PB | L111: 1 | N111: FORÇAS ARMADAS | Q111: =$F$25 -> 00:00:00 | R111: a | S111: =$H$25 -> 00:00:00 | T111: =$I$25 -> 0 | V111: =IF(AC111>0,Z111,0) -> 00:00:00 | W111: OUTROS PODERES - ANTES VÍNCULO CONTINUADO | Z111: =F31 -> 00:00:00 | AA111: a | AB111: =H31 -> 00:00:00 | AC111: =IF(AND(Z111<>0,AB111<>0),AB111-Z111+1,0) -> 0
B112: 13 | C112: PERNAMBUCO | F112: PE | L112: 2 | N112: INSS - INICIATIVA PRIVADA | Q112: =$F$26 -> 00:00:00 | R112: a | S112: =$H$26 -> 00:00:00 | T112: =$I$26 -> 0 | V112: 00:00:00 | W112: OUTROS PODERES - ANTES VÍNCULO CONTINUADO | Z112: =F32 -> 00:00:00 | AA112: a | AB112: =H32 -> 00:00:00 | AC112: 0
B113: 14 | C113: PIAUI | F113: PI | L113: 3 | N113: INSS - INICIATIVA PRIVADA | Q113: =$F$27 -> 00:00:00 | R113: a | S113: =$H$27 -> 00:00:00 | T113: =$I$27 -> 0 | V113: 00:00:00 | W113: OUTROS PODERES - ANTES VÍNCULO CONTINUADO | Z113: =F33 -> 00:00:00 | AA113: a | AB113: =H33 -> 00:00:00 | AC113: 0
B114: 15 | C114: RIO GRANDE DO NORTE | F114: RN | I114: X | L114: 4 | N114: INSS - INICIATIVA PRIVADA | Q114: =$F$28 -> 00:00:00 | R114: a | S114: =$H$28 -> 00:00:00 | T114: =$I$28 -> 0 | V114: 00:00:00 | W114: OUTROS PODERES - ANTES VÍNCULO CONTINUADO | Z114: =F34 -> 00:00:00 | AA114: a | AB114: =H34 -> 00:00:00 | AC114: 0
B115: 16 | C115: SERGIPE | F115: SE | L115: 5 | N115: INSS - INICIATIVA PRIVADA | Q115: =$Q$21 -> 00:00:00 | R115: a | S115: =$S$21 -> 00:00:00 | T115: =$T$21 -> 0 | V115: 00:00:00 | W115: OUTROS PODERES - ANTES VÍNCULO CONTINUADO | Z115: =F35 -> 00:00:00 | AA115: a | AB115: =H35 -> 00:00:00 | AC115: 0
B116: 17 | C116: BRASÍLIA (DISTRITO FEDERAL) | F116: DF | L116: 6 | N116: INSS - INICIATIVA PRIVADA | Q116: =$Q$22 -> 00:00:00 | R116: a | S116: =$S$22 -> 00:00:00 | T116: =$T$22 -> 0 | V116: 00:00:00 | W116: ÓRGÃO DE ORIGEM - ANTES VÍNCULO CONTINUADO | Z116: =Q34 -> 00:00:00 | AA116: a | AB116: =S34 -> 00:00:00 | AC116: 0
B117: 18 | C117: GOIÁS | F117: GO | L117: 7 | N117: INSS - INICIATIVA PRIVADA | Q117: =$Q$23 -> 00:00:00 | R117: a | S117: =$S$23 -> 00:00:00 | T117: =$T$23 -> 0 | V117: 00:00:00 | W117: ÓRGÃO DE ORIGEM - ANTES VÍNCULO CONTINUADO | Z117: =Q35 -> 00:00:00 | AA117: a | AB117: =S35 -> 00:00:00 | AC117: 0
B118: 19 | C118: MATO GROSSO | F118: MT | L118: 8 | N118: INSS - INICIATIVA PRIVADA | Q118: =$Q$24 -> 00:00:00 | R118: a | S118: =$S$24 -> 00:00:00 | T118: =$T$24 -> 0 | V118: 00:00:00 | W118: OUTROS PODERES - DEPOIS DO VÍNCULO | Z118: =Q66 -> 00:00:00 | AA118: a | AB118: =S66 -> 00:00:00 | AC118: 0
B119: 20 | C119: MATO GROSSO DO SUL | F119: MS | L119: 9 | N119: INSS - INICIATIVA PRIVADA | Q119: =$Q$25 -> 00:00:00 | R119: a | S119: =$S$25 -> 00:00:00 | T119: =$T$25 -> 0 | V119: 00:00:00 | W119: OUTROS PODERES - DEPOIS DO VÍNCULO | Z119: =Q67 -> 00:00:00 | AA119: a | AB119: =S67 -> 00:00:00 | AC119: 0
B120: 21 | C120: ESPÍRITO SANTO | F120: ES | L120: 10 | N120: INSS - INICIATIVA PRIVADA | Q120: =$Q$26 -> 00:00:00 | R120: a | S120: =$S$26 -> 00:00:00 | T120: =$T$26 -> 0 | AC120: =SUM(AC111:AC119) -> 0
B121: 22 | C121: MINAS GERAIS | F121: MG | L121: 11 | N121: INSS - INICIATIVA PRIVADA | Q121: =$Q$27 -> 00:00:00 | R121: a | S121: =$S$27 -> 00:00:00 | T121: =$T$27 -> 0
B122: 23 | C122: RIO DE JANEIRO | F122: RJ | L122: 12 | N122: OUTROS PODERES - INSS | Q122: =$Q$28 -> 00:00:00 | R122: a | S122: =$S$28 -> 00:00:00 | T122: =$T$28 -> 0
B123: 24 | C123: SÃO PAULO | F123: SP | L123: 13 | N123: OUTROS PODERES - INSS | Q123: =$Q$33 -> 00:00:00 | R123: a | S123: =$S$33 -> 00:00:00 | T123: =$T$33 -> 0
B124: 25 | C124: PARANÁ | F124: PR | L124: 14 | N124: OUTROS PODERES - INSS | Q124: =$F$33 -> 00:00:00 | R124: a | S124: =$H$33 -> 00:00:00 | T124: =$I$33 -> 0
B125: 26 | C125: RIO GRANDE DO SUL | F125: RS | L125: 15 | N125: OUTROS PODERES - INSS | Q125: =$F$34 -> 00:00:00 | R125: a | S125: =$H$34 -> 00:00:00 | T125: =$I$34 -> 0
B126: 27 | C126: SANTA CATARINA | F126: SC | L126: 16 | N126: OUTROS PODERES - INSS | Q126: =$F$35 -> 00:00:00 | R126: a | S126: =$H$35 -> 00:00:00 | T126: =$I$35 -> 0
L127: 17 | N127: OUTROS PODERES - INSS | Q127: =$Q$34 -> 00:00:00 | R127: a | S127: =$S$34 -> 00:00:00 | T127: =$T$34 -> 0
L128: 18 | N128: OUTROS PODERES - INSS | Q128: =$Q$35 -> 00:00:00 | R128: a | S128: =$S$35 -> 00:00:00 | T128: =$T$35 -> 0
B129: 1 | C129: ANGRA DOS REIS | F129: EXECUTIVO | L129: 19 | N129: OUTROS PODERES - INSS | Q129: =$Q$67 -> 00:00:00 | R129: a | S129: =$S$67 -> 00:00:00 | T129: =$T$67 -> 0
B130: 1.1 | C130: ANGRA DOS REIS - MAGISTÉRIO | F130: LEGISLATIVO | L130: 20 | N130: OUTROS PODERES - INSS | Q130: =$Q$31 -> 00:00:00 | R130: a | S130: =$S$31 -> 00:00:00 | T130: =$T$31 -> 0
B131: 2 | C131: APERIBÉ | F131: JUDICIÁRIO | L131: 21 | N131: OUTROS PODERES - INSS | Q131: =$Q$61 -> 00:00:00 | R131: a | S131: =$S$61 -> 00:00:00 | T131: =$T$61 -> 0
B132: 3 | C132: ARARUAMA | L132: 22 | N132: ÓRGÃO DE ORIGEM - INSS | Q132: =$Q$62 -> 00:00:00 | R132: a | S132: =$S$62 -> 00:00:00 | T132: =$T$62 -> 0
B133: 4 | C133: AREAL | L133: 23 | N133: ÓRGÃO DE ORIGEM - INSS | Q133: =$Q$66 -> 00:00:00 | R133: a | S133: =$S$66 -> 00:00:00 | T133: =$T$66 -> 0
B134: 5 | C134: ARMAÇÃO DE BÚZIOS | L134: 24 | N134: OUTROS PODERES | Q134: =$Q$65 -> 00:00:00 | R134: a | S134: =$S$65 -> 00:00:00 | T134: =$T$65 -> 0
B135: 6 | C135: ARRAIAL DO CABO | L135: 25 | N135: OUTROS PODERES | Q135: =$Q$63 -> 00:00:00 | R135: a | S135: =$S$63 -> 00:00:00 | T135: =$T$63 -> 0
B136: 7 | C136: BARRA DO PIRAÍ | L136: 26 | N136: OUTROS PODERES | Q136: =$F$20 -> 00:00:00 | R136: a | S136: =$H$20 -> 00:00:00 | T136: =$I$20 -> 0
B137: 8 | C137: BARRA MANSA | L137: 27 | N137: OUTROS PODERES | Q137: =$F$21 -> 00:00:00 | R137: a | S137: =$H$21 -> 00:00:00 | T137: =$I$21 -> 0
B138: 9 | C138: BELFORD ROXO | L138: 28 | N138: OUTROS PODERES | Q138: =$F$22 -> 00:00:00 | R138: a | S138: =$H$22 -> 00:00:00 | T138: =$I$22 -> 0
B139: 9.1 | C139: BELFORD ROXO - CÂMARA | L139: 29 | N139: ÓRGÃO DE ORIGEM | Q139: =$F$23 -> 00:00:00 | R139: a | S139: =$H$23 -> 00:00:00 | T139: =$I$23 -> 0
B140: 10 | C140: BOM JARDIM | L140: 30 | N140: ÓRGÃO DE ORIGEM | Q140: =$F$24 -> 00:00:00 | R140: a | S140: =$H$24 -> 00:00:00 | T140: =$I$24 -> 0
B141: 11 | C141: BOM JESUS DE ITABAPOANA | L141: 31 | N141: INSS - INICIATIVA PRIVADA | Q141: =$Q$32 -> 00:00:00 | R141: a | S141: =$S$32 -> 00:00:00 | T141: =$T$32 -> 0
B142: 12 | C142: CABO FRIO | L142: 32 | N142: INSS - INICIATIVA PRIVADA | Q142: =$F$31 -> 00:00:00 | R142: a | S142: =$H$31 -> 00:00:00 | T142: =$I$31 -> 0
B143: 13 | C143: CACHOEIRAS DE MACACU | L143: 33 | N143: INSS - INICIATIVA PRIVADA | Q143: =$F$32 -> 00:00:00 | R143: a | S143: =$H$32 -> 00:00:00 | T143: =$I$32 -> 0
B144: 14 | C144: CAMBUCI | L144: 34 | N144: OUTROS PODERES - INSS | Q144: =$F$19 -> 00:00:00 | R144: a | S144: =$H$19 -> 00:00:00 | T144: =$I$19 -> 0
B145: 15 | C145: CAMPOS | L145: 35 | N145: OUTROS PODERES | Q145: =$Q$19 -> 00:00:00 | R145: a | S145: =$S$19 -> 00:00:00 | T145: =$T$19 -> 0
B146: 16 | C146: CANTAGALO | L146: 36 | N146: OUTROS PODERES | Q146: =$Q$20 -> 00:00:00 | R146: a | S146: =$S$20 -> 00:00:00 | T146: =$T$20 -> 0
B147: 17 | C147: CARAPEBUS | N147: =IF(OR(AND($Q$146<>0,Q$146>=Q145,$Q$146<=$S$145),AND(Q146<>0,Q146>=Q144,Q146<=S144),AND(Q146<>0,Q146>=Q143,Q146<=S143),AND(Q146<>0,Q146>=Q142,Q146<=S142),AND(Q146<>0,Q146>=Q141,Q146<=S141),AND(Q146<>0,Q146>=Q140,Q146<=S140),AND(Q146<>0,Q146>=Q139,Q146<=S139),AND(Q146<>0,Q146>=Q138,Q146<=S138),AND(Q146<>0,Q146>=Q137,Q146<=S137),AND(Q146<>0,Q146>=Q136,Q146<=S136),AND(Q146<>0,Q146>=Q135,Q146<=S135),AND(Q146<>0,Q146>=Q134,Q146<=S134),AND(Q146<>0,Q146>=Q133,Q146<=S133),AND(Q146<>0,Q146>=Q132,Q146<=S132),AND(Q146<>0,Q146>=Q131,Q146<=S131),AND(Q146<>0,Q146>=Q130,Q146<=S130),AND(Q146<>0,Q146>=Q129,Q146<=S129),AND(Q146<>0,Q146>=Q128,Q146<=S128),AND(Q146<>0,Q146>=Q127,Q146<=S127),AND(Q146<>0,Q146>=Q126,Q146<=S126),AND(Q146<>0,Q146>=Q125,Q146<=S125),AND(Q146<>0,Q146>=Q124,Q146<=S124),AND(Q146<>0,Q146>=Q123,Q146<=S123),AND(Q146<>0,Q146>=Q122,Q146<=S122),AND(Q146<>0,Q146>=Q121,Q146<=S121),AND(Q146<>0,Q146>=Q120,Q146<=S120),AND(Q146<>0,Q146>=Q119,Q146<=S119),AND(Q146<>0,Q146>=Q118,Q146<=S118),AND(Q146<>0,Q146>=Q117,Q146<=S117),AND(Q146<>0,Q146>=Q116,Q146<=S116),AND(Q146<>0,Q146>=Q115,Q146<=S115),AND(Q146<>0,Q146>=Q114,Q146<=S114),AND(Q146<>0,Q146>=Q113,Q146<=S113),AND(Q146<>0,Q146>=Q112,Q146<=S112),AND(Q146<>0,Q146>=Q111,Q146<=S111),AND(Q145<>0,Q145>=Q144,Q145<=S144),AND(Q145<>0,Q145>=Q143,Q145<=S143),AND(Q145<>0,Q145>=Q142,Q145<=S142),AND(Q145<>0,Q145>=Q141,Q145<=S141),AND(Q145<>0,Q145>=Q140,Q145<=S140),AND(Q145<>0,Q145>=Q139,Q145<=S139),AND(Q145<>0,Q145>=Q138,Q145<=S138),AND(Q145<>0,Q145>=Q137,Q145<=S137),AND(Q145<>0,Q145>=Q136,Q145<=S136),AND(Q145<>0,Q145>=Q135,Q145<=S135),AND(Q145<>0,Q145>=Q134,Q145<=S134),AND(Q145<>0,Q145>=Q133,Q145<=S133),AND(Q145<>0,Q145>=Q132,Q145<=S132),AND(Q145<>0,Q145>=Q131,Q145<=S131),AND(Q145<>0,Q145>=Q130,Q145<=S130),AND(Q145<>0,Q145>=Q129,Q145<=S129),AND(Q145<>0,Q145>=Q128,Q145<=S128),AND(Q145<>0,Q145>=Q127,Q145<=S127),AND(Q145<>0,Q145>=Q126,Q145<=S126),AND(Q145<>0,Q145>=Q125,Q145<=S125),AND(Q145<>0,Q145>=Q124,Q145<=S124),AND(Q145<>0,Q145>=Q123,Q145<=S123),AND(Q145<>0,Q145>=Q122,Q145<=S122),AND(Q145<>0,Q145>=Q121,Q145<=S121),AND(Q145<>0,Q145>=Q120,Q145<=S120),AND(Q145<>0,Q145>=Q119,Q145<=S119),AND(Q145<>0,Q145>=Q118,Q145<=S118),AND(Q145<>0,Q145>=Q117,Q145<=S117),AND(Q145<>0,Q145>=Q116,Q145<=S116),AND(Q145<>0,Q145>=Q115,Q145<=S115),AND(Q145<>0,Q145>=Q114,Q145<=S114),AND(Q145<>0,Q145>=Q113,Q145<=S113),AND(Q145<>0,Q145>=Q112,Q145<=S112),AND(Q145<>0,Q145>=Q111,Q145<=S111),AND(Q144<>0,Q144>=Q143,Q144<=S143),AND(Q144<>0,Q144>=Q142,Q144<=S142),AND(Q144<>0,Q144>=Q141,Q144<=S141),AND(Q144<>0,Q144>=Q140,Q144<=S140),AND(Q144<>0,Q144>=Q139,Q144<=S139),AND(Q144<>0,Q144>=Q138,Q144<=S138),AND(Q144<>0,Q144>=Q137,Q144<=S137),AND(Q144<>0,Q144>=Q136,Q144<=S136),AND(Q144<>0,Q144>=Q135,Q144<=S135),AND(Q144<>0,Q144>=Q134,Q144<=S134),AND(Q144<>0,Q144>=Q133,Q144<=S133),AND(Q144<>0,Q144>=Q132,Q144<=S132),AND(Q144<>0,Q144>=Q131,Q144<=S131),AND(Q144<>0,Q144>=Q130,Q144<=S130),AND(Q144<>0,Q144>=Q129,Q144<=S129),AND(Q144<>0,Q144>=Q128,Q144<=S128),AND(Q144<>0,Q144>=Q127,Q144<=S127),AND(Q144<>0,Q144>=Q126,Q144<=S126),AND(Q144<>0,Q144>=Q125,Q144<=S125),AND(Q144<>0,Q144>=Q124,Q144<=S124),AND(Q144<>0,Q144>=Q123,Q144<=S123),AND(Q144<>0,Q144>=Q122,Q144<=S122),AND(Q144<>0,Q144>=Q121,Q144<=S121),AND(Q144<>0,Q144>=Q120,Q144<=S120),AND(Q144<>0,Q144>=Q119,Q144<=S119),AND(Q144<>0,Q144>=Q118,Q144<=S118),AND(Q144<>0,Q144>=Q117,Q144<=S117),AND(Q144<>0,Q144>=Q116,Q144<=S116),AND(Q144<>0,Q144>=Q115,Q144<=S115),AND(Q144<>0,Q144>=Q114,Q144<=S114),AND(Q144<>0,Q144>=Q113,Q144<=S113),AND(Q144<>0,Q144>=Q112,Q144<=S112),AND(Q144<>0,Q144>=Q111,Q144<=S111),AND(Q143<>0,Q143>=Q142,Q143<=S142),AND(Q143<>0,Q143>=Q141,Q144<=S141),AND(Q143<>0,Q143>=Q140,Q143<=S140),AND(Q143<>0,Q143>=Q139,Q143<=S139),AND(Q143<>0,Q143>=Q138,Q143<=S138),AND(Q143<>0,Q143>=Q137,Q143<=S137),AND(Q143<>0,Q143>=Q136,Q143<=S136),AND(Q143<>0,Q143>=Q135,Q143<=S135),AND(Q143<>0,Q143>=Q134,Q143<=S134),AND(Q143<>0,Q143>=Q133,Q143<=S133),AND(Q143<>0,Q143>=Q132,Q143<=S132),AND(Q143<>0,Q143>=Q131,Q143<=S131),AND(Q143<>0,Q143>=Q130,Q143<=S130),AND(Q143<>0,Q143>=Q129,Q143<=S129),AND(Q143<>0,Q143>=Q128,Q143<=S128),AND(Q143<>0,Q143>=Q127,Q143<=S127),AND(Q143<>0,Q143>=Q126,Q143<=S126),AND(Q143<>0,Q143>=Q125,Q143<=S125),AND(Q143<>0,Q143>=Q124,Q143<=S124),AND(Q143<>0,Q143>=Q123,Q143<=S123),AND(Q143<>0,Q143>=Q122,Q143<=S122),AND(Q143<>0,Q143>=Q121,Q143<=S121),AND(Q143<>0,Q143>=Q120,Q143<=S120),AND(Q143<>0,Q143>=Q119,Q143<=S119),AND(Q143<>0,Q143>=Q118,Q143<=S118),AND(Q143<>0,Q143>=Q117,Q143<=S117),AND(Q143<>0,Q143>=Q116,Q143<=S116),AND(Q143<>0,Q143>=Q115,Q143<=S115),AND(Q143<>0,Q143>=Q114,Q143<=S114),AND(Q143<>0,Q143>=Q113,Q143<=S113),AND(Q143<>0,Q143>=Q112,Q143<=S112),AND(Q143<>0,Q143>=Q111,Q143<=S111),AND(Q142<>0,Q142>=Q141,Q142<=S141),AND(Q142<>0,Q142>=Q140,Q142<=S140),AND(Q142<>0,Q142>=Q139,Q142<=S139),AND(Q142<>0,Q142>=Q138,Q142<=S138),AND(Q142<>0,Q142>=Q137,Q142<=S137),AND(Q142<>0,Q142>=Q136,Q142<=S136),AND(Q142<>0,Q142>=Q135,Q142<=S135),AND(Q142<>0,Q142>=Q134,Q142<=S134),AND(Q142<>0,Q142>=Q133,Q142<=S133),AND(Q142<>0,Q142>=Q132,Q142<=S132),AND(Q142<>0,Q142>=Q131,Q142<=S131),AND(Q142<>0,Q142>=Q130,Q142<=S130),AND(Q142<>0,Q142>=Q129,Q142<=S129),AND(Q142<>0,Q142>=Q128,Q142<=S128),AND(Q142<>0,Q142>=Q127,Q142<=S127),AND(Q142<>0,Q142>=Q126,Q142<=S126),AND(Q142<>0,Q142>=Q125,Q142<=S125),AND(Q142<>0,Q142>=Q124,Q142<=S124),AND(Q142<>0,Q142>=Q123,Q142<=S123),AND(Q142<>0,Q142>=Q122,Q142<=S122),AND(Q142<>0,Q142>=Q121,Q142<=S121),AND(Q142<>0,Q142>=Q120,Q142<=S120),AND(Q142<>0,Q142>=Q119,Q142<=S119),AND(Q142<>0,Q142>=Q118,Q142<=S118),AND(Q142<>0,Q142>=Q117,Q142<=S117),AND(Q142<>0,Q142>=Q116,Q142<=S116),AND(Q142<>0,Q142>=Q115,Q142<=S115),AND(Q142<>0,Q142>=Q114,Q142<=S114),AND(Q142<>0,Q142>=Q113,Q142<=S113),AND(Q142<>0,Q142>=Q112,Q142<=S112),AND(Q142<>0,Q142>=Q111,Q142<=S111),AND(Q141<>0,Q141>=Q140,Q141<=S140),AND(Q141<>0,Q141>=Q139,Q141<=S139),AND(Q141<>0,Q141>=Q138,Q141<=S138),AND(Q141<>0,Q141>=Q137,Q141<=S137),AND(Q141<>0,Q141>=Q136,Q141<=S136),AND(Q141<>0,Q141>=Q135,Q141<=S135),AND(Q141<>0,Q141>=Q134,Q141<=S134),AND(Q141<>0,Q141>=Q133,Q141<=S133),AND(Q141<>0,Q141>=Q132,Q141<=S132),AND(Q141<>0,Q141>=Q131,Q141<=S131),AND(Q141<>0,Q141>=Q130,Q141<=S130),AND(Q141<>0,Q141>=Q129,Q141<=S129),AND(Q141<>0,Q141>=Q128,Q141<=S128),AND(Q141<>0,Q141>=Q127,Q141<=S127),AND(Q141<>0,Q141>=Q126,Q141<=S126),AND(Q141<>0,Q141>=Q125,Q141<=S125),AND(Q141<>0,Q141>=Q124,Q141<=S124),AND(Q141<>0,Q141>=Q123,Q141<=S123),AND(Q141<>0,Q141>=Q122,Q141<=S122),AND(Q141<>0,Q141>=Q121,Q141<=S121),AND(Q141<>0,Q141>=Q120,Q141<=S120),AND(Q141<>0,Q141>=Q119,Q141<=S119),AND(Q141<>0,Q141>=Q118,Q141<=S118),AND(Q141<>0,Q141>=Q117,Q141<=S117),AND(Q141<>0,Q141>=Q116,Q141<=S116),AND(Q141<>0,Q141>=Q115,Q141<=S115),AND(Q141<>0,Q141>=Q114,Q141<=S114),AND(Q141<>0,Q141>=Q113,Q141<=S113),AND(Q141<>0,Q141>=Q112,Q141<=S112),AND(Q141<>0,Q141>=Q111,Q141<=S111),AND(Q140<>0,Q140>=Q139,Q140<=S139),AND(Q140<>0,Q140>=Q138,Q140<=S138),AND(Q140<>0,Q140>=Q137,Q140<=S137),AND(Q140<>0,Q140>=Q136,Q140<=S136),AND(Q140<>0,Q140>=Q135,Q140<=S135),AND(Q140<>0,Q140>=Q134,Q140<=S134),AND(Q140<>0,Q140>=Q133,Q140<=S133),AND(Q140<>0,Q140>=Q132,Q140<=S132),AND(Q140<>0,Q140>=Q131,Q140<=S131),AND(Q140<>0,Q140>=Q130,Q140<=S130),AND(Q140<>0,Q140>=Q129,Q140<=S129),AND(Q140<>0,Q140>=Q128,Q140<=S128),AND(Q140<>0,Q140>=Q127,Q140<=S127),AND(Q140<>0,Q140>=Q126,Q140<=S126),AND(Q140<>0,Q140>=Q125,Q140<=S125),AND(Q140<>0,Q140>=Q124,Q140<=S124),AND(Q140<>0,Q140>=Q123,Q140<=S123),AND(Q140<>0,Q140>=Q122,Q140<=S122),AND(Q140<>0,Q140>=Q121,Q140<=S121),AND(Q140<>0,Q140>=Q120,Q140<=S120),AND(Q140<>0,Q140>=Q119,Q140<=S119),AND(Q140<>0,Q140>=Q118,Q140<=S118),AND(Q140<>0,Q140>=Q117,Q140<=S117),AND(Q140<>0,Q140>=Q116,Q140<=S116),AND(Q140<>0,Q140>=Q115,Q140<=S115),AND(Q140<>0,Q140>=Q114,Q140<=S114),AND(Q140<>0,Q140>=Q113,Q140<=S113),AND(Q140<>0,Q140>=Q112,Q140<=S112),AND($Q$140<>0,$Q$140>=$Q$111,$Q$140<=$S$111)),"TEMPO CONCOMITANTE - REVER",$N$148) -> 
B148: 18 | C148: CARDOSO MOREIRA | N148: =IF(OR(AND($Q$140<>0,$Q$140>=$Q$111,$Q$140<=$S$111),AND(Q139<>0,Q139>=Q138,Q139<=S138),AND(Q139<>0,Q139>=Q137,Q139<=S137),AND(Q139<>0,Q139>=Q136,Q139<=S136),AND(Q139<>0,Q139>=Q135,Q139<=S135),AND(Q139<>0,Q139>=Q134,Q139<=S134),AND(Q139<>0,Q139>=Q133,Q139<=S133),AND(Q139<>0,Q139>=Q132,Q139<=S132),AND(Q139<>0,Q139>=Q131,Q139<=S131),AND(Q139<>0,Q139>=Q130,Q139<=S130),AND(Q139<>0,Q139>=Q129,Q139<=S129),AND(Q139<>0,Q139>=Q128,Q139<=S128),AND(Q139<>0,Q139>=Q127,Q139<=S127),AND(Q139<>0,Q139>=Q126,Q139<=S126),AND(Q139<>0,Q139>=Q125,Q139<=S125),AND(Q139<>0,Q139>=Q124,Q139<=S124),AND(Q139<>0,Q139>=Q123,Q139<=S123),AND(Q139<>0,Q139>=Q122,Q139<=S122),AND(Q139<>0,Q139>=Q121,Q139<=S121),AND(Q139<>0,Q139>=Q120,Q139<=S120),AND(Q139<>0,Q139>=Q119,Q139<=S119),AND(Q139<>0,Q139>=Q118,Q139<=S118),AND(Q139<>0,Q139>=Q117,Q139<=S117),AND(Q139<>0,Q139>=Q116,Q139<=S116),AND(Q139<>0,Q139>=Q115,Q139<=S115),AND(Q139<>0,Q139>=Q114,Q139<=S114),AND(Q139<>0,Q139>=Q113,Q139<=S113),AND(Q139<>0,Q139>=Q112,Q139<=S112),AND(Q139<>0,Q139>=Q111,Q139<=S111),AND(Q138<>0,Q138>=Q137,Q138<=S137),AND(Q138<>0,Q138>=Q136,Q138<=S136),AND(Q138<>0,Q138>=Q135,Q138<=S135),AND(Q138<>0,Q138>=Q134,Q138<=S134),AND(Q138<>0,Q138>=Q133,Q138<=S133),AND(Q138<>0,Q138>=Q132,Q138<=S132),AND(Q138<>0,Q138>=Q131,Q138<=S131),AND(Q138<>0,Q138>=Q130,Q138<=S130),AND(Q138<>0,Q138>=Q129,Q138<=S129),AND(Q138<>0,Q138>=Q128,Q138<=S128),AND(Q138<>0,Q138>=Q127,Q138<=S127),AND(Q138<>0,Q138>=Q126,Q138<=S126),AND(Q138<>0,Q138>=Q125,Q138<=S125),AND(Q138<>0,Q138>=Q124,Q138<=S124),AND(Q138<>0,Q138>=Q123,Q138<=S123),AND(Q138<>0,Q138>=Q122,Q138<=S122),AND(Q138<>0,Q138>=Q121,Q138<=S121),AND(Q138<>0,Q138>=Q120,Q138<=S120),AND(Q138<>0,Q138>=Q119,Q138<=S119),AND(Q138<>0,Q138>=Q118,Q138<=S118),AND(Q138<>0,Q138>=Q117,Q138<=S117),AND(Q138<>0,Q138>=Q116,Q138<=S116),AND(Q138<>0,Q138>=Q115,Q138<=S115),AND(Q138<>0,Q138>=Q114,Q138<=S114),AND(Q138<>0,Q138>=Q113,Q138<=S113),AND(Q138<>0,Q138>=Q112,Q138<=S112),AND(Q138<>0,Q138>=Q111,Q138<=S111),AND(Q137<>0,Q137>=Q136,Q137<=S136),AND(Q137<>0,Q137>=Q135,Q137<=S135),AND(Q137<>0,Q137>=Q134,Q137<=S134),AND(Q137<>0,Q137>=Q133,Q137<=S133),AND(Q137<>0,Q137>=Q132,Q137<=S132),AND(Q137<>0,Q137>=Q131,Q137<=S131),AND(Q137<>0,Q137>=Q130,Q137<=S130),AND(Q137<>0,Q137>=Q129,Q137<=S129),AND(Q137<>0,Q137>=Q128,Q137<=S128),AND(Q137<>0,Q137>=Q127,Q137<=S127),AND(Q137<>0,Q137>=Q126,Q137<=S126),AND(Q137<>0,Q137>=Q125,Q137<=S125),AND(Q137<>0,Q137>=Q124,Q137<=S124),AND(Q137<>0,Q137>=Q123,Q137<=S123),AND(Q137<>0,Q137>=Q122,Q137<=S122),AND(Q137<>0,Q137>=Q121,Q137<=S121),AND(Q137<>0,Q137>=Q120,Q137<=S120),AND(Q137<>0,Q137>=Q119,Q137<=S119),AND(Q137<>0,Q137>=Q118,Q137<=S118),AND(Q137<>0,Q137>=Q117,Q137<=S117),AND(Q137<>0,Q137>=Q116,Q137<=S116),AND(Q137<>0,Q137>=Q115,Q137<=S115),AND(Q137<>0,Q137>=Q114,Q137<=S114),AND(Q137<>0,Q137>=Q113,Q137<=S113),AND(Q137<>0,Q137>=Q112,Q137<=S112),AND(Q137<>0,Q137>=Q111,Q137<=S111),AND(Q136<>0,Q136>=Q135,Q136<=S135),AND(Q136<>0,Q136>=Q134,Q136<=S134),AND(Q136<>0,Q136>=Q133,Q136<=S133),AND(Q136<>0,Q136>=Q132,Q136<=S132),AND(Q136<>0,Q136>=Q131,Q136<=S131),AND(Q136<>0,Q136>=Q130,Q136<=S130),AND(Q136<>0,Q136>=Q129,Q136<=S129),AND(Q136<>0,Q136>=Q128,Q136<=S128),AND(Q136<>0,Q136>=Q127,Q136<=S127),AND(Q136<>0,Q136>=Q126,Q136<=S126),AND(Q136<>0,Q136>=Q125,Q136<=S125),AND(Q136<>0,Q136>=Q124,Q136<=S124),AND(Q136<>0,Q136>=Q123,Q136<=S123),AND(Q136<>0,Q136>=Q122,Q136<=S122),AND(Q136<>0,Q136>=Q121,Q136<=S121),AND(Q136<>0,Q136>=Q120,Q136<=S120),AND(Q136<>0,Q136>=Q119,Q136<=S119),AND(Q136<>0,Q136>=Q118,Q136<=S118),AND(Q136<>0,Q136>=Q117,Q136<=S117),AND(Q136<>0,Q136>=Q116,Q136<=S116),AND(Q136<>0,Q136>=Q115,Q136<=S115),AND(Q136<>0,Q136>=Q114,Q136<=S114),AND(Q136<>0,Q136>=Q113,Q136<=S113),AND(Q136<>0,Q136>=Q112,Q136<=S112),AND(Q136<>0,Q136>=Q111,Q136<=S111),AND(Q135<>0,Q135>=Q134,Q135<=S134),AND(Q135<>0,Q135>=Q133,Q135<=S133),AND(Q135<>0,Q135>=Q132,Q135<=S132),AND(Q135<>0,Q135>=Q131,Q135<=S131),AND(Q135<>0,Q135>=Q130,Q135<=S130),AND(Q135<>0,Q135>=Q129,Q135<=S129),AND(Q135<>0,Q135>=Q128,Q135<=S128),AND(Q135<>0,Q135>=Q127,Q135<=S127),AND(Q135<>0,Q135>=Q126,Q135<=S126),AND(Q135<>0,Q135>=Q125,Q135<=S125),AND(Q135<>0,Q135>=Q124,Q135<=S124),AND(Q135<>0,Q135>=Q123,Q135<=S123),AND(Q135<>0,Q135>=Q122,Q135<=S122),AND(Q135<>0,Q135>=Q121,Q135<=S121),AND(Q135<>0,Q135>=Q120,Q135<=S120),AND(Q135<>0,Q135>=Q119,Q135<=S119),AND(Q135<>0,Q135>=Q118,Q135<=S118),AND(Q135<>0,Q135>=Q117,Q135<=S117),AND(Q135<>0,Q135>=Q116,Q135<=S116),AND(Q135<>0,Q135>=Q115,Q135<=S115),AND(Q135<>0,Q135>=Q114,Q135<=S114),AND(Q135<>0,Q135>=Q113,Q135<=S113),AND(Q135<>0,Q135>=Q112,Q135<=S112),AND(Q135<>0,Q135>=Q111,Q135<=S111),AND(Q134<>0,Q134>=Q133,Q134<=S133),AND(Q134<>0,Q134>=Q132,Q134<=S132),AND(Q134<>0,Q134>=Q131,Q134<=S131),AND(Q134<>0,Q134>=Q130,Q134<=S130),AND(Q134<>0,Q134>=Q129,Q134<=S129),AND(Q134<>0,Q134>=Q128,Q134<=S128),AND(Q134<>0,Q134>=Q127,Q134<=S127),AND(Q134<>0,Q134>=Q126,Q134<=S126),AND(Q134<>0,Q134>=Q125,Q134<=S125),AND(Q134<>0,Q134>=Q124,Q134<=S124),AND(Q134<>0,Q134>=Q123,Q134<=S123),AND(Q134<>0,Q134>=Q122,Q134<=S122),AND(Q134<>0,Q134>=Q121,Q134<=S121),AND(Q134<>0,Q134>=Q120,Q134<=S120),AND(Q134<>0,Q134>=Q119,Q134<=S119),AND(Q134<>0,Q134>=Q118,Q134<=S118),AND(Q134<>0,Q134>=Q117,Q134<=S117),AND(Q134<>0,Q134>=Q116,Q134<=S116),AND(Q134<>0,Q134>=Q115,Q134<=S115),AND(Q134<>0,Q134>=Q114,Q134<=S114),AND(Q134<>0,Q134>=Q113,Q134<=S113),AND(Q134<>0,Q134>=Q112,Q134<=S112),AND(Q134<>0,Q134>=Q111,Q134<=S111),AND(Q133<>0,Q133>=Q132,Q133<=S132),AND(Q133<>0,Q133>=Q131,Q133<=S131),AND(Q133<>0,Q133>=Q130,Q133<=S130),AND(Q133<>0,Q133>=Q129,Q133<=S129),AND(Q133<>0,Q133>=Q128,Q133<=S128),AND(Q133<>0,Q133>=Q127,Q133<=S127),AND(Q133<>0,Q133>=Q126,Q133<=S126),AND(Q133<>0,Q133>=Q125,Q133<=S125),AND(Q133<>0,Q133>=Q124,Q133<=S124),AND(Q133<>0,Q133>=Q123,Q133<=S123),AND(Q133<>0,Q133>=Q122,Q133<=S122),AND(Q133<>0,Q133>=Q121,Q133<=S121),AND(Q133<>0,Q133>=Q120,Q133<=S120),AND(Q133<>0,Q133>=Q119,Q133<=S119),AND(Q133<>0,Q133>=Q118,Q133<=S118),AND(Q133<>0,Q133>=Q117,Q133<=S117),AND(Q133<>0,Q133>=Q116,Q133<=S116),AND(Q133<>0,Q133>=Q115,Q133<=S115),AND(Q133<>0,Q133>=Q114,Q133<=S114),AND(Q133<>0,Q133>=Q113,Q133<=S113),AND(Q133<>0,Q133>=Q112,Q133<=S112),AND(Q133<>0,Q133>=Q111,Q133<=S111),AND(Q132<>0,Q132>=Q131,Q132<=S131),AND(Q132<>0,Q132>=Q130,Q132<=S130),AND(Q132<>0,Q132>=Q129,Q132<=S129),AND(Q132<>0,Q132>=Q128,Q132<=S128),AND(Q132<>0,Q132>=Q127,Q132<=S127),AND(Q132<>0,Q132>=Q126,Q132<=S126),AND(Q132<>0,Q132>=Q125,Q132<=S125),AND(Q132<>0,Q132>=Q124,Q132<=S124),AND(Q132<>0,Q132>=Q123,Q132<=S123),AND(Q132<>0,Q132>=Q122,Q132<=S122),AND(Q132<>0,Q132>=Q121,Q132<=S121),AND(Q132<>0,Q132>=Q120,Q132<=S120),AND(Q132<>0,Q132>=Q119,Q132<=S119),AND(Q132<>0,Q132>=Q118,Q132<=S118),AND(Q132<>0,Q132>=Q117,Q132<=S117),AND(Q132<>0,Q132>=Q116,Q132<=S116),AND(Q132<>0,Q132>=Q115,Q132<=S115),AND(Q132<>0,Q132>=Q114,Q132<=S114),AND(Q132<>0,Q132>=Q113,Q132<=S113),AND(Q132<>0,Q132>=Q112,Q132<=S112),AND(Q132<>0,Q132>=Q111,Q132<=S111),AND(Q131<>0,Q131>=Q130,Q131<=S130),AND(Q131<>0,Q131>=Q129,Q131<=S129),AND(Q131<>0,Q131>=Q128,Q131<=S128),AND(Q131<>0,Q131>=Q127,Q131<=S127),AND(Q131<>0,Q131>=Q126,Q131<=S126),AND(Q131<>0,Q131>=Q125,Q131<=S125),AND(Q131<>0,Q131>=Q124,Q131<=S124),AND(Q131<>0,Q131>=Q123,Q131<=S123),AND(Q131<>0,Q131>=Q122,Q131<=S122),AND(Q131<>0,Q131>=Q121,Q131<=S121),AND(Q131<>0,Q131>=Q120,Q131<=S120),AND(Q131<>0,Q131>=Q119,Q131<=S119),AND(Q131<>0,Q131>=Q118,Q131<=S118),AND(Q131<>0,Q131>=Q117,Q131<=S117),AND(Q131<>0,Q131>=Q116,Q131<=S116),AND(Q131<>0,Q131>=Q115,Q131<=S115),AND(Q131<>0,Q131>=Q114,Q131<=S114),AND(Q131<>0,Q131>=Q113,Q131<=S113),AND(Q131<>0,Q131>=Q112,Q131<=S112),AND(Q131<>0,Q131>=Q111,Q131<=S111),AND(Q130<>0,Q130>=Q129,Q130<=S129),AND(Q130<>0,Q130>=Q128,Q130<=S128),AND(Q130<>0,Q130>=Q127,Q130<=S127),AND(Q130<>0,Q130>=Q126,Q130<=S126),AND($Q$130<>0,$Q$130>=$Q$125,$Q$130<=$S$125)),"TEMPO CONCOMITANTE - REVER",$N$149) -> 
B149: 19 | C149: CARMO | N149: =IF(OR(AND($Q$130<>0,$Q$130>=$Q$125,$Q$130<=$S$125),AND($Q$130<>0,$Q$130>=$Q$124,$Q$130<=$S$124),AND($Q$130<>0,$Q$130>=$Q$123,$Q$130<=$S$123),AND($Q$130<>0,$Q$130>=$Q$122,$Q$130<=$S$122),AND($Q$130<>0,$Q$130>=$Q$121,$Q$130<=$S$121),AND($Q$130<>0,$Q$130>=$Q$120,$Q$130<=$S$120),AND($Q$130<>0,$Q$130>=$Q$119,$Q$130<=$S$119),AND($Q$130<>0,$Q$130>=$Q$118,$Q$130<=$S$118),AND($Q$130<>0,$Q$130>=$Q$117,$Q$130<=$S$117),AND($Q$130<>0,$Q$130>=$Q$116,$Q$130<=$S$116),AND($Q$130<>0,$Q$130>=$Q$115,$Q$130<=$S$115),AND($Q$130<>0,$Q$130>=$Q$114,$Q$130<=$S$114),AND($Q$130<>0,$Q$130>=$Q$113,$Q$130<=$S$113),AND($Q$130<>0,$Q$130>=$Q$112,$Q$130<=$S$112),AND($Q$130<>0,$Q$130>=$Q$111,$Q$130<=$S$111),AND($Q$129<>0,$Q$129>=$Q$128,$Q$129<=$S$128),AND($Q$129<>0,$Q$129>=$Q$127,$Q$129<=$S$127),AND($Q$129<>0,$Q$129>=$Q$126,$Q$129<=$S$126),AND($Q$129<>0,$Q$129>=$Q$125,$Q$129<=$S$125),AND($Q$129<>0,$Q$129>=$Q$124,$Q$129<=$S$124),AND($Q$129<>0,$Q$129>=$Q$123,$Q$129<=$S$123),AND($Q$129<>0,$Q$129>=$Q$122,$Q$129<=$S$122),AND($Q$129<>0,$Q$129>=$Q$121,$Q$129<=$S$121),AND($Q$129<>0,$Q$129>=$Q$120,$Q$129<=$S$120),AND($Q$129<>0,$Q$129>=$Q$119,$Q$129<=$S$119),AND($Q$129<>0,$Q$129>=$Q$118,$Q$129<=$S$118),AND($Q$129<>0,$Q$129>=$Q$117,$Q$129<=$S$117),AND($Q$129<>0,$Q$129>=$Q$116,$Q$129<=$S$116),AND($Q$129<>0,$Q$129>=$Q$115,$Q$129<=$S$115),AND($Q$129<>0,$Q$129>=$Q$114,$Q$129<=$S$114),AND($Q$129<>0,$Q$129>=$Q$113,$Q$129<=$S$113),AND($Q$129<>0,$Q$129>=$Q$112,$Q$129<=$S$112),AND($Q$129<>0,$Q$129>=$Q$111,$Q$129<=$S$111),AND($Q$128<>0,$Q$128>=$Q$127,$Q$128<=$S$127),AND($Q$128<>0,$Q$128>=$Q$126,$Q$128<=$S$126),AND($Q$128<>0,$Q$128>=$Q$125,$Q$128<=$S$125),AND($Q$128<>0,$Q$128>=$Q$124,$Q$128<=$S$124),AND($Q$128<>0,$Q$128>=$Q$123,$Q$128<=$S$123),AND($Q$128<>0,$Q$128>=$Q$122,$Q$128<=$S$122),AND($Q$128<>0,$Q$128>=$Q$121,$Q$128<=$S$121),AND($Q$128<>0,$Q$128>=$Q$120,$Q$128<=$S$120),AND($Q$128<>0,$Q$128>=$Q$119,$Q$128<=$S$119),AND($Q$128<>0,$Q$128>=$Q$118,$Q$128<=$S$118),AND($Q$128<>0,$Q$128>=$Q$117,$Q$128<=$S$117),AND($Q$128<>0,$Q$128>=$Q$116,$Q$128<=$S$116),AND($Q$128<>0,$Q$128>=$Q$115,$Q$128<=$S$115),AND($Q$128<>0,$Q$128>=$Q$114,$Q$128<=$S$114),AND($Q$128<>0,$Q$128>=$Q$113,$Q$128<=$S$113),AND($Q$128<>0,$Q$128>=$Q$112,$Q$128<=$S$112),AND($Q$128<>0,$Q$128>=$Q$111,$Q$128<=$S$111),AND($Q$127<>0,$Q$127>=$Q$126,$Q$127<=$S$126),AND($Q$127<>0,$Q$127>=$Q$125,$Q$127<=$S$125),AND($Q$127<>0,$Q$127>=$Q$124,$Q$127<=$S$124),AND($Q$127<>0,$Q$127>=$Q$123,$Q$127<=$S$123),AND($Q$127<>0,$Q$127>=$Q$122,$Q$127<=$S$122),AND($Q$127<>0,$Q$127>=$Q$121,$Q$127<=$S$121),AND($Q$127<>0,$Q$127>=$Q$120,$Q$127<=$S$120),AND($Q$127<>0,$Q$127>=$Q$119,$Q$127<=$S$119),AND($Q$127<>0,$Q$127>=$Q$118,$Q$127<=$S$118),AND($Q$127<>0,$Q$127>=$Q$117,$Q$127<=$S$117),AND($Q$127<>0,$Q$127>=$Q$116,$Q$127<=$S$116),AND($Q$127<>0,$Q$127>=$Q$115,$Q$127<=$S$115),AND($Q$127<>0,$Q$127>=$Q$114,$Q$127<=$S$114),AND($Q$127<>0,$Q$127>=$Q$113,$Q$127<=$S$113),AND($Q$127<>0,$Q$127>=$Q$112,$Q$127<=$S$112),AND($Q$127<>0,$Q$127>=$Q$111,$Q$127<=$S$111),AND($Q$126<>0,$Q$126>=$Q$125,$Q$126<=$S$125),AND($Q$126<>0,$Q$126>=$Q$124,$Q$126<=$S$124),AND($Q$126<>0,$Q$126>=$Q$123,$Q$126<=$S$123),AND($Q$126<>0,$Q$126>=$Q$122,$Q$126<=$S$122),AND($Q$126<>0,$Q$126>=$Q$121,$Q$126<=$S$121),AND($Q$126<>0,$Q$126>=$Q$120,$Q$126<=$S$120),AND($Q$126<>0,$Q$126>=$Q$119,$Q$126<=$S$119),AND($Q$126<>0,$Q$126>=$Q$118,$Q$126<=$S$118),AND($Q$126<>0,$Q$126>=$Q$117,$Q$126<=$S$117),AND($Q$126<>0,$Q$126>=$Q$116,$Q$126<=$S$116),AND($Q$126<>0,$Q$126>=$Q$115,$Q$126<=$S$115),AND($Q$126<>0,$Q$126>=$Q$114,$Q$126<=$S$114),AND($Q$126<>0,$Q$126>=$Q$113,$Q$126<=$S$113),AND($Q$126<>0,$Q$126>=$Q$112,$Q$126<=$S$112),AND($Q$126<>0,$Q$126>=$Q$111,$Q$126<=$S$111),AND(Q125<>0,Q125>=Q124,Q125<=S124),AND(Q125<>0,Q125>=Q123,Q125<=S123),AND(Q125<>0,Q125>=Q122,Q125<=S122),AND(Q125<>0,Q125>=Q121,Q125<=S121),AND(Q125<>0,Q125>=Q120,Q125<=S120),AND(Q125<>0,Q125>=Q119,Q125<=S119),AND(Q125<>0,Q125>=Q118,Q125<=S118),AND(Q125<>0,Q125>=Q117,Q125<=S117),AND(Q125<>0,Q125>=Q116,Q125<=S116),AND(Q125<>0,Q125>=Q115,Q125<=S115),AND(Q125<>0,Q125>=Q114,Q125<=S114),AND(Q125<>0,Q125>=Q113,Q125<=S113),AND(Q125<>0,Q125>=Q112,Q125<=S112),AND(Q125<>0,Q125>=Q111,Q125<=S111),AND(Q124<>0,Q124>=Q123,Q124<=S123),AND(Q124<>0,Q124>=Q122,Q124<=S122),AND(Q124<>0,Q124>=Q121,Q124<=S121),AND(Q124<>0,Q124>=Q120,Q124<=S120),AND(Q124<>0,Q124>=Q119,Q124<=S119),AND(Q124<>0,Q124>=Q118,Q124<=S118),AND(Q124<>0,Q124>=Q117,Q124<=S117),AND(Q124<>0,Q124>=Q116,Q124<=S116),AND(Q124<>0,Q124>=Q115,Q124<=S115),AND(Q124<>0,Q124>=Q114,Q124<=S114),AND(Q124<>0,Q124>=Q113,Q124<=S113),AND(Q124<>0,Q124>=Q112,Q124<=S112),AND(Q124<>0,Q124>=Q111,Q124<=S111),AND(Q123<>0,Q123>=Q122,Q123<=S122),AND(Q123<>0,Q123>=Q121,Q123<=S121),AND(Q123<>0,Q123>=Q120,Q123<=S120),AND(Q123<>0,Q123>=Q119,Q123<=S119),AND(Q123<>0,Q123>=Q118,Q123<=S118),AND(Q123<>0,Q123>=Q117,Q123<=S117),AND(Q123<>0,Q123>=Q116,Q123<=S116),AND(Q123<>0,Q123>=Q115,Q123<=S115),AND(Q123<>0,Q123>=Q114,Q123<=S114),AND(Q123<>0,Q123>=Q113,Q123<=S113),AND(Q123<>0,Q123>=Q112,Q123<=S112),AND(Q123<>0,Q123>=Q111,Q123<=S111),AND(Q122<>0,Q122>=Q121,Q122<=S121),AND(Q122<>0,Q122>=Q120,Q122<=S120),AND(Q122<>0,Q122>=Q119,Q122<=S119),AND(Q122<>0,Q122>=Q118,Q122<=S118),AND(Q122<>0,Q122>=Q117,Q122<=S117),AND(Q122<>0,Q122>=Q116,Q122<=S116),AND(Q122<>0,Q122>=Q115,Q122<=S115),AND(Q122<>0,Q122>=Q114,Q122<=S114),AND(Q122<>0,Q122>=Q113,Q122<=S113),AND(Q122<>0,Q122>=Q112,Q122<=S112),AND(Q122<>0,Q122>=Q111,Q122<=S111),AND(Q121<>0,Q121>=Q120,Q121<=S120),AND(Q121<>0,Q121>=Q119,Q121<=S119),AND(Q121<>0,Q121>=Q118,Q121<=S118),AND(Q121<>0,Q121>=Q117,Q121<=S117),AND(Q121<>0,Q121>=Q116,Q121<=S116),AND(Q121<>0,Q121>=Q115,Q121<=S115),AND(Q121<>0,Q121>=Q114,Q121<=S114),AND(Q121<>0,Q121>=Q113,Q121<=S113),AND(Q121<>0,Q121>=Q112,Q121<=S112),AND(Q121<>0,Q121>=Q111,Q121<=S111),AND(Q120<>0,Q120>=Q119,Q120<=S119),AND(Q120<>0,Q120>=Q118,Q120<=S118),AND(Q120<>0,Q120>=Q117,Q120<=S117),AND(Q120<>0,Q120>=Q116,Q120<=S116),AND(Q120<>0,Q120>=Q115,Q120<=S115),AND(Q120<>0,Q120>=Q114,Q120<=S114),AND(Q120<>0,Q120>=Q113,Q120<=S113),AND(Q120<>0,Q120>=Q112,Q120<=S112),AND(Q120<>0,Q120>=Q111,Q120<=S111),AND(Q119<>0,Q119>=Q118,Q119<=S118),AND(Q119<>0,Q119>=Q117,Q119<=S117),AND(Q119<>0,Q119>=Q116,Q119<=S116),AND(Q119<>0,Q119>=Q115,Q119<=S115),AND(Q119<>0,Q119>=Q114,Q119<=S114),AND(Q119<>0,Q119>=Q113,Q119<=S113),AND(Q119<>0,Q119>=Q112,Q119<=S112),AND(Q119<>0,Q119>=Q111,Q119<=S111),AND(Q118<>0,Q118>=Q117,Q118<=S117),AND(Q118<>0,Q118>=Q116,Q118<=S116),AND(Q118<>0,Q118>=Q115,Q118<=S115),AND(Q118<>0,Q118>=Q114,Q118<=S114),AND(Q118<>0,Q118>=Q113,Q118<=S113),AND(Q118<>0,Q118>=Q112,Q118<=S112),AND(Q118<>0,Q111>=Q117,Q118<=S111),AND(Q117<>0,Q117>=Q116,Q117<=S116),AND(Q117<>0,Q117>=Q115,Q117<=S115),AND(Q117<>0,Q117>=Q114,Q117<=S114),AND(Q117<>0,Q117>=Q113,Q117<=S113),AND(Q117<>0,Q117>=Q112,Q117<=S112),AND(Q117<>0,Q117>=Q111,Q117<=S111),AND(Q116<>0,Q116>=Q115,Q116<=S115),AND(Q116<>0,Q116>=Q114,Q116<=S114),AND(Q116<>0,Q116>=Q113,Q116<=S113),AND(Q116<>0,Q116>=Q112,Q116<=S112),AND(Q116<>0,Q116>=Q111,Q116<=S111),AND(Q115<>0,Q115>=Q114,Q115<=S114),AND(Q115<>0,Q115>=Q113,Q115<=S113),AND(Q115<>0,Q115>=Q112,Q115<=S112),AND(Q115<>0,Q115>=Q111,Q115<=S111),AND(Q114<>0,Q114>=Q113,Q114<=S113),AND(Q114<>0,Q114>=Q112,Q114<=S112),AND(Q114<>0,Q114>=Q111,Q114<=S111),AND(Q113<>0,Q113>=Q112,Q113<=S112),AND(Q113<>0,Q113>=Q111,Q113<=S111),AND(Q112<>0,Q112>=Q111,Q112<=S111)),"TEMPO CONCOMITANTE - REVER",$N$150) -> 
B150: 20 | C150: CASIMIRO DE ABREU | N150: =IF(OR(AND($F$42<>0,F42>=Q146,$F$42<=S146),AND($F$42<>0,F42>=Q145,$F$42<=S145),AND($F$42<>0,F42>=Q144,$F$42<=S144),AND($F$42<>0,F42>=Q143,$F$42<=S143),AND($F$42<>0,F42>=Q142,$F$42<=S142),AND($F$42<>0,F42>=Q141,$F$42<=S141),AND($F$42<>0,F42>=Q140,$F$42<=S140),AND($F$42<>0,F42>=Q139,$F$42<=S139),AND($F$42<>0,F42>=Q138,$F$42<=S138),AND($F$42<>0,F42>=Q137,$F$42<=S137),AND($F$42<>0,F42>=Q136,$F$42<=S136),AND($F$42<>0,F42>=Q135,$F$42<=S135),AND($F$42<>0,F42>=Q134,$F$42<=S134),AND($F$42<>0,F42>=Q133,$F$42<=S133),AND($F$42<>0,F42>=Q132,$F$42<=S132),AND($F$42<>0,F42>=Q131,$F$42<=S131),AND($F$42<>0,F42>=Q130,$F$42<=S130),AND($F$42<>0,F42>=Q129,$F$42<=S129),AND($F$42<>0,F42>=Q128,$F$42<=S128),AND($F$42<>0,F42>=Q127,$F$42<=S127),AND($F$42<>0,F42>=Q126,$F$42<=S126),AND($F$42<>0,F42>=Q125,$F$42<=S125),AND($F$42<>0,F42>=Q124,$F$42<=S124),AND($F$42<>0,F42>=Q123,$F$42<=S123),AND($F$42<>0,F42>=Q122,$F$42<=S122),AND($F$42<>0,F42>=Q121,$F$42<=S121),AND($F$42<>0,F42>=Q120,$F$42<=S120),AND($F$42<>0,F42>=Q119,$F$42<=S119),AND($F$42<>0,F42>=Q118,$F$42<=S118),AND($F$42<>0,F42>=Q117,$F$42<=S117),AND($F$42<>0,F42>=Q116,$F$42<=S116),AND($F$42<>0,F42>=Q115,$F$42<=S115),AND($F$42<>0,F42>=Q114,$F$42<=S114),AND($F$42<>0,F42>=Q113,$F$42<=S113),AND($F$42<>0,$F$42>=$Q$112,$F$42<=$S$112),AND($F$42<>0,$F$42>=$Q$111,$F$42<=$S$111)),"TEMPO CONCOMITANTE - REVER",$N$151) -> 
B151: 21 | C151: COM. LEVY GASPARIAN | N151: =IF(OR(AND(F42<>0,F42<=S146),AND(F42<>0,F42<=S145),AND(F42<>0,F42<=S144),AND(F42<>0,F42<=S143),AND(F42<>0,F42<=S142),AND(F42<>0,F42<=S141),AND(F42<>0,F42<=S140),AND(F42<>0,F42<=S139),AND(F42<>0,F42<=S138),AND(F42<>0,F42<=S137),AND(F42<>0,F42<=S136),AND(F42<>0,F42<=S135),AND(F42<>0,F42<=S134),AND(F42<>0,F42<=S133),AND(F42<>0,F42<=S132),AND(F42<>0,F42<=S131),AND(F42<>0,F42<=S130),AND(F42<>0,F42<=S129),AND(F42<>0,F42<=S128),AND(F42<>0,F42<=S127),AND(F42<>0,F42<=S126),AND(F42<>0,F42<=S125),AND(F42<>0,F42<=S124),AND(F42<>0,F42<=S123),AND(F42<>0,F42<=S122),AND(F42<>0,F42<=S121),AND(F42<>0,F42<=S120),AND(F42<>0,F42<=S119),AND(F42<>0,F42<=S118),AND(F42<>0,F42<=S117),AND(F42<>0,F42<=S116),AND(F42<>0,F42<=S115),AND(F42<>0,F42<=S114),AND(F42<>0,F42<=S113),AND(F42<>0,F42<=S112),AND(F42<>0,F42<=S111)),"ANALISAR POSSÍVEL CONCOMITÂNCIA / LICENÇAS SEM VENCIMENTOS.","") -> 
B152: 22 | C152: CONCEIÇÃO DE MACABU
B153: 23 | C153: CORDEIRO
B154: 24 | C154: DUAS BARRAS
B155: 25 | C155: DUQUE DE CAXIAS
B156: 26 | C156: ENGENHEIRO PAULO DE FRONTIM
B157: 27 | C157: ESTADO DO RIO DE JANEIRO
B158: 28 | C158: GUAPIMIRIM
B159: 29 | C159: IGUABA GRANDE
B160: 30 | C160: ITABORAÍ
B161: 31 | C161: ITAGUAÍ
B162: 31.1 | C162: ITAGUAÍ - MAGISTÉRIO
B163: 32 | C163: ITALVA
B164: 33 | C164: ITAOCARA
B165: 34 | C165: ITAPERUNA
B166: 35 | C166: ITATIAIA
B167: 36 | C167: JAPERI
B168: 37 | C168: LAJE DO MURIAÉ
B169: 38 | C169: MACAÉ
B170: 39 | C170: MACUCO
B171: 40 | C171: MAGÉ
B172: 41 | C172: MANGARATIBA
B173: 42 | C173: MARICÁ
B174: 43 | C174: MENDES
B175: 44 | C175: MESQUITA
B176: 45 | C176: MIGUEL PEREIRA
B177: 46 | C177: MIRACEMA
B178: 47 | C178: NATIVIDADE
B179: 47.1 | C179: NATIVIDADE - MAGISTÉRIO
B180: 48 | C180: NILÓPOLIS
B181: 49 | C181: NITERÓI
B182: 50 | C182: NOVA FRIBURGO
B183: 51 | C183: NOVA IGUACÚ
B184: 52 | C184: PARACAMBI
B185: 53 | C185: PARAÍBA DO SUL
B186: 54 | C186: PARATY
B187: 55 | C187: PATY DO ALFERES
B188: 56 | C188: PETRÓPOLIS
B189: 57 | C189: PINHEIRAL
B190: 58 | C190: PIRAÍ
B191: 59 | C191: PORCIÚNCULA
B192: 60 | C192: PORTO REAL
B193: 61 | C193: QUATIS
B194: 62 | C194: QUEIMADOS
B195: 63 | C195: QUISSAMÃ
B196: 64 | C196: RESENDE
B197: 65 | C197: RIO DAS FLORES
B198: 66 | C198: RIO BONITO
B199: 67 | C199: RIO CLARO
B200: 67.1 | C200: RIO CLARO - MAGISTÉRIO
B201: 68 | C201: RIO DAS OSTRAS
B202: 69 | C202: SANTA MARIA MADALENA
B203: 70 | C203: SANTO ANTÔNIO DE PÁDUA
B204: 71 | C204: SÃO FIDÉLIS
B205: 72 | C205: SÃO FRANCISCO DO ITABAPOANA
B206: 73 | C206: SÃO GONÇALO
B207: 74 | C207: SÃO JOÃO DA BARRA
B208: 75 | C208: SÃO JOÃO DE MERITI
B209: 76 | C209: SÃO JOSÉ DE UBÁ
B210: 77 | C210: SÃO JOSÉ DO VALE DO RIO PRETO
B211: 78 | C211: SÃO PEDRO DA ALDEIA
... 15 more rows

Sheet 2 Def Apos
C1: ABA 2 | K1: ='1 Hist'!N1 -> FAAP - MÓDULO II
C2: DEFINIÇÃO DA APOSENTADORIA
B4: 1 | C4: MODALIDADE DE APOSENTADORIA: | E4: VOLUNTÁRIA INTEGRAL
B6: 2 | C6: REGRA DE OPÇÃO: | E6: TRANSIÇÃO_ART. 6º_EC41
E7: 0
B8: 3 | C8: FUNDAMENTAÇÃO A CONSTAR NO ATO: | E8: =$E$42 -> Art. 6º, EC Nº 41/03
B10: 4 | C10: ENTE DA FEDERAÇÃO: | E10: =IF('1 Hist'!F6<>"",'1 Hist'!F6,"") -> ESTADO DO RIO DE JANEIRO
B11: 5 | C11: PODER: | E11: =IF('1 Hist'!F7<>"",'1 Hist'!F7,"") -> 
B12: 6 | C12: ÓRGÃO/ ENTIDADE: | E12: =IF('1 Hist'!F8<>"",'1 Hist'!F8,"") -> 
C14: HISTÓRICO FUNCIONAL
B16: 7 | C16: NOME DO SERVIDOR: | E16: =IF('1 Hist'!F12<>"",'1 Hist'!F12,"") -> 
B17: 8 | C17: MATRÍCULA: | E17: =IF('1 Hist'!R41<>"",'1 Hist'!R41,"") ->  | M17: DESDE
B18: 9 | C18: CARGO: | E18: =IF('1 Hist'!D81<>"",'1 Hist'!D81,"") ->  | M18: =IF('1 Hist'!J81<>"",'1 Hist'!J81,"") -> 00:00:00
B19: 10 | C19: CARREIRA: | E19: =IF('1 Hist'!D82<>"",'1 Hist'!D82,"") ->  | M19: =IF('1 Hist'!J82<>"",'1 Hist'!J82,"") -> 00:00:00
B20: 11 | C20: ADMISSÃO: | E20: =IF('1 Hist'!F42<>"",'1 Hist'!F42,"") -> 
B21: 12 | C21: NASCIMENTO: | E21: =IF('1 Hist'!F14<>"",'1 Hist'!F14,"") ->  | I21: IDADE | M21: =CRÍTICA_IGP1!N11 -> 
B22: 13 | C22: C.P.F.: | E22: =IF('1 Hist'!P15<>"",'1 Hist'!P15,"") ->  | I22: =IF(AND(CRÍTICA_IGP1!$H$19>=$L$92,$M$21>=75),CRÍTICA_IGP1!R20,IF($M$21>=70,CRÍTICA_IGP1!$R$20,IF($M$21>=60,CONCATENATE("O SERVIDOR ATINGIRÁ A COMPULSÓRIA EM ",CRÍTICA_IGP1!$Q$20," DIAS, "," OU SEJA, EM "),""))) -> 
B23: 14 | C23: VALIDADE DA APOSENTADORIA: | E23: =IF(OR('1 Hist'!P104="SÓ PODE HAVER UMA DATA DE VALIDADE",'1 Hist'!P105="SÓ PODE HAVER UMA DATA DE VALIDADE",'1 Hist'!P106="SÓ PODE HAVER UMA DATA DE VALIDADE",'1 Hist'!P107="SÓ PODE HAVER UMA DATA DE VALIDADE"),"",VLOOKUP("X",'1 Hist'!K84:L86,2,FALSE)) -> 00:00:00 | M23: =IF(AND(CRÍTICA_IGP1!$H$19>=$L$92,$M$21>=75),CRÍTICA_IGP1!$R$22,IF($M$21>=70,CRÍTICA_IGP1!$R$22,IF($M$21>=60,CRÍTICA_IGP1!$R$22,0))) -> 
B25: 15 | C25: SEXO: | E25: MASCULINO | I25: =IF(AND('1 Hist'!$O$14="X",'1 Hist'!$R$14="X"),"",IF('1 Hist'!$O$14="X","X","")) -> X | K25: FEMININO | M25: =IF(AND('1 Hist'!$O$14="X",'1 Hist'!$R$14="X"),"",IF('1 Hist'!$R$14="X","X","")) -> 
B27: 16 | C27: EFETIVO EXERCÍCIO DE FUNÇÕES DE MAGISTÉRIO | E27: SIM | I27: =IF('1 Hist'!T87="SIM","X","") ->  | K27: NÃO | M27: =IF('1 Hist'!$T$87="NÃO","X","") -> X
B29: 17 | C29: REDAÇÃO DADA PELA: | E29: E.C. nº 20/98 | K29: E.C. nº 41/03 | M29: X
E31: ANOS | G31: DIAS | I31: CRÍTICAS
B32: 18 | C32: TEMPO NO CARGO: | E32: =CRÍTICA_IGP1!M13 -> 0 | G32: =CRÍTICA_IGP1!N13 -> 0 | I32: =CRÍTICA_IGP1!N68 -> REVER FUNDAMENTAÇÃO
B33: 19 | C33: TEMPO NA CARREIRA: | E33: =CRÍTICA_IGP1!M14 -> 0 | G33: =CRÍTICA_IGP1!N14 -> 0 | I33: =CRÍTICA_IGP1!N69 -> REVER FUNDAMEN.
B34: 20 | C34: TEMPO NO SERV. PÚBLICO: | E34: =CRÍTICA_IGP1!M15 ->  | G34: =CRÍTICA_IGP1!N15 -> 
B36: 20 | C36: VALIDADE DA REGRA: | E36: =CRÍTICA_IGP1!N10 -> -
B38: 21 | C38: CONCLUSÃO:
C39: =CRÍTICA_IGP1!B68 -> ADMISSÃO : | E39: =CRÍTICA_IGP1!C68 -> APÓS CF/88: CONCURSO? | K39: HOJE: | M39: =TODAY() -> 2017-10-19
E40: =CRÍTICA_IGP1!C69 -> 0
C41: =CRÍTICA_IGP1!B70 -> IDADE : | E41: =CRÍTICA_IGP1!E70 ->  | K41: RUBRICA: | M41: ___________
C42: FUNDAMENTAÇÃO: | E42: =IF(AND($E$6=$M$48,$E$20<=$K$51,OR($E$4=$F$52,$E$4=$F$53)),CRÍTICA_IGP1!$BO$17,CRÍTICA_IGP1!$D$73) -> Art. 6º, EC Nº 41/03 | K42: MATRÍCULA: | M42: ___________
C44: TRIBUNAL DE CONTAS DO ESTADO DO RIO DE JANEIRO - SUP
C45: Virgílio de Oliveira Souza (Técnica / Lógica) | F45: Luiz Cláudio Lopes de Sá - (Revisão / Lay out)
C46: LISTA JURISDICIONADOS - SUP | F46: MODALIDADES | H46: NÃO MEXER | K46: PODERES | M46: LISTA DE FUNDAMENTAÇÕES
B47: 1 | C47: ANGRA DOS REIS | F47: VOLUNTÁRIA INTEGRAL | K47: EXECUTIVO | M47: REGRAS ANTES EC20
B48: 1.1 | C48: ANGRA DOS REIS - MAGISTÉRIO | F48: VOLUNTÁRIA ESPECIAL | K48: LEGISLATIVO | M48: REGRA PERMANENTE
B49: 2 | C49: APERIBÉ | F49: VOLUNTÁRIA PROPORCIONAL POR IDADE | K49: JUDICIÁRIO | M49: TRANSIÇÃO EMENDA 20
B50: 3 | C50: ARARUAMA | F50: COMPULSÓRIA INTEGRAL | M50: TRANSIÇÃO_ART. 2º_EC41
B51: 4 | C51: AREAL | F51: COMPULSÓRIA PROPORCIONAL | K51: 2003-12-31 | M51: TRANSIÇÃO_ART. 6º_EC41
B52: 5 | C52: ARMAÇÃO DE BÚZIOS | F52: INVALIDEZ INTEGRAL | M52: TRANSIÇÃO_EMENDA 47
B53: 6 | C53: ARRAIAL DO CABO | F53: INVALIDEZ PROPORCIONAL | M53: PREENCHA A REGRA DESEJADA
B54: 7 | C54: BARRA DO PIRAÍ | F54: VOL. PROPORCIONAL T. CONTRIBUIÇÃO | K54: INVALIDEZ INTEGRAL | M54: =IF($E$8="REVER FUNDAMENTAÇÃO E/OU MODALIDADE","REVER",IF(AND($E$20<$K$51,$E$6=$M$47,$E$4=$F$52),"SIM",IF(AND($E$20<$K$51,$E$6=$M$48,$E$4=$F$52),IF(OR($I$29="X",$M$29="X"),"SIM","NÃO"),"NÃO"))) -> NÃO | N54: ANTES EC41 | P54: 1
B55: 8 | C55: BARRA MANSA | F55: VOLUNTÁRIA COM REDUTOR | M55: =IF($E$8="REVER FUNDAMENTAÇÃO E/OU MODALIDADE","REVER",IF($E$20>=$K$51,IF(AND($E$6=$M$48,$M$29="X",$E$4=$F$52),"SIM","NÃO"),"NÃO")) -> NÃO | N55: APÓS EC41 | P55: 2
B56: 9 | C56: BELFORD ROXO | F56: PREENCHA COM A MODALIDADE | K56: INVALIDEZ PROPORCIONAL | M56: =IF($E$8="REVER FUNDAMENTAÇÃO E/OU MODALIDADE","REVER",IF(AND($E$20<$K$51,$E$6=$M$47,$E$4=$F$53),"SIM",IF(AND($E$20<$K$51,$E$6=$M$48,$E$4=$F$53),IF(OR($I$29="X",$M$29="X"),"SIM","NÃO"),"NÃO"))) -> NÃO | N56: ANTES EC41 | P56: 3
B57: 9.1 | C57: BELFORD ROXO - CÂMARA | M57: =IF($E$8="REVER FUNDAMENTAÇÃO E/OU MODALIDADE","REVER",IF($E$20>=$K$51,IF(AND($E$6=$M$48,$M$29="X",$E$4=$F$53),"SIM","NÃO"),"NÃO")) -> NÃO | N57: APÓS EC41 | P57: 4
B58: 10 | C58: BOM JARDIM
B59: 11 | C59: BOM JESUS DE ITABAPOANA
B60: 12 | C60: CABO FRIO | K60: X
B61: 13 | C61: CACHOEIRAS DE MACACU
B62: 14 | C62: CAMBUCI
B63: 15 | C63: CAMPOS
B64: 16 | C64: CANTAGALO
B65: 17 | C65: CARAPEBUS
B66: 18 | C66: CARDOSO MOREIRA
B67: 19 | C67: CARMO
B68: 20 | C68: CASIMIRO DE ABREU
B69: 21 | C69: COM. LEVY GASPARIAN
B70: 22 | C70: CONCEIÇÃO DE MACABU
B71: 23 | C71: CORDEIRO
B72: 24 | C72: DUAS BARRAS
B73: 25 | C73: DUQUE DE CAXIAS
B74: 26 | C74: ENGENHEIRO PAULO DE FRONTIM
B75: 27 | C75: ESTADO DO RIO DE JANEIRO
B76: 28 | C76: GUAPIMIRIM
B77: 29 | C77: IGUABA GRANDE
B78: 30 | C78: ITABORAÍ
B79: 31 | C79: ITAGUAÍ
B80: 31.1 | C80: ITAGUAÍ - MAGISTÉRIO
B81: 32 | C81: ITALVA
B82: 33 | C82: ITAOCARA
B83: 34 | C83: ITAPERUNA
B84: 35 | C84: ITATIAIA
B85: 36 | C85: JAPERI
B86: 37 | C86: LAJE DO MURIAÉ
B87: 38 | C87: MACAÉ
B88: 39 | C88: MACUCO
B89: 40 | C89: MAGÉ
B90: 41 | C90: MANGARATIBA
B91: 42 | C91: MARICÁ
B92: 43 | C92: MENDES
B93: 44 | C93: MESQUITA
B94: 45 | C94: MIGUEL PEREIRA
B95: 46 | C95: MIRACEMA
B96: 47 | C96: NATIVIDADE
B97: 47.1 | C97: NATIVIDADE - MAGISTÉRIO
B98: 48 | C98: NILÓPOLIS
B99: 49 | C99: NITERÓI
B100: 50 | C100: NOVA FRIBURGO
B101: 51 | C101: NOVA IGUACÚ
B102: 52 | C102: PARACAMBI
B103: 53 | C103: PARAÍBA DO SUL
B104: 54 | C104: PARATY
B105: 55 | C105: PATY DO ALFERES
B106: 56 | C106: PETRÓPOLIS
B107: 57 | C107: PINHEIRAL
B108: 58 | C108: PIRAÍ
B109: 59 | C109: PORCIÚNCULA
B110: 60 | C110: PORTO REAL
B111: 61 | C111: QUATIS
B112: 62 | C112: QUEIMADOS
B113: 63 | C113: QUISSAMÃ
B114: 64 | C114: RESENDE
B115: 65 | C115: RIO DAS FLORES
B116: 66 | C116: RIO BONITO
B117: 67 | C117: RIO CLARO
B118: 67.1 | C118: RIO CLARO - MAGISTÉRIO
B119: 68 | C119: RIO DAS OSTRAS
B120: 69 | C120: SANTA MARIA MADALENA
B121: 70 | C121: SANTO ANTÔNIO DE PÁDUA
B122: 71 | C122: SÃO FIDÉLIS
B123: 72 | C123: SÃO FRANCISCO DO ITABAPOANA
B124: 73 | C124: SÃO GONÇALO
B125: 74 | C125: SÃO JOÃO DA BARRA
B126: 75 | C126: SÃO JOÃO DE MERITI
B127: 76 | C127: SÃO JOSÉ DE UBÁ
B128: 77 | C128: SÃO JOSÉ DO VALE DO RIO PRETO
B129: 78 | C129: SÃO PEDRO DA ALDEIA
B130: 79 | C130: SÃO SEBASTIÃO DO ALTO
B131: 80 | C131: SAPUCAIA
B132: 81 | C132: SAQUAREMA
B133: 82 | C133: SEROPÉDICA
B134: 83 | C134: SILVA JARDIM
B135: 84 | C135: SUMIDOURO
B136: 85 | C136: TANGUÁ
B137: 86 | C137: TERESÓPOLIS
B138: 87 | C138: TRAJANO DE MORAES
B139: 88 | C139: TRÊS RIOS
B140: 89 | C140: VALENÇA
B141: 90 | C141: VARRE-SAI
B142: 91 | C142: VASSOURAS
B143: 91.1 | C143: VASSOURAS - MAGISTÉRIO
B144: 92 | C144: VOLTA REDONDA

Sheet 3 MTS
C2: ABA 3 | L2: ='2 Def Apos'!K1 -> FAAP - MÓDULO II
C3: RESULTADO DA APURAÇÃO DO TEMPO DE SERVIÇO/CONTRIBUIÇÃO
B5: 1 | C5: SITUAÇÃO ANTES DA E.C. nº 20/98
B7: 2 | C7: DISCRIMINAÇÃO | D7: PERÍODO | H7: total | I7: =IF('2 Def Apos'!$E$16>0,"NOME:","") -> NOME: | J7: =IF('2 Def Apos'!$E$16>0,'2 Def Apos'!$E$16,"") ->  | N7: A T S
D8: início | G8: término | H8: DIAS | I8: =IF('2 Def Apos'!$E$17>0,"MATRÍCULA:","") -> MATRÍCULA: | J8: =IF('2 Def Apos'!$E$17>0,'2 Def Apos'!$E$17,"") ->  | N8: QUINQUÊNIO
B9: 3 | C9: INSS | D9: =IF(AND('1 Hist'!Y32>0,'1 Hist'!X35>0),'1 Hist'!X35,0) -> 00:00:00 | E9: a | G9: =IF(AND('1 Hist'!Y32>0,'1 Hist'!X36>0),'1 Hist'!X36) -> FALSE | H9: =IF(AND(D9>0,G9>0),'1 Hist'!Y32,0) -> 0 | I9: =IF(H9>0,"COMUNICAR AO INSS TEMPO AVERBADO.","") -> 
B10: 4 | C10: OUTROS PODERES e/ou ORIGEM (INSS) | D10: =IF(AND('1 Hist'!Y58>0,'1 Hist'!X61>0),'1 Hist'!X61,0) -> 00:00:00 | E10: a | G10: =IF(AND('1 Hist'!Y58>0,'1 Hist'!X62>0),'1 Hist'!X62,0) -> 00:00:00 | H10: =IF(AND(D10>0,G10>0),'1 Hist'!Y58,0) -> 0 | I10: =IF(H10>0,"COMUNICAR AO INSS TEMPO AVERBADO.","") -> 
C11: OUTROS PODERES e/ou ORIGEM (RPPS) | D11: =IF(AND('1 Hist'!Y95>0,'1 Hist'!X98),'1 Hist'!X98,0) -> 00:00:00 | E11: a | G11: =IF(AND('1 Hist'!Y95>0,'1 Hist'!X99>0),'1 Hist'!X99,0) -> 00:00:00 | H11: =IF(AND(D11>0,G11>0),'1 Hist'!Y95,0) -> 0 | I11: =IF(H11>0,"COMUNICAR AO RPPS DO ENTE TEMPO AVERBADO.","") -> 
B12: 5 | C12: FORÇAS ARMADAS | D12: =IF('1 Hist'!Q31>0,'1 Hist'!Q31,0) -> 00:00:00 | E12: a | G12: =IF('1 Hist'!S31>0,'1 Hist'!S31,0) -> 00:00:00 | H12: =IF(AND(D12>0,G12>0),'1 Hist'!T31,0) -> 0 | I12: =IF(H12>0,"COMPROVAR CERTIDÃO E/OU CERTIFICADO DE RESERVISTA.","") -> 
B13: 6 | C13: ÓRGÃO DE ORIGEM | E13: a
C14: ÓRGÃO DE ORIGEM (CLT) | D14: =IF(AND('1 Hist'!F42<CRÍTICA_IGP1!Q11,'1 Hist'!F42<'1 Hist'!F43),'1 Hist'!F42,0) -> 00:00:00 | E14: a | G14: =IF(AND('1 Hist'!$F$43<CRÍTICA_IGP1!$Q$11,'1 Hist'!$F$42<'1 Hist'!$F$43),'1 Hist'!$F$43-1,0) -> 00:00:00 | H14: =CRÍTICA_IGP1!F31 -> 0 | I14: =IF(H14>0,"COMUNICAR AO INSS TEMPO AVERBADO ENQUANTO DO QUADRO DE CELETISTAS.","") -> 
C15: ÓRGÃO DE ORIGEM | D15: =IF(AND('1 Hist'!$F$43<CRÍTICA_IGP1!$Q$11,'1 Hist'!$F$43>'1 Hist'!$F$42),'1 Hist'!$F$43,IF(AND('1 Hist'!F42<CRÍTICA_IGP1!Q11,'1 Hist'!F42>='1 Hist'!F43),'1 Hist'!F42,0)) -> 00:00:00 | E15: a | G15: =IF(AND(CRÍTICA_IGP1!$R$22<CRÍTICA_IGP1!$Q$11,CRÍTICA_IGP1!$R$22<'2 Def Apos'!$E$23),CRÍTICA_IGP1!$R$22-1,IF($D$15=0,0,IF('2 Def Apos'!$E$23<CRÍTICA_IGP1!$Q$11,'2 Def Apos'!$E$23-1,CRÍTICA_IGP1!$Q$11-1))) ->  | H15: =IF(AND(D15<>0,G15<>0),(G15-D15+1-CRÍTICA_IGP1!N31),0) ->  | I15: A data máxima nessa situação é 15/12/98 (Antes da / EC nº 20/98)
B16: 7 | C16: LICENÇA ESPECIAL | D16: nº de períodos | G16: =CRÍTICA_IGP1!E33 -> 0 | H16: =CRÍTICA_IGP1!F33 -> 0 | I16: =CRÍTICA_IGP1!G33 -> Licença especial não gozada e computada em dobro.
B17: 8 | C17: FÉRIAS EM DOBRO | D17: nº anos | G17: =CRÍTICA_IGP1!E34 -> 0 | H17: =CRÍTICA_IGP1!F34 -> 0 | I17: =CRÍTICA_IGP1!G34 -> Férias não gozadas e computadas em dobro.
B18: 9 | C18: BÔNUS ESPECIAL | H18: =CRÍTICA_IGP1!F35 -> 0 | I18: =CRÍTICA_IGP1!G35 -> Acréscimo constitucional para professores (EC 20/98 e EC 41/03).
B19: 10 | C19: FALTAS | H19: =IF('1 Hist'!$F$62>0,'1 Hist'!$F$62,0) -> 0 | I19: Aponte as faltas ocorridas antes de 15/12/98 (Antes EC nº 20/98).
B20: 11 | C20: OUTROS AFASTAMENTOS | H20: =IF(OR('1 Hist'!$F$63>0,'1 Hist'!$F$64>0,'1 Hist'!$F$65>0,'1 Hist'!$F$66>0),SUM('1 Hist'!F63:F66),0) -> 0 | I20: Aponte licenças sem vencimentos anteriores a 15/12/98 (Antes EC nº 20/98).
B22: 12 | C22: SUBTOTAL | D22: PERÍODO | H22: total | J22: TEMPO CONVERTIDO
D23: início | G23: término | H23: DIAS | J23: =CRÍTICA_IGP1!K37 ->  | K23: anos | M23: =CRÍTICA_IGP1!M37 ->  | N23: dias
C24: (antes da EC nº 20/98) | D24: =CRÍTICA_IGP1!C37 -> 00:00:00 | E24: a | G24: =CRÍTICA_IGP1!E37 ->  | H24: =CRÍTICA_IGP1!F37 -> 
B26: 13 | C26: CONCLUSÃO (caso seja necessária complementação)
C28: =CRÍTICA_IGP1!H42 -> NÃO HÁ PEDÁGIO A CUMPRIR | F28: DIAS | J28: TEMPO CONVERTIDO
B29: 14 | C29: TEMPO FALTANTE: | F29: =CRÍTICA_IGP1!E42 -> 0 | J29: =IF(F29>0,ROUNDDOWN(F29/365,0),0) -> 0 | K29: anos | M29: =(F29/365-J29)*365 -> 0 | N29: dias
B30: 15 | C30: PEDÁGIO: | F30: =CRÍTICA_IGP1!E43 -> 0 | J30: =IF(F30>0,ROUNDDOWN(F30/365,0),0) -> 0 | K30: anos | M30: =(F30/365-J30)*365 -> 0 | N30: dias
B31: 16 | C31: TEMPO A COMPLEMENTAR: | F31: =CRÍTICA_IGP1!E44 -> 0 | J31: =IF(F31>0,ROUNDDOWN(F31/365,0),0) -> 0 | K31: anos | M31: =(F31/365-J31)*365 -> 0 | N31: dias
B33: 17 | C33: SITUAÇÃO ENTRE A E.C. nº 20/98 A E.C. nº 41/03
C35: DISCRIMINAÇÃO | D35: PERÍODO | H35: total | I35: orientações
D36: início | G36: término | H36: DIAS
C37: INSS | D37: =IF(AND('1 Hist'!AB32>0,'1 Hist'!Z35>0),'1 Hist'!Z35,0) -> 00:00:00 | E37: a | G37: =IF(AND('1 Hist'!AB32>0,'1 Hist'!AA36>0),'1 Hist'!AA36,0) -> 00:00:00 | H37: =IF(AND(D37<>"",G37<>""),'1 Hist'!AB32,0) -> 0 | I37: =IF(H37<>0,"INSS: DESCONSIDERE OS PERÍODOS CONCOMITANTES. COMUNIQUE AO RGPS","") -> 
C38: OUTROS PODERES e/ou ORIGEM (INSS) | D38: =IF(AND('1 Hist'!AB58>0,'1 Hist'!Z61>0),'1 Hist'!Z61,0) -> 00:00:00 | E38: a | G38: =IF(AND('1 Hist'!AB58>0,'1 Hist'!AA62>0),'1 Hist'!AA62,0) -> 00:00:00 | H38: =IF(AND(D38<>"",G38<>""),'1 Hist'!AB58,0) -> 0 | I38: =IF(H38<>0,"INSS: DESCONSIDERE OS PERÍODOS CONCOMITANTES. COMUNIQUE AO RGPS","") -> 
C39: OUTROS PODERES e/ou ORIGEM (RPPS) | D39: =IF(AND('1 Hist'!AB95>0,'1 Hist'!Z98>0),'1 Hist'!Z98,0) -> 00:00:00 | E39: a | G39: =IF(AND('1 Hist'!AB95>0,'1 Hist'!AA99>0),'1 Hist'!AA99,0) -> 00:00:00 | H39: =IF(AND(D39>0,G39>0),'1 Hist'!AB95,0) -> 0 | I39: =IF(H39>0,"COMUNICAR AO RPPS DO ENTE TEMPO AVERBADO.","") -> 
C40: ÓRGÃO DE ORIGEM | D40: =IF('2 Def Apos'!E20=0,0,IF('2 Def Apos'!E20<CRÍTICA_IGP1!Q11,CRÍTICA_IGP1!Q11,IF(AND('2 Def Apos'!E20>=CRÍTICA_IGP1!Q11,'2 Def Apos'!E20<CRÍTICA_IGP1!Q12),'2 Def Apos'!E20,0))) -> 00:00:00 | E40: a | G40: =IF('2 Def Apos'!E6='2 Def Apos'!M47,0,IF(AND('2 Def Apos'!E23<CRÍTICA_IGP1!R22,'2 Def Apos'!E23<CRÍTICA_IGP1!Q12),'2 Def Apos'!E23-1,I44)) ->  | H40: =IF(AND(D40<>0,I45<>0,I44>=CRÍTICA_IGP1!Q11),IF(G40>=D40,(G40-D40+1-CRÍTICA_IGP1!N50),0),0) ->  | I40: =IF(CRÍTICA_IGP1!K2="TRANSIÇÃO EMENDA 20","A data máxima nessa situação é 30/12/2003 (Antes da Emenda nº 41/03).","A data máxima nessa situação é 19/02/2004 (Antes da MP nº 167/04).") -> A data máxima nessa situação é 19/02/2004 (Antes da MP nº 167/04).
C41: FALTAS | H41: =IF('1 Hist'!$G$62>0,'1 Hist'!$G$62,0) -> 0 | I41: Aponte as faltas ocorridas entre 16/12/98 e 19/02/2004(antes MP 167/04).
C42: OUTROS AFASTAMENTOS | H42: ='1 Hist'!$Y$75 -> 0 | I42: Aponte licenças sem vencimentos entre 16/12/98 e 19/02/04 (Antes MP 167/04).
C44: SUBTOTAL | D44: PERÍODO | H44: total | I44: =IF(CRÍTICA_IGP1!R22<CRÍTICA_IGP1!Q11,0,IF(AND(CRÍTICA_IGP1!R22<'2 Def Apos'!E23,CRÍTICA_IGP1!R22<CRÍTICA_IGP1!Q12),IF(AND('2 Def Apos'!E6='2 Def Apos'!M49,CRÍTICA_IGP1!R22>CRÍTICA_IGP1!Q13),CRÍTICA_IGP1!Q13-1,IF(AND('2 Def Apos'!E6='2 Def Apos'!M48,'2 Def Apos'!I29="X",CRÍTICA_IGP1!R22>CRÍTICA_IGP1!Q12),I45,IF(AND(CRÍTICA_IGP1!R22>=CRÍTICA_IGP1!Q11,CRÍTICA_IGP1!R22<CRÍTICA_IGP1!Q13),CRÍTICA_IGP1!R22-1,IF(AND(CRÍTICA_IGP1!R22>=CRÍTICA_IGP1!Q13,CRÍTICA_IGP1!R22<CRÍTICA_IGP1!Q12),CRÍTICA_IGP1!R22-1,I45)))),I45)) -> 
D45: início | G45: término | H45: DIAS | I45: =IF('2 Def Apos'!E6='2 Def Apos'!M47,0,IF('2 Def Apos'!E6='2 Def Apos'!M49,IF(AND('2 Def Apos'!E23>=CRÍTICA_IGP1!Q11,'2 Def Apos'!E23<CRÍTICA_IGP1!Q13),'2 Def Apos'!E23-1,CRÍTICA_IGP1!Q13-1),IF(AND('2 Def Apos'!E6='2 Def Apos'!M48,'2 Def Apos'!I29="X"),IF(AND('2 Def Apos'!E23>=CRÍTICA_IGP1!Q11,'2 Def Apos'!E23<CRÍTICA_IGP1!Q12),'2 Def Apos'!E23-1,CRÍTICA_IGP1!Q12-1),IF('2 Def Apos'!E23>=CRÍTICA_IGP1!Q12,CRÍTICA_IGP1!Q12-1,IF(CRÍTICA_IGP1!R22<CRÍTICA_IGP1!N10,CRÍTICA_IGP1!R22-1,CRÍTICA_IGP1!N10-1))))) ->  | J45: TEMPO CONVERTIDO
B46: 18 | C46: (entre a EC nº 20 e a EC nº 41) | D46: =CRÍTICA_IGP1!C45 -> 00:00:00 | E46: a | G46: =IF('2 Def Apos'!E36<36145,G24,IF('2 Def Apos'!E36<38037,IF(I45<I44,I45,I44),I44)) ->  | H46: =IF(CRÍTICA_IGP1!F46<>0,CRÍTICA_IGP1!F46,'3 MTS'!H24) ->  | J46: =IF(H46>0,ROUNDDOWN(H46/365,0),0) ->  | K46: anos | M46: =(H46/365-J46)*365 ->  | N46: dias
B47: 19 | C47: (desde o início) | D47: =IF(D24<>0,D24,D46) -> 00:00:00 | E47: a | G47: =G46 ->  | H47: =CRÍTICA_IGP1!F52 ->  | J47: =IF(H47>0,ROUNDDOWN(H47/365,0),0) ->  | K47: anos | M47: =(H47/365-J47)*365 ->  | N47: dias
B49: 20 | C49: SITUAÇÃO APÓS A E.C. nº 41/03
C51: DISCRIMINAÇÃO | D51: PERÍODO | H51: total | I51: orientações
D52: início | G52: término | H52: DIAS
C53: INSS | D53: =IF(AND('1 Hist'!AE32>0,'1 Hist'!AC35>0),'1 Hist'!AC35,0) -> 00:00:00 | E53: a | G53: =IF(AND('1 Hist'!AE32>0,'1 Hist'!AD36>0),'1 Hist'!AD36,0) -> 00:00:00 | H53: =IF(AND(D53>0,G53>0),'1 Hist'!AE32,0) -> 0 | I53: =IF(H53<>0,"INSS: DESCONSIDERE OS PERÍODOS CONCOMITANTES. COMUNIQUE AO RGPS","") -> 
C54: OUTROS PODERES e/ou ORIGEM (INSS) | D54: =IF(AND('1 Hist'!AE58>0,'1 Hist'!AC61>0),'1 Hist'!AC61,0) -> 00:00:00 | E54: a | G54: =IF(AND('1 Hist'!AE58>0,'1 Hist'!AD62>0),'1 Hist'!AD62,0) -> 00:00:00 | H54: =IF(AND('1 Hist'!AC58>0,'1 Hist'!AD58>0),'1 Hist'!AE58,0) -> 0 | I54: =IF(H54<>0,"INSS: DESCONSIDERE OS PERÍODOS CONCOMITANTES. COMUNIQUE AO RGPS","") -> 
C55: OUTROS PODERES e/ou ORIGEM (RPPS) | D55: =IF(AND('1 Hist'!AE95>0,'1 Hist'!AC98>0),'1 Hist'!AC98,0) -> 00:00:00 | E55: a | G55: =IF(AND('1 Hist'!AE95>0,'1 Hist'!AD99>0),'1 Hist'!AD99,0) -> 00:00:00 | H55: =IF(AND(D55>0,G55>0),'1 Hist'!AE95,0) -> 0 | I55: =IF(H55>0,"COMUNICAR AO RPPS DO ENTE TEMPO AVERBADO.","") -> 
C56: ÓRGÃO DE ORIGEM | D56: =IF('2 Def Apos'!E20=0,0,IF('2 Def Apos'!E20>=CRÍTICA_IGP1!Q12,'2 Def Apos'!E20,CRÍTICA_IGP1!Q12)) ->  | E56: a | G56: =IF(OR('2 Def Apos'!E6='2 Def Apos'!M47,'2 Def Apos'!E6='2 Def Apos'!M49,'2 Def Apos'!I29="X"),0,I60) ->  | H56: =IF(AND(D56<>0,G56<>0),IF(I60>=D56,(I60-D56+1-CRÍTICA_IGP1!N57),0),0) ->  | I56: A data mínima nessa situação é 20/02/2004 (A partir da MP 167/04)
C57: FALTAS | H57: =IF('1 Hist'!$J$62>0,'1 Hist'!$J$62,0) -> 0 | I57: Aponte as faltas ocorridas a partir de 20/02/2004(a partir da MP 167/04).
C58: OUTROS AFASTAMENTOS | H58: ='1 Hist'!$Z$75 -> 0 | I58: Aponte licenças sem vencimentos a partir de 20/02/04 (a partir MP 167/04).
B60: 21 | C60: SUBTOTAL | D60: PERÍODO | H60: total | I60: =IF(OR('2 Def Apos'!E6='2 Def Apos'!M47,'2 Def Apos'!E6='2 Def Apos'!M49,AND('2 Def Apos'!E6='2 Def Apos'!M48,'2 Def Apos'!I29="X")),0,IF(AND('2 Def Apos'!M21>=70,CRÍTICA_IGP1!R22>=CRÍTICA_IGP1!Q12,CRÍTICA_IGP1!R22<'2 Def Apos'!E23),CRÍTICA_IGP1!R22-1,IF(CRÍTICA_IGP1!R22<'2 Def Apos'!E23,CRÍTICA_IGP1!R22-1,IF(D56>=CRÍTICA_IGP1!Q12,'2 Def Apos'!E23-1,0)))) -> 
D61: início | G61: término | H61: DIAS | J61: TEMPO CONVERTIDO
C62: (após a EC nº 41/03) | D62: =CRÍTICA_IGP1!C59 ->  | E62: a | G62: =IF(CRÍTICA_IGP1!E59<>"REVER",CRÍTICA_IGP1!E59,"") ->  | H62: =CRÍTICA_IGP1!F59 ->  | J62: =IF(H62>0,ROUNDDOWN(H62/365,0),0) ->  | K62: anos | M62: =(H62/365-J62)*365 ->  | N62: dias
B64: 22 | C64: SITUAÇÃO GERAL FINAL
B66: 23 | C66: TOTAL GERAL | D66: PERÍODO | H66: total
D67: início | G67: término | H67: DIAS | J67: TEMPO CONVERTIDO
C68: (desde o início) | D68: =IF(D24<>0,D24,IF(D46<>0,D46,D62)) ->  | E68: a | G68: =IF('2 Def Apos'!E20=0,0,IF(OR(G62="REVER",G62=0),G47,G62)) ->  | H68: =CRÍTICA_IGP1!F61 ->  | J68: =IF(H68>0,ROUNDDOWN(H68/365,0),0) ->  | K68: anos | M68: =(H68/365-J68)*365 ->  | N68: dias
B70: 24 | C70: CONCLUSÃO
F72: DIAS | J72: TEMPO CONVERTIDO
B73: 25 | C73: TEMPO FALTANTE: | F73: =IF(OR(CRÍTICA_IGP1!C65>0,CRÍTICA_IGP1!E65>0),CRÍTICA_IGP1!E65,MAX(CRÍTICA_IGP1!X97:X101)) ->  | J73: =IF(OR(F73="NADA A CUMPRIR",F73="NÃO CABE",F73="NÃO CUMPRE TEMPO MÍNIMO DE CONTRIBUIÇÃO"),0,ROUNDDOWN($F$73/365,0)) ->  | K73: anos | M73: =IF(OR(F73="NADA A CUMPRIR",F73="NÃO CABE",F73="NÃO CUMPRE TEMPO MÍNIMO DE CONTRIBUIÇÃO"),0,($F$73/365-$J$73)*365) ->  | N73: dias
B75: 26 | C75: C R Í T I C A S | J75: =IF($N$8>0,"ADICIONAL POR TEMPO DE SERVIÇO","") -> ADICIONAL POR TEMPO DE SERVIÇO | N75: =IF($N$8>0,CRÍTICA_IGP1!$I$67,"") -> 0
C76: IDADE : | H76: PROPORÇÃO EM ANOS : | J76: =CRÍTICA_IGP1!N75 -> NÃO CABE | L76: HOJE: | M76: =TODAY() -> 2017-10-19
C77: =CRÍTICA_IGP1!E70 ->  | H77: =CRÍTICA_IGP1!L76 -> ANTES MP 167/04 | J77: =CRÍTICA_IGP1!N76 -> 0
C79: TEMPO DE SERVIÇO / CONTRIBUIÇÃO : | H79: IDADE X TEMPO CONTRIBUIÇÃO (TEMPO FALTANTE) : | L79: RUBRICA: | M79: ________________
C80: =IF(OR(F73="NADA A CUMPRIR",F73="NÃO CABE",F73=0),"NÃO HÁ TEMPO A CUMPRIR","NÃO COMPUTA TEMPO DE CONTRIBUIÇÃO/SERVIÇO") ->  | H80: =CRÍTICA_IGP1!AB22 -> 
C82: MODALIDADE / FUNDAMENTAÇAO : | H82: PROPORÇÃO EM DIAS : | J82: =CRÍTICA_IGP1!N77 -> NÃO CABE | L82: MATRÍCULA: | M82: ________________
C83: =CRÍTICA_IGP1!D73 -> Art. 6º, EC Nº 41/03 | H83: =CRÍTICA_IGP1!L78 -> APÓS MP 167/04 | J83: =CRÍTICA_IGP1!N78 -> 0
C84: TRIBUNAL DE CONTAS DO ESTADO DO RIO DE JANEIRO - SUP
C85: Virgílio de Oliveira Souza (Técnica / Lógica) | I85: Luiz Cláudio Lopes de Sá - (Revisão / Lay out)
C86: ANUÊNIO | D86: SIM
C87: TRIÊNIO | D87: NÃO
C88: QUINQUÊNIO | D88: =IF(OR(H42<>0,H58<>0),"NÃO CABE","") -> 
C89: DECÊNIO

Sheet CRÍTICA_IGP1 (hidden)
B2: TIPO DE APOSENTADORIA | D2: : | E2: ='2 Def Apos'!E4 -> VOLUNTÁRIA INTEGRAL | J2: OPÇÃO: | K2: ='2 Def Apos'!$E$6 -> TRANSIÇÃO_ART. 6º_EC41 | O2: REGRAS ANTES EC20 | P2: TEMPO: | Q2: ART. 40 CF | R2: EC 20 | S2: ART 6º | T2: ART. 2º | U2: EC 47
O3: REGRA PERMANENTE
B4: HISTÓRICO FUNCIONAL | O4: TRANSIÇÃO EMENDA 20 | P4: CARGO | Q4: =IF(OR($E$2=$B$115,$E$2=$B$116,E2=B117),IF($M$13>=5,"ATENDE","NÃO CUMPRE"),"NÃO CABE") -> NÃO CUMPRE | R4: =IF($N$8<$Q$11,IF($M$13>=5,"ATENDE","NÃO CUMPRE"),"REVER FUNDAMENTAÇÃO") -> REVER FUNDAMENTAÇÃO | S4: =IF(OR(N8<Q13,AND('1 Hist'!$AA$59<>0,'1 Hist'!$AC$59<>0),AND('1 Hist'!$AA$96<>0,'1 Hist'!$AC$96<>0)),IF($M$13>=5,"ATENDE","NÃO ATENDE"),"REVER FUNDAMENTAÇÃO") -> REVER FUNDAMENTAÇÃO | T4: =IF($N$8<$Q$11,IF($M$13>=5,"ATENDE","NÃO ATENDE"),IF(AND($N$8>=$Q$11,$N$8<$Q$13),IF(OR(AND('1 Hist'!$AA$65=1,'1 Hist'!$X$59<>0,'1 Hist'!$Z$59<>0),AND('1 Hist'!$AA$106=1,'1 Hist'!$X$96<>0,'1 Hist'!$Z$96<>0)),IF($M$13>=5,"ATENDE","NÃO ATENDE"),"REVER FUNDAMENT."),IF($N$8>=$Q$13,IF(OR(AND('1 Hist'!$AB$65=1,'1 Hist'!$X$59<>0,'1 Hist'!$Z$59<>0,'1 Hist'!$AA$59<>0,'1 Hist'!$AC$59<>0),AND('1 Hist'!$AB$106=1,'1 Hist'!$X$96<>0,'1 Hist'!$Z$96<>0,'1 Hist'!$AA$96<>0,'1 Hist'!$AC$96<>0)),IF($M$13>=5,"ATENDE","NÃO ATENDE"),"REVER FUNDAMENT."),"REVER FUNDAMENT."))) -> REVER FUNDAMENT. | U4: =IF($N$8<$Q$11,IF($M$13>=5,"ATENDE","NÃO ATENDE"),IF(AND($N$8>=$Q$11,$N$8<$Q$13),IF(OR(AND('1 Hist'!$AA$65=1,'1 Hist'!$X$59<>0,'1 Hist'!$Z$59<>0),AND('1 Hist'!$AA$106=1,'1 Hist'!$X$96<>0,'1 Hist'!$Z$96<>0)),IF($M$13>=5,"ATENDE","NÃO ATENDE"),"REVER FUNDAMENT."),IF($N$8>=$Q$13,IF(OR(AND('1 Hist'!$AB$65=1,'1 Hist'!$X$59<>0,'1 Hist'!$Z$59<>0,'1 Hist'!$AA$59<>0,'1 Hist'!$AC$59<>0),AND('1 Hist'!$AB$106=1,'1 Hist'!$X$96<>0,'1 Hist'!$Z$96<>0,'1 Hist'!$AA$96<>0,'1 Hist'!$AC$96<>0)),IF($M$13>=5,"ATENDE","NÃO ATENDE"),"REVER FUNDAMENT."),"REVER FUNDAMENT."))) -> REVER FUNDAMENT. | AA4: TT*365 | AB4: T+ID(DIAS) | AD4: ANOS | AE4: DIAS
O5: TRANSIÇÃO_ART. 2º_EC41
A6: PODER | B6: ENTE DA FEDERAÇÃO: | E6: ='2 Def Apos'!$E$10 -> ESTADO DO RIO DE JANEIRO | I6: PODER: | J6: ='2 Def Apos'!$E$11 ->  | K6: Ó R G Ã O : | M6: ='2 Def Apos'!$E$12 ->  | O6: TRANSIÇÃO_ART. 6º_EC41 | P6: CARREIRA | Q6: NÃO CABE | R6: =IF($N$8<$Q$11,"NÃO CABE","REVER FUNDAM.") -> REVER FUNDAM. | S6: =IF(OR(N8<Q13,AND('1 Hist'!$AA$59<>0,'1 Hist'!$AC$59<>0),AND('1 Hist'!$AA$96<>0,'1 Hist'!$AC$96<>0)),IF($M$14>=10,"ATENDE","NÃO ATENDE"),"REVER FUNDAMEN.") -> REVER FUNDAMEN. | T6: =IF($N$8<$Q$11,"NÃO CABE",IF(AND($N$8>=$Q$11,$N$8<$Q$13),IF(OR(AND('1 Hist'!$AA$65=1,'1 Hist'!$X$59<>0,'1 Hist'!$Z$59<>0),AND('1 Hist'!$AA$106=1,'1 Hist'!$X$96<>0,'1 Hist'!$Z$96<>0)),"NÃO CABE","REVER FUNDAMENT."),IF($N$8>=$Q$13,IF(OR(AND('1 Hist'!$AB$65=1,'1 Hist'!$X$59<>0,'1 Hist'!$Z$59<>0,'1 Hist'!$AA$59<>0,'1 Hist'!$AC$59<>0),AND('1 Hist'!$AB$106=1,'1 Hist'!$X$96<>0,'1 Hist'!$Z$96<>0,'1 Hist'!$AA$96<>0,'1 Hist'!$AC$96<>0)),"NÃO CABE","REVER FUNDAMENT."),"REVER FUNDAMENT."))) -> REVER FUNDAMENT. | U6: =IF($N$8<$Q$11,IF($M$14>=15,"ATENDE","NÃO ATENDE"),IF(AND($N$8>=$Q$11,$N$8<$Q$13),IF(OR(AND('1 Hist'!$AA$65=1,'1 Hist'!$X$59<>0,'1 Hist'!$Z$59<>0),AND('1 Hist'!$AA$106=1,'1 Hist'!$X$96<>0,'1 Hist'!$Z$96<>0)),IF($M$14>=15,"ATENDE","NÃO ATENDE"),"REVER FUNDAMENT."),IF($N$8>=$Q$13,IF(OR(AND('1 Hist'!$AB$65=1,'1 Hist'!$X$59<>0,'1 Hist'!$Z$59<>0,'1 Hist'!$AA$59<>0,'1 Hist'!$AC$59<>0),AND('1 Hist'!$AB$106=1,'1 Hist'!$X$96<>0,'1 Hist'!$Z$96<>0,'1 Hist'!$AA$96<>0,'1 Hist'!$AC$96<>0)),IF($M$14>=15,"ATENDE","NÃO ATENDE"),"REVER FUNDAMENT."),"REVER FUNDAMENT."))) -> REVER FUNDAMENT. | X6: HOMEM | Z6: 95 | AA6: =Z6*365+24 -> 34699 | AB6: =$O$9+$F$61 ->  | AC6: =IF($H$61>=35,$AA$6-$AB$6,12775-$F$61) ->  | AD6: =ROUNDDOWN($AC$6/365,0) ->  | AE6: =(($AC$6/365)-$AD$6)*365 ->  | BN6: MODALIDADES | BO6: REGRA PERMANENTE (ATUAL) | BP6: REGRAS DE TRANSIÇÃO | BQ6: REGRA PERMANENTE (EMENDA Nº 20/98) | BR6: REGRAS DE TRANSIÇÃO | BS6: REGRAS DE TRANSIÇÃO | BT6: REGRAS DE TRANSIÇÃO | BU6: REGRAS ANTIGAS (até 15/12/1998)
A7: EXECUTIVO | B7: NOME : | C7: ='2 Def Apos'!$E$16 ->  | K7: MATRÍCULA : | N7: ='2 Def Apos'!$E$17 ->  | O7: TRANSIÇÃO_EMENDA 47 | P7: SERVIÇO PÚBLICO: | Q7: =IF(OR($E$2=$B$115,$E$2=$B$116,E2=B117),IF($M$15>=10,"ATENDE","NÃO CUMPRE"),O77) ->  | R7: 0 | S7: =IF(OR(N8<Q13,AND('1 Hist'!$AA$59<>0,'1 Hist'!$AC$59<>0),AND('1 Hist'!$AA$96<>0,'1 Hist'!$AC$96<>0)),IF($M$15>=20,"ATENDE","NÃO ATENDE"),"REVER FUNDAMENT.") -> REVER FUNDAMENT. | T7: 0 | U7: =IF($N$8<$Q$11,IF($M$15>=25,"ATENDE","NÃO ATENDE"),IF(AND($N$8>=$Q$11,$N$8<$Q$13),IF(OR(AND('1 Hist'!$AA$65=1,'1 Hist'!$X$59<>0,'1 Hist'!$Z$59<>0),AND('1 Hist'!$AA$106=1,'1 Hist'!$X$96<>0,'1 Hist'!$Z$96<>0)),IF($M$15>=25,"ATENDE","NÃO ATENDE"),"REVER FUNDAMENT."),IF($N$8>=$Q$13,IF(OR(AND('1 Hist'!$AB$65=1,'1 Hist'!$X$59<>0,'1 Hist'!$Z$59<>0,'1 Hist'!$AA$59<>0,'1 Hist'!$AC$59<>0),AND('1 Hist'!$AB$106=1,'1 Hist'!$X$96<>0,'1 Hist'!$Z$96<>0,'1 Hist'!$AA$96<>0,'1 Hist'!$AC$96<>0)),IF($M$15>=25,"ATENDE","NÃO ATENDE"),"REVER FUNDAMENT."),"REVER FUNDAMENT."))) -> REVER FUNDAMENT. | X7: MULHER | Z7: 85 | AA7: =Z7*365+22 -> 31047 | AB7: =$O$9+$F$61 ->  | AC7: =IF($H$61>=30,$AA$7-$AB$7,10950-$F$61) ->  | AD7: =ROUNDDOWN($AC$7/365,0) ->  | AE7: =(($AC$7/365)-$AD$7)*365 ->  | BN7: VOLUNTÁRIA INTEGRAL | BO7: Art. 40, §1º, III, alínea "a", da CR/88 (redação dada pela EC nº 41/03) | BP7: Art. 6º, EC Nº 41/03 | BQ7: Art. 40, §1º, III, alínea "a", da CR/88 (redação dada pela EC nº 20/98) | BR7: Art. 8º, caput, da EC nº 20/98 c/c art. 3º da EC nº 41/03 | BS7: Art. 3º da EC nº 47/2005 | BT7: REVER FUNDAMENTAÇÃO E/OU MODALIDADE | BU7: Art. 40, III, alínea "a", da CR/88 (redação original)
A8: LEGISLATIVO | B8: CARGO : | C8: ='2 Def Apos'!$E$18 ->  | I8: DESDE: | J8: ='2 Def Apos'!$M$18 -> 00:00:00 | K8: ADMISSÃO : | N8: ='2 Def Apos'!E20 ->  | O8: =IF($D$12="X",$BN$16,"") ->  | Q8: IDADE SEM ARREDONDAMENTO | X8: PROFESSOR | Z8: 85 | AA8: =Z8*365+22 -> 31047 | AB8: =$O$9+$F$61 ->  | AC8: =IF($H$61>=30,$AA$8-$AB$8,10950-$F$61) ->  | AD8: =ROUNDDOWN($AC$8/365,0) ->  | AE8: =(($AC$8/365)-$AD$8)*365 ->  | BN8: VOLUNTÁRIA ESPECIAL | BO8: Art. 40, §5º, da CR/88 (redação dada pela EC nº 41/03) | BP8: Art. 6º, EC Nº 41/03 c/c art. 40, § 5º, da CR/88 | BQ8: Art. 40, §5º, da CR/88 (redação dada pela EC nº 20/98) | BR8: Art. 8º, caput, § 4º, da EC nº 20/98 c/c art. 3º da EC nº 41/03 | BS8: REVER FUNDAMENTAÇÃO E/OU MODALIDADE | BT8: REVER FUNDAMENTAÇÃO E/OU MODALIDADE | BU8: Art. 40, III, alínea "b", da CR/88 (redação original)
A9: JUDICIÁRIO | B9: CARREIRA: | C9: ='2 Def Apos'!$E$19 ->  | I9: DESDE: | J9: ='2 Def Apos'!$M$19 -> 00:00:00 | K9: NASCIMENTO : | N9: ='2 Def Apos'!$E$21 ->  | O9: =IF($N$9=0,0,O$10-$N$9+1) ->  | P9: =IF(D10="X",N11*365+15,IF(G10="X",N11*365+14,O9)) ->  | Q9: =IF($G$10="x",($O$9-12)/365,($O$9-14)/365) ->  | R9: =(Q9-N11)*365 ->  | S9: =365-R9 ->  | X9: PROFESSORA | Z9: 75 | AA9: =Z9*365+19 -> 27394 | AB9: =$O$9+$F$61 ->  | AC9: =IF($H$61>=25,$AA$9-$AB$9,9125-$F$61) ->  | AD9: =ROUNDDOWN($AC$9/365,0) ->  | AE9: =(($AC$9/365)-$AD$9)*365 ->  | BN9: VOLUNTÁRIA PROPORCIONAL POR IDADE | BO9: Art. 40, §1º, III, alínea "b", da CR/88 (redação dada pela EC nº 41/03) | BP9: REVER FUNDAMENTAÇÃO E/OU MODALIDADE | BQ9: Art. 40, §1º, III, alínea "b", da CR/88 (redação dada pela EC nº 20/98) | BR9: REVER FUNDAMENTAÇÃO E/OU MODALIDADE | BS9: REVER FUNDAMENTAÇÃO E/OU MODALIDADE | BT9: REVER FUNDAMENTAÇÃO E/OU MODALIDADE | BU9: Art. 40, III, alínea "d", da CR/88 (redação original)
B10: SEXO : | D10: ='2 Def Apos'!$I$25 -> X | E10: MASCULINO | G10: ='2 Def Apos'!$M$25 ->  | H10: FEMININO | K10: VALIDADE DA REGRA: | N10: =IF($O$10=0,"-",$O$11) -> - | O10: =IF($K$2=$O$3,IF($D$14="X",$R$12,IF($G$14="X",$H$19,0)),IF($K$2=$O$2,$R$11,IF($K$2=$O$4,$R$13,$H$19))) -> 00:00:00 | P10: =65*365+16 -> 23741 | X10: MODALIDADE/FUNDAMENTAÇÃO | AB10: TEMPO FALTANTE | AC10: IDADE | AD10: TEMPO FALTANTE | AG10: CONCLUSÃO | AO10: TEMPO | AP10: IDADE | AQ10: SOMA | AR10: CONDIÇÃO | AX10: REGRA ANTES EC20 | BN10: COMPULSÓRIA INTEGRAL | BO10: =IF(AND($N$11>=75,$H$19>=$L$92),$BO$20,IF(AND($N$11>=70,$H$19<$L$92),$BO$19,$BO$14)) ->  | BP10: REVER FUNDAMENTAÇÃO E/OU MODALIDADE | BQ10: Art. 40, §1º, II, da CR/88 (redação dada pela EC nº 20/98) | BR10: REVER FUNDAMENTAÇÃO E/OU MODALIDADE | BS10: REVER FUNDAMENTAÇÃO E/OU MODALIDADE | BT10: REVER FUNDAMENTAÇÃO E/OU MODALIDADE | BU10: Art. 40, II, da CR/88 (redação original)
K11: CPF : | L11: ='2 Def Apos'!$E$22 ->  | N11: =IF($G$10="x",ROUNDDOWN(($O$9-14)/365,0),ROUNDDOWN(($O$9-15)/365,0)) ->  | O11: =IF($D$14="X",IF(OR(E49<>0,E50<>0),IF(E46<=O10,E46,O10),O10),$O$10) -> 00:00:00 | P11: EC Nº 20/98 | Q11: 1998-12-16 | R11: =IF($H$19<36144,$H$19,36144) -> 00:00:00 | X11: REGRA ANTES EMENDA 20/98 | AB11: =ROUNDDOWN($C$65/365,0) ->  | AC11: =IF(OR(E2=B118,E2=B119),(70-N11),IF(E2=B117,IF(D10="X",(65-N11),IF(G10="X",(60-N11),"MARQUE O SEXO")),"NÃO CABE")) -> NÃO CABE | AD11: =IF(OR(AC11="MARQUE O SEXO",AC11="NÃO CABE"),0,IF(AND(AB11<=0,AC11<=0),"NADA A CUMPRIR",IF(AB11>AC11,C65,IF(AC11>AB11,(AC11*365),0)))) -> 0 | AG11: =IF($K$2=$O$2,IF(OR(E2=B115,E2=B116,E2=B117,E2=B118,E2=B119,E2=B122),IF(OR(AD11<>"NADA A CUMPRIR",AD11<>"MARQUE O SEXO"),"NÃO SATISFAZ TEMPO DE CONTRIBUIÇÃO E/OU IDADE","SATISFAZ TEMPO DE CONTRIBUIÇÃO E IDADE")),IF(OR(AD11<>"NADA A CUMPRIR",AD11<>"MARQUE O SEXO"),"NÃO SATISFAZ TEMPO DE CONTRIBUIÇÃO E/OU IDADE","SATISFAZ TEMPO DE CONTRIBUIÇÃO E/OU IDADE")) -> NÃO SATISFAZ TEMPO DE CONTRIBUIÇÃO E/OU IDADE | AO11: =ROUNDDOWN($F$61/365,0) ->  | AP11: =AP12 ->  | AQ11: =SUM(AO11:AP11) ->  | AR11: =IF(OR($E$70="atende limite mínimo de idade",$F$71="nada a cumprir"),"SATISFAZ TEMPO DE CONTRIBUIÇÃO E/OU IDADE","NÃO SATISFAZ TEMPO DE CONTRIBUIÇÃO E/OU IDADE") ->  | BN11: COMPULSÓRIA PROPORCIONAL | BO11: =IF(AND($N$11>=75,$H$19>=$L$92),$BO$20,IF(AND($N$11>=70,$H$19<$L$92),$BO$19,$BO$14)) ->  | BP11: REVER FUNDAMENTAÇÃO E/OU MODALIDADE | BQ11: Art. 40, §1º, II, da CR/88 (redação dada pela EC nº 20/98) | BR11: REVER FUNDAMENTAÇÃO E/OU MODALIDADE | BS11: REVER FUNDAMENTAÇÃO E/OU MODALIDADE | BT11: REVER FUNDAMENTAÇÃO E/OU MODALIDADE | BU11: Art. 40, II, da CR/88 (redação original)
B12: EFET - MAGISTÉRIO | D12: ='2 Def Apos'!$I$27 ->  | E12: SIM | G12: ='2 Def Apos'!$M$27 -> X | H12: NÃO | M12: ANOS | N12: DIAS | P12: MPV 167/04 | Q12: 2004-02-20 | R12: =IF($H$19<38036,$H$19,38036) -> 00:00:00 | X12: REGRA PERMANENTE | AB12: =ROUNDDOWN($C$65/365,0) ->  | AC12: =IF($G$10="x",55-$N$11,IF($D$10="x",60-$N$11,0)) ->  | AD12: =IF(AND($AB$12<=0,$AC$12<=0),"NADA A CUMPRIR",IF($G$10="X",$I$147-$P$9,IF($D$10="X",$J$147-$P$9,"REVER TEMPO E/OU IDADE"))) ->  | AG12: =IF($K$2=$O$3,IF($E$2=$B$115,IF($AD$12<>"NADA A CUMPRIR","NÃO SATISFAZ TEMPO DE CONTRIBUIÇÃO E/OU IDADE","SATISFAZ TEMPO DE CONTRIBUIÇÃO E IDADE"),IF($AD$12<>"NADA A CUMPRIR","NÃO SATISFAZ TEMPO DE CONTRIBUIÇÃO E/OU IDADE","SATISFAZ TEMPO DE CONTRIBUIÇÃO E IDADE")),"NÃO É INTEGRAL DA REGRA PERMANENTE") -> NÃO É INTEGRAL DA REGRA PERMANENTE | AO12: =ROUNDDOWN($F$61/365,0) ->  | AP12: =$N$11 ->  | AQ12: =SUM(AO12:AP12) ->  | AR12: =IF(AND($E$70="atende limite mínimo de idade",$F$71="nada a cumprir"),"SATISFAZ TEMPO DE CONTRIBUIÇÃO E IDADE","NÃO SATISFAZ TEMPO DE CONTRIBUIÇÃO E/OU IDADE") ->  | BN12: INVALIDEZ INTEGRAL | BO12: Art. 40, §1º, I, da CR/88 (redação dada pela EC nº 41/03) | BP12: REVER FUNDAMENTAÇÃO E/OU MODALIDADE | BQ12: Art. 40, §1º, I, da CR/88 (redação dada pela EC nº 20/98) | BR12: REVER FUNDAMENTAÇÃO E/OU MODALIDADE | BS12: REVER FUNDAMENTAÇÃO E/OU MODALIDADE | BT12: REVER FUNDAMENTAÇÃO E/OU MODALIDADE | BU12: Art. 40, I, da CR/88 (redação original)
J13: TEMPO CARGO: | M13: =ROUNDDOWN($O$13/365,0) -> 0 | N13: =O13-(M13*365) -> 0 | O13: =IF($J$8=0,0,O$10-$J$8-$O$63-$O$61) -> 0 | P13: EC Nº 41/03 | Q13: 2003-12-31 | R13: =IF($H$19<37985,$H$19,37985) -> 00:00:00 | X13: REGRA PERM. MAGISTÉRIO | AB13: =$AB$12 ->  | AC13: =IF($G$10="x",50-$N$11,IF($D$10="x",55-$N$11,0)) ->  | AD13: =IF(AND($AB$13<0,$AC$13<0),"NADA A CUMPRIR",IF($G$10="X",$I$148-$P$9,IF($D$10="X",$J$148-$P$9,"REVER TEMPO E/OU IDADE"))) ->  | AG13: =IF($K$2=$O$3,IF($E$2=$B$116,IF($AD$13<>"NADA A CUMPRIR","NÃO SATISFAZ TEMPO DE CONTRIBUIÇÃO E/OU IDADE","SATISFAZ TEMPO DE CONTRIBUIÇÃO E IDADE"),IF($AD$13<>"NADA A CUMPRIR","NÃO SATISFAZ TEMPO DE CONTRIBUIÇÃO E/OU IDADE","SATISFAZ TEMPO DE CONTRIBUIÇÃO E IDADE")),"NÃO É ESPECIAL DA REGRA PERMANENTE") -> NÃO É ESPECIAL DA REGRA PERMANENTE | AO13: =ROUNDDOWN($F$61/365,0) ->  | AP13: =$AP$12 ->  | AQ13: =SUM(AO13:AP13) ->  | BN13: INVALIDEZ PROPORCIONAL | BO13: Art. 40, §1º, I, da CR/88 (redação dada pela EC nº 41/03) | BP13: REVER FUNDAMENTAÇÃO E/OU MODALIDADE | BQ13: Art. 40, §1º, I, da CR/88 (redação dada pela EC nº 20/98) | BR13: REVER FUNDAMENTAÇÃO E/OU MODALIDADE | BS13: REVER FUNDAMENTAÇÃO E/OU MODALIDADE | BT13: REVER FUNDAMENTAÇÃO E/OU MODALIDADE | BU13: Art. 40, I, da CR/88 (redação original)
B14: REDAÇÃO DADA PELA | D14: ='2 Def Apos'!$I$29 -> 0 | E14: EMENDA Nº 20/98 | G14: ='2 Def Apos'!$M$29 -> X | H14: EMENDA Nº 41/03 | J14: TEMPO CARREIRA: | M14: =ROUNDDOWN($O$14/365,0) -> 0 | N14: =O14-(M14*365) -> 0 | O14: =IF($J$9=0,0,O$10-$J$9-$O$63-$O$61) -> 0 | P14: CONSTITUIÇÃO FEDERAL | Q14: 1988-10-05 | X14: REGRA PERMANENTE_IDADE | AC14: =IF($G$10="x",60-$N$11,IF($D$10="x",65-$N$11,0)) ->  | AD14: =IF(AND($AB$14<0,$AC$14<0),"NADA A CUMPRIR",$C$65) ->  | AG14: =IF($K$2=$O$3,IF($E$2=$B$117,IF($AD$13<>"NADA A CUMPRIR","NÃO SATISFAZ A IDADE E/OU TEMPO DE CONTRIBUIÇÃO","IDADE E TEMPO DE CONTRIBUIÇÃO SATISFEITOS"),IF($AD$13<>"NADA A CUMPRIR","NÃO SATISFAZ A IDADE E/OU TEMPO DE CONTRIBUIÇÃO","IDADE E TEMPO DE CONTRIBUIÇÃO SATISFEITOS")),"NÃO É VOLUNTÁRIA POR IDADE / REGRA PERMANENTE") -> NÃO É VOLUNTÁRIA POR IDADE / REGRA PERMANENTE | AR14: =IF(AND($E$70="atende limite mínimo de idade",$F$71="NÃO CABE"),"SATISFAZ TEMPO DE CONTRIBUIÇÃO E/OU IDADE","NÃO SATISFAZ TEMPO DE CONTRIBUIÇÃO E/OU IDADE") ->  | BN14: VOL. PROPORCIONAL T. CONTRIBUIÇÃO | BO14: REVER FUNDAMENTAÇÃO E/OU MODALIDADE | BP14: REVER FUNDAMENTAÇÃO E/OU MODALIDADE | BQ14: REVER FUNDAMENTAÇÃO E/OU MODALIDADE | BR14: Art. 8º, § 1º, da EC nº 20/98 c/c art. 3º da EC nº 41/03 | BS14: REVER FUNDAMENTAÇÃO E/OU MODALIDADE | BT14: REVER FUNDAMENTAÇÃO E/OU MODALIDADE | BU14: Art. 40, III, alínea "c", da CR/88 (redação original)
B15: ADICIONAL POR TEMPO DE SERVIÇO: | G15: ='3 MTS'!$N$8 -> QUINQUÊNIO | J15: TEMPO DE SERVIÇO PÚBLICO: | M15: =ROUNDDOWN($O$15/365,0) ->  | N15: =O15-(M15*365) ->  | O15: =IF(AND('3 MTS'!$N$35="SIM",'3 MTS'!$N$51="SIM"),$O$16,IF(AND('3 MTS'!$N$35="SIM",'3 MTS'!$N$51="NÃO"),$O$17,IF(AND('3 MTS'!$N$35="NÃO",'3 MTS'!$N$51="SIM"),$O$18,IF(AND('3 MTS'!$N$35="NÃO",'3 MTS'!$N$51="NÃO"),$O$19,$O$16)))) ->  | P15: ADIN 609-6 - decisão TCE | Q15: 1998-04-30 | X15: TRANSIÇÃO EMENDA 20 | AC15: =IF($G$10="x",48-$N$11,IF($D$10="x",53-$N$11,0)) ->  | AD15: =IF(AND($AB$15<0,$AC$15<0),"NADA A CUMPRIR",IF($G$10="X",$I$147-$P$9,IF($D$10="X",$J$147-$P$9,"REVER TEMPO E/OU IDADE"))) ->  | AG15: =IF($K$2=$O$4,IF($E$2=$B$115,IF($AD$15<>"NADA A CUMPRIR","NÃO SATISFAZ A IDADE E/OU TEMPO DE CONTRIBUIÇÃO","IDADE E TEMPO DE CONTRIBUIÇÃO SATISFEITOS"),IF($AD$15<>"NADA A CUMPRIR","NÃO SATISFAZ A IDADE E/OU TEMPO DE CONTRIBUIÇÃO","IDADE E TEMPO DE CONTRIBUIÇÃO SATISFEITOS")),"NÃO É INTEGRAL - TRANSIÇÃO EMENDA 20") -> NÃO É INTEGRAL - TRANSIÇÃO EMENDA 20 | AQ15: =SUM(AO15:AP15) ->  | BN15: VOLUNTÁRIA COM REDUTOR | BO15: REVER FUNDAMENTAÇÃO E/OU MODALIDADE | BP15: REVER FUNDAMENTAÇÃO E/OU MODALIDADE | BQ15: REVER FUNDAMENTAÇÃO E/OU MODALIDADE | BR15: REVER FUNDAMENTAÇÃO E/OU MODALIDADE | BS15: REVER FUNDAMENTAÇÃO E/OU MODALIDADE | BT15: Art. 2º da EC nº 41/03 | BU15: REVER FUNDAMENTAÇÃO E/OU MODALIDADE
O16: =IF($N$10<$Q$11,SUM($F$27:$F$34),IF($N$10<$Q$12,SUM($F$27:$F$34)+$H$51-$O$20,SUM($F$27:$F$34)+$H$51+$H$60-$O$22)) ->  | P16: APOSENTADORIA COMPULSÓRIA_CONDIÇÕES | T16: =IF($H$19>=$L$92,IF($W$20>=75,"O SERVIDOR ATINGIU A COMPULSÓRIA, DEVENDO SER APOSENTADO EM ",IF($W$20>=60,75-$W$20,"O SERVIDOR NÃO COMPLETOU 75 ANOS")),IF($W$20>=70,"O SERVIDOR JÁ ATINGIU A COMPULSÓRIA, DEVENDO SER APOSENTADO EM ",IF($W$20>=60,70-$W$20,"O SERVIDOR NÃO COMPLETOU 70 ANOS"))) ->  | X16: TRANS. EC Nº 20 MAGISTÉRIO | AC16: =IF($G$10="x",48-$N$11,IF($D$10="x",53-$N$11,0)) ->  | AD16: =IF(AND($AB$16<0,$AC$16<0),"NADA A CUMPRIR",IF($G$10="X",$I$148-$P$9,IF($D$10="X",$J$148-$P$9,"REVER TEMPO E/OU IDADE"))) ->  | AG16: =IF($K$2=$O$4,IF($E$2=$B$116,IF($AD$16<>"NADA A CUMPRIR","NÃO SATISFAZ A IDADE E/OU TEMPO DE CONTRIBUIÇÃO","IDADE E TEMPO DE CONTRIBUIÇÃO SATISFEITOS"),IF($AD$16<>"NADA A CUMPRIR","NÃO SATISFAZ A IDADE E/OU TEMPO DE CONTRIBUIÇÃO","IDADE E TEMPO DE CONTRIBUIÇÃO SATISFEITOS")),"NÃO É ESPECIAL - TRANSIÇÃO EMENDA 20/98") -> NÃO É ESPECIAL - TRANSIÇÃO EMENDA 20/98 | BN16: VOLUNTÁRIA COM REDUTOR - MAGISTÉRIO | BO16: REVER FUNDAMENTAÇÃO E/OU MODALIDADE | BP16: REVER FUNDAMENTAÇÃO E/OU MODALIDADE | BQ16: REVER FUNDAMENTAÇÃO E/OU MODALIDADE | BR16: REVER FUNDAMENTAÇÃO E/OU MODALIDADE | BS16: REVER FUNDAMENTAÇÃO E/OU MODALIDADE | BT16: Art. 2º, § 4º, da EC nº 41/03 | BU16: REVER FUNDAMENTAÇÃO E/OU MODALIDADE
B17: DOCUMENTAÇÃO : | O17: =IF($N$10<$Q$11,SUM($F$27:$F$34),IF($N$10<$Q$12,SUM($F$27:$F$34)+$H$51-$O$20,SUM($F$27:$F$34)+$H$51-$O$20+$H$60)) ->  | P17: ADICIONAL POR TEMPO DE SERVIÇO | T17: COMPULSÓRIA HOJE | X17: TRANS. EC Nº 20_TEMPO SERVIÇO | AC17: =IF($G$10="x",48-$N$11,IF($D$10="x",53-$N$11,0)) ->  | AD17: =IF(AND($AB$17<=0,$AC$17<=0),"NADA A CUMPRIR",IF($G$10="X",$I$148-$P$9,IF($D$10="X",$J$148-$P$9,"REVER TEMPO E/OU IDADE"))) ->  | AG17: =IF($K$2=$O$4,IF($E$2=$B$122,IF($AD$17<>"NADA A CUMPRIR","NÃO SATISFAZ TEMPO DE CONTRIBUIÇÃO E/OU IDADE","SATISFAZ TEMPO DE CONTRIBUIÇÃO E IDADE"),IF($AD$17<>"NADA A CUMPRIR","NÃO SATISFAZ TEMPO DE CONTRIBUIÇÃO E/OU IDADE","SATISFAZ TEMPO DE CONTRIBUIÇÃO E IDADE")),"NÃO É VOL. TEMPO. CONTRIBUIÇÃO - TRANSIÇÃO EMENDA 20/98") -> NÃO É VOL. TEMPO. CONTRIBUIÇÃO - TRANSIÇÃO EMENDA 20/98 | BN17: INVALIDEZ (EMENDA Nº 70/2012) | BO17: Art. 40, §1º, I, da CR/88 (redação EC nº 41/03) c/c Art. 6º_A da EC nº 41/03 | BP17: REVER FUNDAMENTAÇÃO E/OU MODALIDADE | BQ17: REVER FUNDAMENTAÇÃO E/OU MODALIDADE | BR17: REVER FUNDAMENTAÇÃO E/OU MODALIDADE | BS17: REVER FUNDAMENTAÇÃO E/OU MODALIDADE | BT17: REVER FUNDAMENTAÇÃO E/OU MODALIDADE | BU17: REVER FUNDAMENTAÇÃO E/OU MODALIDADE
J18: DECLARAÇÃO DE ACUMULAÇÃO - FL | O18: =IF($N$10<$Q$11,SUM($F$27:$F$34),IF($N$10<$Q$12,SUM($F$27:$F$34)+$H$51,SUM($F$27:$F$34)+$H$51+$H$60-$O$21)) ->  | P18: =IF($H$19>=$L$92,"IDADE (75 ANOS)","IDADE (70 ANOS)") -> IDADE (70 ANOS) | Q18: =IF($H$19>=$L$92,(75*365+18),(70*365+18)) -> 25568 | T18: =IF($H$19>=$L$92,"IDADE 75 ANOS","IDADE 70 ANOS") -> IDADE 70 ANOS | V18: =IF($H$19>=$L$92,75*365+18,70*365+18) -> 25568 | W18: =TODAY() -> 2017-10-19 | X18: TRANSIÇÃO_ART. 2º_EC41 | AC18: =IF($G$10="x",48-$N$11,IF($D$10="x",53-$N$11,0)) ->  | AD18: =IF(AND($AB$18<0,$AC$18<0),"NADA A CUMPRIR",$F$71) ->  | AG18: =IF($K$2=$O$5,IF($E$2=$B$123,IF($AD$18<>"NADA A CUMPRIR","NÃO SATISFAZ A IDADE E/OU TEMPO DE CONTRIBUIÇÃO","IDADE E TEMPO DE CONTRIBUIÇÃO SATISFEITOS"),IF($AD$18<>"NADA A CUMPRIR","NÃO SATISFAZ A IDADE E/OU TEMPO DE CONTRIBUIÇÃO","IDADE E TEMPO DE CONTRIBUIÇÃO SATISFEITOS")),"NÃO É TRANSIÇÃO_ART. 2º DA EMENDA 41/03") -> NÃO É TRANSIÇÃO_ART. 2º DA EMENDA 41/03
B19: ATO CONCESSÓRIO | D19: FL. | F19: VALIDADE : | H19: ='2 Def Apos'!E23 -> 00:00:00 | J19: AUTORIDADE COMPETENTE | O19: =IF($N$10<$Q$11,SUM($F$27:$F$34),IF($N$10<$Q$12,SUM($F$27:$F$34)+$H$51,SUM($F$27:$F$34)+$H$51+$H$60)) ->  | P19: IDADE VIVIDA EM DIAS | Q19: =$S$22 ->  | R19: =ROUND(Q20/365,0) ->  | T19: IDADE VIVIDA EM DIAS | V19: =$W$22 ->  | W19: =IF($N$9=0,0,$W$18-$N$9+1) ->  | X19: TRANSIÇÃO_ART. 6º_EC41 | AC19: =IF($G$10="x",55-$N$11,IF($D$10="x",60-$N$11,0)) ->  | AD19: =IF(AND($AB$19<0,$AC$19<0),"NADA A CUMPRIR",IF($G$10="X",$I$147-$P$9,IF($D$10="X",$J$147-$P$9,"REVER TEMPO E/OU IDADE"))) ->  | AG19: =IF($K$2=$O$6,IF($E$2=$B$115,IF($AD$19<>"NADA A CUMPRIR","NÃO SATISFAZ A IDADE E/OU TEMPO DE CONTRIBUIÇÃO","IDADE E TEMPO DE CONTRIBUIÇÃO SATISFEITOS"),IF($AD$19<>"NADA A CUMPRIR","NÃO SATISFAZ A IDADE E/OU TEMPO DE CONTRIBUIÇÃO","IDADE E TEMPO DE CONTRIBUIÇÃO SATISFEITOS")),"NÃO É INTEGRAL - TRANSIÇAO ART. 6º DA EC 41/03") ->  | BO19: Art. 40, §1º, II, da CR/88 (redação dada pela EC nº 41/03)
B20: APOSTILA_FIXAÇÃO | D20: FL. | F20: VALOR : | J20: SERVIDOR | O20: ='3 MTS'!H42 -> 0 | P20: =IF(H19>=L92,"DIFERENÇA PARA 75 ANOS","DIFERENÇA PARA 70 ANOS") -> DIFERENÇA PARA 70 ANOS | Q20: =$Q$18-$Q$19 ->  | R20: =IF(H19>=L92,IF($N$11>=75,"O SERVIDOR JÁ ATINGIU A COMPULSÓRIA, DEVENDO SER APOSENTADO EM ",IF($N$11>=60,75-$N$11,"O SERVIDOR NÃO COMPLETOU 75 ANOS")),IF(N11>=70,"O SERVIDOR JÁ ATINGIU A COMPULSÓRIA, DEVENDO SER APOSENTADO EM ",IF($N$11>=60,70-$N$11,"O SERVIDOR NÃO COMPLETOU 70 ANOS."))) ->  | T20: =IF($H$19>=$L$92,"DIFERENÇA PARA 75 ANOS","DIFERENÇA PARA 70 ANOS") -> DIFERENÇA PARA 70 ANOS | V20: =$V$18-$V$19 ->  | W20: =IF($G$10="X",ROUNDDOWN(($W$19-14)/365,0),ROUNDDOWN(($W$19-15)/365,0)) ->  | X20: TRANS._ART. 6º_MAGISTÉRIO | AC20: =IF($G$10="x",50-$N$11,IF($D$10="x",55-$N$11,0)) ->  | AD20: =IF(AND($AB$20<0,$AC$20<0),"NADA A CUMPRIR",IF($G$10="X",$I$147-$P$9,IF($D$10="X",$J$147-$P$9,"REVER TEMPO E/OU IDADE"))) ->  | AG20: =IF($K$2=$O$6,IF($E$2=$B$116,IF($AD$20<>"NADA A CUMPRIR","NÃO SATISFAZ A IDADE E/OU TEMPO DE CONTRIBUIÇÃO","IDADE E TEMPO DE CONTRIBUIÇÃO SATISFEITOS"),IF($AD$20<>"NADA A CUMPRIR","NÃO SATISFAZ A IDADE E/OU TEMPO DE CONTRIBUIÇÃO","IDADE E TEMPO DE CONTRIBUIÇÃO SATISFEITOS")),"NÃO É ESPECIAL - TRANSIÇÃO ART. 6º DA EC 41/03") ->  | BO20: Art. 40, §1º, II, da CR/88 (redação dada pela EC nº 41/03) c/c Lei Complementar nº 152/2015
B21: REQUERIMENTO | D21: FL. | F21: PROTOCOLO NA ORIGEM - FL: | O21: ='3 MTS'!H58 -> 0 | P21: DATA HOJE | Q21: =N10 -> - | T21: DATA HOJE | V21: =TODAY() -> 43027 | W21: =(($W$19/365)-$W$20)*365 ->  | X21: TRANSIÇÃO_EMENDA 47 | AC21: =IF($G$10="x",$I$153-$N$11,IF($D$10="x",$J$153-$N$11,0)) ->  | AD21: =IF(AND($AB$21<0,$AC$21<0),"NADA A CUMPRIR",IF($G$10="X",$I$147-$P$9,IF($D$10="X",$J$147-$P$9,"REVER TEMPO E/OU IDADE"))) ->  | AG21: =IF($K$2=$O$7,IF($AD$21<>"NADA A CUMPRIR","NÃO SATISFAZ A IDADE E/OU TEMPO DE CONTRIBUIÇÃO","IDADE E TEMPO DE CONTRIBUIÇÃO SATISFEITOS"),"NÃO É TRANSIÇÃO ART. 3º DA EC 47/05") -> NÃO É TRANSIÇÃO ART. 3º DA EC 47/05 | AR21: =IF($G$10="X",IF(AQ21>=$Z$7,"SATISFAZ TEMPO DE CONTRIBUIÇÃO E IDADE","NÃO SATISFAZ TEMPO DE CONTRIBUIÇÃO E/OU IDADE"),IF($D$10="X",IF(AQ21>=$Z$6,"SATISFAZ TEMPO DE CONTRIBUIÇÃO E IDADE","NÃO SATISFAZ TEMPO DE CONTRIBUIÇÃO E/OU IDADE"),"REVER")) ->  | AX21: =95*365 -> 34675 | AY21: =85*365 -> 31025
O22: =SUM(O20:O21) -> 0 | P22: DATA FUTURO | Q22: =SUM(Q20:Q21) ->  | R22: =Q22 ->  | S22: =IF($N$9=0,0,($N$10-$N$9+1)) ->  | T22: DATA FUTURO | U22: =V22 ->  | V22: =SUM(V20:V21) ->  | W22: =CRÍTICA_IGP1!$W$19 ->  | X22: CONCLUSÃO_TEMPO X IDADE: | AB22: =IF(AND($K$2=$O$3,$E$2=$B$115),$AR$12,IF(AND($K$2=$O$3,$E$2=$B$116),$AR$13,IF(AND($K$2=$O$3,$E$2=$B$117),$AR$14,IF(AND($K$2=$O$4,E2=$B$115),$AR$15,IF(AND($K$2=$O$4,$E$2=$B$116),$AR$16,IF(AND($K$2=$O$5,$E$2=$B$123),$AR$18,IF(AND($K$2=$O$6,$E$2=$B$115),$AR$19,$AI$22))))))) ->  | AI22: =IF(AND($K$2=$O$6,$E$2=$B$116),$AR$20,IF(AND($K$2=$O$7,$E$2=$B$115),$AR$21,IF(AND($K$2=$O$4,$E$2=$B$122),$AR$17,IF(AND(K2=O2,OR(F71="NADA A CUMPRIR",F71="NÃO CABE")),"SATISFAZ TEMPO DE SERVIÇO E/OU IDADE",IF(OR(E2=B120,E2=B121),"EX OFFICIO",IF(AND(E2=B119,E70="ATENDE LIMITE MÍNIMO DE IDADE"),"SATISFAZ TEMPO DE CONTRIBUIÇÃO E/OU IDADE","NÃO SATISFAZ TEMPO DE CONTRIBUIÇÃO E/OU IDADE")))))) -> 
B23: TEMPO DE SERVIÇO: | P23: ORDEM | Q23: 1 | R23: 2 | S23: 3 | T23: 4 | U23: 5 | V23: 6 | W23: 7 | X23: 8 | Y23: 9 | Z23: 10 | AA23: 11 | AB23: 12 | AC23: 13 | AD23: 14 | AE23: 15 | AF23: 16 | AG23: 17 | AH23: 18 | AI23: 19 | AJ23: 20 | AK23: 21 | AL23: 22 | AM23: 23 | AN23: 24 | AO23: 25 | AP23: 26 | AQ23: 27 | AR23: 28 | AS23: 29 | AT23: 30 | AU23: 31 | AV23: 32 | AW23: 33 | AX23: 34 | AY23: 35
B25: DISCRIMINAÇÃO | C25: PERÍODO | E25: PERÍODO | F25: DIAS | G25: OBSERVAÇÃO | P25: ANUÊNIO - 1
B26: INSS | C26: ='3 MTS'!D9 -> 00:00:00 | D26: a | E26: ='3 MTS'!G9 -> FALSE | F26: ='3 MTS'!H9 -> 0 | G26: C.T.S. INSS - FLS.: | J26: ='3 MTS'!K6 -> 0 | L26: OFÍCIO - FLS.: | N26: ='3 MTS'!O6 -> 0 | P26: ANOS | Q26: 1 | R26: 2 | S26: 3 | T26: 4 | U26: 5 | V26: 6 | W26: 7 | X26: 8 | Y26: 9 | Z26: 10 | AA26: 11 | AB26: 12 | AC26: 13 | AD26: 14 | AE26: 15 | AF26: 16 | AG26: 17 | AH26: 18 | AI26: 19 | AJ26: 20 | AK26: 21 | AL26: 22 | AM26: 23 | AN26: 24 | AO26: 25 | AP26: 26 | AQ26: 27 | AR26: 28 | AS26: 29 | AT26: 30 | AU26: 31 | AV26: 32 | AW26: 33 | AX26: 34 | AY26: 35
B27: OUTROS PODERES - INSS | C27: ='3 MTS'!D10 -> 00:00:00 | D27: a | E27: ='3 MTS'!G10 -> 00:00:00 | F27: ='3 MTS'!H10 -> 0 | G27: C.T.S. / M.T.S. - FLS.: | L27: OFÍCIO - FLS.: | N27: ='3 MTS'!O7 -> 0 | P27: ATS % | Q27: 0.01 | R27: 0.02 | S27: 0.03 | T27: 0.04 | U27: 0.05 | V27: 0.06 | W27: 0.07 | X27: 0.08 | Y27: 0.09 | Z27: 0.1 | AA27: 0.11 | AB27: 0.12 | AC27: 0.13 | AD27: 0.14 | AE27: 0.15 | AF27: 0.16 | AG27: 0.17 | AH27: 0.18 | AI27: 0.19 | AJ27: 0.2 | AK27: 0.21 | AL27: 0.22 | AM27: 0.23 | AN27: 0.24 | AO27: 0.25 | AP27: 0.26 | AQ27: 0.27 | AR27: 0.28 | AS27: 0.29 | AT27: 0.3 | AU27: 0.31 | AV27: 0.32 | AW27: 0.33 | AX27: 0.34 | AY27: 0.35
B28: OUTROS PODERES | C28: ='3 MTS'!D11 -> 00:00:00 | D28: a | E28: ='3 MTS'!G11 -> 00:00:00 | F28: ='3 MTS'!H11 -> 0 | G28: C.T.S. / M.T.S. - FLS.: | L28: OFÍCIO - FLS.: | N28: ='3 MTS'!O8 -> 0
B29: FORÇAS ARMADAS | C29: ='3 MTS'!D12 -> 00:00:00 | D29: a | E29: ='3 MTS'!G12 -> 00:00:00 | F29: ='3 MTS'!H12 -> 0 | G29: C.T.S. / M.T.S. - FLS.: | J29: ='3 MTS'!K9 -> 0 | P29: ANUÊNIO - 2 | Q29: 1 | R29: 2 | S29: 3 | T29: 4 | U29: 5 | V29: 6 | W29: 7 | X29: 8 | Y29: 9 | Z29: 10 | AA29: 11 | AB29: 12 | AC29: 13 | AD29: 14 | AE29: 15 | AF29: 16 | AG29: 17 | AH29: 18 | AI29: 19 | AJ29: 20 | AK29: 21 | AL29: 22 | AM29: 23 | AN29: 24 | AO29: 25 | AP29: 26 | AQ29: 27 | AR29: 28 | AS29: 29 | AT29: 30
B30: ÓRGÃO ORIGEM | C30: ='3 MTS'!D13 -> 00:00:00 | D30: a | E30: ='3 MTS'!G13 -> 00:00:00 | F30: ='3 MTS'!H13 -> 0 | G30: C.T.S. / M.T.S. - FLS.: | J30: ='3 MTS'!K10 -> 0 | P30: ATS % | Q30: 0.015 | R30: 0.03 | S30: 0.045 | T30: 0.06 | U30: 0.075 | V30: 0.09 | W30: 0.105 | X30: 0.12 | Y30: 0.135 | Z30: 0.15 | AA30: 0.165 | AB30: 0.18 | AC30: 0.195 | AD30: 0.21 | AE30: 0.225 | AF30: 0.24 | AG30: 0.255 | AH30: 0.27 | AI30: 0.285 | AJ30: 0.3 | AK30: 0.315 | AL30: 0.33 | AM30: 0.345 | AN30: 0.36 | AO30: 0.375 | AP30: 0.39 | AQ30: 0.405 | AR30: 0.42 | AS30: 0.435 | AT30: 0.45
B31: ÓRGÃO ORIGEM - CLT | C31: ='3 MTS'!D14 -> 00:00:00 | D31: a | E31: ='3 MTS'!G14 -> 00:00:00 | F31: =IF(AND('1 Hist'!H43<>"",'1 Hist'!K43>0),'1 Hist'!K43,IF(AND(E31>0,E31<Q11,C31>0,C31<Q11),(E31-C31+1),0)) -> 0 | J31: FALTAS / LICENÇA SEM VCTOS : | N31: ='3 MTS'!H19+'3 MTS'!H20 -> 0
B32: ÓRGÃO ORIGEM | C32: ='3 MTS'!D15 -> 00:00:00 | D32: a | E32: ='3 MTS'!G15 ->  | F32: ='3 MTS'!H15 ->  | H32: =SUM(F26:F32)+F33+F34 ->  | J32: =ROUNDDOWN(H32/365,0) ->  | K32: anos e | L32: =(H32/365-J32)*365 ->  | M32: dias. | P32: ANUÊNIO - 3 | Q32: 1 | R32: 2 | S32: 3 | T32: 4 | U32: 5 | V32: 6 | W32: 7 | X32: 8 | Y32: 9 | Z32: 10 | AA32: 11 | AB32: 12 | AC32: 13 | AD32: 14 | AE32: 15 | AF32: 16
B33: LICENÇA ESPECIAL | C33: PERÍODOS | E33: =SUM('1 Hist'!AC71:AC75) -> 0 | F33: =SUM('1 Hist'!AD71:AD75) -> 0 | G33: Licença especial não gozada e computada em dobro. | N33: =SUM(F27:F33) ->  | O33: =SUM($F$27:$F$33)+$G$46 ->  | P33: ATS % | Q33: 0.1 | R33: 0.12 | S33: 0.14 | T33: 0.16 | U33: 0.18 | V33: 0.2 | W33: 0.22 | X33: 0.24 | Y33: 0.26 | Z33: 0.28 | AA33: 0.3 | AB33: 0.32 | AC33: 0.34 | AD33: 0.36 | AE33: 0.38 | AF33: 0.4
B34: FÉRIAS EM DOBRO | C34: ANOS | E34: =SUM('1 Hist'!AC76:AC77) -> 0 | F34: =SUM('1 Hist'!AD76:AD77) -> 0 | G34: Férias não gozadas e computadas em dobro. | N34: =ROUNDDOWN(N33/365,0) ->  | O34: =ROUNDDOWN($O$33/365,0) -> 
A35: 1988-10-05 | B35: BÔNUS ESPECIAL | F35: =IF(K2=O4,N35,IF(K2=O5,M35,0)) -> 0 | G35: Acréscimo constitucional para professores (EC 20/98 e EC 41/03). | M35: =IF(E2=B123,IF(D12="X",IF(G10="X",ROUNDDOWN(SUM(F26:F34)*0.2,0),ROUNDDOWN(SUM(F26:F34)*0.17,0)),0),0) -> 0 | N35: =IF(E2="VOLUNTÁRIA ESPECIAL",IF(D12="X",IF(G10="X",ROUNDDOWN(SUM(F26:F34)*0.2,0),ROUNDDOWN(SUM(F26:F34)*0.17,0)),0),0) -> 0 | P35: ANUÊNIO - 4 | Q35: 1 | R35: 2 | S35: 3 | T35: 4 | U35: 5 | V35: 6 | W35: 7 | X35: 8 | Y35: 9 | Z35: 10 | AA35: 11 | AB35: 12 | AC35: 13 | AD35: 14 | AE35: 15 | AF35: 16 | AG35: 17 | AH35: 18 | AI35: 19 | AJ35: 20 | AK35: 21 | AL35: 22 | AM35: 23 | AN35: 24 | AO35: 25 | AP35: 26 | AQ35: 27 | AR35: 28 | AS35: 29 | AT35: 30 | AU35: 31 | AV35: 32 | AW35: 33 | AX35: 34 | AY35: 35
A36: 1993-11-25 | B36: Subtotal | G36: Computando os tempos fictos, até a data da publicação da EC 20 | P36: ATS % | Q36: 0 | R36: 0 | S36: 0.02 | T36: 0.04 | U36: 0.06 | V36: 0.08 | W36: 0.1 | X36: 0.12 | Y36: 0.14 | Z36: 0.16 | AA36: 0.18 | AB36: 0.2 | AC36: 0.22 | AD36: 0.24 | AE36: 0.26 | AF36: 0.28 | AG36: 0.3 | AH36: 0.32 | AI36: 0.34 | AJ36: 0.36 | AK36: 0.38 | AL36: 0.4 | AM36: 0.42 | AN36: 0.44 | AO36: 0.46 | AP36: 0.48 | AQ36: 0.5 | AR36: 0.52 | AS36: 0.54 | AT36: 0.56 | AU36: 0.58 | AV36: 0.6 | AW36: 0.62 | AX36: 0.64 | AY36: 0.66
A37: 1998-12-15 | B37: ANTERIOR | C37: =IF(C38<36145,C38,0) -> 00:00:00 | D37: a | E37: =IF(E38<>0,IF(E38<36145,E38,"REVER"),0) ->  | F37: =IF(E37<=A37,IF(F38<>0,SUM(F26:F35),0),0) ->  | G37: de | H37: =E38 ->  | I37: , o servidor totalizava | K37: =ROUNDDOWN(F37/365,0) ->  | L37: anos e | M37: =(F37/365-K37)*365 ->  | N37: dias.
B38: EMENDA 20/98 | C38: =IF(C26>0,C26,IF(C27>0,C27,IF(C28>0,C28,IF(C29>0,C29,IF(C30>0,C30,IF(C31>0,C31,IF(C32>0,C32,0))))))) -> 00:00:00 | E38: =MAX(E26:E32) ->  | F38: =MAX(F26:F32) ->  | G38: não podendo se aposentar pela legislação então vigente. | P38: TRIÊNIOS | Q38: 1 - RJ
B39: EC 20/98 | C39: =IF(C45>=36145,C45,"REVER") -> REVER | E39: =IF(E46<=38036,E46,"REVER") ->  | P39: TRI - RJ | Q39: 3 | R39: 6 | S39: 9 | T39: 12 | U39: 15 | V39: 18 | W39: 21 | X39: 24 | Y39: 27 | Z39: 30 | AA39: 33 | AB39: 36
B40: COMPLEMENTAÇÃO NECESSÁRIA | P40: ATS % | Q40: 0.1 | R40: 0.15 | S40: 0.2 | T40: 0.25 | U40: 0.3 | V40: 0.35 | W40: 0.4 | X40: 0.45 | Y40: 0.5 | Z40: 0.55 | AA40: 0.6 | AB40: 0.65
B41: DADOS | C41: =IF(E41>0,IF(E2=B115,E41,IF(E2=B116,E41,IF(E2=B122,E41,))),0) ->  | D41: =IF(E41>0,IF(K2=O5,IF(E2=B123,E41,0)),0) ->  | E41: =IF($E$2=B122,IF($G$10="X",(25*365)-$F$37,(30*365)-$F$37),IF($G$10="X",(30*365)-$F$37,(35*365)-$F$37)) ->  | G41: TEMPO CONVERTIDO
A42: =IF($K$2=$O$2,0,IF($K$2=$O$3,IF($E$46<$Q$12,IF($D$14="x",$A$44,IF($G$14="x",$A$44,0)),0),$A$44)) ->  | B42: FALTAVAM : | E42: =IF(AND($K$2=$O$4,$N$8<$Q$11),$C$41,IF(AND($K$2=$O$5,$N$8<$Q$11),$D$41,IF(AND($K$2=$O$5,OR($N$8<$Q$11,'1 Hist'!$X$59<>0,'1 Hist'!$Z$59<>0)),$D$41,IF(AND($K$2=$O$5,$N$8>=$Q$11,OR('1 Hist'!$X$96<>0,'1 Hist'!$Z$96<>0)),$D$41,0)))) -> 0 | F42: DIAS | H42: =IF(E42>0,IF(K2=O4,"HÁ PEDÁGIO A CUMPRIR",IF(K2=O5,IF(E2=B123,"HÁ PEDÁGIO A CUMPRIR",E70))),"NÃO HÁ PEDÁGIO A CUMPRIR") -> NÃO HÁ PEDÁGIO A CUMPRIR | K42: =IF(E41>0,ROUNDDOWN(E41/365,0),0) ->  | L42: anos e | M42: =(E41/365-K42)*365 ->  | N42: dias. | P42: TRIÊNIOS - 2 | Q42: 3 | R42: 6 | S42: 9 | T42: 12 | U42: 15 | V42: 18 | W42: 21 | X42: 24 | Y42: 27 | Z42: 30 | AA42: 33 | AB42: 36 | AC42: 39 | AD42: 42 | AE42: 45 | AF42: 48 | AG42: 51
A43: =IF($K$2=$O$2,0,IF($K$2=$O$4,IF($E$46<$Q$13,$A$44,0),$A$44)) ->  | B43: PEDÁGIO : | E43: =IF(E42>0,IF(E2=B122,ROUNDUP(E42*0.4,0),ROUNDUP(E42*0.2,0)),0) -> 0 | H43: =ROUNDDOWN(E43/365,0) -> 0 | I43: anos | J43: =ROUNDDOWN(O43/30,0) -> 0 | K43: meses e | M43: =O43-(J43*30) -> 0 | N43: dias. | O43: =(E43/365-H43)*365 -> 0 | P43: ATS % | Q43: 0.03 | R43: 0.06 | S43: 0.09 | T43: 0.12 | U43: 0.15 | V43: 0.18 | W43: 0.21 | X43: 0.24 | Y43: 0.27 | Z43: 0.3 | AA43: 0.33 | AB43: 0.36 | AC43: 0.39 | AD43: 0.42 | AE43: 0.45 | AF43: 0.48 | AG43: 0.51
A44: =IF(AND(C45>=Q11,E46<Q12),E46-C45+1,IF(F47<>0,F47,0)) ->  | B44: T. COMPLEMENTAR | E44: =IF(E42>0,E42+E43,0) -> 0 | H44: =ROUNDDOWN(E44/365,0) -> 0 | I44: anos | J44: =ROUNDDOWN(O44/30,0) -> 0 | K44: meses e | M44: =O44-(J44*30) -> 0 | N44: dias. | O44: =(E44/365-H44)*365 -> 0
A45: =IF($C$45="REVER",0,IF($E$46="REVER",0,$F$46)) ->  | B45: TEMPO APÓS | C45: =IF(C51<>0,IF(AND(C51>=36145,C51<38037),C51,"REVER"),0) -> 00:00:00 | D45: a | E45: =IF('3 MTS'!$G$46<CRÍTICA_IGP1!$E$46,'3 MTS'!$G$46,$E$46) ->  | F45: =IF(E45<=E46,F46,G46) ->  | G45: Período computado após a EC 20/98. | K45: =ROUNDDOWN($F$45/365,0) ->  | L45: anos e | M45: =($F$45/365-K45)*365 ->  | N45: dias. | P45: TRIÊNIOS - 3 | Q45: 3 | R45: 6 | S45: 9 | T45: 12 | U45: 15 | V45: 18 | W45: 21 | X45: 24 | Y45: 27 | Z45: 30 | AA45: 33 | AB45: 36
E46: =IF(AND($E$51<>0,'2 Def Apos'!$E$23>=36145),IF(AND($E$51>=36145,$E$51<38037),IF(AND($K$2=$O$3,$G$14="X"),$I$46,IF($K$2=$O$4,$H$46,$E$51)),"REVER"),"REVER") ->  | F46: =IF(AND(C45<>"rever",E46<>"rever"),SUM(F47:F50),0) ->  | G46: =IF(OR(E45=0,K2=O2),0,IF(K2=O3,A42,IF(K2=O4,A43,A44))) ->  | H46: =IF(AND($E$51>=36145,$E$51<=37985),$E$51,"REVER") ->  | I46: =IF(AND($E$51>=36145,$E$51<38037),$E$51,"REVER") ->  | P46: ATS % | Q46: 0.08 | R46: 0.16 | S46: 0.26 | T46: 0.36 | U46: 0.46 | V46: 0.56 | W46: 0.66 | X46: 0.76 | Y46: 0.86 | Z46: 0.96 | AA46: 1.06 | AB46: 1.16
B47: INSS | C47: ='3 MTS'!D37 -> 00:00:00 | D47: a | E47: ='3 MTS'!G37 -> 00:00:00 | F47: ='3 MTS'!H37 -> 0 | G47: C.T.S. INSS - FLS.: | J47: ='3 MTS'!K27 -> 0 | L47: OFÍCIO - FLS.: | N47: ='3 MTS'!O27 -> 0
B48: OUTROS PODERES | C48: ='3 MTS'!D38 -> 00:00:00 | D48: a | E48: ='3 MTS'!G38 -> 00:00:00 | F48: ='3 MTS'!H38 -> 0 | G48: C.T.S. / M.T.S. - FLS.: | J48: ='3 MTS'!K28 -> 0 | P48: TRIÊNIOS - 4 | Q48: 3 | R48: 6 | S48: 9 | T48: 12 | U48: 15 | V48: 18 | W48: 21 | X48: 24 | Y48: 27 | Z48: 30 | AA48: 33 | AB48: 36 | AC48: 39 | AD48: 42 | AE48: 45 | AF48: 48 | AG48: 51 | AH48: 54 | AI48: 57 | AJ48: 60
B49: ÓRGÃO ORIGEM | C49: ='3 MTS'!D39 -> 00:00:00 | D49: a | E49: ='3 MTS'!G39 -> 00:00:00 | F49: ='3 MTS'!H39 -> 0 | G49: C.T.S. / M.T.S. - FLS.: | J49: ='3 MTS'!K29 -> anos | P49: ATS % | Q49: 0.05 | R49: 0.1 | S49: 0.15 | T49: 0.2 | U49: 0.25 | V49: 0.3 | W49: 0.35 | X49: 0.4 | Y49: 0.45 | Z49: 0.5 | AA49: 0.55 | AB49: 0.6 | AC49: 0.65 | AD49: 0.7 | AE49: 0.75 | AF49: 0.8 | AG49: 0.85 | AH49: 0.9 | AI49: 0.95 | AJ49: 1
B50: ÓRGÃO ORIGEM | C50: ='3 MTS'!D40 -> 00:00:00 | D50: a | E50: ='3 MTS'!I45 ->  | F50: ='3 MTS'!H40 ->  | J50: FALTAS / LICENÇA SEM VCTOS : | N50: ='3 MTS'!H42+'3 MTS'!H41 -> 0
C51: =IF($C$47>0,$C$47,IF($C$48>0,$C$48,IF($C$49>0,$C$49,IF($C$50>0,$C$50,0)))) -> 00:00:00 | E51: =MAX(E47:E50) ->  | H51: =SUM($F$48:$F$50) ->  | I51: TS ÓRGÃO | J51: =SUM(F49:F50) ->  | P51: TRIÊNIOS - 5 | Q51: 3 | R51: 6 | S51: 9 | T51: 12 | U51: 15 | V51: 18 | W51: 21 | X51: 24 | Y51: 27 | Z51: 30 | AA51: 33 | AB51: 36
A52: =IF(OR(K2=O2,K2=O4),0,IF(K2=O3,IF(D14="X",0,IF(G14="X",A59,0)),A59)) ->  | B52: SUBTOTAL APÓS EC 20/98 | D52: =IF(C39="REVER",C39,IF(E39="REVER",E39,"PERÍODO OK")) -> REVER | F52: =F37+F45 ->  | H52: =ROUNDDOWN(F52/365,0) ->  | I52: anos e | J52: =(F52/365-H52)*365 ->  | K52: dias. | P52: ATS % | Q52: 0.1 | R52: 0.15 | S52: 0.2 | T52: 0.25 | U52: 0.28 | V52: 0.31 | W52: 0.34 | X52: 0.37 | Y52: 0.4
B54: INSS | C54: ='3 MTS'!D53 -> 00:00:00 | D54: a | E54: ='3 MTS'!G53 -> 00:00:00 | F54: ='3 MTS'!H53 -> 0 | G54: C.T.S. INSS - FLS.: | J54: ='3 MTS'!K34 -> 0 | L54: OFÍCIO - FLS.: | N54: ='3 MTS'!O34 -> 0 | P54: TRIÊNIOS - 6 | Q54: 3 | R54: 4 | S54: 5 | T54: 6 | U54: 7 | V54: 8 | W54: 9 | X54: 10 | Y54: 11 | Z54: 12 | AA54: 13 | AB54: 14 | AC54: 15 | AD54: 16 | AE54: 17 | AF54: 18 | AG54: 19 | AH54: 20 | AI54: 21 | AJ54: 22 | AK54: 23 | AL54: 24 | AM54: 25 | AN54: 26 | AO54: 27 | AP54: 28 | AQ54: 29 | AR54: 30
B55: OUTROS PODERES | C55: ='3 MTS'!D54 -> 00:00:00 | D55: a | E55: ='3 MTS'!G54 -> 00:00:00 | F55: ='3 MTS'!H54 -> 0 | G55: C.T.S. / M.T.S. - FLS.: | J55: ='3 MTS'!K35 -> 0 | P55: ATS % | Q55: 0.03 | R55: 0.04 | S55: 0.05 | T55: 0.06 | U55: 0.07 | V55: 0.08 | W55: 0.09 | X55: 0.1 | Y55: 0.11 | Z55: 0.12 | AA55: 0.13 | AB55: 0.14 | AC55: 0.15 | AD55: 0.16 | AE55: 0.17 | AF55: 0.18 | AG55: 0.19 | AH55: 0.2 | AI55: 0.21 | AJ55: 0.22 | AK55: 0.23 | AL55: 0.24 | AM55: 0.25 | AN55: 0.26 | AO55: 0.27 | AP55: 0.28 | AQ55: 0.29 | AR55: 0.3
B56: ÓRGÃO ORIGEM | C56: ='3 MTS'!D55 -> 00:00:00 | D56: a | E56: ='3 MTS'!G55 -> 00:00:00 | F56: ='3 MTS'!H55 -> 0 | G56: C.T.S. / M.T.S. - FLS.: | J56: ='3 MTS'!K36 -> 0
B57: ÓRGÃO ORIGEM | C57: ='3 MTS'!D56 ->  | D57: a | E57: ='3 MTS'!G56 ->  | F57: ='3 MTS'!H56 ->  | J57: FALTAS / LICENÇA SEM VCTOS : | N57: ='3 MTS'!H57+'3 MTS'!H58 -> 0 | P57: TRIÊNIOS - 7 | Q57: 3 | R57: 6 | S57: 9 | T57: 12 | U57: 15 | V57: 18 | W57: 21 | X57: 24 | Y57: 27 | Z57: 30 | AA57: 33
C58: =IF(C54>0,C54,IF(C55>0,C55,IF(C56>0,C56,IF(C57>0,C57,"REVER")))) ->  | E58: =IF(E57>0,E57,IF(E56>0,E56,IF(E55>0,E55,IF(E54>0,E54,"REVER")))) ->  | P58: ATS % | Q58: 0.1 | R58: 0.14 | S58: 0.18 | T58: 0.22 | U58: 0.25 | V58: 0.3 | W58: 0.32 | X58: 0.35 | Y58: 0.4 | Z58: 0.45 | AA58: 0.5
A59: =IF(OR(C59="REVER",E59="REVER"),IF(F54<>0,F54,SUM(F54:F57)-N57),SUM(F54:F57)) ->  | B59: TEMPO APÓS EC 41 | C59: =IF($C$58>=38037,$C$58,"REVER") ->  | D59: a | E59: =IF($E$58>=38037,$E$58,"REVER") ->  | F59: =IF(C59>=Q12,A52,0) ->  | G59: Periodo computado após a EC 20/98. | K59: =ROUNDDOWN(F59/365,0) ->  | L59: anos e | M59: =(F59/365-K59)*365 ->  | N59: dias. | O59: =SUM(F27:F33)+H51+H60 -> 
F60: TS PÚBLICO APÓS 19/02/04 (EC 41) | H60: =SUM($F$55:$F$57) ->  | I60: TS ÓRGÃO | J60: =SUM(F56:F57) ->  | O60: =ROUNDDOWN(O59/365,0) ->  | P60: TRIÊNIOS - 8 | Q60: 3 | R60: 6 | S60: 9 | T60: 12 | U60: 15 | V60: 18 | W60: 21 | X60: 24 | Y60: 27 | Z60: 30 | AA60: 33 | AB60: 34 | AC60: 35
B61: TOTAL GERAL | D61: =IF(C59="REVER",C59,IF(E59="REVER",E59,"OK")) ->  | F61: =F52+F59 ->  | H61: =ROUNDDOWN(F61/365,0) ->  | I61: anos e | J61: =(F61/365-H61)*365 ->  | K61: dias. | O61: =IF($N$10<$Q$11,'3 MTS'!$H$19,IF($N$10<$Q$13,'3 MTS'!H19+'3 MTS'!H41,IF($N$10<$Q$12,'3 MTS'!H19+'3 MTS'!H41,'3 MTS'!$H$19+'3 MTS'!$H$41+'3 MTS'!$H$57))) -> 0 | P61: ATS % | Q61: 0.03 | R61: 0.06 | S61: 0.09 | T61: 0.12 | U61: 0.15 | V61: 0.18 | W61: 0.21 | X61: 0.24 | Y61: 0.27 | Z61: 0.3 | AA61: 0.33 | AB61: 0.34 | AC61: 0.35
B63: TEMPO FALTANTE A CUMPRIR : | J63: TEMPO CONVERTIDO | O63: =IF($N$10<$Q$11,'3 MTS'!$H$20,IF($N$10<$Q$13,'3 MTS'!$H$20+'3 MTS'!$H$42,IF($N$10<$Q$12,'3 MTS'!$H$20+'3 MTS'!$H$42,'3 MTS'!$H$20+'3 MTS'!$H$42+'3 MTS'!$H$58))) -> 0 | P63: TRI - 9 | Q63: 3 | R63: 6 | S63: 9 | T63: 12 | U63: 15 | V63: 18 | W63: 21 | X63: 24 | Y63: 27 | Z63: 30 | AA63: 33
C64: =IF($E$2=$B$117,"NÃO CABE",IF($E$2=$B$119,"NÃO CABE",IF($E$2=$B$120,"NÃO CABE",IF($E$2=$B$121,"NÃO CABE",IF($C$65>0,$C$65,"NADA A CUMPRIR"))))) ->  | H64: =IF($C$64="NÃO CABE",0,IF($C$65>0,ROUNDDOWN($C$65/365,0),0)) ->  | I64: anos e | J64: =IF($C$64="NÃO CABE",0,IF($C$65>0,($C$65/365-H64)*365,0)) ->  | K64: dias. | O64: EC47/41/20 | P64: ATS % | Q64: 0.1 | R64: 0.16 | S64: 0.22 | T64: 0.28 | U64: 0.34 | V64: 0.4 | W64: 0.46 | X64: 0.52 | Y64: 0.58 | Z64: 0.64 | AA64: 0.7
C65: =VLOOKUP(K2,P86:AF93,2,FALSE) ->  | E65: =VLOOKUP(K2,P86:AF93,17,FALSE) ->  | H65: =IF($C$64="NÃO CABE",0,IF($C$65>0,ROUNDDOWN($C$65/365,0),0)) ->  | I65: anos | J65: =ROUNDDOWN(N66/30,0) ->  | K65: meses e | M65: =N66-(J65*30) ->  | N65: dias. | O65: EC41/20
N66: =IF($C$64="NÃO CABE",0,IF($C$65>0,($C$65/365-$H$65)*365,0)) ->  | O66: EC41 | P66: TRI - 10 | Q66: 3 | R66: 6 | S66: 9 | T66: 12 | U66: 15 | V66: 18 | W66: 21 | X66: 24
B67: SINTESE: | C67: ADICIONAL POR TEMPO DE SERVIÇO | I67: =IF($O$10=0,0,IF($G$15=$O$68,$O$67,"REVER TIPO DE ADICIONAL")) -> 0 | O67: =IF($O$10<$D$156,VLOOKUP($E$6,$B$157:$Q$254,3,FALSE),IF($O$10<$E$156,VLOOKUP($E$6,$B$157:$Q$254,4,FALSE),VLOOKUP($E$6,$B$157:$Q$254,5,FALSE))) -> 0 | P67: ATS % | Q67: 0.05 | R67: 0.1 | S67: 0.15 | T67: 0.25 | U67: 0.35 | V67: 0.45 | W67: 0.55 | X67: 0.65
B68: ADMISSÃO : | C68: =IF(N8=0,"FALTA DATA",IF(N8>=Q14,"APÓS CF/88: CONCURSO?","ANTERIOR CF/88")) -> APÓS CF/88: CONCURSO? | K68: TP CARGO: | N68: =IF($K$2=$O$3,$Q$4,IF($K$2=$O$4,$R$4,IF($K$2=$O$5,$T$4,IF($K$2=$O$6,$S$4,IF($K$2=$O$7,$U$4,"NÃO CABE"))))) -> REVER FUNDAMENTAÇÃO | O68: =VLOOKUP($E$6,$B$157:$C$254,2,FALSE) -> TRIÊNIO
C69: =IF(OR($J$8=0,$J$9=0),0,IF(OR($J$8<$N$8,$J$9<$N$8),"REVER INÍCIO DE CARGO E/OU CARREIRA","INÍCIO DE CARGO E/OU CARREIRA - OK")) -> 0 | K69: TP CARREIRA: | N69: =IF($K$2=$O$6,S6,IF($K$2=$O$7,$U$6,"NÃO CABE")) -> REVER FUNDAMEN. | P69: TRI - 11 | Q69: 3 | R69: 6 | S69: 9 | T69: 12 | U69: 15 | V69: 18 | W69: 21 | X69: 24 | Y69: 27 | Z69: 30 | AA69: 33 | AB69: 36 | AC69: 39
B70: IDADE : | E70: =IF($E$2=$L$136,$O$136,IF($E$2=$L$137,$O$137,IF($E$2=$L$138,$O$138,IF($E$2=$L$139,$O$139,IF($E$2=$L$140,$O$140,$O$141))))) ->  | K70: TSP PÚBLICO: | N70: =IF($K$2=$O$3,$Q$7,IF($K$2=$O$6,$S$7,IF($K$2=$O$7,$U$7,$O$76))) -> REVER FUNDAMENT. | P70: ATS % | Q70: 0.065 | R70: 0.13 | S70: 0.195 | T70: 0.26 | U70: 0.325 | V70: 0.39 | W70: 0.455 | X70: 0.52 | Y70: 0.585 | Z70: 0.65 | AA70: 0.715 | AB70: 0.78 | AC70: 0.845
B71: TEMPO FALTANTE A CUMPRIR: | F71: =C64 ->  | J71: DIAS
B72: ENQUADRAMENTO: | E72: =IF($BC$115<=$BC$113,VLOOKUP($C$8,$BB$116:$BH$155,2,FALSE),IF($BC$115<=$BD$113,VLOOKUP($C$8,$BB$116:$BH$155,3,FALSE),IF($BC$115<=$BE$113,VLOOKUP($C$8,$BB$116:$BH$155,4,FALSE),IF($BC$115<=$BF$113,VLOOKUP($C$8,$BB$116:$BH$155,5,FALSE),IF($BC$115<=$BG$113,VLOOKUP($C$8,$BB$116:$BH$155,6,FALSE),VLOOKUP($C$8,$BB$116:$BH$155,7,FALSE)))))) ->  | J72: =IF(#REF!<=$BC$113,VLOOKUP($C$8,$BB$116:$BH$155,2,FALSE),IF(#REF!<=$BD$113,VLOOKUP($C$8,$BB$116:$BH$155,3,FALSE),IF(#REF!<=$BE$113,VLOOKUP($C$8,$BB$116:$BH$155,4,FALSE),IF(#REF!<=$BF$113,VLOOKUP($C$8,$BB$116:$BH$155,5,FALSE),IF(#REF!<=$BG$113,VLOOKUP($C$8,$BB$116:$BH$155,6,FALSE),VLOOKUP($C$8,$BB$116:$BH$155,7,FALSE)))))) ->  | O72: OPÇÃO DO SERVIDOR | P72: QUINQUÊNIO - 1
B73: FUNDAMENTAÇÃO: | D73: =IF($K$2=$O$2,VLOOKUP($E$2,$BN$7:$BU$16,8,FALSE),IF($K$2=$O$6,VLOOKUP($E$2,$BN$7:$BU$16,3,FALSE),IF($K$2=$O$4,VLOOKUP($E$2,$BN$7:$BU$16,5,FALSE),IF($K$2=$O$7,VLOOKUP($E$2,$BN$7:$BU$16,6,FALSE),IF($K$2=$O$3,IF($D$14="X",VLOOKUP($E$2,$BN$7:$BU$16,4,FALSE),IF($G$14="X",VLOOKUP($E$2,$BN$7:$BU$16,2,FALSE),"REVER FUNDAMENTAÇÃO E/OU MODALIDADE")),IF(AND($K$2=$O$5,$D$12="X"),VLOOKUP($O$8,$BN$7:$BU$16,7,FALSE),IF($K$2=$O$5,VLOOKUP($E$2,$BN$7:$BU$16,7,FALSE),"REVER FUNDAMENTAÇÃO E/OU MODALIDADE"))))))) -> Art. 6º, EC Nº 41/03 | O73: =IF($O$75=$O$2,VLOOKUP($O$74,$BN$7:$BU$16,8,FALSE),IF($O$75=$O$6,VLOOKUP($O$74,$BN$7:$BU$16,3,FALSE),IF($O$75=$O$4,VLOOKUP($O$74,$BN$7:$BU$16,5,FALSE),IF($O$75=$O$7,VLOOKUP($O$74,$BN$7:$BU$16,6,FALSE),IF($O$75=$O$3,IF($D$14="X",VLOOKUP($O$74,$BN$7:$BU$16,4,FALSE),IF($G$14="X",VLOOKUP($O$74,$BN$7:$BU$16,2,FALSE),"REVER FUNDAMENTAÇÃO E/OU MODALIDADE")),IF(AND($O$75=$O$5,$D$12="X"),VLOOKUP($O$8,$BN$7:$BU$16,7,FALSE),IF($O$75=$O$5,VLOOKUP($O$74,$BN$7:$BU$16,7,FALSE),"REVER FUNDAMENTAÇÃO E/OU MODALIDADE"))))))) ->  | P73: ANOS | Q73: 5 | R73: 10 | S73: 15 | T73: 20 | U73: 25 | V73: 30 | W73: 35 | X73: 40 | Y73: 45 | Z73: 50 | AA73: 55 | AB73: 60
B74: IDADE X TEMPO CONTRIBUIÇÃO (TEMPO FALTANTE) : | I74: =AB22 ->  | O74: ='4 Res Conc'!B81 ->  | P74: ATS % | Q74: 0.05 | R74: 0.1 | S74: 0.15 | T74: 0.2 | U74: 0.25 | V74: 0.3 | W74: 0.35 | X74: 0.4 | Y74: 0.45 | Z74: 0.5 | AA74: 0.55 | AB74: 0.6
B75: POSSIBILIDADES | L75: PROPORÇÃO : | N75: =IF($K$2=$O$2,$J$127,IF($K$2=$O$3,$J$128,IF($K$2=$O$4,$J$129,IF($K$2=$O$5,$J$130,"NÃO CABE")))) -> NÃO CABE | O75: ='4 Res Conc'!B83 ->  | P75: ATS ATÉ EC 20/98 COM LE: | S75: =IF(ISERROR(HLOOKUP($J$202,$Q$73:$W$74,2)),0,HLOOKUP($J$202,$Q$73:$W$74,2)) -> 0 | T75: ATS APÓS EC20 : | W75: =IF(ISERROR(HLOOKUP($K$202,$Q$73:$W$74,2)),0,HLOOKUP($K$202,$Q$73:$W$74,2)) -> 0 | X75: ATS APÓS EC41/03 : | AB75: =IF(ISERROR(HLOOKUP($L$202,$Q$73:$W$74,2)),0,HLOOKUP($L$202,$Q$73:$W$74,2)) -> 0
B76: MODALIDADE | C76: FUNDAMENTAÇÃO | F76: TEMPO | H76: ATS | I76: IDADE | J76: PARIDADE | K76: PARIDADE PENSÃO | L76: ANTES MP 167/04 | N76: =IF(N75="NÃO CABE",0,N75) -> 0 | O76: =IF($K$2=$O$2,IF($O$10<$Q$15,IF($F$71<180,"NÃO CABE",$O$77),$O$77),$O$77) -> 
A77: =IF(C77=0,"",A96) ->  | B77: =IF(A96="SIM",B96,0) ->  | C77: =IF(A96="SIM",C96,0) ->  | F77: =IF(C77=C96,G96,IF(C77=C97,G97,IF(C77=C98,G98,IF(C77=C99,G99,IF(C77=C100,G100,0))))) ->  | H77: =IF(A77="NÃO",0,VLOOKUP(C77,C96:$M$111,4,FALSE)) ->  | I77: =IF(A77="NÃO","NÃO",VLOOKUP(C77,C96:$M$111,3,FALSE)) ->  | J77: =IF(A77="NÃO","NÃO",VLOOKUP(C77,C96:$M$111,6,FALSE)) ->  | K77: =IF(A96="SIM","SIM","NÃO") ->  | L77: PROPORÇÃO EM DIAS | N77: =IF($K$2=$O$3,IF($M$129>=$N$129,$N$128,"NÃO CABE"),"NÃO CABE") -> NÃO CABE | O77: =IF($F$71="NADA A CUMPRIR","OK",IF($F$71="NÃO CABE","NÃO CABE",IF(AND(K2=O3,OR(E2=B118,E2=B119,E2=B120,E2=B121)),"NÃO CABE","NÃO CUMPRE"))) -> 
A78: =IF(C78=0,"",A97) ->  | H78: =IF(A78="NÃO",0,VLOOKUP(C78,C97:$M$111,4,FALSE)) ->  | I78: =IF(A78="NÃO","NÃO",VLOOKUP(C78,C97:$M$111,3,FALSE)) ->  | J78: =IF(A78="NÃO","NÃO",VLOOKUP(C78,C97:$M$111,6,FALSE)) ->  | K78: NÃO | L78: APÓS MP 167/04 | N78: =IF($N$77="NÃO CABE",0,$N$77) -> 0 | P78: QUINQUÊNIO - 2 | Q78: 5 | R78: 10 | S78: 15 | T78: 20 | U78: 25 | V78: 30 | W78: 35 | X78: 40 | Y78: 45 | Z78: 50 | AA78: 55 | AB78: 60
B79: 0 | C79: 0 | F79: 0 | H79: =IF(A79="NÃO",0,VLOOKUP(C79,C98:$M$111,4,FALSE)) ->  | I79: =IF(A79="NÃO","NÃO",VLOOKUP(C79,C98:$M$111,3,FALSE)) ->  | J79: =IF(A79="NÃO","NÃO",VLOOKUP(C79,C98:$M$111,6,FALSE)) ->  | K79: NÃO | O79: NOVA FRIBURGO - TODOS | P79: ATS % | Q79: 0.1 | R79: 0.2 | S79: 0.3 | T79: 0.4 | U79: 0.5 | V79: 0.6 | W79: 0.7 | X79: 0.8 | Y79: 0.9 | Z79: 1 | AA79: 1.1 | AB79: 1.2
B80: 0 | C80: 0 | F80: 0 | H80: =IF(A80="NÃO",0,VLOOKUP(C80,C99:$M$111,4,FALSE)) ->  | I80: =IF(A80="NÃO","NÃO",VLOOKUP(C80,C99:$M$111,3,FALSE)) ->  | J80: =IF(A80="NÃO","NÃO",VLOOKUP(C80,C99:$M$111,6,FALSE)) ->  | K80: NÃO | O80: =IF(E6=CRÍTICA_IGP1!B208,IF(E33=0,0,E33*4*90),IF(AND(E6=B208,D12="X",E33<>0),E33*2*180,0)) -> 0
B81: 0 | C81: 0 | F81: 0 | H81: =IF(A81="NÃO",0,VLOOKUP(C81,C100:$M$111,4,FALSE)) ->  | I81: =IF(A81="NÃO","NÃO",VLOOKUP(C81,C100:$M$111,3,FALSE)) ->  | J81: =IF(A81="NÃO","NÃO",VLOOKUP(C81,C100:$M$111,6,FALSE)) ->  | K81: NÃO | P81: QUINQUÊNIO - 2 | Q81: 5 | R81: 10 | S81: 15 | T81: 20 | U81: 25 | V81: 30 | W81: 35
B82: 0 | C82: 0 | F82: 0 | H82: =IF(A82="NÃO",0,VLOOKUP(C82,C101:$M$111,4,FALSE)) ->  | I82: =IF(A82="NÃO","NÃO",VLOOKUP(C82,C101:$M$111,3,FALSE)) ->  | J82: =IF(A82="NÃO","NÃO",VLOOKUP(C82,C101:$M$111,6,FALSE)) ->  | K82: NÃO | P82: ATS % | Q82: 0.1 | R82: 0.15 | S82: 0.2 | T82: 0.25 | U82: 0.3 | V82: 0.35 | W82: 0.4
B83: 0 | C83: 0 | F83: 0 | H83: =IF(A83="NÃO",0,VLOOKUP(C83,C102:$M$111,4,FALSE)) ->  | I83: =IF(A83="NÃO","NÃO",VLOOKUP(C83,C102:$M$111,3,FALSE)) ->  | J83: =IF(A83="NÃO","NÃO",VLOOKUP(C83,C102:$M$111,6,FALSE)) ->  | K83: NÃO
B84: 0 | C84: 0 | F84: 0 | H84: =IF(A84="NÃO",0,VLOOKUP(C84,C103:$M$111,4,FALSE)) ->  | I84: =IF(A84="NÃO","NÃO",VLOOKUP(C84,C103:$M$111,3,FALSE)) ->  | J84: =IF(A84="NÃO","NÃO",VLOOKUP(C84,C103:$M$111,6,FALSE)) ->  | K84: =IF(A103="SIM","SIM","NÃO") -> NÃO | P84: T E M P O F A L T A N T E | V84: A N O S | AA84: D I A S | AF84: TEMPO
B85: 0 | C85: 0 | F85: 0 | H85: =IF(A85="NÃO",0,VLOOKUP(C85,C104:$M$111,4,FALSE)) ->  | I85: =IF(A85="NÃO","NÃO",VLOOKUP(C85,C104:$M$111,3,FALSE)) ->  | J85: =IF(A85="NÃO","NÃO",VLOOKUP(C85,C104:$M$111,6,FALSE)) ->  | K85: =IF(A104="SIM","SIM","NÃO") -> NÃO | P85: MOD/REG | Q85: TTCONT | R85: CARGO | S85: CARREIRA | T85: TSCP | U85: IDADE | V85: TTCONT | W85: CARGO | X85: CARREIRA | Y85: TSCP | Z85: IDADE | AA85: TTCONT | AB85: CARGO | AC85: CARREIRA | AD85: TSCP | AE85: IDADE | AF85: FALTANTE
H86: =IF(A86="NÃO",0,VLOOKUP(C86,C105:$M$111,4,FALSE)) ->  | I86: =IF(A86="NÃO","NÃO",VLOOKUP(C86,C105:$M$111,3,FALSE)) ->  | J86: =IF(A86="NÃO","NÃO",VLOOKUP(C86,C105:$M$111,6,FALSE)) ->  | K86: NÃO | P86: REGRAS ANTES EC20 | Q86: =IF($E$2=$B$122,$R$148,$R$147) ->  | R86: NÃO CABE | S86: NÃO CABE | T86: =IF($D$10="x",IF(OR($E$2=$B$115,$E$2=$B$118),IF($F$61<(35*365),(35*365)-$F$61,0),IF(OR($E$2=$B$116,$E$2=$B$122),IF($F$61<(30*365),(30*365)-$F$61,0),"REVER")),IF($G$10="x",IF(OR($E$2=$B$115,$E$2=$B$118),IF($F$61<(30*365),(30*365)-$F$61,0),IF(OR($E$2=$B$116,$E$2=$B$122),IF($F$61<(25*365),(25*365)-$F$61,0),"NÃO CABE")),"REVER FUNDAMENTAÇÃO E/OU MODALIDADE")) ->  | U86: =IF($E$2=$B$117,IF($D$10="X",IF($O$9>=(65*365+15),0,(65*365+15)-$O$9),IF($G$10="X",IF($O$9>=(60*365+14),0,(60*365+14)-$O$9),"MARQUE O SEXO")),IF(OR($E$2=$B$118,$E$2=$B$119),IF($O$9>=(70*365+18),0,(70*365+18)-$O$9),"REVER FUNDAMENTAÇÃO E/OU MODALIDADE")) -> REVER FUNDAMENTAÇÃO E/OU MODALIDADE | V86: =ROUNDDOWN($Q$86/365,0) ->  | W86: =IF($R$86="NÃO CABE",0,ROUNDDOWN($R$86/365,0)) -> 0 | X86: =IF($S$86="NÃO CABE",0,ROUNDDOWN($S$86/365,0)) -> 0 | Y86: =IF(OR($T$86="NÃO CABE",$T$86="REVER FUNDAMENTAÇÃO E/OU MODALIDADE",$T$86="REVER"),0,ROUNDDOWN($T$86/365,0)) ->  | Z86: =IF(OR($U$86="NÃO CABE",$U$86="MARQUE O SEXO",$U$86="REVER FUNDAMENTAÇÃO E/OU MODALIDADE"),0,ROUNDDOWN($U$86/365,0)) -> 0 | AA86: =(($Q$86/365)-$V$86)*365 ->  | AB86: =IF($R$86="NÃO CABE",0,(($R$86/365)-$W$86)*365) -> 0 | AC86: =IF($S$86="NÃO CABE",0,(($S$86/365)-$X$86)*365) -> 0 | AD86: =IF(OR($T$86="NÃO CABE",$T$86="REVER"),0,(($T$86/365)-$Y$86)*365) ->  | AE86: =IF(OR($U$86="NÃO CABE",$U$86="MARQUE O SEXO",$U$86="REVER FUNDAMENTAÇÃO E/OU MODALIDADE"),0,(($U$86/365)-$Z$86)*365) -> 0 | AF86: =MAX($X$97:$X$101) -> 
H87: =IF(A87="NÃO",0,VLOOKUP(C87,C106:$M$111,4,FALSE)) ->  | I87: =IF(A87="NÃO","NÃO",VLOOKUP(C87,C106:$M$111,3,FALSE)) ->  | J87: =IF(A87="NÃO","NÃO",VLOOKUP(C87,C106:$M$111,6,FALSE)) ->  | K87: NÃO | P87: REGRA PERMANENTE | Q87: =$Q$146 ->  | R87: =IF($O$13>=(5*365),0,(5*365)-$O$13) -> 1825 | S87: NÃO CABE | T87: =IF($O$15>=(10*365),0,(10*365)-$O$15) ->  | U87: =IF($E$2=$B$115,IF($D$10="X",IF($O$9>=(60*365+15),0,(60*365+15)-$O$9),IF($G$10="X",IF($O$9>=(55*365+14),0,(55*365+14)-$O$9),"MARQUE O SEXO")),IF($E$2=$B$116,IF($D$10="X",IF($O$9>=(55*365+14),0,(55*365+14)-O9),IF($G$10="X",IF($O$9>=(50*365+14),0,(50*365+14)-$O$9),"MARQUE O SEXO")),IF($E$2=$B$117,IF($D$10="X",IF($O$9>=(65*365+16),0,(65*365+16)-$O$9),IF($G$10="X",IF($O$9>=(60*365+15),0,(60*365+15)-$O$9),"MARQUE O SEXO")),IF(OR($E$2=$B$118,$E$2=$B$119),IF($O$9>=(70*365+19),0,(70*365+19)-$O$9),"REVER FUNDAMENTAÇÃO E/OU MODALIDADE")))) ->  | V87: =ROUNDDOWN($Q$87/365,0) ->  | W87: =IF($R$87="NÃO CABE",0,ROUNDDOWN($R$87/365,0)) -> 5 | X87: =IF($S$87="NÃO CABE",0,ROUNDDOWN($S$87/365,0)) -> 0 | Y87: =IF($T$87="NÃO CABE",0,ROUNDDOWN($T$87/365,0)) ->  | Z87: =IF(OR($U$87="NÃO CABE",$U$87="MARQUE O SEXO",$U$87="REVER FUNDAMENTAÇÃO E/OU MODALIDADE"),0,ROUNDDOWN($U$87/365,0)) ->  | AA87: =(($Q$87/365)-$V$87)*365 ->  | AB87: =IF($R$87="NÃO CABE",0,(($R$87/365)-$W$87)*365) -> 0 | AC87: =IF($S$87="NÃO CABE",0,(($S$87/365)-$X$87)*365) -> 0 | AD87: =IF($T$87="NÃO CABE",0,(($T$87/365)-$Y$87)*365) ->  | AE87: =IF(OR($U$87="NÃO CABE",$U$87="MARQUE O SEXO",$U$87="REVER FUNDAMENTAÇÃO E/OU MODALIDADE"),0,(($U$87/365)-$Z$87)*365) ->  | AF87: =MAX($X$97:$X$101) -> 
B88: 0 | C88: 0 | F88: 0 | H88: =IF(A88="NÃO",0,VLOOKUP(C88,C107:$M$111,4,FALSE)) ->  | I88: =IF(A88="NÃO","NÃO",VLOOKUP(C88,C107:$M$111,3,FALSE)) ->  | J88: =IF(A88="NÃO","NÃO",VLOOKUP(C88,C107:$M$111,6,FALSE)) ->  | K88: =IF(A107="SIM","SIM","NÃO") -> NÃO | P88: TRANSIÇÃO EMENDA 20 | Q88: =$Q$145 -> FALSE | R88: =IF($O$13>=(5*365),0,(5*365)-$O$13) -> 1825 | S88: NÃO CABE | T88: =$F$71 ->  | U88: =IF(OR($E$2=$B$115,$E$2=$B$116,$E$2=$B$122),IF($D$10="X",IF($O$9>=(53*365+14),0,(53*365+14)-$O$9),IF($G$10="X",IF($O$9>=(48*365+12),0,(48*365+12)-$O$9),"MARQUE O SEXO")),"REVER FUNDAMENTAÇÃO E/OU MODALIDADE") ->  | V88: =ROUNDDOWN($Q$88/365,0) -> 0 | W88: =IF($R$88="NÃO CABE",0,ROUNDDOWN($R$88/365,0)) -> 5 | X88: =IF($S$88="NÃO CABE",0,ROUNDDOWN($S$88/365,0)) -> 0 | Y88: =IF(OR($T$88="MARQUE O SEXO",$T$88="REVER FUNDAMENTAÇÃO E/OU MODALIDADE",$T$88="NÃO CABE",$T$88="NADA A CUMPRIR"),0,ROUNDDOWN($T$88/365,0)) ->  | Z88: =IF(OR($U$88="NÃO CABE",$U$88="MARQUE O SEXO",$U$88="REVER FUNDAMENTAÇÃO E/OU MODALIDADE"),0,ROUNDDOWN($U$88/365,0)) ->  | AA88: =(($Q$88/365)-$V$88)*365 -> 0 | AB88: =IF($R$88="NÃO CABE",0,(($R$88/365)-$W$88)*365) -> 0 | AC88: =IF($S$88="NÃO CABE",0,(($S$88/365)-$X$88)*365) -> 0 | AD88: =IF(OR($T$88="MARQUE O SEXO",$T$88="REVER FUNDAMENTAÇÃO E/OU MODALIDADE",$T$88="NÃO CABE",$T$88="NADA A CUMPRIR"),0,(($T$88/365)-$Y$88)*365) ->  | AE88: =IF(OR($U$88="NÃO CABE",$U$88="MARQUE O SEXO",$U$88="REVER FUNDAMENTAÇÃO E/OU MODALIDADE"),0,(($U$88/365)-$Z$88)*365) ->  | AF88: =MAX($X$97:$X$101) -> 
B89: 0 | C89: 0 | F89: 0 | H89: =IF(A89="NÃO",0,VLOOKUP(C89,C108:$M$111,4,FALSE)) ->  | I89: =IF(A89="NÃO","NÃO",VLOOKUP(C89,C108:$M$111,3,FALSE)) ->  | J89: =IF(A89="NÃO","NÃO",VLOOKUP(C89,C108:$M$111,6,FALSE)) ->  | K89: =IF(A108="SIM","SIM","NÃO") -> NÃO | P89: TRANSIÇÃO_ART. 2º_EC41 | Q89: =$Q$145 -> FALSE | R89: =IF($O$13>=(5*365),0,(5*365)-$O$13) -> 1825 | S89: NÃO CABE | T89: =$F$71 ->  | U89: =IF($E$2=$B$123,IF($D$10="X",IF($O$9>=(53*365+14),0,(53*365+14)-$O$9),IF($G$10="X",IF($O$9>=(48*365+12),0,(48*365+12)-$O$9),"MARQUE O SEXO")),"REVER FUNDAMENTAÇÃO E/OU MODALIDADE") -> REVER FUNDAMENTAÇÃO E/OU MODALIDADE | V89: =ROUNDDOWN($Q$89/365,0) -> 0 | W89: =IF($R$89="NÃO CABE",0,ROUNDDOWN($R$89/365,0)) -> 5 | X89: =IF($S$89="NÃO CABE",0,ROUNDDOWN($S$89/365,0)) -> 0 | Y89: =IF(OR($T$89="NÃO CABE",$T$89="NADA A CUMPRIR"),0,ROUNDDOWN($T$89/365,0)) ->  | Z89: =IF(OR($U$89="NÃO CABE",$U$89="MARQUE O SEXO",$U$89="REVER FUNDAMENTAÇÃO E/OU MODALIDADE"),0,ROUNDDOWN($U$89/365,0)) -> 0 | AA89: =(($Q$89/365)-$V$89)*365 -> 0 | AB89: =IF($R$89="NÃO CABE",0,(($R$89/365)-$W$89)*365) -> 0 | AC89: =IF($S$89="NÃO CABE",0,(($S$89/365)-$X$89)*365) -> 0 | AD89: =IF(OR($T$89="NÃO CABE",$T$89="NADA A CUMPRIR"),0,(($T$89/365)-$Y$89)*365) ->  | AE89: =IF(OR($U$89="NÃO CABE",$U$89="MARQUE O SEXO",$U$89="REVER FUNDAMENTAÇÃO E/OU MODALIDADE"),0,(($U$89/365)-$Z$89)*365) -> 0 | AF89: =MAX($X$97:$X$101) -> 
B90: 0 | C90: 0 | F90: 0 | H90: =IF(A90="NÃO",0,VLOOKUP(C90,C109:$M$111,4,FALSE)) ->  | I90: =IF(A90="NÃO","NÃO",VLOOKUP(C90,C109:$M$111,3,FALSE)) ->  | J90: =IF(A90="NÃO","NÃO",VLOOKUP(C90,C109:$M$111,6,FALSE)) ->  | K90: =IF(A109="SIM","SIM","NÃO") -> NÃO | P90: TRANSIÇÃO_ART. 6º_EC41 | Q90: =$Q$146 ->  | R90: =IF($O$13>=(5*365),0,(5*365)-$O$13) -> 1825 | S90: =IF($O$14>=(10*365),0,(10*365)-$O$13) -> 3650 | T90: =IF($O$15>=(20*365),0,(20*365)-$O$15) ->  | U90: =IF($E$2=$B$115,IF($D$10="X",IF($O$9>=(60*365+15),0,(60*365+15)-$O$9),IF($G$10="X",IF($O$9>=(55*365+14),0,(55*365+14)-$O$9),"MARQUE O SEXO")),IF($E$2=$B$116,IF($D$10="X",IF($O$9>=(55*365+14),0,(55*365+14)-$O$9),IF($G$10="X",IF($O$9>=(50*365+14),0,(50*365+14)-$O$9),"MARQUE O SEXO")),"REVER FUNDAMENTAÇÃO E/OU MODALIDADE")) ->  | V90: =ROUNDDOWN($Q$90/365,0) ->  | W90: =IF($R$90="NÃO CABE",0,ROUNDDOWN($R$90/365,0)) -> 5 | X90: =IF($S$90="NÃO CABE",0,ROUNDDOWN($S$90/365,0)) -> 10 | Y90: =IF($T$90="NÃO CABE",0,ROUNDDOWN($T$90/365,0)) ->  | Z90: =IF(OR($U$90="NÃO CABE",$U$90="MARQUE O SEXO",$U$90="REVER FUNDAMENTAÇÃO E/OU MODALIDADE"),0,ROUNDDOWN($U$90/365,0)) ->  | AA90: =(($Q$90/365)-$V$90)*365 ->  | AB90: =IF($R$90="NÃO CABE",0,(($R$90/365)-$W$90)*365) -> 0 | AC90: =IF($S$90="NÃO CABE",0,(($S$90/365)-$X$90)*365) -> 0 | AD90: =IF($T$90="NÃO CABE",0,(($T$90/365)-$Y$90)*365) ->  | AE90: =IF(OR($U$90="NÃO CABE",$U$90="MARQUE O SEXO",$U$90="REVER FUNDAMENTAÇÃO E/OU MODALIDADE"),0,(($U$90/365)-$Z$90)*365) ->  | AF90: =MAX($X$97:$X$101) -> 
H91: =IF(A91="NÃO",0,VLOOKUP(C91,C110:$M$111,4,FALSE)) ->  | I91: =IF(A91="NÃO","NÃO",VLOOKUP(C91,C110:$M$111,3,FALSE)) ->  | J91: =IF(A91="NÃO","NÃO",VLOOKUP(C91,C110:$M$111,6,FALSE)) ->  | K91: =IF(AND(D14="X",A110="SIM"),"SIM","NÃO") ->  | L91: LEI COMPLEMENTAR Nº 152/2015 | P91: TRANSIÇÃO_EMENDA 47 | Q91: =$Q$93 ->  | R91: =$R$93 -> 1825 | S91: =$S$93 -> 5475 | T91: =$T$93 ->  | U91: =($Z$93/2)*365+$AE$91 ->  | V91: =$V$93 ->  | W91: =$W$93 -> 5 | X91: =$X$93 -> 15 | Y91: =$Y$93 ->  | Z91: =IF(OR($U$91="NÃO CABE",$U$91="MARQUE O SEXO E/OU OBSERVE TEMPO DE CONTRIBUIÇÃO",$U$91="REVER FUNDAMENTAÇÃO E/OU MODALIDADE",$U$91="NADA A CUMPRIR"),0,ROUNDDOWN($U$91/365,0)) ->  | AA91: =$AA$93 ->  | AB91: =$AB$93 -> 0 | AC91: =$AC$93 -> 0 | AD91: =$AD$93 ->  | AE91: =$AE$93 ->  | AF91: =MAX($Q$91:$U$91) -> 
H92: =IF(A92="NÃO",0,VLOOKUP(C92,C111:$M$111,4,FALSE)) ->  | I92: =IF(A92="NÃO","NÃO",VLOOKUP(C92,C111:$M$111,3,FALSE)) ->  | J92: =IF(A92="NÃO","NÃO",VLOOKUP(C92,C111:$M$111,6,FALSE)) ->  | K92: NÃO | L92: 2015-12-04 | P92: PREENCHA A REGRA DESEJADA | Q92: =$Q$93 ->  | R92: =$R$93 -> 1825 | S92: =$S$93 -> 5475 | T92: =$T$93 ->  | U92: =($Z$93/2)*365+$AE$92 ->  | V92: =$V$93 ->  | W92: =$W$93 -> 5 | X92: =$X$93 -> 15 | Y92: =$Y$93 ->  | Z92: =IF(OR($U$92="NÃO CABE",$U$92="MARQUE O SEXO E/OU OBSERVE TEMPO DE CONTRIBUIÇÃO",$U$92="REVER FUNDAMENTAÇÃO E/OU MODALIDADE",$U$92="NADA A CUMPRIR"),0,ROUNDDOWN($U$92/365,0)) ->  | AA92: =$AA$93 ->  | AB92: =$AB$93 -> 0 | AC92: =$AC$93 -> 0 | AD92: =$AD$93 ->  | AE92: =$AE$93 ->  | AF92: =MAX($Q$91:$U$91) -> 
B93: Virgílio de Oliveira Souza | D93: =IF(OR(E6=B225,E6=B237,E6=B248),IF(L237>=25,"FAZ JUS A 1/6 DA REMUNERAÇÃO",IF(L248>=25,"FAZ JUS A 1/6 DA REMUNERAÇÃO",IF(L225>=25,"FAZ JUS A 1/6 DA REMUNERAÇÃO",0))),0) -> 0 | P93: TRANSIÇÃO_EMENDA 47 | Q93: =IF($D$10="X",$AC$6,IF($G$10="X",$AC$7,0)) ->  | R93: =IF($O$13>=(5*365),0,(5*365)-$O$13) -> 1825 | S93: =IF($O$14>=(15*365),0,(15*365)-$O$13) -> 5475 | T93: =IF($O$15>=(25*365),0,(25*365)-$O$15) ->  | U93: =IF($D$10="X",IF(OR($AD$21>0,$AC$6>0),IF($AD$21>$AC$6,$AD$21,$AC$6),0),IF($G$10="X",IF(OR($AD$21>0,$AC$7>0),IF($AD$21>$AC$7,$AD$21,$AC$7),0),"MARQUE O SEXO E/OU OBSERVE TEMPO DE CONTRIBUIÇÃO")) ->  | V93: =ROUNDDOWN($Q$93/365,0) ->  | W93: =IF($R$93="NÃO CABE",0,ROUNDDOWN($R$93/365,0)) -> 5 | X93: =IF($S$93="NÃO CABE",0,ROUNDDOWN($S$93/365,0)) -> 15 | Y93: =IF($T$93="NÃO CABE",0,ROUNDDOWN($T$93/365,0)) ->  | Z93: =IF(OR($U$93="NÃO CABE",$U$93="MARQUE O SEXO E/OU OBSERVE TEMPO DE CONTRIBUIÇÃO",$U$93="REVER FUNDAMENTAÇÃO E/OU MODALIDADE",$U$93="NADA A CUMPRIR"),0,ROUNDDOWN($U$93/365,0)) ->  | AA93: =(($Q$93/365)-$V$93)*365 ->  | AB93: =IF($R$93="NÃO CABE",0,(($R$93/365)-$W$93)*365) -> 0 | AC93: =IF($S$93="NÃO CABE",0,(($S$93/365)-$X$93)*365) -> 0 | AD93: =IF($T$93="NÃO CABE",0,(($T$93/365)-$Y$93)*365) ->  | AE93: =IF(OR($U$93="NÃO CABE",$U$93="MARQUE O SEXO",$U$93="REVER FUNDAMENTAÇÃO E/OU MODALIDADE",$U$93="NADA A CUMPRIR"),0,(($U$93/365)-$Z$93)*365) ->  | AF93: =IF($AD$21>$Q$93,$AD$21,$Q$93) -> 
T94: DT HOJE
A95: SÍNTESE | B95: MODALIDADE: | C95: FUNDAMENTAÇÃO | E95: IDADE | F95: ATS | G95: TEMPO | H95: PARIDADE | I95: CARGO | J95: CARREIRA | K95: T. SERV. PÚBL. | L95: CRÍTICA | M95: CRITICA 2 | N95: ORDEM | T95: DT FUTURA | U95: T E M P O F A L T A N T E | AA95: DT | AB95: DT
A96: =IF(AND(L96="SIM",M96="SIM"),"SIM","NÃO") ->  | B96: VOLUNTÁRIA INTEGRAL | C96: TRANSIÇÃO_EMENDA 47 | E96: =VI_TRANS_EC47!$C$81 ->  | F96: =VI_TRANS_EC47!F81 -> 0 | G96: =VI_TRANS_EC47!H81 ->  | H96: =VI_TRANS_EC47!I81 ->  | I96: =VI_TRANS_EC47!J81 -> NÃO | J96: =VI_TRANS_EC47!K81 -> NÃO | K96: =VI_TRANS_EC47!M81 -> NÃO | L96: =VI_TRANS_EC47!N81 ->  | M96: =IF(L96="SIM",IF($F$96>=$F$97,"SIM",IF($F$97>=$F$98,"SIM",IF($F$98>=$F$99,"SIM",IF($F$99>=$F$100,"SIM",IF($F$100>=$F$101,"SIM",IF($F$101>=$F$102,"SIM",IF($F$102>=$F$103,"SIM","NÃO"))))))),"NÃO") ->  | N96: 1 | P96: TRANSIÇÃO_EMENDA 47 | U96: MODALIDADE / REGRA DE OPÇÃO | Y96: ANO | Z96: DIAS | AA96: HOJE | AB96: FUTURA
A97: =IF(AND(L97="SIM",M97="SIM"),"SIM","NÃO") ->  | B97: VOLUNTÁRIA INTEGRAL | C97: TRANSIÇÃO_ART. 6º_EC41 | E97: ='VI_ART. 6º'!C80 ->  | F97: ='VI_ART. 6º'!F80 -> 0 | G97: ='VI_ART. 6º'!H80 -> NÃO | H97: ='VI_ART. 6º'!I80 ->  | I97: ='VI_ART. 6º'!J80 -> NÃO | J97: ='VI_ART. 6º'!K80 -> NÃO | K97: ='VI_ART. 6º'!M80 -> NÃO | L97: ='VI_ART. 6º'!N80 ->  | N97: 2 | P97: TRANSIÇÃO_ART. 6º_EC41 | U97: =VLOOKUP('2 Def Apos'!$E$6,$P$86:$U$93,1,FALSE) -> TRANSIÇÃO_ART. 6º_EC41 | V97: CONTRIBUIÇÃO | W97: =VLOOKUP($K$2,$P$86:$AF$93,2,FALSE) ->  | X97: =IF(AND($W$97<>"NÃO CABE",$W$97<>"NADA A CUMPRIR",$W$97<>"MARQUE O SEXO",$W$97<>"REVER FUNDAMENTAÇÃO E/OU MODALIDADE"),$W$97,0) ->  | Y97: =VLOOKUP($K$2,$P$86:$AF$93,7,FALSE) ->  | Z97: =VLOOKUP($K$2,$P$86:$AF$93,12,FALSE) ->  | AA97: ='2 Def Apos'!$E$23 -> 00:00:00 | AB97: =$AA$97+$W$102 -> 
A98: NÃO | B98: VOLUNTÁRIA INTEGRAL | C98: TRANSIÇÃO EMENDA 20 | E98: =VI_TRANS_EC20!C82 ->  | F98: =VI_TRANS_EC20!F82 -> 0 | G98: =VI_TRANS_EC20!H82 -> NÃO | H98: =VI_TRANS_EC20!I82 -> NÃO | I98: =VI_TRANS_EC20!J82 -> NÃO | J98: =VI_TRANS_EC20!K82 -> SIM | K98: =VI_TRANS_EC20!M82 -> NÃO | L98: =VI_TRANS_EC20!N82 -> NÃO | M98: NÃO | N98: 3 | P98: TRANSIÇÃO EMENDA 20 | U98: =VLOOKUP('2 Def Apos'!$E$6,$P$86:$U$93,1,FALSE) -> TRANSIÇÃO_ART. 6º_EC41 | V98: CARGO | W98: =VLOOKUP('2 Def Apos'!$E$6,$P$86:$U$93,3,FALSE) -> 1825 | X98: =IF(AND($W$98<>"NÃO CABE",$W$98<>"NADA A CUMPRIR",$W$98<>"MARQUE O SEXO",$W$98<>"REVER FUNDAMENTAÇÃO E/OU MODALIDADE"),$W$98,0) -> 1825 | Y98: =VLOOKUP($K$2,$P$86:$AF$93,8,FALSE) -> 5 | Z98: =VLOOKUP($K$2,$P$86:$AF$93,13,FALSE) -> 0 | AA98: ='2 Def Apos'!$E$23 -> 00:00:00 | AB98: =$AA$97+$W$102 -> 
A99: NÃO | B99: VOLUNTÁRIA INTEGRAL | C99: REGRA PERMANENTE | E99: =VI_RP_EC20!C79 ->  | F99: =VI_RP_EC20!F79 -> 0 | G99: =VI_RP_EC20!H79 ->  | H99: =VI_RP_EC20!I79 -> NÃO | I99: =VI_RP_EC20!J79 -> NÃO | J99: =VI_RP_EC20!K79 -> SIM | K99: =VI_RP_EC20!M79 ->  | L99: =VI_RP_EC20!N79 -> NÃO | M99: NÃO | N99: 4 | P99: VI_RP_REDAÇÃO EMENDA Nº 20/98 | U99: =VLOOKUP('2 Def Apos'!$E$6,$P$86:$U$93,1,FALSE) -> TRANSIÇÃO_ART. 6º_EC41 | V99: CARREIRA | W99: =VLOOKUP('2 Def Apos'!$E$6,$P$86:$U$93,4,FALSE) -> 3650 | X99: =IF(AND($W$99<>"NÃO CABE",$W$99<>"NADA A CUMPRIR",$W$99<>"MARQUE O SEXO",$W$99<>"REVER FUNDAMENTAÇÃO E/OU MODALIDADE"),$W$99,0) -> 3650 | Y99: =VLOOKUP($K$2,$P$86:$AF$93,9,FALSE) -> 10 | Z99: =VLOOKUP($K$2,$P$86:$AF$93,14,FALSE) -> 0 | AA99: ='2 Def Apos'!$E$23 -> 00:00:00 | AB99: =$AA$97+$W$102 -> 
A100: NÃO | B100: VOLUNTÁRIA INTEGRAL | C100: REGRAS ANTES EC20 | E100: =VI_REAEC20!C78 -> SIM | F100: =VI_REAEC20!F78 -> REVER TIPO DE ADICIONAL | G100: =VI_REAEC20!H78 ->  | H100: =VI_REAEC20!I78 -> NÃO | I100: =VI_REAEC20!J78 -> SIM | J100: =VI_REAEC20!K78 -> SIM | K100: =VI_REAEC20!M78 ->  | L100: =VI_REAEC20!N78 -> NÃO | M100: NÃO | N100: 5 | P100: REGRAS ANTES EC20 | U100: =VLOOKUP('2 Def Apos'!$E$6,$P$86:$U$93,1,FALSE) -> TRANSIÇÃO_ART. 6º_EC41 | V100: TSCP | W100: =VLOOKUP('2 Def Apos'!$E$6,$P$86:$U$93,5,FALSE) ->  | X100: =IF(AND($W$100<>"NÃO CABE",$W$100<>"NADA A CUMPRIR",$W$100<>"MARQUE O SEXO",$W$100<>"REVER FUNDAMENTAÇÃO E/OU MODALIDADE",$W$100<>"REVER"),$W$100,0) ->  | Y100: =VLOOKUP($K$2,$P$86:$AF$93,10,FALSE) ->  | Z100: =VLOOKUP($K$2,$P$86:$AF$93,15,FALSE) ->  | AA100: ='2 Def Apos'!$E$23 -> 00:00:00 | AB100: =$AA$97+$W$102 -> 
A101: NÃO | B101: VOLUNTÁRIA ESPECIAL | C101: REGRAS ANTES EC20 | E101: =VE_RAEC20!C88 -> SIM | F101: =VE_RAEC20!F88 -> 0 | G101: =VE_RAEC20!H88 -> NÃO | H101: =VE_RAEC20!I88 -> NÃO | I101: =VE_RAEC20!J88 -> SIM | J101: =VE_RAEC20!K88 -> SIM | K101: =VE_RAEC20!M88 -> NÃO | L101: =VE_RAEC20!N88 -> NÃO | M101: NÃO | N101: 6 | P101: REGRAS ANTES EC20 | U101: =VLOOKUP('2 Def Apos'!$E$6,$P$86:$U$93,1,FALSE) -> TRANSIÇÃO_ART. 6º_EC41 | V101: IDADE | W101: =VLOOKUP('2 Def Apos'!$E$6,$P$86:$U$93,6,FALSE) ->  | X101: =IF(AND($W$101<>"NÃO CABE",$W$101<>"NADA A CUMPRIR",$W$101<>"MARQUE O SEXO",$W$101<>"REVER FUNDAMENTAÇÃO E/OU MODALIDADE"),$W$101,0) ->  | Y101: =VLOOKUP($K$2,$P$86:$AF$93,11,FALSE) ->  | Z101: =VLOOKUP($K$2,$P$86:$AF$93,16,FALSE) ->  | AA101: ='2 Def Apos'!$E$23 -> 00:00:00 | AB101: =$AA$97+$W$102 -> 
A102: NÃO | B102: VOLUNTÁRIA ESPECIAL | C102: TRANSIÇÃO_ART. 6º_EC41 | E102: =VE_ART_6º!C89 -> NÃO | F102: =VE_ART_6º!F89 -> 0 | G102: =VE_ART_6º!H89 -> NÃO | H102: =VE_ART_6º!I89 -> NÃO | I102: =VE_ART_6º!J89 -> NÃO | J102: =VE_ART_6º!K89 -> NÃO | K102: =VE_ART_6º!M89 -> NÃO | L102: =VE_ART_6º!N89 -> NÃO | M102: NÃO | N102: 7 | P102: TRANSIÇÃO_ART. 6º_EC41 | W102: =MAX($W$97:$W$101) -> 
A103: NÃO | B103: VOLUNTÁRIA ESPECIAL | C103: TRANSIÇÃO EMENDA 20 | E103: =VE_TRANS_EC20!C90 -> NÃO | F103: =VE_TRANS_EC20!F90 -> 0 | G103: =VE_TRANS_EC20!H90 -> NÃO | H103: =VE_TRANS_EC20!I90 -> NÃO | I103: =VE_TRANS_EC20!J90 -> NÃO | J103: =VE_TRANS_EC20!K90 -> SIM | K103: =VE_TRANS_EC20!M90 -> NÃO | L103: =VE_TRANS_EC20!N90 -> NÃO | M103: =IF(L103="SIM",IF($F$103>=$F$104,"SIM",IF($F$104>=$F$105,"SIM",IF($F$105>=$F$106,"SIM",IF($F$106>=$F$107,"SIM",IF($F$107>=$F$108,"SIM",IF($F$108>=$F$109,"SIM",IF($F$109>=$F$110,"SIM","NÃO"))))))),"NÃO") -> NÃO | N103: 8 | P103: TRANSIÇÃO EMENDA 20
A104: NÃO | B104: VOLUNTÁRIA ESPECIAL | C104: REGRA PERMANENTE | E104: =VE_RP_EC20!$C$91 -> NÃO | F104: =VE_RP_EC20!$F$91 -> 0 | G104: =VE_RP_EC20!$H$91 -> NÃO | H104: =VE_RP_EC20!$I$91 ->  | I104: =VE_RP_EC20!$J$91 -> NÃO | J104: =VE_RP_EC20!$K$91 -> SIM | K104: =VE_RP_EC20!$M$91 ->  | L104: =VE_RP_EC20!$N$91 -> NÃO | M104: =IF(L104="SIM",IF($F$103>=$F$104,"SIM",IF($F$104>=$F$105,"SIM",IF($F$105>=$F$106,"SIM",IF($F$106>=$F$107,"SIM",IF($F$107>=$F$108,"SIM",IF($F$108>=$F$109,"SIM",IF($F$109>=$F$110,"SIM","NÃO"))))))),"NÃO") -> NÃO | N104: 9 | P104: VE_RP_REDAÇÃO EMENDA Nº 20
B105: VOLUNTÁRIA ESPECIAL | C105: REGRA PERMANENTE | E105: =VE_RP_EC41!$C$91 -> NÃO | F105: =VE_RP_EC41!$F$91 -> 0 | G105: =VE_RP_EC41!$H$91 -> NÃO | H105: =VE_RP_EC41!$I$91 -> NÃO | I105: =VE_RP_EC41!$J$91 -> NÃO | J105: =VE_RP_EC41!$K$91 -> SIM | K105: =VE_RP_EC41!$M$91 ->  | L105: =VE_RP_EC41!$N$91 ->  | M105: =IF(L105="SIM",IF($F$103>=$F$104,"SIM",IF($F$104>=$F$105,"SIM",IF($F$105>=$F$106,"SIM",IF($F$106>=$F$107,"SIM",IF($F$107>=$F$108,"SIM",IF($F$108>=$F$109,"SIM",IF($F$109>=$F$110,"SIM","NÃO"))))))),"NÃO") ->  | N105: 10 | P105: VE_RP_REDAÇÃO EMENDA Nº 41
B106: VOLUNTÁRIA INTEGRAL | C106: REGRA PERMANENTE | E106: =VI_RP_EC41!C79 ->  | F106: =VI_RP_EC41!F79 -> 0 | G106: =VI_RP_EC41!H79 ->  | H106: =VI_RP_EC41!I79 -> NÃO | I106: =VI_RP_EC41!J79 -> NÃO | J106: =VI_RP_EC41!K79 -> SIM | K106: =VI_RP_EC41!M79 ->  | L106: =VI_RP_EC41!N79 ->  | M106: =IF(L106="SIM",IF($F$103>=$F$104,"SIM",IF($F$104>=$F$105,"SIM",IF($F$105>=$F$106,"SIM",IF($F$106>=$F$107,"SIM",IF($F$107>=$F$108,"SIM",IF($F$108>=$F$109,"SIM",IF($F$109>=$F$110,"SIM","NÃO"))))))),"NÃO") ->  | N106: 11 | P106: VI_RP_REDAÇÃO EMENDA Nº 41
A107: NÃO | B107: VOL. PROPORCIONAL T. CONTRIBUIÇÃO | C107: REGRAS ANTES EC20 | E107: =VPTS_RAEC20!C83 -> SIM | F107: =VPTS_RAEC20!F83 -> 0 | G107: =VPTS_RAEC20!H83 ->  | H107: =VPTS_RAEC20!I83 -> NÃO | I107: =VPTS_RAEC20!J83 -> SIM | J107: =VPTS_RAEC20!K83 -> SIM | K107: =VPTS_RAEC20!M83 ->  | L107: =VPTS_RAEC20!N83 -> NÃO | M107: NÃO | N107: 12 | P107: REGRAS ANTES EC20
A108: NÃO | B108: VOL. PROPORCIONAL T. CONTRIBUIÇÃO | C108: TRANSIÇÃO EMENDA 20 | E108: =VPTC_TRANS_EC20!C84 ->  | F108: =VPTC_TRANS_EC20!F84 -> 0 | G108: =VPTC_TRANS_EC20!H84 -> NÃO | H108: =VPTC_TRANS_EC20!I84 -> NÃO | I108: =VPTC_TRANS_EC20!J84 -> NÃO | J108: =VPTC_TRANS_EC20!K84 -> SIM | K108: =VPTC_TRANS_EC20!M84 -> NÃO | L108: =VPTC_TRANS_EC20!N84 -> NÃO | M108: NÃO | N108: 13 | P108: TRANSIÇÃO EC 20
A109: NÃO | B109: VOLUNTÁRIA PROPORCIONAL POR IDADE | C109: REGRAS ANTES EC20 | E109: =VPI_RAEC20!C85 ->  | F109: =VPI_RAEC20!F85 -> 0 | G109: =VPI_RAEC20!H85 -> SIM | H109: =VPI_RAEC20!I85 -> NÃO | I109: =VPI_RAEC20!J85 -> SIM | J109: =VPI_RAEC20!K85 -> SIM | K109: =VPI_RAEC20!M85 -> SIM | L109: =VPI_RAEC20!N85 -> NÃO | M109: NÃO | N109: 14 | P109: REGRAS ANTES EC20
B110: VOLUNTÁRIA PROPORCIONAL POR IDADE | C110: REGRA PERMANENTE | E110: =VPI_RP_EC41!C86 ->  | F110: =VPI_RP_EC41!F86 -> 0 | G110: =VPI_RP_EC41!H86 -> SIM | H110: =VPI_RP_EC41!I86 -> NÃO | I110: =VPI_RP_EC41!J86 -> NÃO | J110: =VPI_RP_EC41!K86 -> SIM | K110: =VPI_RP_EC41!M86 ->  | L110: =VPI_RP_EC41!N86 ->  | N110: 15 | P110: REGRA PERMANENTE
B111: VOLUNTÁRIA COM REDUTOR | C111: TRANSIÇÃO_ART. 2º_EC41 | E111: ='VR_ART_ 2º'!C87 ->  | F111: ='VR_ART_ 2º'!F87 -> 0 | G111: ='VR_ART_ 2º'!H87 ->  | H111: ='VR_ART_ 2º'!I87 -> NÃO | I111: ='VR_ART_ 2º'!J87 -> NÃO | J111: ='VR_ART_ 2º'!K87 -> SIM | K111: ='VR_ART_ 2º'!M87 ->  | L111: ='VR_ART_ 2º'!N87 ->  | N111: 16 | P111: TRANSIÇÃO_ART. 2º_EC41
BB113: CATEGORIA FUNCIONAL / ANOS | BC113: 5 | BD113: 10 | BE113: 15 | BF113: 20 | BG113: 25 | BH113: >25 | BI113: 01/06/94 | BJ113: 01/07/94 | BK113: 1995-05-01 | BL113: 1995-06-01
B114: MODALIDADES | D114: NÃO MEXER
B115: VOLUNTÁRIA INTEGRAL | BC115: =(#REF!+G46+F59)/365 ->  | BI115: 0.45 | BL115: 21.517/95
B116: VOLUNTÁRIA ESPECIAL | BB116: PROF. DOCENTE II, NÍVEL "A" | BC116: REFERÊNCIA 1 | BD116: REFERÊNCIA 2 | BE116: REFERÊNCIA 3 | BF116: REFERÊNCIA 4 | BG116: REFERÊNCIA 5 | BH116: REFERÊNCIA 6 | BI116: =#REF!*1.45 ->  | BJ116: 80.64 | BK116: 100 | BL116: 112
B117: VOLUNTÁRIA PROPORCIONAL POR IDADE | BB117: PROF. ASSIST. ADM. EDUCACIONAL II, NÍVEL "A" | BC117: REFERÊNCIA 1 | BD117: REFERÊNCIA 2 | BE117: REFERÊNCIA 3 | BF117: REFERÊNCIA 4 | BG117: REFERÊNCIA 5 | BH117: REFERÊNCIA 6 | BI117: =#REF!*1.45 ->  | BJ117: 90.32 | BK117: 100 | BL117: 125.44
B118: COMPULSÓRIA INTEGRAL | BB118: PROF. DOCENTE II, NÍVEL "B" | BC118: REFERÊNCIA 2 | BD118: REFERÊNCIA 3 | BE118: REFERÊNCIA 4 | BF118: REFERÊNCIA 5 | BG118: REFERÊNCIA 6 | BH118: REFERÊNCIA 7 | BI118: =#REF!*1.45 ->  | BJ118: 101.15 | BK118: 101.15 | BL118: 140.4
B119: COMPULSÓRIA PROPORCIONAL | BB119: PROF. ASSIST. ADM. EDUCACIONAL II, NÍVEL "B" | BC119: REFERÊNCIA 2 | BD119: REFERÊNCIA 3 | BE119: REFERÊNCIA 4 | BF119: REFERÊNCIA 5 | BG119: REFERÊNCIA 6 | BH119: REFERÊNCIA 7 | BI119: =#REF!*1.45 ->  | BJ119: 113.29 | BK119: 113.29 | BL119: 157.35
B120: INVALIDEZ INTEGRAL | BB120: PROF. DOCENTE I, NÍVEL "C" | BC120: REFERÊNCIA 3 | BD120: REFERÊNCIA 4 | BE120: REFERÊNCIA 5 | BF120: REFERÊNCIA 6 | BG120: REFERÊNCIA 7 | BH120: REFERÊNCIA 8 | BI120: =#REF!*1.45 ->  | BJ120: 126.89 | BK120: 129.89 | BL120: 176.23
B121: INVALIDEZ PROPORCIONAL | BB121: PROF. DOCENTE II, NÍVEL "C" | BC121: REFERÊNCIA 3 | BD121: REFERÊNCIA 4 | BE121: REFERÊNCIA 5 | BF121: REFERÊNCIA 6 | BG121: REFERÊNCIA 7 | BH121: REFERÊNCIA 8 | BI121: =A154*1.45 -> 0 | BJ121: 80.64 | BK121: 100 | BL121: 112
B122: VOL. PROPORCIONAL T. CONTRIBUIÇÃO | BB122: SUPERVISOR EDUCACIONAL, NÍVEL "C" | BC122: REFERÊNCIA 3 | BD122: REFERÊNCIA 4 | BE122: REFERÊNCIA 5 | BF122: REFERÊNCIA 6 | BG122: REFERÊNCIA 7 | BH122: REFERÊNCIA 8 | BI122: =A155*1.45 -> 0 | BJ122: 90.32 | BK122: 100 | BL122: 125.44
B123: VOLUNTÁRIA COM REDUTOR | BB123: ORIENTADOR PROFISSIONAL, NÍVEL "C" | BC123: REFERÊNCIA 3 | BD123: REFERÊNCIA 4 | BE123: REFERÊNCIA 5 | BF123: REFERÊNCIA 6 | BG123: REFERÊNCIA 7 | BH123: REFERÊNCIA 8 | BI123: =A156*1.45 -> 0 | BJ123: 101.15 | BK123: 101.15 | BL123: 140.4
BB124: PROF. INSPETOR ESCOLAR, NÍVEL "C" | BC124: REFERÊNCIA 3 | BD124: REFERÊNCIA 4 | BE124: REFERÊNCIA 5 | BF124: REFERÊNCIA 6 | BG124: REFERÊNCIA 7 | BH124: REFERÊNCIA 8 | BI124: =A157*1.45 -> 1.45 | BJ124: 113.29 | BK124: 113.29 | BL124: 157.35
BB125: PROF. ASSIST. ADM. EDUCACIONAL I, NÍVEL "C" | BC125: REFERÊNCIA 3 | BD125: REFERÊNCIA 4 | BE125: REFERÊNCIA 5 | BF125: REFERÊNCIA 6 | BG125: REFERÊNCIA 7 | BH125: REFERÊNCIA 8 | BI125: =A157*1.45 -> 1.45 | BJ125: 126.89 | BK125: 126.89 | BL125: 176.23
B126: ANÁLISE DE PROPORCIONALIDADE | BB126: PROF. ASSIST. ADM. EDUCACIONAL II, NÍVEL "C" | BC126: REFERÊNCIA 3 | BD126: REFERÊNCIA 4 | BE126: REFERÊNCIA 5 | BF126: REFERÊNCIA 6 | BG126: REFERÊNCIA 7 | BH126: REFERÊNCIA 8 | BI126: =A158*1.45 -> 2.9 | BJ126: 126.89 | BK126: 126.89 | BL126: 176.23
B127: REGRAS ANTES EC20 | I127: REGRAS ANTES EC20 | J127: =IF($E$2=$B$117,$H$128,IF($E$2=$B$119,$H$128,IF($E$2=$B$121,$H$128,IF($E$2=$B$122,$H$128,"NÃO CABE")))) -> NÃO CABE | L127: PROPORCIONAL EM DIAS | BB127: PROF. DOCENTE I, NÍVEL "D" | BC127: REFERÊNCIA 4 | BD127: REFERÊNCIA 5 | BE127: REFERÊNCIA 6 | BF127: REFERÊNCIA 7 | BG127: REFERÊNCIA 8 | BH127: REFERÊNCIA 9 | BI127: =A159*1.45 ->  | BJ127: 142.12 | BK127: 142.12 | BL127: 197.38
B128: REGRA PERMANENTE | E128: =IF($F$128="NÃO CABE","NÃO CABE",IF($G$10="X",$F$128/30,$F$128/35)) -> NÃO CABE | F128: =IF(E2="VOLUNTÁRIA ESPECIAL","NÃO CABE",IF(E2="VOLUNTÁRIA INTEGRAL","NÃO CABE",IF(E2="COMPULSÓRIA INTEGRAL","NÃO CABE",IF(E2="INVALIDEZ INTEGRAL","NÃO CABE",ROUNDDOWN($F$61/365,0))))) -> NÃO CABE | H128: =IF($E$128>1,1,$E$128) -> 1 | I128: REGRA PERMANENTE | J128: =IF($E$2=$B$117,$H$128,IF($E$2=$B$119,$H$128,IF($E$2=$B$121,$H$128,"NÃO CABE"))) -> NÃO CABE | L128: =IF($F$128="NÃO CABE","NÃO CABE",IF($G$10="X",$F$61/10950,$F$61/12775)) -> NÃO CABE | M128: =IF(L128>1,1,L128) -> 1 | N128: =IF($E$2=$B$117,M128,IF($E$2=$B$119,M128,IF($E$2=$B$121,M128,"NÃO CABE"))) -> NÃO CABE | BB128: PROF. DOCENTE II, NÍVEL "D" | BC128: REFERÊNCIA 4 | BD128: REFERÊNCIA 5 | BE128: REFERÊNCIA 6 | BF128: REFERÊNCIA 7 | BG128: REFERÊNCIA 8 | BH128: REFERÊNCIA 9 | BI128: =A161*1.45 -> 5.8 | BJ128: 90.32 | BK128: 100 | BL128: 125.44
B129: TRANSIÇÃO EMENDA 20 | E129: =IF(E2=B122,IF(C65>0,"TEMPO A CUMPRIR",IF(F129=1,75%,IF(F129=2,80%,IF(F129=3,85%,IF(F129=4,90%,IF(F129=5,95%,IF(F129>=6,100%,70%))))))),"NÃO CABE") -> NÃO CABE | F129: =IF(G10="X",ROUNDDOWN((F61-(25*365+E43))/365,0),ROUNDDOWN((F61-(30*365+E43))/365,0)) ->  | I129: TRANSIÇÃO EMENDA 20 | J129: =IF(E2=B122,E129,"NÃO CABE") -> NÃO CABE | M129: =O10 -> 0 | N129: 38037 | BB129: SUPERVISOR EDUCACIONAL, NÍVEL "D" | BC129: REFERÊNCIA 4 | BD129: REFERÊNCIA 5 | BE129: REFERÊNCIA 6 | BF129: REFERÊNCIA 7 | BG129: REFERÊNCIA 8 | BH129: REFERÊNCIA 9
B130: TRANSIÇÃO_ART. 2º_EC41 | E130: MULHER | F130: =IF($D$12="X",50-$N$11,55-$N$11) ->  | H130: =IF($G$10="X",IF($O$9>=17532,IF($O$10>=38718,1-($F$130*0.05),1-($F$130*0.035)),"NÃO CABE"),IF($O$9>=19359,IF($O$10>=38718,1-($F$131*0.05),1-($F$131*0.035)),"NÃO CABE")) ->  | I130: TRANSIÇÃO_ART. 2º_EC41 | J130: =IF(E2=B123,H131,"NÃO CABE") -> NÃO CABE | BB130: ORIENTADOR PROFISSIONAL, NÍVEL "D" | BC130: REFERÊNCIA 4 | BD130: REFERÊNCIA 5 | BE130: REFERÊNCIA 6 | BF130: REFERÊNCIA 7 | BG130: REFERÊNCIA 8 | BH130: REFERÊNCIA 9 | BI130: =A163*1.45 ->  | BJ130: 101.15 | BK130: 101.15 | BL130: 140.4
B131: 2005-12-31 | C131: 38717 | E131: HOMEM | F131: =IF($D$12="X",55-$N$11,60-$N$11) ->  | H131: =IF(H130="NÃO CABE",0,IF(H130>1,1,H130)) ->  | BB131: PROF. INSPETOR ESCOLAR, NÍVEL "D" | BC131: REFERÊNCIA 4 | BD131: REFERÊNCIA 5 | BE131: REFERÊNCIA 6 | BF131: REFERÊNCIA 7 | BG131: REFERÊNCIA 8 | BH131: REFERÊNCIA 9
B132: 2006-01-01 | C132: 38718 | BB132: PROF. ASSIST. ADM. EDUCACIONAL I, NÍVEL "D" | BC132: REFERÊNCIA 4 | BD132: REFERÊNCIA 5 | BE132: REFERÊNCIA 6 | BF132: REFERÊNCIA 7 | BG132: REFERÊNCIA 8 | BH132: REFERÊNCIA 9 | BI132: =A164*1.45 -> 8.7 | BJ132: 113.29 | BK132: 113.29 | BL132: 157.35
C133: 38097 | BB133: PROF. ASSIST. ADM. EDUCACIONAL II, NÍVEL "D" | BC133: REFERÊNCIA 4 | BD133: REFERÊNCIA 5 | BE133: REFERÊNCIA 6 | BF133: REFERÊNCIA 7 | BG133: REFERÊNCIA 8 | BH133: REFERÊNCIA 9 | BI133: =A165*1.45 -> 10.15 | BJ133: 113.29 | BK133: 113.29 | BL133: 157.35
BB134: AUX. APOIO EDUCACIONAL II | BC134: NÍVEL III | BD134: NÍVEL II | BE134: NÍVEL II | BF134: NÍVEL I | BG134: NÍVEL I | BH134: NÍVEL I
B135: CRÍTICA DE IDADE NAS VÁRIAS MODALIDADES | K135: CRÍTICA DE IDADE NAS VÁRIAS MODALIDADES | BB135: AGENTE DE PORTARIA | BC135: NÍVEL III | BD135: NÍVEL II | BE135: NÍVEL II | BF135: NÍVEL I | BG135: NÍVEL I | BH135: NÍVEL I | BI135: =A168*1.45 -> 13.05 | BJ135: 126.89 | BK135: 126.89 | BL135: 176.23
B136: SE VOLUNTÁRIA INTEGRAL_PERMANENTE / ART. 6º: | F136: =IF(G10="X",IF(O9>=20089,"ATENDE LIMITE MÍNIMO DE IDADE","NÃO ATENDE LIMITE MÍNIMO DE IDADE"),IF(O9>=21915,"ATENDE LIMITE MÍNIMO DE IDADE","NÃO ATENDE LIMITE MÍNIMO DE IDADE")) ->  | L136: VOLUNTÁRIA INTEGRAL | O136: =IF(E2=L136,IF(K2=O3,F136,IF(K2=O4,F138,IF(K2=O6,F136,IF(K2=O7,F137,IF(K2=O2,"NADA A CRITICAR","REANALISAR FUNDAMENTAÇÃO E/OU MODALIDADE")))))) ->  | BB136: MERENDEIRA | BC136: NÍVEL III | BD136: NÍVEL II | BE136: NÍVEL II | BF136: NÍVEL I | BG136: NÍVEL I | BH136: NÍVEL I
B137: SÓ VOLUNTÁRIA INTEGRAL_EMENDA Nº 47: | F137: =IF(AND($D$10="X",$H$61>=35),IF($AQ$21>=$Z$6,"ATENDE LIMITE MÍNIMO DE IDADE","NÃO ATENDE LIMITE MÍNIMO DE IDADE"),IF(AND($G$10="X",$H$61>=30),IF($AQ$21>=$Z$7,"ATENDE LIMITE MÍNIMO DE IDADE","NÃO ATENDE LIMITE MÍNIMO DE IDADE"),"MARQUE O SEXO E/OU OBSERVE TEMPO DE CONTRIBUIÇÃO")) ->  | L137: VOLUNTÁRIA ESPECIAL | O137: =IF(E2=L137,IF(K2=O3,F139,IF(K2=O4,F142,IF(K2=O6,F139,IF(K2=O2,"NADA A CRITICAR","REANALISAR FUNDAMENTAÇÃO E/OU MODALIDADE")))),"REANALISAR FUNDAMENTAÇÃO E/OU MODALIDADE") -> REANALISAR FUNDAMENTAÇÃO E/OU MODALIDADE | BB137: CONTÍNUO | BC137: NÍVEL III | BD137: NÍVEL II | BE137: NÍVEL II | BF137: NÍVEL I | BG137: NÍVEL I | BH137: NÍVEL I | BI137: =A170*1.45 -> 15.95 | BJ137: 142.12 | BK137: 142.12 | BL137: 197.38
B138: SE VOLUNTÁRIA INTEGRAL_TRANSIÇÃO EC 41/20: | F138: =IF(G10="X",IF(O9>=17532,"ATENDE LIMITE MÍNIMO DE IDADE","NÃO ATENDE LIMITE MÍNIMO DE IDADE"),IF(O9>=19359,"ATENDE LIMITE MÍNIMO DE IDADE","NÃO ATENDE LIMITE MÍNIMO DE IDADE")) ->  | L138: VOLUNTÁRIA PROPORCIONAL POR IDADE | O138: =IF(E2=L138,IF(K2=O3,F140,IF(K2=O2,F140,"REANALISAR FUNDAMENTAÇÃO E/OU MODALIDADE")),"REANALISAR FUNDAMENTAÇÃO E/OU MODALIDADE") -> REANALISAR FUNDAMENTAÇÃO E/OU MODALIDADE | BB138: SERVENTE | BC138: NÍVEL III | BD138: NÍVEL II | BE138: NÍVEL II | BF138: NÍVEL I | BG138: NÍVEL I | BH138: NÍVEL I
B139: SE VOL. ESPECIAL_PERMANENTE: | F139: =IF(D12="X",IF(G10="X",IF(O9>=18264,"ATENDE LIMITE MÍNIMO DE IDADE","NÃO ATENDE LIMITE MÍNIMO DE IDADE"),IF(O9>=20089,"ATENDE LIMITE MÍNIMO DE IDADE","NÃO ATENDE LIMITE MÍNIMO DE IDADE")),"REANALISAR FUNDAMENTAÇÃO E/OU MODALIDADE") -> REANALISAR FUNDAMENTAÇÃO E/OU MODALIDADE | L139: VOL. PROPORCIONAL T. CONTRIBUIÇÃO | O139: =IF(E2=L139,IF(K2=O4,F141,IF(K2=O2,"NADA A CRITICAR","REANALISAR FUNDAMENTAÇÃO E/OU MODALIDADE")),"REANALISAR FUNDAMENTAÇÃO E/OU MODALIDADE") -> REANALISAR FUNDAMENTAÇÃO E/OU MODALIDADE | BB139: TRABALHADOR | BC139: NÍVEL III | BD139: NÍVEL II | BE139: NÍVEL II | BF139: NÍVEL I | BG139: NÍVEL I | BH139: NÍVEL I | BI139: =A172*1.45 -> 18.85 | BJ139: 159.17 | BK139: 159.17 | BL139: 221.06
B140: SE VOL. PROPORCIONAL_PERMANENTE: | F140: =IF(G10="X",IF(O9>=21915,"ATENDE LIMITE MÍNIMO DE IDADE","NÃO ATENDE LIMITE MÍNIMO DE IDADE"),IF(O9>=23741,"ATENDE LIMITE MÍNIMO DE IDADE","NÃO ATENDE LIMITE MÍNIMO DE IDADE")) ->  | L140: VOLUNTÁRIA COM REDUTOR | O140: =IF(E2=L140,IF(K2=O5,F138,"REANALISAR FUNDAMENTAÇÃO E/OU MODALIDADE"),"REANALISAR FUNDAMENTAÇÃO E/OU MODALIDADE") -> REANALISAR FUNDAMENTAÇÃO E/OU MODALIDADE | BB140: VIGIA | BC140: NÍVEL III | BD140: NÍVEL II | BE140: NÍVEL II | BF140: NÍVEL I | BG140: NÍVEL I | BH140: NÍVEL I | BI140: =A173*1.45 -> 20.3 | BJ140: 101.15 | BK140: 101.15 | BL140: 140.4
B141: SE VOL. PROPORCIONAL_TRANSIÇÃO EC 20: | F141: =IF(G10="X",IF(O9>=17532,"ATENDE LIMITE MÍNIMO DE IDADE","NÃO ATENDE LIMITE MÍNIMO DE IDADE"),IF(O9>=19359,"ATENDE LIMITE MÍNIMO DE IDADE","NÃO ATENDE LIMITE MÍNIMO DE IDADE")) ->  | L141: COMPULSÓRIA | O141: =IF($K$2=$O$2,IF($E$2=$B$118,$F$143,IF(E2=$B$119,$F$143,IF($E$2=$B$120,"EX OFFICIO",IF($E$2=$B$121,"EX OFFICIO","REANALISAR FUNDAMENTAÇÃO E/OU MODALIDADE")))),IF($K$2=$O$3,IF($E$2=$B$118,$F$143,IF($E$2=$B$119,$F$143,IF($E$2=$B$120,"EX OFFICIO",IF($E$2=$B$121,"EX OFFICIO","REANALISAR FUNDAMENTAÇÃO E/OU MODADALIDADE")))))) -> FALSE | BB141: ZELADOR | BC141: NÍVEL III | BD141: NÍVEL II | BE141: NÍVEL II | BF141: NÍVEL I | BG141: NÍVEL I | BH141: NÍVEL I
B142: SE VOL. ESPECIAL_TRANSIÇÃO EC 20: | F142: =IF(D12="X",IF(G10="X",IF(O9>=17532,"ATENDE LIMITE MÍNIMO DE IDADE","NÃO ATENDE LIMITE MÍNIMO DE IDADE"),IF(O9>=19359,"ATENDE LIMITE MÍNIMO DE IDADE","NÃO ATENDE LIMITE MÍNIMO DE IDADE")),"REANALISAR FUNDAMENTAÇÃO E/OU MODALIDADE") -> REANALISAR FUNDAMENTAÇÃO E/OU MODALIDADE | BB142: AG. APOIO EDUCACIONAL II | BC142: NÍVEL III | BD142: NÍVEL II | BE142: NÍVEL II | BF142: NÍVEL I | BG142: NÍVEL I | BH142: NÍVEL I
B143: SE COMPULSÓRIA | F143: =IF($H$19>=$L$92,IF($N$11>=75,"ATENDE LIMITE MÍNIMO DE IDADE.","NÃO ATENDE LIMITE MÍNIMO DE IDADE."),IF($N$11>=70,"ATENDE LIMITE MÍNIMO DE IDADE.","NÃO ATENDE LIMITE MÍNIMO DE IDADE.")) ->  | BB143: AGENTE ADMINISTRATIVO | BC143: NÍVEL III | BD143: NÍVEL II | BE143: NÍVEL II | BF143: NÍVEL I | BG143: NÍVEL I | BH143: NÍVEL I
L144: TEMPO FALTANTE | BB144: AGENTE DE MATERIAL | BC144: NÍVEL III | BD144: NÍVEL II | BE144: NÍVEL II | BF144: NÍVEL I | BG144: NÍVEL I | BH144: NÍVEL I
C145: TEMPO CONTRIBUIÇÃO | F145: IDADE LIMITE | I145: IDADE NECESSÁRIA | L145: TRANSIÇÃO EC20 / ART 2º EC 41 | Q145: =IF($K$2=$O$4,IF($E$2=$B$115,$R$145,IF($E$2=$B$116,$R$145,IF(E2=$B$122,$R$145,IF($G$10="X",(30*365)-$F$61,(35*365)-$F$61)))),IF($K$2=$O$5,IF($E$2=$B$123,$R$145,IF($G$10="X",(30*365)-$F$61,(35*365)-$F$61)))) -> FALSE | R145: =IF($K$2=$O$4,IF($F$61>=($F$37+$E$44),0,($F$37+$E$44)-$F$61),IF($K$2=$O$5,IF($F$61>=($F$37+$E$44),0,($F$37+$E$44)-$F$61),($F$37+$E$44)-$F$61)) ->  | BB145: DATILÓGRAFO | BC145: NÍVEL III | BD145: NÍVEL II | BE145: NÍVEL II | BF145: NÍVEL I | BG145: NÍVEL I | BH145: NÍVEL I
B146: MODALIDADE | C146: MULHER | E146: HOMEM | F146: MULHER | H146: HOMEM | I146: MULHER | J146: HOMEM | L146: ART 6º EC 41 / PERMANENTE | Q146: =IF($E$2="VOLUNTÁRIA ESPECIAL",IF($D$12="X",IF($G$10="X",(25*365)-$F$61,(30*365)-$F$61),IF(G10="X",(30*365)-F61,(35*365)-F61)),IF($G$10="X",(30*365)-$F$61,(35*365)-$F$61)) ->  | BB146: AG. APOIO EDUCACIONAL I | BC146: NÍVEL III | BD146: NÍVEL II | BE146: NÍVEL II | BF146: NÍVEL I | BG146: NÍVEL I | BH146: NÍVEL I
B147: VOLUNTÁRIA INTEGRAL | C147: =30*365 -> 10950 | E147: =35*365 -> 12775 | F147: 20089 | H147: 21915 | I147: =F147-C151 ->  | J147: =H147-E151 ->  | L147: REGRAS ANTES EC20 | O147: ESPECIAL / INTEGRAL | R147: =IF($E$2="VOLUNTÁRIA ESPECIAL",IF($D$12="X",IF($G$10="X",(25*365)-$F$37,(30*365)-$F$37)),IF($G$10="X",(30*365)-$F$37,(35*365)-$F$37)) ->  | BB147: MOTORISTA | BC147: NÍVEL III | BD147: NÍVEL II | BE147: NÍVEL II | BF147: NÍVEL I | BG147: NÍVEL I | BH147: NÍVEL I
B148: VOLUNTÁRIA ESPECIAL | C148: =25*365 -> 9125 | E148: =30*365 -> 10950 | F148: 18264 | H148: 20089 | I148: =F148-C152 ->  | J148: =H148-E152 ->  | O148: VOL. PROPORCIONAL T. CONTRIBUIÇÃO | R148: =IF($E$2=$B$122,IF($G$10="X",(25*365)-$F$37,(30*365)-$F$37),IF($G$10="X",(30*365)-$F$37,(35*365)-$F$37)) ->  | BB148: INSPETOR DE ALUNOS | BC148: NÍVEL III | BD148: NÍVEL II | BE148: NÍVEL II | BF148: NÍVEL I | BG148: NÍVEL I | BH148: NÍVEL I
B149: VOLUNTÁRIA COM REDUTOR | F149: =55*365+14 -> 20089 | H149: =60*365+15 -> 21915 | I149: =65*365+16 -> 23741 | L149: TRANSIÇÃO_EMENDA 47 | O149: INTEGRAL | Q149: AF91 | BB149: ARTÍFICE | BC149: NÍVEL III | BD149: NÍVEL II | BE149: NÍVEL II | BF149: NÍVEL I | BG149: NÍVEL I | BH149: NÍVEL I
F150: =50*365+14 -> 18264 | H150: =55*365+14 -> 20089 | BB150: AG. AUX. ADMINISTRATIVO | BC150: NÍVEL III | BD150: NÍVEL II | BE150: NÍVEL II | BF150: NÍVEL I | BG150: NÍVEL I | BH150: NÍVEL I
B151: TEMPO Q PASSA | C151: =ROUNDDOWN(($F$61-C147),0) ->  | E151: =ROUNDDOWN(($F$61-E147),0) ->  | F151: =ROUNDDOWN(F147/365,0) -> 55 | H151: =ROUNDDOWN(H147/365,0) -> 60 | I151: =ROUNDDOWN(I147/365,0) ->  | J151: =ROUNDDOWN(J147/365,0) ->  | L151: TS FALTANTE | BB151: GARÇÃO | BC151: NÍVEL III | BD151: NÍVEL II | BE151: NÍVEL II | BF151: NÍVEL I | BG151: NÍVEL I | BH151: NÍVEL I
B152: TEMPO Q PASSA | C152: =ROUNDDOWN(($F$61-C148),0) ->  | E152: =ROUNDDOWN(($F$61-E148),0) ->  | F152: =ROUNDDOWN(F148/365,0) -> 50 | H152: =ROUNDDOWN(H148/365,0) -> 55 | L152: MULHER | M152: =I147-O9 ->  | BB152: TELEFONISTA | BC152: NÍVEL III | BD152: NÍVEL II | BE152: NÍVEL II | BF152: NÍVEL I | BG152: NÍVEL I | BH152: NÍVEL I
C153: =ROUNDDOWN(C151/365,0) ->  | E153: =ROUNDDOWN($E$151/365,0) ->  | I153: =IF($G$10="x",55-$C$153,0) -> 0 | J153: =IF($D$10="x",60-$E$153,0) ->  | L153: HOMEM | BB153: ASCENSORISTA | BC153: NÍVEL III | BD153: NÍVEL II | BE153: NÍVEL II | BF153: NÍVEL I | BG153: NÍVEL I | BH153: NÍVEL I
BB154: AUX. APOIO EDUCACIONAL I | BC154: NÍVEL III | BD154: NÍVEL II | BE154: NÍVEL II | BF154: NÍVEL I | BG154: NÍVEL I | BH154: NÍVEL I
B155: ADICIONAL POR TEMPO DE SERVIÇO - ENTES DA FEDERAÇÃO | BI155: =A175*1.45 -> 23.2 | BJ155: 113.29 | BK155: 113.29 | BL155: 157.35
B156: INSPETORIAS GERAIS DE CONTROLE DE PESSOAL - IGP | C156: ATS | D156: 1998-12-16 | E156: 2003-12-31 | F156: 2003-12-31 | G156: ANTES EC20 | H156: APÓS EC20 | I156: APÓS EC41 | J156: ARREDONDAMENTO - BAIXO | M156: IGP | P156: T E M P O F A L T A N T E | V156: A N O S | AA156: D I A S | AF156: TEMPO | AG156: DT | AH156: DT
A157: 1 | B157: ESTADO DO RIO DE JANEIRO | C157: TRIÊNIO | D157: =IF(ISERROR(HLOOKUP($N$34,$Q$39:$AA$40,2)),0,HLOOKUP($N$34,$Q$39:$AA$40,2)) -> 0 | E157: =IF(ISERROR(HLOOKUP($O$34,$Q$39:$AA$40,2)),0,HLOOKUP($O$34,$Q$39:$AA$40,2)) -> 0 | F157: =IF(ISERROR(HLOOKUP($O$60,$Q$39:$AA$40,2)),0,HLOOKUP($O$60,$Q$39:$AA$40,2)) -> 0 | G157: NO CORPO DA PLANILHA | J157: NO CORPO DA PLANILHA | M157: COMUM | O157: 1 | P157: MOD/REG | Q157: T. CONTRIBUIÇÃO | R157: T. CARGO | S157: T. CARREIRA | T157: T. SERV. PÚBL. | U157: IDADE | V157: TTCONT | W157: CARGO | X157: CARREIRA | Y157: TSCP | Z157: IDADE | AA157: TTCONT | AB157: CARGO | AC157: CARREIRA | AD157: TSCP | AE157: IDADE | AF157: FALTANTE | AG157: HOJE | AH157: FUTURA
A158: 2 | B158: ANGRA DOS REIS | C158: ANUÊNIO | D158: =IF(ISERROR(HLOOKUP($J$158,$Q$26:$AT$27,2)),0,HLOOKUP($J$158,$Q$26:$AT$27,2)) -> 0 | E158: =IF(ISERROR(HLOOKUP($K$158,$Q$26:$AT$27,2)),0,HLOOKUP($K$158,$Q$26:$AT$27,2)) -> 0 | F158: =IF(ISERROR(HLOOKUP($L$158,$Q$26:$AT$27,2)),0,HLOOKUP($L$158,$Q$26:$AT$27,2)) -> 0 | G158: =SUM($F$27:$F$32) ->  | H158: =SUM($F$27:$F$32)+$J$51 ->  | I158: =SUM($F$27:$F$32)+$J$51+$J$60 ->  | J158: =ROUNDDOWN(G158/365,0) ->  | K158: =ROUNDDOWN(H158/365,0) ->  | M158: 1ª IGP | O158: 2 | P158: REGRAS ANTES EC20 | Q158: =IF($E$2=$B$122,$R$148,$R$147) ->  | R158: NÃO CABE | S158: NÃO CABE | T158: =IF($D$10="x",IF(OR($E$2=$B$115,$E$2=$B$118),IF($F$61<(35*365),(35*365)-$F$61,0),IF(OR($E$2=$B$116,$E$2=$B$122),IF($F$61<(30*365),(30*365)-$F$61,0),"REVER")),IF($G$10="x",IF(OR($E$2=$B$115,$E$2=$B$118),IF($F$61<(30*365),(30*365)-$F$61,0),IF(OR($E$2=$B$116,$E$2=$B$122),IF($F$61<(25*365),(25*365)-$F$61,0),"NÃO CABE")),"REVER FUNDAMENTAÇÃO E/OU MODALIDADE")) ->  | U158: =IF($E$2=$B$117,IF($D$10="X",IF($O$9>=(65*365+15),0,(65*365+15)-$O$9),IF($G$10="X",IF($O$9>=(60*365+14),0,(60*365+14)-$O$9),"MARQUE O SEXO")),IF(OR($E$2=$B$118,$E$2=$B$119),IF($O$9>=(70*365+18),0,(70*365+18)-$O$9),"REVER FUNDAMENTAÇÃO E/OU MODALIDADE")) -> REVER FUNDAMENTAÇÃO E/OU MODALIDADE | V158: =ROUNDDOWN($Q$86/365,0) ->  | W158: =IF($R$86="NÃO CABE",0,ROUNDDOWN($R$86/365,0)) -> 0 | X158: =IF($S$86="NÃO CABE",0,ROUNDDOWN($S$86/365,0)) -> 0 | Y158: =IF(OR($T$86="NÃO CABE",$T$86="REVER FUNDAMENTAÇÃO E/OU MODALIDADE",$T$86="REVER"),0,ROUNDDOWN($T$86/365,0)) ->  | Z158: =IF(OR($U$86="NÃO CABE",$U$86="MARQUE O SEXO",$U$86="REVER FUNDAMENTAÇÃO E/OU MODALIDADE"),0,ROUNDDOWN($U$86/365,0)) -> 0 | AA158: =(($Q$86/365)-$V$86)*365 ->  | AB158: =IF($R$86="NÃO CABE",0,(($R$86/365)-$W$86)*365) -> 0 | AC158: =IF($S$86="NÃO CABE",0,(($S$86/365)-$X$86)*365) -> 0 | AD158: =IF(OR($T$86="NÃO CABE",$T$86="REVER"),0,(($T$86/365)-$Y$86)*365) ->  | AE158: =IF(OR($U$86="NÃO CABE",$U$86="MARQUE O SEXO",$U$86="REVER FUNDAMENTAÇÃO E/OU MODALIDADE"),0,(($U$86/365)-$Z$86)*365) -> 0 | AF158: =MAX(Q158:U158) ->  | AG158: ='2 Def Apos'!$E$23 -> 00:00:00 | AH158: =$AG$158+$AF$158 -> 
A159: 2.1 | B159: ANGRA DOS REIS - MAGISTÉRIO | C159: TRIÊNIO | D159: =IF(ISERROR(HLOOKUP($J$159,$Q$45:$AB$46,2)),0,HLOOKUP($J$159,$Q$45:$AB$46,2)) -> 0 | E159: =IF(ISERROR(HLOOKUP($K$159,$Q$45:$AB$46,2)),0,HLOOKUP($K$159,$Q$45:$AB$46,2)) -> 0 | F159: =IF(ISERROR(HLOOKUP($L$159,$Q$45:$AB$46,2)),0,HLOOKUP($L$159,$Q$45:$AB$46,2)) -> 0 | G159: =SUM($F$27:$F$32) ->  | H159: =SUM($F$27:$F$32)+$J$51 ->  | I159: =SUM($F$27:$F$32)+$J$51+$J$60 ->  | M159: 1ª IGP | O159: 3 | P159: VI_RP_REDAÇÃO EC 20/98 | Q159: =IF(AND($N$8<>0,N8>=$Q$12,D14<>"X"),"A PARTIR DE 20/02/2004 ESSA REGRA NÃO SE APLICA AO SERVIDOR",IF(D14="x",IF($G$10="X",(30*365)-VI_RP_EC20!F61,IF($D$10="X",(35*365)-VI_RP_EC20!F61,"PREENCHA CAMPO DESTINADO AO SEXO")),"REVER FUNDAMENTAÇÃO E/OU MODALIDADE")) -> A PARTIR DE 20/02/2004 ESSA REGRA NÃO SE APLICA AO SERVIDOR | R159: =IF($O$13>=(5*365),0,(5*365)-$O$13) -> 1825 | S159: NÃO CABE | T159: =IF(VI_RP_EC20!$O$15>=(10*365),0,(10*365)-VI_RP_EC20!$O$15) ->  | U159: =IF(AND($N$8<>0,N8>$Q$12,$F$71>=0),"A PARTIR DE 20/02/2004 ESSA REGRA NÃO SE APLICA AO SERVIDOR",IF($D$10="X",IF(VI_RP_EC20!$O$9>=(60*365+15),0,(60*365+15)-VI_RP_EC20!$O$9),IF($G$10="X",IF(VI_RP_EC20!$O$9>=(55*365+14),0,(55*365+14)-VI_RP_EC20!$O$9),"MARQUE O SEXO"))) ->  | V159: =IF(AND($Q$159<>"A PARTIR DE 20/02/2004 ESSA REGRA NÃO SE APLICA AO SERVIDOR",Q159<>"REVER FUNDAMENTAÇÃO E/OU MODALIDADE"),ROUNDDOWN($Q$159/365,0),0) -> 0 | W159: =IF(R159="NÃO CABE",0,ROUNDDOWN(R159/365,0)) -> 5 | X159: =IF(S159="NÃO CABE",0,ROUNDDOWN(S159/365,0)) -> 0 | Y159: =IF(T159="NÃO CABE",0,ROUNDDOWN(T159/365,0)) ->  | Z159: =IF(OR(U159="A PARTIR DE 20/02/2004 ESSA REGRA NÃO SE APLICA AO SERVIDOR",U159="MARQUE O SEXO"),0,ROUNDDOWN(U159/365,0)) ->  | AA159: =IF(AND(Q159<>"A PARTIR DE 20/02/2004 ESSA REGRA NÃO SE APLICA AO SERVIDOR",Q159<>"REVER FUNDAMENTAÇÃO E/OU MODALIDADE"),((Q159/365)-V159)*365,0) -> 0 | AB159: =IF(R159="NÃO CABE",0,((R159/365)-W159)*365) -> 0 | AC159: =IF(S159="NÃO CABE",0,((S159/365)-X159)*365) -> 0 | AD159: =IF(T159="NÃO CABE",0,((T159/365)-Y159)*365) ->  | AE159: =IF(OR(U159="NÃO CABE",U159="MARQUE O SEXO",U159="A PARTIR DE 20/02/2004 ESSA REGRA NÃO SE APLICA AO SERVIDOR"),0,((U159/365)-Z159)*365) ->  | AF159: =MAX(Q159:U159) ->  | AG159: ='2 Def Apos'!$E$23 -> 00:00:00 | AH159: =IF($AF$159<=0,VI_RP_EC20!N10,$AG$159+$AF$159) -> 
A160: 3 | B160: BARRA DO PIRAÍ | C160: TRIÊNIO | D160: =IF(ISERROR(HLOOKUP($J$160,$Q$48:$AB$49,2)),0,HLOOKUP($J$160,$Q$48:$AB$49,2)) -> 0 | E160: =IF(ISERROR(HLOOKUP($K$160,$Q$48:$AB$49,2)),0,HLOOKUP($K$160,$Q$48:$AB$49,2)) -> 0 | F160: =IF(ISERROR(HLOOKUP($L$160,$Q$48:$AB$49,2)),0,HLOOKUP($L$160,$Q$48:$AB$49,2)) -> 0 | G160: =SUM($F$30:$F$32) ->  | H160: =SUM($F$30:$F$32)+$J$51 ->  | I160: =SUM($F$30:$F$32)+$J$51+$J$60 ->  | M160: 1ª IGP | O160: 4 | P160: VE_RP_REDAÇÃO EC 20/98 | Q160: =IF(AND($N$8<>0,$N$8>=$Q$12),"A PARTIR DE 20/02/2004 ESSA REGRA NÃO SE APLICA AO SERVIDOR",IF(AND($D$12="X",$D$14="X"),IF($G$10="X",(25*365)-VE_RP_EC20!$F$61,IF($D$10="X",(30*365)-VE_RP_EC20!$F$61,"PREENCHA CAMPO DESTINADO AO SEXO")),"CONFIRME MAGISTÉRIO OU REVEJA FUNDAMENTAÇÃO")) -> A PARTIR DE 20/02/2004 ESSA REGRA NÃO SE APLICA AO SERVIDOR | R160: 1825 | S160: NÃO CABE | T160: =IF(VE_RP_EC20!$O$15>=(10*365),0,(10*365)-VE_RP_EC20!$O$15) ->  | U160: =IF(AND($N$8<>0,N8>=$Q$12,$F$71>=0),"A PARTIR DE 20/02/2004 ESSA REGRA NÃO SE APLICA AO SERVIDOR",IF($D$10="X",IF(VE_RP_EC20!$O$9>=(55*365+14),0,(60*365+14)-VE_RP_EC20!$O$9),IF($G$10="X",IF(VE_RP_EC20!$O$9>=(50*365+14),0,(50*365+14)-VE_RP_EC20!$O$9),"MARQUE O SEXO"))) ->  | V160: =IF(AND(Q160<>"A PARTIR DE 20/02/2004 ESSA REGRA NÃO SE APLICA AO SERVIDOR",Q160<>"CONFIRME MAGISTÉRIO OU REVEJA FUNDAMENTAÇÃO"),ROUNDDOWN(Q160/365,0),0) -> 0 | W160: =IF(R160="NÃO CABE",0,ROUNDDOWN(R160/365,0)) -> 5 | X160: =IF(S160="NÃO CABE",0,ROUNDDOWN(S160/365,0)) -> 0 | Y160: =IF(T160="NÃO CABE",0,ROUNDDOWN(T160/365,0)) ->  | Z160: =IF(OR(U160="A PARTIR DE 20/02/2004 ESSA REGRA NÃO SE APLICA AO SERVIDOR",U160="MARQUE O SEXO"),0,ROUNDDOWN(U160/365,0)) ->  | AA160: =IF(AND(Q160<>"A PARTIR DE 20/02/2004 ESSA REGRA NÃO SE APLICA AO SERVIDOR",Q160<>"CONFIRME MAGISTÉRIO OU REVEJA FUNDAMENTAÇÃO"),((Q160/365)-V160)*365,0) -> 0 | AB160: =IF(R160="NÃO CABE",0,((R160/365)-W160)*365) -> 0 | AC160: =IF(S160="NÃO CABE",0,((S160/365)-X160)*365) -> 0 | AD160: =IF(T160="NÃO CABE",0,((T160/365)-Y160)*365) ->  | AE160: =IF(OR(U160="NÃO CABE",U160="MARQUE O SEXO",U160="A PARTIR DE 20/02/2004 ESSA REGRA NÃO SE APLICA AO SERVIDOR"),0,((U160/365)-Z160)*365) ->  | AF160: =MAX(Q160:U160) ->  | AG160: ='2 Def Apos'!$E$23 -> 00:00:00 | AH160: =IF($AF$160<=0,VE_RP_EC20!N10,$AG$160+$AF$160) -> 
A161: 4 | B161: BARRA MANSA | C161: TRIÊNIO | D161: =IF(ISERROR(HLOOKUP($J$161,$Q$48:$Z$49,2)),0,HLOOKUP($J$161,$Q$48:$Z$49,2)) -> 0 | E161: =IF(ISERROR(HLOOKUP($K$161,$Q$48:$Z$49,2)),0,HLOOKUP($K$161,$Q$48:$Z$49,2)) -> 0 | F161: =IF(ISERROR(HLOOKUP($L$161,$Q$48:$Z$49,2)),0,HLOOKUP($L$161,$Q$48:$Z$49,2)) -> 0 | G161: =SUM($F$27:$F$32) ->  | H161: =SUM($F$27:$F$32)+$J$51 ->  | I161: =SUM($F$27:$F$32)+$J$51+$J$60 ->  | K161: =ROUNDDOWN(H161/365,0) ->  | L161: =ROUNDDOWN(I161/365,0) ->  | M161: 1ª IGP | O161: 5 | P161: VPI_RP_REDAÇÃO EC 20/98 | Q161: =IF(AND($N$8<>0,$N$8>=$Q$12),"A PARTIR DE 20/02/2004 ESSA REGRA NÃO SE APLICA AO SERVIDOR",IF(D14="X",IF($G$10="X",(30*365)-$F$61,IF($D$10="X",(35*365)-$F$61,"PREENCHA CAMPO DESTINADO AO SEXO")),"REVER FUNDAMENTAÇÃO E/OU MODALIDADE")) -> A PARTIR DE 20/02/2004 ESSA REGRA NÃO SE APLICA AO SERVIDOR | R161: 1825 | S161: NÃO CABE | T161: =IF($O$15>=(10*365),0,(10*365)-$O$15) ->  | U161: =IF($D$10="X",IF(VPI_RP_EC41!$O$9>=(65*365+16),0,(65*365+16)-VPI_RP_EC41!$O$9),IF($G$10="X",IF(VPI_RP_EC41!$O$9>=(60*365+15),0,(60*365+15)-VPI_RP_EC41!$O$9),"MARQUE O SEXO")) ->  | V161: =IF(AND(Q161<>"A PARTIR DE 20/02/2004 ESSA REGRA NÃO SE APLICA AO SERVIDOR",Q161<>"REVER FUNDAMENTAÇÃO E/OU MODALIDADE"),ROUNDDOWN(Q161/365,0),0) -> 0 | W161: 5 | X161: 0 | Z161: =IF(OR(U161="A PARTIR DE 20/02/2004 ESSA REGRA NÃO SE APLICA AO SERVIDOR",U161="MARQUE O SEXO"),0,ROUNDDOWN(U161/365,0)) ->  | AA161: =IF(AND(Q161<>"A PARTIR DE 20/02/2004 ESSA REGRA NÃO SE APLICA AO SERVIDOR",Q161<>"REVER FUNDAMENTAÇÃO E/OU MODALIDADE"),((Q161/365)-V161)*365,0) -> 0 | AB161: 0 | AC161: 0 | AE161: =IF(OR(U161="NÃO CABE",U161="MARQUE O SEXO",U161="A PARTIR DE 20/02/2004 ESSA REGRA NÃO SE APLICA AO SERVIDOR"),0,((U161/365)-Z161)*365) ->  | AF161: =U161 ->  | AG161: ='2 Def Apos'!$E$23 -> 00:00:00 | AH161: =IF(OR(VPI_RP_EC41!$N$10<38037,$AF$161<=0),VPI_RP_EC41!$N$10,$AG$161+$AF$161) ->  | BD161: ANOS | BE161: 5 | BF161: 10 | BG161: 15 | BH161: 20 | BI161: 25 | BJ161: >25
A162: 5 | B162: BELFORD ROXO | C162: TRIÊNIO | D162: =IF(ISERROR(HLOOKUP($J$162,$Q$48:$AB$49,2)),0,HLOOKUP($J$162,$Q$48:$AB$49,2)) -> 0 | E162: =IF(ISERROR(HLOOKUP($K$162,$Q$48:$AB$49,2)),0,HLOOKUP($K$162,$Q$48:$AB$49,2)) -> 0 | F162: =IF(ISERROR(HLOOKUP($L$162,$Q$48:$AB$49,2)),0,HLOOKUP($L$162,$Q$48:$AB$49,2)) -> 0 | G162: =SUM($F$30:$F$32) ->  | H162: =SUM($F$30:$F$32)+$J$51 ->  | I162: =SUM($F$30:$F$32)+$J$51+$J$60 ->  | M162: 1ª IGP | O162: 6 | P162: COMPULSÓRIA_RP_EC 20/98 | Q162: =IF(AND($N$8<>0,N8>=$Q$12),"A PARTIR DE 20/02/2004 ESSA REGRA NÃO SE APLICA AO SERVIDOR",IF(D14="X",IF($G$10="X",(30*365)-$F$61,IF($D$10="X",(35*365)-$F$61,"PREENCHA CAMPO DESTINADO AO SEXO")),"REVER FUNDAMENTAÇÃO E/OU MODALIDADE")) -> A PARTIR DE 20/02/2004 ESSA REGRA NÃO SE APLICA AO SERVIDOR | R162: 1825 | S162: NÃO CABE | U162: =IF(AND(N8<>0,$N$8>=CRÍTICA_IGP1!$Q$12),"A PARTIR DE 20/02/2004 ESSA REGRA NÃO SE APLICA AO SERVIDOR",$Q$20) -> A PARTIR DE 20/02/2004 ESSA REGRA NÃO SE APLICA AO SERVIDOR | V162: =IF(AND(Q162<>"A PARTIR DE 20/02/2004 ESSA REGRA NÃO SE APLICA AO SERVIDOR",Q162<>"REVER FUNDAMENTAÇÃO E/OU MODALIDADE"),ROUNDDOWN(Q162/365,0),0) -> 0 | W162: 5 | X162: 0 | Z162: =IF(OR(U162="A PARTIR DE 20/02/2004 ESSA REGRA NÃO SE APLICA AO SERVIDOR",U162="MARQUE O SEXO"),0,ROUNDDOWN(U162/365,0)) -> 0 | AA162: =IF(AND(Q162<>"A PARTIR DE 20/02/2004 ESSA REGRA NÃO SE APLICA AO SERVIDOR",Q162<>"REVER FUNDAMENTAÇÃO E/OU MODALIDADE"),((Q162/365)-V162)*365,0) -> 0 | AB162: 0 | AC162: 0 | AE162: =IF(OR(U162="NÃO CABE",U162="MARQUE O SEXO",U162="A PARTIR DE 20/02/2004 ESSA REGRA NÃO SE APLICA AO SERVIDOR"),0,((U162/365)-Z162)*365) -> 0 | AF162: =IF(U162="O SERVIDOR NÃO FAZ JUS NESTA DATA",Q20,Q20) ->  | AG162: ='2 Def Apos'!$E$23 -> 00:00:00 | AH162: =IF(OR(VPI_RP_EC41!$N$10<38037,$AF$162<=0),VPI_RP_EC41!$N$10,$AG$162+$AF$162) ->  | BC162: PROF. DOCENTE I | BD162: DOCENTE I | BE162: REF 1 | BF162: REF 2 | BG162: REF 3 | BH162: REF 4 | BI162: REF 5 | BJ162: REF 6
A163: 5.1 | B163: BELFORD ROXO - CÂMARA | C163: TRIÊNIO | D163: =IF(ISERROR(HLOOKUP($J$163,$Q$48:$V$49,2)),0,HLOOKUP($J$163,$Q$48:$V$49,2)) -> 0 | E163: =IF(ISERROR(HLOOKUP($K$163,$Q$48:$V$49,2)),0,HLOOKUP($K$163,$Q$48:$V$49,2)) -> 0 | F163: =IF(ISERROR(HLOOKUP($L$163,$Q$48:$V$49,2)),0,HLOOKUP($L$163,$Q$48:$V$49,2)) -> 0 | G163: =SUM($F$30:$F$32) ->  | H163: =SUM($F$30:$F$32)+$J$51 ->  | I163: =SUM($F$30:$F$32)+$J$51+$J$60 ->  | M163: 1ª IGP | O163: 7 | P163: VI_RP_REDAÇÃO EC 41/03 | Q163: =IF($G$10="X",(30*365)-$F$61,IF($D$10="X",(35*365)-$F$61,"PREENCHA CAMPO DESTINADO AO SEXO")) ->  | R163: 1825 | S163: NÃO CABE | U163: =IF($D$10="X",IF($O$9>=(60*365+15),0,(60*365+15)-$O$9),IF($G$10="X",IF($O$9>=(55*365+14),0,(55*365+14)-$O$9),"MARQUE O SEXO")) ->  | V163: =IF(Q163>0,ROUNDDOWN(Q163/365,0),0) ->  | W163: 5 | X163: 0 | Z163: =IF(OR(U163<=0,U163="MARQUE O SEXO"),0,ROUNDDOWN(U163/365,0)) ->  | AA163: =IF(Q163>0,((Q163/365)-V163)*365,0) ->  | AB163: 0 | AC163: 0 | AE163: =IF(OR(U163="NÃO CABE",U163="MARQUE O SEXO",U163<=0),0,((U163/365)-Z163)*365) ->  | AG163: ='2 Def Apos'!$E$23 -> 00:00:00 | AH163: =$AG$163+$AF$163 ->  | BC163: PROF. DOCENTE II | BD163: DOCENTE II | BE163: REF 1 | BF163: REF 2 | BG163: REF 3 | BH163: REF 4 | BI163: REF 5 | BJ163: REF 6
A164: 6 | B164: ENGENHEIRO PAULO DE FRONTIM | C164: TRIÊNIO | D164: =IF(ISERROR(HLOOKUP($J$164,$Q$48:$AA$49,2)),0,HLOOKUP($J$164,$Q$48:$AA$49,2)) -> 0 | E164: =IF(ISERROR(HLOOKUP(K164,$Q$48:$AA$49,2)),0,HLOOKUP(K164,$Q$48:$AA$49,2)) -> 0 | F164: =IF(ISERROR(HLOOKUP(L164,$Q$48:$AA$49,2)),0,HLOOKUP(L164,$Q$48:$AA$49,2)) -> 0 | G164: =SUM($F$27:$F$33) ->  | H164: =SUM($F$27:$F$33)+$J$51 ->  | I164: =SUM($F$27:$F$33)+$J$51+$J$60 ->  | M164: 1ª IGP | O164: 8 | P164: VE_RP_REDAÇÃO EC 41/03 | Q164: =IF(D12="X",IF(G10="x",(25*365)-F61,IF(D10="X",(30*365)-F61,"PREENCHA CAMPO DESTINADO AO SEXO")),"CONFIRME EFETIVO MAGISTÉRIO") -> CONFIRME EFETIVO MAGISTÉRIO | R164: 1825 | S164: NÃO CABE | U164: =IF($D$10="X",IF($O$9>=(55*365+14),0,(55*365+14)-$O$9),IF($G$10="X",IF($O$9>=(50*365+14),0,(50*365+14)-$O$9),"MARQUE O SEXO")) ->  | V164: =IF(AND(Q164<>"PREENCHA CAMPO DESTINADO AO SEXO",Q164<>"CONFIRME EFETIVO MAGISTÉRIO"),ROUNDDOWN(Q164/365,0),0) -> 0 | W164: 5 | X164: 0 | Z164: =IF(OR(U164<=0,U164="MARQUE O SEXO"),0,ROUNDDOWN(U164/365,0)) ->  | AA164: =IF(AND(Q164<>"PREENCHA CAMPO DESTINADO AO SEXO",Q164<>"CONFIRME EFETIVO MAGISTÉRIO"),((Q164/365)-V164)*365,0) -> 0 | AB164: 0 | AC164: 0 | AE164: =IF(OR(U164="NÃO CABE",U164="MARQUE O SEXO",U164<=0),0,((U164/365)-Z164)*365) ->  | AG164: ='2 Def Apos'!$E$23 -> 00:00:00 | AH164: =$AG$164+$AF$164 ->  | BC164: PROF. AUX. ADM. I | BD164: AUX. ADM. I | BE164: REF 1 | BF164: REF 2 | BG164: REF 3 | BH164: REF 4 | BI164: REF 5 | BJ164: REF 6
A165: 7 | B165: ITAGUAÍ | C165: QUINQUÊNIO | D165: =IF(ISERROR(HLOOKUP($J$165,$Q$78:$W$79,2)),0,HLOOKUP($J$165,$Q$78:$W$79,2)) -> 0 | E165: =IF(ISERROR(HLOOKUP(K165,$Q$78:$W$79,2)),0,HLOOKUP(K165,$Q$78:$W$79,2)) -> 0 | F165: =IF(ISERROR(HLOOKUP(L165,$Q$78:$W$79,2)),0,HLOOKUP(L165,$Q$78:$W$79,2)) -> 0 | G165: =SUM($F$30:$F$32) ->  | H165: =SUM($F$30:$F$32)+$J$51 ->  | I165: =SUM($F$30:$F$32)+$J$51+$J$60 ->  | M165: 1ª IGP | O165: 9 | P165: VPI_RP_REDAÇÃO EC 41/03 | Q165: =IF($G$10="X",(30*365)-$F$61,IF($D$10="X",(35*365)-$F$61,"PREENCHA CAMPO DESTINADO AO SEXO")) ->  | R165: 1825 | S165: NÃO CABE | U165: =IF($D$10="X",IF($O$9>=(65*365+16),0,(65*365+16)-$O$9),IF($G$10="X",IF($O$9>=(60*365+15),0,(60*365+15)-$O$9),"MARQUE O SEXO")) ->  | V165: =IF(Q165>0,ROUNDDOWN(Q165/365,0),0) ->  | W165: 5 | X165: 0 | Z165: =IF(OR(U165<=0,U165="MARQUE O SEXO"),0,ROUNDDOWN(U165/365,0)) ->  | AA165: =IF(Q165>0,((Q165/365)-V165)*365,0) ->  | AB165: 0 | AC165: 0 | AE165: =IF(OR(U165="NÃO CABE",U165="MARQUE O SEXO",U165<=0),0,((U165/365)-Z165)*365) ->  | AF165: =U165 ->  | AG165: ='2 Def Apos'!$E$23 -> 00:00:00 | AH165: =$AG$165+$AF$165 ->  | BC165: PROF. AUX. ADM. II | BD165: AUX. ADM. I | BE165: REF 1 | BF165: REF 2 | BG165: REF 3 | BH165: REF 4 | BI165: REF 5 | BJ165: REF 6
A166: 7.1 | B166: ITAGUAÍ - MAGISTÉRIO | C166: QUINQUÊNIO | D166: =IF(ISERROR(HLOOKUP($J$166,$Q$78:$W$79,2)),0,HLOOKUP($J$166,$Q$78:$W$79,2)) -> 0 | E166: =IF(ISERROR(HLOOKUP(K166,$Q$78:$W$79,2)),0,HLOOKUP(K166,$Q$78:$W$79,2)) -> 0 | F166: =IF(ISERROR(HLOOKUP(L166,$Q$78:$W$79,2)),0,HLOOKUP(L166,$Q$78:$W$79,2)) -> 0 | H166: =SUM($F$30:$F$32)+$J$51 ->  | I166: =SUM($F$30:$F$32)+$J$51+$J$60 ->  | M166: 1ª IGP | O166: 10 | P166: COMPULSÓRIA_RP_EC 41/03 | Q166: =IF($G$10="X",(30*365)-$F$61,IF($D$10="X",(35*365)-$F$61,"PREENCHA CAMPO DESTINADO AO SEXO")) ->  | R166: 1825 | S166: NÃO CABE | U166: =$Q$20 ->  | V166: =IF(Q166>0,ROUNDDOWN(Q166/365,0),0) ->  | W166: 5 | X166: 0 | Z166: =IF(OR(U166<=0,U166="MARQUE O SEXO"),0,ROUNDDOWN(U166/365,0)) ->  | AA166: =IF(Q166>0,((Q166/365)-V166)*365,0) ->  | AB166: 0 | AC166: 0 | AE166: =IF(OR(U166="NÃO CABE",U166="MARQUE O SEXO",U166<=0),0,((U166/365)-Z166)*365) ->  | AF166: =U166 ->  | AG166: ='2 Def Apos'!$E$23 -> 00:00:00 | AH166: =$AG$166+$AF$166 ->  | BC166: MERENDEIRA | BE166: I | BF166: II | BG166: III | BH166: III | BI166: III | BJ166: III
A167: 8 | B167: ITATIAIA | C167: QUINQUÊNIO | D167: =IF(ISERROR(HLOOKUP($J$167,$Q$73:$W$74,2)),0,HLOOKUP($J$167,$Q$73:$W$74,2)) -> 0 | E167: =IF(ISERROR(HLOOKUP(K167,$Q$73:$W$74,2)),0,HLOOKUP(K167,$Q$73:$W$74,2)) -> 0 | F167: =IF(ISERROR(HLOOKUP(L167,$Q$73:$W$74,2)),0,HLOOKUP(L167,$Q$73:$W$74,2)) -> 0 | G167: =SUM($F$27:$F$32) ->  | H167: =SUM($F$27:$F$32)+$J$51 ->  | I167: =SUM($F$27:$F$32)+$J$51+$J$60 ->  | M167: 1ª IGP | O167: 11 | P167: VI_TRANSIÇÃO EC 20/98 | Q167: =IF(AND($N$8<>0,N8>=Q13),"A PARTIR DE 31/12/2003 ESSA REGRA NÃO SE APLICA AO SERVIDOR",IF(VI_TRANS_EC20!F61>=(VI_TRANS_EC20!F37+VI_TRANS_EC20!E44),0,(VI_TRANS_EC20!F37+VI_TRANS_EC20!E44)-VI_TRANS_EC20!F61)) -> A PARTIR DE 31/12/2003 ESSA REGRA NÃO SE APLICA AO SERVIDOR | R167: 1825 | S167: NÃO CABE | T167: =IF(VI_TRANS_EC20!F72="NADA A CUMPRIR",0,VI_TRANS_EC20!F72) -> 15330 | U167: =IF($D$10="X",IF(VI_TRANS_EC20!$O$9>=(53*365+14),0,(53*365+14)-VI_TRANS_EC20!$O$9),IF($G$10="x",IF(VI_TRANS_EC20!$O$9>=(48*365+12),0,(48*365+12)-VI_TRANS_EC20!$O$9),"MARQUE O SEXO")) ->  | V167: =IF(Q167<>"A PARTIR DE 31/12/2003 ESSA REGRA NÃO SE APLICA AO SERVIDOR",ROUNDDOWN(Q167/365,0),0) -> 0 | W167: 5 | X167: 0 | Y167: =IF(OR(T167="MARQUE O SEXO",T167="REVER FUNDAMENTAÇÃO E/OU MODALIDADE",T167="NÃO CABE",T167="NADA A CUMPRIR"),0,ROUNDDOWN(T167/365,0)) -> 42 | Z167: =IF(OR(U167="NÃO CABE",U167="MARQUE O SEXO",U167="REVER FUNDAMENTAÇÃO E/OU MODALIDADE"),0,ROUNDDOWN(U167/365,0)) ->  | AA167: =IF(Q167<>"A PARTIR DE 31/12/2003 ESSA REGRA NÃO SE APLICA AO SERVIDOR",((Q167/365)-V167)*365,0) -> 0 | AB167: 0 | AC167: 0 | AD167: =IF(OR(T167="MARQUE O SEXO",T167="REVER FUNDAMENTAÇÃO E/OU MODALIDADE",T167="NÃO CABE",T167="NADA A CUMPRIR"),0,((T167/365)-Y167)*365) -> 0 | AE167: =IF(OR($U$167="NÃO CABE",$U$167="MARQUE O SEXO",$U$167="REVER FUNDAMENTAÇÃO E/OU MODALIDADE"),0,(($U$167/365)-$Z$167)*365) ->  | AG167: ='2 Def Apos'!$E$23 -> 00:00:00 | AH167: =IF($AF$167<=0,VI_TRANS_EC20!N10,$AG$167+$AF$167) ->  | BB167: 26
A168: 9 | B168: JAPERI | C168: QUINQUÊNIO | D168: =IF(ISERROR(HLOOKUP($J$168,$Q$78:$W$79,2)),0,HLOOKUP($J$168,$Q$78:$W$79,2)) -> 0 | E168: =IF(ISERROR(HLOOKUP(K168,$Q$78:$W$79,2)),0,HLOOKUP(K168,$Q$78:$W$79,2)) -> 0 | F168: =IF(ISERROR(HLOOKUP(L168,$Q$78:$W$79,2)),0,HLOOKUP(L168,$Q$78:$W$79,2)) -> 0 | G168: =SUM($F$27:$F$32) ->  | H168: =SUM($F$27:$F$32)+$J$51 ->  | I168: =SUM($F$27:$F$32)+$J$51+$J$60 ->  | M168: 1ª IGP | O168: 12 | P168: VE_TRANSIÇÃO EC 20/98 | Q168: =IF(N8>=$Q$13,"A PARTIR DE 31/12/2003 ESSA REGRA NÃO SE APLICA AO SERVIDOR",IF(D12="X",IF(VE_TRANS_EC20!F61>=(VE_TRANS_EC20!F37+VE_TRANS_EC20!E44),0,(VE_TRANS_EC20!F37+VE_TRANS_EC20!E44)-VE_TRANS_EC20!F61),"CONFIRME MAGISTÉRIO")) -> A PARTIR DE 31/12/2003 ESSA REGRA NÃO SE APLICA AO SERVIDOR | R168: 1825 | S168: NÃO CABE | T168: =IF(VE_TRANS_EC20!F72="NADA A CUMPRIR",0,VE_TRANS_EC20!F72) -> 15330 | U168: =IF($D$10="X",IF(VE_TRANS_EC20!$O$9>=(53*365+14),0,(53*365+14)-VE_TRANS_EC20!$O$9),IF($G$10="X",IF(VE_TRANS_EC20!$O$9>=(48*365+12),0,(48*365+12)-VE_TRANS_EC20!$O$9),"MARQUE O SEXO")) ->  | V168: =IF(OR(Q168="A PARTIR DE 31/12/2003 ESSA REGRA NÃO SE APLICA AO SERVIDOR",Q168="CONFIRME MAGISTÉRIO"),0,ROUNDDOWN(Q168/365,0)) -> 0 | W168: 5 | X168: 0 | Y168: =IF(OR(T168="MARQUE O SEXO",T168="REVER FUNDAMENTAÇÃO E/OU MODALIDADE",T168="NÃO CABE",T168="NADA A CUMPRIR"),0,ROUNDDOWN(T168/365,0)) -> 42 | Z168: =IF(OR(U168="NÃO CABE",U168="MARQUE O SEXO",U168="REVER FUNDAMENTAÇÃO E/OU MODALIDADE"),0,ROUNDDOWN(U168/365,0)) ->  | AA168: =IF(AND(Q168<>"A PARTIR DE 31/12/2003 ESSA REGRA NÃO SE APLICA AO SERVIDOR",Q168<>"CONFIRME MAGISTÉRIO"),((Q168/365)-V168)*365,0) -> 0 | AB168: 0 | AC168: 0 | AD168: =IF(OR(T168="MARQUE O SEXO",T168="REVER FUNDAMENTAÇÃO E/OU MODALIDADE",T168="NÃO CABE",T168="NADA A CUMPRIR"),0,((T168/365)-Y168)*365) -> 0 | AE168: =IF(OR($U$168="NÃO CABE",$U$168="MARQUE O SEXO",$U$168="REVER FUNDAMENTAÇÃO E/OU MODALIDADE"),0,(($U$168/365)-$Z$168)*365) ->  | AG168: ='2 Def Apos'!$E$23 -> 00:00:00 | AH168: =IF($AF$168<=0,VE_TRANS_EC20!N10,$AG$168+$AF$168) -> 
A169: 10 | B169: MANGARATIBA | C169: TRIÊNIO | D169: =IF(ISERROR(HLOOKUP($J$169,$Q$39:$Y$40,2)),0,HLOOKUP($J$169,$Q$39:$Y$40,2)) -> 0 | E169: =IF(ISERROR(HLOOKUP(K169,$Q$39:$Y$40,2)),0,HLOOKUP(K169,$Q$39:$Y$40,2)) -> 0 | F169: =IF(ISERROR(HLOOKUP(L169,$Q$39:$Y$40,2)),0,HLOOKUP(L169,$Q$39:$Y$40,2)) -> 0 | G169: =SUM($F$27:$F$32) ->  | H169: =SUM($F$27:$F$32)+$J$51 ->  | I169: =SUM($F$27:$F$32)+$J$51+$J$60 ->  | M169: 1ª IGP | O169: 13 | P169: VPTC_TRANSIÇÃO EC 20/98 | Q169: =IF(AND($N$8<>0,N8>=$Q$13),"A PARTIR DE 31/12/2003 ESSA REGRA NÃO SE APLICA AO SERVIDOR",IF(VPTC_TRANS_EC20!F61>=(VPTC_TRANS_EC20!F37+VPTC_TRANS_EC20!E44),0,(VPTC_TRANS_EC20!F37+VPTC_TRANS_EC20!E44)-VPTC_TRANS_EC20!F61)) -> A PARTIR DE 31/12/2003 ESSA REGRA NÃO SE APLICA AO SERVIDOR | R169: 1825 | S169: NÃO CABE | T169: =IF(VPTC_TRANS_EC20!F72="NADA A CUMPRIR",0,VPTC_TRANS_EC20!F72) -> 15330 | U169: =IF($D$10="X",IF(VPTC_TRANS_EC20!$O$9>=(53*365+14),0,(53*365+14)-VPTC_TRANS_EC20!$O$9),IF($G$10="X",IF(VPTC_TRANS_EC20!$O$9>=(48*365+12),0,(48*365+12)-VPTC_TRANS_EC20!$O$9),"MARQUE O SEXO")) ->  | V169: =IF(Q169<>"A PARTIR DE 31/12/2003 ESSA REGRA NÃO SE APLICA AO SERVIDOR",ROUNDDOWN(Q169/365,0),0) -> 0 | W169: 5 | X169: 0 | Y169: =IF(OR(T169="MARQUE O SEXO",T169="REVER FUNDAMENTAÇÃO E/OU MODALIDADE",T169="NÃO CABE",T169="NADA A CUMPRIR"),0,ROUNDDOWN(T169/365,0)) -> 42 | Z169: =IF(OR(U169="NÃO CABE",U169="MARQUE O SEXO",U169="REVER FUNDAMENTAÇÃO E/OU MODALIDADE"),0,ROUNDDOWN(U169/365,0)) ->  | AA169: =IF(Q169<>"A PARTIR DE 31/12/2003 ESSA REGRA NÃO SE APLICA AO SERVIDOR",((Q169/365)-V169)*365,0) -> 0 | AB169: 0 | AC169: 0 | AD169: =IF(OR(T169="MARQUE O SEXO",T169="REVER FUNDAMENTAÇÃO E/OU MODALIDADE",T169="NÃO CABE",T169="NADA A CUMPRIR"),0,((T169/365)-Y169)*365) -> 0 | AE169: =IF(OR($U$169="NÃO CABE",$U$169="MARQUE O SEXO",$U$169="REVER FUNDAMENTAÇÃO E/OU MODALIDADE"),0,(($U$169/365)-$Z$169)*365) ->  | AG169: ='2 Def Apos'!$E$23 -> 00:00:00 | AH169: =IF($AF$169<=0,VPTC_TRANS_EC20!N10,$AG$169+$AF$169) -> 
A170: 11 | B170: MENDES | C170: QUINQUÊNIO | D170: =IF(ISERROR(HLOOKUP($J$170,$Q$73:$AB$74,2)),0,HLOOKUP($J$170,$Q$73:$AB$74,2)) -> 0 | E170: =IF(ISERROR(HLOOKUP(K170,$Q$73:$AB$74,2)),0,HLOOKUP(K170,$Q$73:$AB$74,2)) -> 0 | F170: =IF(ISERROR(HLOOKUP(L170,$Q$73:$AB$74,2)),0,HLOOKUP(L170,$Q$73:$AB$74,2)) -> 0 | H170: =SUM($F$30:$F$32)+$J$51 ->  | I170: =SUM($F$30:$F$32)+$J$51+$J$60 ->  | M170: 1ª IGP | O170: 14 | P170: TRANSIÇÃO_ART. 2º_EC41 | Q170: =IF(AND(N8>Q11,'1 Hist'!$X$59=0,'1 Hist'!$Z$59=0,'1 Hist'!$X$96=0,'1 Hist'!$Z$96=0),"O SERVIDOR NÃO FAZ JUS A ESSA REGRA E/OU MODALIDADE",IF('VR_ART_ 2º'!$F$61>=('VR_ART_ 2º'!$F$37+'VR_ART_ 2º'!$E$44),0,('VR_ART_ 2º'!$F$37+'VR_ART_ 2º'!$E$44)-'VR_ART_ 2º'!$F$61)) -> O SERVIDOR NÃO FAZ JUS A ESSA REGRA E/OU MODALIDADE | R170: 1825 | S170: NÃO CABE | T170: =IF('VR_ART_ 2º'!$F$72="nada a cumprir",0,'VR_ART_ 2º'!$F$72) ->  | U170: =IF($D$10="X",IF('VR_ART_ 2º'!$O$9>=(53*365+14),0,(53*365+14)-'VR_ART_ 2º'!$O$9),IF($G$10="X",IF('VR_ART_ 2º'!$O$9>=(48*365+12),0,(48*365+12)-'VR_ART_ 2º'!$O$9),"MARQUE O SEXO")) ->  | V170: =IF($Q$170="O SERVIDOR NÃO FAZ JUS A ESSA REGRA E/OU MODALIDADE",0,ROUNDDOWN($Q$170/365,0)) -> 0 | W170: =IF($R$170="NÃO CABE",0,ROUNDDOWN($R$170/365,0)) -> 5 | X170: =IF($S$170="NÃO CABE",0,ROUNDDOWN($S$170/365,0)) -> 0 | Y170: =IF(OR($T$170="NÃO CABE",$T$170="NADA A CUMPRIR"),0,ROUNDDOWN($T$170/365,0)) ->  | Z170: =IF(OR($U$170="NÃO CABE",$U$170="MARQUE O SEXO",$U$170="REVER FUNDAMENTAÇÃO E/OU MODALIDADE"),0,ROUNDDOWN($U$170/365,0)) ->  | AA170: =IF($Q$170<>"O SERVIDOR NÃO FAZ JUS A ESSA REGRA E/OU MODALIDADE",(($Q$170/365)-$V$170)*365,0) -> 0 | AB170: =IF($R$170="NÃO CABE",0,(($R$170/365)-$W$170)*365) -> 0 | AC170: =IF($S$170="NÃO CABE",0,(($S$170/365)-$X$170)*365) -> 0 | AD170: =IF(OR($T$170="NÃO CABE",$T$170="NADA A CUMPRIR"),0,(($T$170/365)-$Y$170)*365) ->  | AE170: =IF(OR($U$170="NÃO CABE",$U$170="MARQUE O SEXO",$U$170="REVER FUNDAMENTAÇÃO E/OU MODALIDADE"),0,(($U$170/365)-$Z$170)*365) ->  | AF170: =MAX($Q$170:$U$170) ->  | AG170: ='2 Def Apos'!$E$23 -> 00:00:00 | AH170: =$AG$170+$AF$170 -> 
A171: 12 | B171: MESQUITA | H171: =SUM($F$30:$F$32)+$J$51 ->  | I171: =SUM($F$30:$F$32)+$J$51+$J$60 ->  | J171: =ROUNDDOWN(G171/365,0) ->  | K171: =ROUNDDOWN(H171/365,0) ->  | L171: =ROUNDDOWN(I171/365,0) ->  | M171: 1ª IGP | O171: 15 | P171: VI_TRANSIÇÃO ART. 6º | Q171: =IF(AND($N$8>$Q$13,'1 Hist'!$AA$59=0,'1 Hist'!$AC$59=0,'1 Hist'!$AA$96=0,'1 Hist'!$AC$96=0),"O SERVIDOR NÃO FAZ JUS A ESSA REGRA E/OU MODALIDADE",IF($G$10="X",(30*365)-$F$61,IF($D$10="X",(35*365)-$F$61,"MARQUE O SEXO"))) -> O SERVIDOR NÃO FAZ JUS A ESSA REGRA E/OU MODALIDADE | R171: 1825 | S171: =IF($O$14>=(10*365),0,(10*365)-$O$13) -> 3650 | T171: =IF($O$15>=(20*365),0,(20*365)-$O$15) ->  | U171: =IF($D$10="X",IF($O$9>=(60*365+15),0,(60*365+15)-$O$9),IF($G$10="X",IF($O$9>=(55*365+14),0,(55*365+14)-$O$9),"MARQUE O SEXO")) ->  | V171: =IF(OR(Q171="O SERVIDOR NÃO FAZ JUS A ESSA REGRA E/OU MODALIDADE",Q171="MARQUE O SEXO"),0,ROUNDDOWN(Q171/365,0)) -> 0 | W171: 5 | X171: 10 | Y171: =IF(T171="NÃO CABE",0,ROUNDDOWN(T171/365,0)) ->  | Z171: =IF(OR($U$171="NÃO CABE",$U$171="MARQUE O SEXO",$U$171="REVER FUNDAMENTAÇÃO E/OU MODALIDADE"),0,ROUNDDOWN($U$171/365,0)) ->  | AA171: =IF(OR(Q171="O SERVIDOR NÃO FAZ JUS A ESSA REGRA E/OU MODALIDADE",Q171="MARQUE O SEXO"),0,((Q171/365)-V171)*365) -> 0 | AB171: 0 | AC171: 0 | AD171: =IF($T$171="NÃO CABE",0,(($T$171/365)-$Y$171)*365) ->  | AE171: =IF(OR($U$171="NÃO CABE",$U$171="MARQUE O SEXO",$U$171="REVER FUNDAMENTAÇÃO E/OU MODALIDADE"),0,(($U$171/365)-$Z$171)*365) ->  | AG171: ='2 Def Apos'!$E$23 -> 00:00:00 | AH171: =$AG$171+$AF$171 -> 
A172: 13 | B172: MIGUEL PEREIRA | C172: ANUÊNIO | D172: =IF(ISERROR(HLOOKUP($J$172,$Q$26:$AT$27,2)),0,HLOOKUP($J$172,$Q$26:$AT$27,2)) -> 0 | E172: =IF(ISERROR(HLOOKUP(K172,$Q$26:$AT$27,2)),0,HLOOKUP(K172,$Q$26:$AT$27,2)) -> 0 | F172: =IF(ISERROR(HLOOKUP(L172,$Q$26:$AT$27,2)),0,HLOOKUP(L172,$Q$26:$AT$27,2)) -> 0 | G172: =SUM($F$30:$F$32) ->  | H172: =SUM($F$30:$F$32)+$J$51 ->  | I172: =SUM($F$30:$F$32)+$J$51+$J$60 ->  | J172: =ROUNDDOWN(G172/365,0) ->  | K172: =ROUNDDOWN(H172/365,0) ->  | L172: =ROUNDDOWN(I172/365,0) ->  | M172: 1ª IGP | O172: 16 | P172: VE_TRANSIÇÃO ART. 6º | Q172: =IF(AND($N$8>$Q$13,'1 Hist'!$AA$96=0,'1 Hist'!$AC$96=0,'1 Hist'!$AA$59=0,'1 Hist'!$AC$59=0),"O SERVIDOR NÃO FAZ JUS A ESSA REGRA E/OU MODALIDADE",IF($D$12="X",IF($G$10="X",(25*365)-$F$61,IF($D$10="X",(30*365)-$F$61,"MARQUE O SEXO")),"CONFIRME MAGISTÉRIO")) -> O SERVIDOR NÃO FAZ JUS A ESSA REGRA E/OU MODALIDADE | R172: 1825 | S172: =IF($O$14>=(10*365),0,(10*365)-$O$13) -> 3650 | T172: =IF($O$15>=(20*365),0,(20*365)-$O$15) ->  | U172: =IF($D$10="X",IF($O$9>=(55*365+14),0,(55*365+14)-$O$9),IF($G$10="X",IF($O$9>=(50*365+14),0,(50*365+14)-$O$9),"MARQUE O SEXO")) ->  | V172: =IF(OR($Q$172="O SERVIDOR NÃO FAZ JUS A ESSA REGRA E/OU MODALIDADE",$Q$172="MARQUE O SEXO",$Q$172="CONFIRME MAGISTÉRIO"),0,ROUNDDOWN($Q$172/365,0)) -> 0 | W172: =IF($R$172="NÃO CABE",0,ROUNDDOWN($R$172/365,0)) -> 5 | X172: =IF($S$172="NÃO CABE",0,ROUNDDOWN($S$172/365,0)) -> 10 | Y172: =IF($T$172="NÃO CABE",0,ROUNDDOWN($T$172/365,0)) ->  | Z172: =IF(OR($U$172="NÃO CABE",$U$172="MARQUE O SEXO",$U$172="REVER FUNDAMENTAÇÃO E/OU MODALIDADE"),0,ROUNDDOWN($U$172/365,0)) ->  | AA172: =IF(OR($Q$172="O SERVIDOR NÃO FAZ JUS A ESSA REGRA E/OU MODALIDADE",$Q$172="MARQUE O SEXO",$Q$172="CONFIRME MAGISTÉRIO"),0,(($Q$172/365)-$V$172)*365) -> 0 | AB172: =IF($R$172="NÃO CABE",0,(($R$172/365)-$W$172)*365) -> 0 | AC172: =IF($S$172="NÃO CABE",0,(($S$172/365)-$X$172)*365) -> 0 | AD172: =IF($T$172="NÃO CABE",0,(($T$172/365)-$Y$172)*365) ->  | AE172: =IF(OR($U$172="NÃO CABE",$U$172="MARQUE O SEXO",$U$172="REVER FUNDAMENTAÇÃO E/OU MODALIDADE"),0,(($U$172/365)-$Z$172)*365) ->  | AF172: =MAX($Q$172:$U$172) ->  | AG172: ='2 Def Apos'!$E$23 -> 00:00:00 | AH172: =$AG$172+$AF$172 -> 
A173: 14 | B173: NILÓPOLIS | C173: TRIÊNIO | D173: =IF(ISERROR(HLOOKUP(J173,$Q$48:$AB$49,2)),0,HLOOKUP(J173,$Q$48:$AB$49,2)) -> 0 | E173: =IF(ISERROR(HLOOKUP(K173,$Q$48:$AB$49,2)),0,HLOOKUP(K173,$Q$48:$AB$49,2)) -> 0 | F173: =IF(ISERROR(HLOOKUP(L173,$Q$48:$AB$49,2)),0,HLOOKUP(L173,$Q$48:$AB$49,2)) -> 0 | G173: =SUM($F$27:$F$32) ->  | H173: =SUM($F$27:$F$32)+$J$51 ->  | I173: =SUM($F$27:$F$32)+$J$51+$J$60 ->  | M173: 1ª IGP | O173: 17 | P173: TRANSIÇÃO_EMENDA 47 | Q173: =IF(AND(N8>Q11,'1 Hist'!X59=0,'1 Hist'!Z59=0,'1 Hist'!X96=0,'1 Hist'!Z96=0),"O SERVIDOR NÃO FAZ JUS A ESSA REGRA E/OU MODALIDADE",IF($D$10="X",$AC$6,IF($G$10="X",$AC$7,0))) -> O SERVIDOR NÃO FAZ JUS A ESSA REGRA E/OU MODALIDADE | R173: 1825 | S173: =IF($O$14>=(15*365),0,(15*365)-$O$13) -> 5475 | T173: =IF($O$15>=(25*365),0,(25*365)-$O$15) ->  | U173: =$U$91 ->  | V173: =IF($Q$173="O SERVIDOR NÃO FAZ JUS A ESSA REGRA E/OU MODALIDADE",0,ROUNDDOWN($Q$173/365,0)) -> 0 | W173: =ROUNDDOWN($R$173/365,0) -> 5 | X173: =IF($S$173="NÃO CABE",0,ROUNDDOWN($S$173/365,0)) -> 15 | Y173: =IF($T$173="NÃO CABE",0,ROUNDDOWN($T$173/365,0)) ->  | Z173: =IF(OR($U$173="NÃO CABE",$U$173="MARQUE O SEXO E/OU OBSERVE TEMPO DE CONTRIBUIÇÃO",$U$173="REVER FUNDAMENTAÇÃO E/OU MODALIDADE",$U$173="NADA A CUMPRIR"),0,ROUNDDOWN($U$173/365,0)) ->  | AA173: =(($Q$93/365)-$V$93)*365 ->  | AB173: =IF($R$173="NÃO CABE",0,(($R$173/365)-$W$173)*365) -> 0 | AC173: =IF($S$173="NÃO CABE",0,(($S$173/365)-$X$173)*365) -> 0 | AD173: =IF($T$173="NÃO CABE",0,(($T$173/365)-$Y$173)*365) ->  | AE173: =$AE$93 ->  | AF173: =MAX($Q$173:$U$173) ->  | AG173: ='2 Def Apos'!$E$23 -> 00:00:00 | AH173: =$AG$173+$AF$173 -> 
A174: 15 | B174: NOVA IGUACÚ | C174: TRIÊNIO | D174: =IF(ISERROR(HLOOKUP(J174,$Q$42:$AG$43,2)),0,HLOOKUP(J174,$Q$42:$AG$43,2)) -> 0 | E174: =IF(ISERROR(HLOOKUP(K174,$Q$42:$AG$43,2)),0,HLOOKUP(K174,$Q$42:$AG$43,2)) -> 0 | F174: =IF(ISERROR(HLOOKUP(L174,$Q$42:$AG$43,2)),0,HLOOKUP(L174,$Q$42:$AG$43,2)) -> 0 | G174: =SUM($F$27:$F$32) ->  | H174: =SUM($F$27:$F$32)+$J$51 ->  | I174: =SUM($F$27:$F$32)+$J$51+$J$60 ->  | M174: 1ª IGP | BB174: PROF. DOCENTE II
A175: 16 | B175: PARACAMBI | C175: ANUÊNIO | D175: =IF(ISERROR(HLOOKUP(J175,$Q$26:$AT$27,2)),0,HLOOKUP(J175,$Q$26:$AT$27,2)) -> 0 | E175: =IF(ISERROR(HLOOKUP(K175,$Q$26:$AT$27,2)),0,HLOOKUP(K175,$Q$26:$AT$27,2)) -> 0 | F175: =IF(ISERROR(HLOOKUP(L175,$Q$26:$AT$27,2)),0,HLOOKUP(L175,$Q$26:$AT$27,2)) -> 0 | G175: =SUM($F$30:$F$32) ->  | H175: =SUM($F$30:$F$32)+$J$51 ->  | I175: =SUM($F$30:$F$32)+$J$51+$J$60 ->  | M175: 1ª IGP
A176: 17 | B176: PARAÍBA DO SUL | C176: QUINQUÊNIO | D176: =IF(ISERROR(HLOOKUP(J176,$Q$73:$V$74,2)),0,HLOOKUP(J176,$Q$73:$V$74,2)) -> 0 | E176: =IF(ISERROR(HLOOKUP(K176,$Q$73:$V$74,2)),0,HLOOKUP(K176,$Q$73:$V$74,2)) -> 0 | F176: =IF(ISERROR(HLOOKUP(L176,$Q$73:$V$74,2)),0,HLOOKUP(L176,$Q$73:$V$74,2)) -> 0 | M176: 1ª IGP
A177: 18 | B177: PARATY | C177: ANUÊNIO | D177: =IF(ISERROR(HLOOKUP(J177,$Q$32:$AF$33,2)),0,HLOOKUP(J177,$Q$32:$AF$33,2)) -> 0 | E177: =IF(ISERROR(HLOOKUP(K177,$Q$32:$AF$33,2)),0,HLOOKUP(K177,$Q$32:$AF$33,2)) -> 0 | F177: =IF(ISERROR(HLOOKUP(L177,$Q$32:$AF$33,2)),0,HLOOKUP(L177,$Q$32:$AF$33,2)) -> 0 | M177: 1ª IGP
A178: 19 | B178: PATY DO ALFERES | C178: TRIÊNIO | D178: =IF(ISERROR(HLOOKUP(J178,$Q$42:$AG$43,2)),0,HLOOKUP(J178,$Q$42:$AG$43,2)) -> 0 | E178: =IF(ISERROR(HLOOKUP(K178,$Q$42:$AG$43,2)),0,HLOOKUP(K178,$Q$42:$AG$43,2)) -> 0 | F178: =IF(ISERROR(HLOOKUP(L178,$Q$42:$AG$43,2)),0,HLOOKUP(L178,$Q$42:$AG$43,2)) -> 0 | M178: 1ª IGP | Q178: 36145 | R178: 1998-12-16
A179: 20 | B179: PINHEIRAL | C179: TRIÊNIO | D179: =IF(ISERROR(HLOOKUP(J179,$Q$39:$Y$40,2)),0,HLOOKUP(J179,$Q$39:$Y$40,2)) -> 0 | E179: 0 | F179: 0 | M179: 1ª IGP | Q179: 37986 | R179: 2003-12-31
A180: 21 | B180: PIRAÍ | C180: TRIÊNIO | D180: 0 | E180: 0 | F180: 0 | M180: 1ª IGP
A181: 22 | B181: PORTO REAL | M181: 1ª IGP
A182: 23 | B182: QUATIS | M182: 1ª IGP
A183: 24 | B183: QUEIMADOS | C183: TRIÊNIO | D183: =IF(ISERROR(HLOOKUP(J183,$Q$42:$AG$43,2)),0,HLOOKUP(J183,$Q$42:$AG$43,2)) -> 0 | E183: =IF(ISERROR(HLOOKUP(K183,$Q$42:$AG$43,2)),0,HLOOKUP(K183,$Q$42:$AG$43,2)) -> 0 | F183: =IF(ISERROR(HLOOKUP(L183,$Q$42:$AG$43,2)),0,HLOOKUP(L183,$Q$42:$AG$43,2)) -> 0 | G183: =SUM($F$27:$F$32) ->  | H183: =SUM($F$27:$F$32)+$J$51 ->  | I183: =SUM($F$27:$F$32)+$J$51+$J$60 ->  | J183: =ROUNDDOWN(G183/365,0) ->  | K183: =ROUNDDOWN(H183/365,0) ->  | L183: =ROUNDDOWN(I183/365,0) ->  | M183: 1ª IGP
A184: 25 | B184: RESENDE | C184: ANUÊNIO | D184: =IF(ISERROR(HLOOKUP(J184,$Q$29:$AT$30,2)),0,HLOOKUP(J184,$Q$29:$AT$30,2)) -> 0 | E184: =IF(ISERROR(HLOOKUP(K184,$Q$29:$AT$30,2)),0,HLOOKUP(K184,$Q$29:$AT$30,2)) -> 0 | F184: =IF(ISERROR(HLOOKUP(L184,$Q$29:$AT$30,2)),0,HLOOKUP(L184,$Q$29:$AT$30,2)) -> 0 | G184: =SUM($F$30:$F$32) ->  | H184: =SUM($F$30:$F$32)+$J$51 ->  | I184: =SUM($F$30:$F$32)+$J$51+$J$60 ->  | M184: 1ª IGP
A185: 26 | B185: RIO CLARO | C185: QUINQUÊNIO | D185: =IF(ISERROR(HLOOKUP(J185,$Q$73:$W$74,2)),0,HLOOKUP(J185,$Q$73:$W$74,2)) -> 0 | E185: =IF(ISERROR(HLOOKUP(K185,$Q$73:$W$74,2)),0,HLOOKUP(K185,$Q$73:$W$74,2)) -> 0 | F185: =IF(ISERROR(HLOOKUP(L185,$Q$73:$W$74,2)),0,HLOOKUP(L185,$Q$73:$W$74,2)) -> 0 | G185: =SUM($F$27:$F$32) ->  | H185: =SUM($F$27:$F$32)+$J$51 ->  | I185: =SUM($F$27:$F$32)+$J$51+$J$60 ->  | M185: 1ª IGP
A186: 26.1 | B186: RIO CLARO - MAGISTÉRIO | C186: QUINQUÊNIO | D186: =IF(ISERROR(HLOOKUP(J186,$Q$73:$V$74,2)),0,HLOOKUP(J186,$Q$73:$V$74,2)) -> 0 | E186: =IF(ISERROR(HLOOKUP(K186,$Q$73:$V$74,2)),0,HLOOKUP(K186,$Q$73:$V$74,2)) -> 0 | F186: =IF(ISERROR(HLOOKUP(L186,$Q$73:$V$74,2)),0,HLOOKUP(L186,$Q$73:$V$74,2)) -> 0 | G186: =SUM($F$27:$F$32) ->  | H186: =SUM($F$27:$F$32)+$J$51 ->  | I186: =SUM($F$27:$F$32)+$J$51+$J$60 ->  | M186: 1ª IGP
A187: 27 | B187: RIO DAS FLORES | C187: TRIÊNIO | D187: =IF(ISERROR(HLOOKUP(J187,$Q$48:$Z$49,2)),0,HLOOKUP(J187,$Q$48:$Z$49,2)) -> 0 | E187: =IF(ISERROR(HLOOKUP(K187,$Q$48:$Z$49,2)),0,HLOOKUP(K187,$Q$48:$Z$49,2)) -> 0 | F187: =IF(ISERROR(HLOOKUP(L187,$Q$48:$Z$49,2)),0,HLOOKUP(L187,$Q$48:$Z$49,2)) -> 0 | G187: =SUM($F$30:$F$32) ->  | H187: =SUM($F$30:$F$32)+$J$51 ->  | I187: =SUM($F$30:$F$32)+$J$51+$J$60 ->  | M187: 1ª IGP
A188: 28 | B188: SEROPÉDICA | C188: QUINQUÊNIO | D188: =IF(ISERROR(HLOOKUP(J188,$Q$73:$W$74,2)),0,HLOOKUP(J188,$Q$73:$W$74,2)) -> 0 | E188: =IF(ISERROR(HLOOKUP(K188,$Q$73:$W$74,2)),0,HLOOKUP(K188,$Q$73:$W$74,2)) -> 0 | F188: =IF(ISERROR(HLOOKUP(L188,$Q$73:$W$74,2)),0,HLOOKUP(L188,$Q$73:$W$74,2)) -> 0 | M188: 1ª IGP
A189: 29 | B189: VALENÇA | C189: TRIÊNIO | D189: =IF(ISERROR(HLOOKUP(J189,$Q$48:$V$49,2)),0,HLOOKUP(J189,$Q$48:$V$49,2)) -> 0 | E189: =IF(ISERROR(HLOOKUP(K189,$Q$48:$V$49,2)),0,HLOOKUP(K189,$Q$48:$V$49,2)) -> 0 | F189: =IF(ISERROR(HLOOKUP(L189,$Q$48:$V$49,2)),0,HLOOKUP(L189,$Q$48:$V$49,2)) -> 0 | M189: 1ª IGP
A190: 30 | B190: VASSOURAS | C190: TRIÊNIO | D190: =IF(ISERROR(HLOOKUP(J190,$Q$48:$AA$49,2)),0,HLOOKUP(J190,$Q$48:$AA$49,2)) -> 0 | E190: =IF(ISERROR(HLOOKUP(K190,$Q$48:$AA$49,2)),0,HLOOKUP(K190,$Q$48:$AA$49,2)) -> 0 | F190: =IF(ISERROR(HLOOKUP(L190,$Q$48:$AA$49,2)),0,HLOOKUP(L190,$Q$48:$AA$49,2)) -> 0 | M190: 1ª IGP
A191: 30.1 | B191: VASSOURAS - MAGISTÉRIO | C191: QUINQUÊNIO | D191: =IF(ISERROR(HLOOKUP(J191,$Q$73:$X$74,2)),0,HLOOKUP(J191,$Q$73:$X$74,2)) -> 0 | E191: =IF(ISERROR(HLOOKUP(K191,$Q$73:$X$74,2)),0,HLOOKUP(K191,$Q$73:$X$74,2)) -> 0 | F191: =IF(ISERROR(HLOOKUP(L191,$Q$73:$X$74,2)),0,HLOOKUP(L191,$Q$73:$X$74,2)) -> 0 | M191: 1ª IGP
A192: 31 | B192: VOLTA REDONDA | C192: TRIÊNIO | D192: =IF(ISERROR(HLOOKUP(J192,$Q$42:$AG$43,2)),0,HLOOKUP(J192,$Q$42:$AG$43,2)) -> 0 | E192: =IF(ISERROR(HLOOKUP(K192,$Q$42:$AG$43,2)),0,HLOOKUP(K192,$Q$42:$AG$43,2)) -> 0 | F192: =IF(ISERROR(HLOOKUP(L192,$Q$42:$AG$43,2)),0,HLOOKUP(L192,$Q$42:$AG$43,2)) -> 0 | M192: 1ª IGP
A193: 32 | B193: APERIBÉ | C193: TRIÊNIO | D193: =IF(ISERROR(HLOOKUP(J193,$Q$42:$AA$43,2)),0,HLOOKUP(J193,$Q$42:$AA$43,2)) -> 0 | E193: =IF(ISERROR(HLOOKUP(K193,$Q$42:$AA$43,2)),0,HLOOKUP(K193,$Q$42:$AA$43,2)) -> 0 | F193: =IF(ISERROR(HLOOKUP(L193,$Q$42:$AA$43,2)),0,HLOOKUP(L193,$Q$42:$AA$43,2)) -> 0 | J193: =ROUNDDOWN(G193/365,0) ->  | M193: 2ª IGP
A194: 33 | B194: AREAL | C194: TRIÊNIO | D194: =IF(ISERROR(HLOOKUP(J194,$Q$39:$AA$40,2)),0,HLOOKUP(J194,$Q$39:$AA$40,2)) -> 0 | E194: =IF(ISERROR(HLOOKUP(K194,$Q$39:$AA$40,2)),0,HLOOKUP(K194,$Q$39:$AA$40,2)) -> 0 | F194: =IF(ISERROR(HLOOKUP(L194,$Q$39:$AA$40,2)),0,HLOOKUP(L194,$Q$39:$AA$40,2)) -> 0 | M194: 2ª IGP
A195: 34 | B195: BOM JARDIM | C195: ANUÊNIO | D195: =IF(ISERROR(HLOOKUP(J195,$Q$26:$AY$27,2)),0,HLOOKUP(J195,$Q$26:$AY$27,2)) -> 0 | E195: =IF(ISERROR(HLOOKUP(K195,$Q$26:$AY$27,2)),0,HLOOKUP(K195,$Q$26:$AY$27,2)) -> 0 | F195: =IF(ISERROR(HLOOKUP(L195,$Q$26:$AY$27,2)),0,HLOOKUP(L195,$Q$26:$AY$27,2)) -> 0 | G195: =SUM($F$27:$F$33) ->  | H195: =SUM($F$27:$F$33)+$J$51 ->  | I195: =SUM($F$27:$F$33)+$J$51+$J$60 ->  | M195: 2ª IGP
A196: 35 | B196: CACHOEIRAS DE MACACU | C196: TRIÊNIO | D196: =IF(ISERROR(HLOOKUP(J196,$Q$39:$AB$40,2)),0,HLOOKUP(J196,$Q$39:$AB$40,2)) -> 0 | E196: =IF(ISERROR(HLOOKUP(K196,$Q$39:$AB$40,2)),0,HLOOKUP(K196,$Q$39:$AB$40,2)) -> 0 | F196: =IF(ISERROR(HLOOKUP(L196,$Q$39:$AB$40,2)),0,HLOOKUP(L196,$Q$39:$AB$40,2)) -> 0 | G196: =SUM($F$27:$F$32) ->  | H196: =SUM($F$27:$F$32)+$J$51 ->  | I196: =SUM($F$27:$F$32)+$J$51+$J$60 ->  | M196: 2ª IGP
A197: 36 | B197: CANTAGALO | C197: TRIÊNIO | D197: =IF(ISERROR(HLOOKUP(J197,$Q$39:$AA$40,2)),0,HLOOKUP(J197,$Q$39:$AA$40,2)) -> 0 | E197: =IF(ISERROR(HLOOKUP(K197,$Q$39:$AA$40,2)),0,HLOOKUP(K197,$Q$39:$AA$40,2)) -> 0 | F197: =IF(ISERROR(HLOOKUP(L197,$Q$39:$AA$40,2)),0,HLOOKUP(L197,$Q$39:$AA$40,2)) -> 0 | H197: =SUM($F$30:$F$32)+$J$51 ->  | I197: =SUM($F$30:$F$32)+$J$51+$J$60 ->  | M197: 2ª IGP
A198: 37 | B198: CARMO | C198: QUINQUÊNIO | D198: =IF(ISERROR(HLOOKUP(J198,$Q$73:$AB$74,2)),0,HLOOKUP(J198,$Q$73:$AB$74,2)) -> 0 | E198: 0 | F198: 0 | G198: =SUM($F$27:$F$32) ->  | H198: =SUM($F$27:$F$32)+$J$51 ->  | I198: =SUM($F$27:$F$32)+$J$51+$J$60 ->  | M198: 2ª IGP
A199: 38 | B199: COM. LEVY GASPARIAN | C199: QUINQUÊNIO | D199: 0 | E199: 0 | F199: 0 | H199: =SUM($F$30:$F$32)+$J$51 ->  | I199: =SUM($F$30:$F$32)+$J$51+$J$60 ->  | M199: 2ª IGP
A200: 39 | B200: CORDEIRO | C200: TRIÊNIO | D200: =IF(ISERROR(HLOOKUP(J200,$Q$48:$Y$49,2)),0,HLOOKUP(J200,$Q$48:$Y$49,2)) -> 0 | E200: =IF(ISERROR(HLOOKUP(K200,$Q$48:$Y$49,2)),0,HLOOKUP(K200,$Q$48:$Y$49,2)) -> 0 | F200: =IF(ISERROR(HLOOKUP(L200,$Q$48:$Y$49,2)),0,HLOOKUP(L200,$Q$48:$Y$49,2)) -> 0 | H200: =SUM($F$30:$F$32)+$J$51 ->  | I200: =SUM($F$30:$F$32)+$J$51+$J$60 ->  | M200: 2ª IGP
A201: 40 | B201: DUAS BARRAS | C201: TRIÊNIO | D201: =IF(ISERROR(HLOOKUP(J201,$Q$48:$AA$49,2)),0,HLOOKUP(J201,$Q$48:$AA$49,2)) -> 0 | E201: =IF(ISERROR(HLOOKUP(K201,$Q$48:$AA$49,2)),0,HLOOKUP(K201,$Q$48:$AA$49,2)) -> 0 | F201: =IF(ISERROR(HLOOKUP(L201,$Q$48:$AA$49,2)),0,HLOOKUP(L201,$Q$48:$AA$49,2)) -> 0 | G201: =SUM($F$27:$F$32) ->  | H201: =SUM($F$27:$F$32)+$J$51 ->  | I201: =SUM($F$27:$F$32)+$J$51+$J$60 ->  | J201: =ROUNDDOWN(G201/365,0) ->  | K201: =ROUNDDOWN(H201/365,0) ->  | L201: =ROUNDDOWN(I201/365,0) ->  | M201: 2ª IGP | N201: TRIÊNIO | O201: =IF(ISERROR(HLOOKUP(J202,$Q$63:$AA$64,2)),0,HLOOKUP(J202,$Q$63:$AA$64,2)) -> 0 | P201: =IF(ISERROR(HLOOKUP(K202,$Q$63:$AA$64,2)),0,HLOOKUP(K202,$Q$63:$AA$64,2)) -> 0 | Q201: =IF(ISERROR(HLOOKUP(L202,$Q$63:$AA$64,2)),0,HLOOKUP(L202,$Q$63:$AA$64,2)) -> 0 | R201: D. CAXIAS
A202: 41 | B202: DUQUE DE CAXIAS | C202: =IF($N$8>=$R$202,#REF!,$Q$19) ->  | D202: =IF($C$202=$N$201,$O$201,$O$202) ->  | E202: =IF($C$202=$N$201,$P$201,$P$202) ->  | F202: =IF($C$202=$N$201,$Q$201,$Q$202) ->  | G202: =SUM($F$30:$F$32) ->  | H202: =SUM($F$30:$F$32)+$J$51 ->  | I202: =SUM($F$30:$F$32)+$J$51+$J$60 ->  | M202: 2ª IGP | N202: QUINQUÊNIO | O202: =IF(ISERROR(HLOOKUP(J202,$Q$73:$W$74,2)),0,HLOOKUP(J202,$Q$73:$W$74,2)) -> 0 | P202: =IF(ISERROR(HLOOKUP(K202,$Q$73:$W$74,2)),0,HLOOKUP(K202,$Q$73:$W$74,2)) -> 0 | Q202: =IF(ISERROR(HLOOKUP(L202,$Q$73:$W$74,2)),0,HLOOKUP(L202,$Q$73:$W$74,2)) -> 0 | R202: 2000-01-14
A203: 42 | B203: GUAPIMIRIM | G203: =SUM($F$27:$F$32) ->  | H203: =SUM($F$27:$F$32)+$J$51 ->  | I203: =SUM($F$27:$F$32)+$J$51+$J$60 ->  | M203: 2ª IGP
A204: 43 | B204: ITABORAÍ | C204: ANUÊNIO | D204: =IF(ISERROR(HLOOKUP(J204,$Q$26:$AY$27,2)),0,HLOOKUP(J204,$Q$26:$AY$27,2)) -> 0 | E204: =IF(ISERROR(HLOOKUP(K204,$Q$26:$AY$27,2)),0,HLOOKUP(K204,$Q$26:$AY$27,2)) -> 0 | F204: =IF(ISERROR(HLOOKUP(L204,$Q$26:$AY$27,2)),0,HLOOKUP(L204,$Q$26:$AY$27,2)) -> 0 | G204: =SUM($F$27:$F$33) ->  | H204: =SUM($F$27:$F$33)+$J$51 ->  | I204: =SUM($F$27:$F$33)+$J$51+$J$60 ->  | M204: 2ª IGP
A205: 44 | B205: ITAOCARA | C205: QUINQUÊNIO | D205: =IF(ISERROR(HLOOKUP(J205,$Q$73:$W$74,2)),0,HLOOKUP(J205,$Q$73:$W$74,2)) -> 0 | E205: 0 | F205: 0 | G205: =SUM($F$27:$F$32) ->  | H205: =SUM($F$27:$F$32)+$J$51 ->  | I205: =SUM($F$27:$F$32)+$J$51+$J$60 ->  | M205: 2ª IGP
... 148 more rows

Sheet 4 Res Conc
C2: ABA 4 | L2: ='3 MTS'!L2 -> FAAP - MÓDULO II
B3: 1 | C3: RESUMO CONCLUSIVO
C5: =IF('2 Def Apos'!E16>0,"NOME:","") -> NOME: | D5: =IF('2 Def Apos'!E16>0,'2 Def Apos'!E16,"") ->  | M5: =IF('2 Def Apos'!E17>0,"MATRÍCULA:","") -> MATRÍCULA: | O5: =IF('2 Def Apos'!E17>0,'2 Def Apos'!E17,"") -> 
B7: 2 | C7: CONDIÇÕES DE APOSENTADORIA
B9: 3 | C9: MODALIDADE DE APOSENTADORIA ESCOLHIDA: | H9: =CRÍTICA_IGP1!$E$2 -> VOLUNTÁRIA INTEGRAL
B10: 4 | C10: REGRA DE OPÇÃO DE APOSENTADORIA ESCOLHIDA: | H10: =CRÍTICA_IGP1!$K$2 -> TRANSIÇÃO_ART. 6º_EC41
B11: 5 | C11: FUNDAMENTAÇÃO LEGAL A SER UTILIZADA NO ATO DE APOSENTADORIA: | H11: ='2 Def Apos'!$E$8 -> Art. 6º, EC Nº 41/03
B14: 6 | C14: TEMPO DE CONTRIBUIÇÃO/SERVIÇO TOTAL APURADO: | G14: PERÍODO | J14: TOTAL
G15: início | I15: término | J15: DIAS | L15: TEMPO CONVERTIDO
G16: ='3 MTS'!$D$68 ->  | H16: a | I16: ='3 MTS'!$G$68 ->  | J16: ='3 MTS'!$H$68 ->  | L16: =CRÍTICA_IGP1!$H$61 ->  | M16: anos | N16: =CRÍTICA_IGP1!$J$61 ->  | O16: dias
B18: 7 | C18: TEMPO DE CONTRIBUIÇÃO/SERVIÇO FALTANTE: | G18: TOTAL
G19: DIAS | L19: TEMPO CONVERTIDO
G20: =CRÍTICA_IGP1!$F$71 ->  | L20: =IF(CRÍTICA_IGP1!$Y$97>0,CRÍTICA_IGP1!$Y$97,0) ->  | M20: anos | N20: =IF(CRÍTICA_IGP1!$Z$97>0,CRÍTICA_IGP1!$Z$97,0) ->  | O20: dias
F22: CONDIÇÃO | L22: TEMPO FALTANTE
B23: 8 | C23: TEMPO NO CARGO: | F23: =CRÍTICA_IGP1!$N$68 -> REVER FUNDAMENTAÇÃO | L23: =IF(CRÍTICA_IGP1!$K$2=CRÍTICA_IGP1!$P$86,CRÍTICA_IGP1!$W$86,IF(CRÍTICA_IGP1!$K$2=CRÍTICA_IGP1!$P$87,CRÍTICA_IGP1!$W$87,IF(CRÍTICA_IGP1!$K$2=CRÍTICA_IGP1!$P$88,CRÍTICA_IGP1!$W$88,IF(CRÍTICA_IGP1!$K$2=CRÍTICA_IGP1!$P$89,CRÍTICA_IGP1!$W$89,IF(CRÍTICA_IGP1!$K$2=CRÍTICA_IGP1!$P$90,CRÍTICA_IGP1!$W$90,IF(CRÍTICA_IGP1!$K$2=CRÍTICA_IGP1!$P$91,CRÍTICA_IGP1!$W$91,0)))))) -> 5 | M23: anos | N23: =IF(CRÍTICA_IGP1!$K$2=CRÍTICA_IGP1!$P$86,CRÍTICA_IGP1!$AB$86,IF(CRÍTICA_IGP1!$K$2=CRÍTICA_IGP1!$P$87,CRÍTICA_IGP1!$AB$87,IF(CRÍTICA_IGP1!$K$2=CRÍTICA_IGP1!$P$88,CRÍTICA_IGP1!$AB$88,IF(CRÍTICA_IGP1!$K$2=CRÍTICA_IGP1!$P$89,CRÍTICA_IGP1!$AB$89,IF(CRÍTICA_IGP1!$K$2=CRÍTICA_IGP1!$P$90,CRÍTICA_IGP1!$AB$90,IF(CRÍTICA_IGP1!$K$2=CRÍTICA_IGP1!$P$91,CRÍTICA_IGP1!$AB$91,0)))))) -> 0 | O23: dias
B24: 9 | C24: TEMPO NA CARREIRA: | F24: =CRÍTICA_IGP1!$N$69 -> REVER FUNDAMEN. | L24: =IF(CRÍTICA_IGP1!$K$2=CRÍTICA_IGP1!$P$86,CRÍTICA_IGP1!$X$86,IF(CRÍTICA_IGP1!$K$2=CRÍTICA_IGP1!$P$87,CRÍTICA_IGP1!$X$87,IF(CRÍTICA_IGP1!$K$2=CRÍTICA_IGP1!$P$88,CRÍTICA_IGP1!$X$88,IF(CRÍTICA_IGP1!$K$2=CRÍTICA_IGP1!$P$89,CRÍTICA_IGP1!$X$89,IF(CRÍTICA_IGP1!$K$2=CRÍTICA_IGP1!$P$90,CRÍTICA_IGP1!$X$90,IF(CRÍTICA_IGP1!$K$2=CRÍTICA_IGP1!$P$91,CRÍTICA_IGP1!$X$91,0)))))) -> 10 | M24: anos | N24: =IF(CRÍTICA_IGP1!$K$2=CRÍTICA_IGP1!$P$86,CRÍTICA_IGP1!$AC$86,IF(CRÍTICA_IGP1!$K$2=CRÍTICA_IGP1!$P$87,CRÍTICA_IGP1!$AC$87,IF(CRÍTICA_IGP1!$K$2=CRÍTICA_IGP1!$P$88,CRÍTICA_IGP1!$AC$88,IF(CRÍTICA_IGP1!$K$2=CRÍTICA_IGP1!$P$89,CRÍTICA_IGP1!$AC$89,IF(CRÍTICA_IGP1!$K$2=CRÍTICA_IGP1!$P$90,CRÍTICA_IGP1!$AC$90,IF(CRÍTICA_IGP1!$K$2=CRÍTICA_IGP1!$P$91,CRÍTICA_IGP1!$AC$91,0)))))) -> 0 | O24: dias
B25: 10 | C25: TEMPO NO SERVIÇO PÚBLICO: | F25: =CRÍTICA_IGP1!$N$70 -> REVER FUNDAMENT. | L25: =IF(CRÍTICA_IGP1!$K$2=CRÍTICA_IGP1!$P$86,CRÍTICA_IGP1!$Y$86,IF(CRÍTICA_IGP1!$K$2=CRÍTICA_IGP1!$P$87,CRÍTICA_IGP1!$Y$87,IF(CRÍTICA_IGP1!$K$2=CRÍTICA_IGP1!$P$88,CRÍTICA_IGP1!$Y$88,IF(CRÍTICA_IGP1!$K$2=CRÍTICA_IGP1!$P$89,CRÍTICA_IGP1!$Y$89,IF(CRÍTICA_IGP1!$K$2=CRÍTICA_IGP1!$P$90,CRÍTICA_IGP1!$Y$90,IF(CRÍTICA_IGP1!$K$2=CRÍTICA_IGP1!$P$91,CRÍTICA_IGP1!$Y$91,0)))))) ->  | M25: anos | N25: =IF(CRÍTICA_IGP1!$K$2=CRÍTICA_IGP1!$P$86,CRÍTICA_IGP1!$AD$86,IF(CRÍTICA_IGP1!$K$2=CRÍTICA_IGP1!$P$87,CRÍTICA_IGP1!$AD$87,IF(CRÍTICA_IGP1!$K$2=CRÍTICA_IGP1!$P$88,CRÍTICA_IGP1!$AD$88,IF(CRÍTICA_IGP1!$K$2=CRÍTICA_IGP1!$P$89,CRÍTICA_IGP1!$AD$89,IF(CRÍTICA_IGP1!$K$2=CRÍTICA_IGP1!$P$90,CRÍTICA_IGP1!$AD$90,IF(CRÍTICA_IGP1!$K$2=CRÍTICA_IGP1!$P$91,CRÍTICA_IGP1!$AD$91,0)))))) ->  | O25: dias
B26: 11 | C26: IDADE MÍNIMA: | F26: =CRÍTICA_IGP1!$E$70 ->  | L26: =IF(CRÍTICA_IGP1!$K$2=CRÍTICA_IGP1!$P$86,CRÍTICA_IGP1!$Z$86,IF(CRÍTICA_IGP1!$K$2=CRÍTICA_IGP1!$P$87,CRÍTICA_IGP1!$Z$87,IF(CRÍTICA_IGP1!$K$2=CRÍTICA_IGP1!$P$88,CRÍTICA_IGP1!$Z$88,IF(CRÍTICA_IGP1!$K$2=CRÍTICA_IGP1!$P$89,CRÍTICA_IGP1!$Z$89,IF(CRÍTICA_IGP1!$K$2=CRÍTICA_IGP1!$P$90,CRÍTICA_IGP1!$Z$90,IF(CRÍTICA_IGP1!$K$2=CRÍTICA_IGP1!$P$91,CRÍTICA_IGP1!$Z$91,0)))))) ->  | M26: anos | N26: =IF(CRÍTICA_IGP1!$K$2=CRÍTICA_IGP1!$P$86,CRÍTICA_IGP1!$AE$86,IF(CRÍTICA_IGP1!$K$2=CRÍTICA_IGP1!$P$87,CRÍTICA_IGP1!$AE$87,IF(CRÍTICA_IGP1!$K$2=CRÍTICA_IGP1!$P$88,CRÍTICA_IGP1!$AE$88,IF(CRÍTICA_IGP1!$K$2=CRÍTICA_IGP1!$P$89,CRÍTICA_IGP1!$AE$89,IF(CRÍTICA_IGP1!$K$2=CRÍTICA_IGP1!$P$90,CRÍTICA_IGP1!$AE$90,IF(CRÍTICA_IGP1!$K$2=CRÍTICA_IGP1!$P$91,CRÍTICA_IGP1!$AE$91,0)))))) ->  | O26: dias
B28: 12 | C28: CONDIÇÕES PARA FIXAÇÃO DOS PROVENTOS
B30: 13 | C30: PROVENTOS
B31: 14 | C31: INTEGRAL | E31: parcela única (média): | H31: =IF(OR('2 Def Apos'!$E$4='2 Def Apos'!$F$47,'2 Def Apos'!$E$4='2 Def Apos'!$F$48,'2 Def Apos'!$E$4='2 Def Apos'!$F$50),IF(AND('2 Def Apos'!$E$6='2 Def Apos'!$M$48,'2 Def Apos'!$M$29="X"),"SIM","NÃO"),'2 Def Apos'!$M$55) -> NÃO
E32: em parcelas distintas: | H32: =IF(AND('2 Def Apos'!E6='2 Def Apos'!M48,'2 Def Apos'!I29="X",OR('2 Def Apos'!E4='2 Def Apos'!F47,'2 Def Apos'!E4='2 Def Apos'!F48,'2 Def Apos'!E4='2 Def Apos'!F50)),"SIM",IF(AND('2 Def Apos'!E6='2 Def Apos'!M49,OR('2 Def Apos'!E4='2 Def Apos'!F47,'2 Def Apos'!E4='2 Def Apos'!F48)),"SIM",IF(AND('2 Def Apos'!E6='2 Def Apos'!M47,OR('2 Def Apos'!E4='2 Def Apos'!F47,'2 Def Apos'!E4='2 Def Apos'!F48,'2 Def Apos'!E4='2 Def Apos'!F50)),"SIM",IF(AND('2 Def Apos'!E6='2 Def Apos'!M51,OR('2 Def Apos'!E4='2 Def Apos'!F47,'2 Def Apos'!E4='2 Def Apos'!F48)),"SIM",IF(AND('2 Def Apos'!E6='2 Def Apos'!M52,'2 Def Apos'!E4='2 Def Apos'!F47),"SIM",'2 Def Apos'!M54))))) -> SIM | K32: PROPORCIONALIDADE
E33: paridade: | H33: =IF(AND($H$31="NÃO",$H$32="SIM"),"SIM","NÃO") -> SIM | K33: FRAÇÃO | M33: PORCENTAGEM
B35: 15 | C35: PROPORCIONAL | E35: parcela única (média): | H35: =IF(AND('2 Def Apos'!E6='2 Def Apos'!M48,'2 Def Apos'!M29="X"),IF(OR('2 Def Apos'!E4='2 Def Apos'!F49,'2 Def Apos'!E4='2 Def Apos'!F51),"SIM",'2 Def Apos'!M57),IF(AND('2 Def Apos'!E6='2 Def Apos'!M50,'2 Def Apos'!E4='2 Def Apos'!F55),"SIM","NÃO")) -> NÃO | K35: =IF(AND('2 Def Apos'!$E$6='2 Def Apos'!$M$48,'2 Def Apos'!$M$29="X",OR('2 Def Apos'!$E$4='2 Def Apos'!$F$49,'2 Def Apos'!$E$4='2 Def Apos'!$F$51,'2 Def Apos'!$E$4='2 Def Apos'!$F$53)),CRÍTICA_IGP1!$N$77,"") ->  | M35: =IF(AND('2 Def Apos'!$E$6='2 Def Apos'!$M$48,'2 Def Apos'!$M$29="X",OR('2 Def Apos'!$E$4='2 Def Apos'!$F$49,'2 Def Apos'!$E$4='2 Def Apos'!$F$51,'2 Def Apos'!$E$4='2 Def Apos'!$F$53)),CRÍTICA_IGP1!$N$78,"") -> 
E36: em parcelas distintas: | H36: =IF(AND('2 Def Apos'!E6='2 Def Apos'!M48,'2 Def Apos'!I29="X",OR('2 Def Apos'!E4='2 Def Apos'!F49,'2 Def Apos'!E4='2 Def Apos'!F51)),"SIM",IF(AND('2 Def Apos'!E6='2 Def Apos'!M47,OR('2 Def Apos'!E4='2 Def Apos'!F49,'2 Def Apos'!E4='2 Def Apos'!F51,'2 Def Apos'!E4='2 Def Apos'!F54)),"SIM",IF(AND('2 Def Apos'!E6='2 Def Apos'!M49,'2 Def Apos'!E4='2 Def Apos'!F54),"SIM",'2 Def Apos'!M56))) -> NÃO | K36: =IF('2 Def Apos'!$E$6='2 Def Apos'!$M$47,CRÍTICA_IGP1!$N$75,IF(AND('2 Def Apos'!$E$6='2 Def Apos'!$M$49,'2 Def Apos'!$E$4='2 Def Apos'!$F$54),CRÍTICA_IGP1!$N$75,IF(AND('2 Def Apos'!$E$6='2 Def Apos'!$M$50,'2 Def Apos'!$E$4='2 Def Apos'!$F$55),CRÍTICA_IGP1!$N$75,IF(AND('2 Def Apos'!E6='2 Def Apos'!M48,'2 Def Apos'!I29="X"),CRÍTICA_IGP1!$N$75,"")))) ->  | M36: =IF('2 Def Apos'!$E$6='2 Def Apos'!$M$47,CRÍTICA_IGP1!$N$76,IF(AND('2 Def Apos'!$E$6='2 Def Apos'!$M$49,'2 Def Apos'!$E$4='2 Def Apos'!$F$54),CRÍTICA_IGP1!$N$76,IF(AND('2 Def Apos'!$E$6='2 Def Apos'!$M$50,'2 Def Apos'!$E$4='2 Def Apos'!$F$55),CRÍTICA_IGP1!$N$76,IF(AND('2 Def Apos'!E6='2 Def Apos'!M48,'2 Def Apos'!I29="X"),CRÍTICA_IGP1!$N$76,"")))) -> 
E37: paridade: | H37: =IF(AND($H$35="NÃO",$H$36="SIM"),"SIM","NÃO") -> NÃO
B39: 16 | C39: ALTERNATIVAS DE APOSENTADORIA
B41: 17 | C41: OPÇÃO | D41: MODALIDADE DE APOSENTADORIA | G41: REGRA DE OPÇÃO | J41: TEMPO | L41: IDADE | N41: PARIDADE | O41: PARIDADE NA PENSÃO
C42: =IF('2 Def Apos'!$E$8<>"REVER FUNDAMENTAÇÃO E/OU MODALIDADE",IF(AND('2 Def Apos'!$E$4='4 Res Conc'!D42,'2 Def Apos'!$E$6='4 Res Conc'!G42),"X",""),"") ->  | D42: =CRÍTICA_IGP1!$B$77 ->  | G42: =CRÍTICA_IGP1!$C$77 ->  | J42: =CRÍTICA_IGP1!$F$77 ->  | L42: =CRÍTICA_IGP1!$I$77 ->  | N42: =CRÍTICA_IGP1!$J$77 ->  | O42: =IF(AND(N42="SIM",CRÍTICA_IGP1!K77="SIM"),"SIM","NÃO") -> 
C43: =IF('2 Def Apos'!$E$8<>"REVER FUNDAMENTAÇÃO E/OU MODALIDADE",IF(AND('2 Def Apos'!$E$4='4 Res Conc'!D43,'2 Def Apos'!$E$6='4 Res Conc'!G43),"X",""),"") ->  | D43: =CRÍTICA_IGP1!$B$78 ->  | G43: =CRÍTICA_IGP1!$C$78 ->  | J43: =CRÍTICA_IGP1!$F$78 ->  | L43: =CRÍTICA_IGP1!$I$78 ->  | N43: =CRÍTICA_IGP1!$J$78 ->  | O43: =IF(AND($N$43="SIM",CRÍTICA_IGP1!$K$78="SIM"),"SIM","NÃO") -> 
C44: =IF('2 Def Apos'!$E$8<>"REVER FUNDAMENTAÇÃO E/OU MODALIDADE",IF(AND('2 Def Apos'!$E$4='4 Res Conc'!D44,'2 Def Apos'!$E$6='4 Res Conc'!G44),"X",""),"") ->  | D44: =CRÍTICA_IGP1!$B$79 -> 0 | G44: =CRÍTICA_IGP1!$C$79 -> 0 | J44: =CRÍTICA_IGP1!$F$79 -> 0 | L44: =CRÍTICA_IGP1!$I$79 ->  | N44: =CRÍTICA_IGP1!$J$79 ->  | O44: =IF(AND(N44="SIM",CRÍTICA_IGP1!K79="SIM"),"SIM","NÃO") -> 
C45: =IF('2 Def Apos'!$E$8<>"REVER FUNDAMENTAÇÃO E/OU MODALIDADE",IF(AND('2 Def Apos'!$E$4='4 Res Conc'!D45,'2 Def Apos'!$E$6='4 Res Conc'!G45,'2 Def Apos'!$I$29="X"),"X",""),"") ->  | D45: =CRÍTICA_IGP1!$B$80 -> 0 | G45: =CRÍTICA_IGP1!$C$80 -> 0 | J45: =CRÍTICA_IGP1!$F$80 -> 0 | L45: =CRÍTICA_IGP1!$I$80 ->  | N45: =CRÍTICA_IGP1!$J$80 ->  | O45: =IF(AND(N45="SIM",CRÍTICA_IGP1!K80="SIM"),"SIM","NÃO") -> 
C46: =IF('2 Def Apos'!$E$8<>"REVER FUNDAMENTAÇÃO E/OU MODALIDADE",IF(AND('2 Def Apos'!$E$4='4 Res Conc'!D46,'2 Def Apos'!$E$6='4 Res Conc'!G46),"X",""),"") ->  | D46: =CRÍTICA_IGP1!$B$81 -> 0 | G46: =CRÍTICA_IGP1!$C$81 -> 0 | J46: =CRÍTICA_IGP1!$F$81 -> 0 | L46: =CRÍTICA_IGP1!$I$81 ->  | N46: =CRÍTICA_IGP1!$J$81 ->  | O46: =IF(AND(N46="SIM",CRÍTICA_IGP1!K81="SIM"),"SIM","NÃO") -> 
C47: =IF('2 Def Apos'!$E$8<>"REVER FUNDAMENTAÇÃO E/OU MODALIDADE",IF(AND('2 Def Apos'!$E$4='4 Res Conc'!D47,'2 Def Apos'!$E$6='4 Res Conc'!G47),"X",""),"") ->  | D47: =CRÍTICA_IGP1!$B$82 -> 0 | G47: =CRÍTICA_IGP1!$C$82 -> 0 | J47: =CRÍTICA_IGP1!$F$82 -> 0 | L47: =CRÍTICA_IGP1!$I$82 ->  | N47: =CRÍTICA_IGP1!$J$82 ->  | O47: =IF(AND(N47="SIM",CRÍTICA_IGP1!K82="SIM"),"SIM","NÃO") -> 
C48: =IF('2 Def Apos'!$E$8<>"REVER FUNDAMENTAÇÃO E/OU MODALIDADE",IF(AND('2 Def Apos'!$E$4='4 Res Conc'!D48,'2 Def Apos'!$E$6='4 Res Conc'!G48),"X",""),"") ->  | D48: =CRÍTICA_IGP1!$B$83 -> 0 | G48: =CRÍTICA_IGP1!$C$83 -> 0 | J48: =CRÍTICA_IGP1!$F$83 -> 0 | L48: =CRÍTICA_IGP1!$I$83 ->  | N48: =CRÍTICA_IGP1!$J$83 ->  | O48: =IF(AND(N48="SIM",CRÍTICA_IGP1!K83="SIM"),"SIM","NÃO") -> 
C49: =IF('2 Def Apos'!$E$8<>"REVER FUNDAMENTAÇÃO E/OU MODALIDADE",IF(AND('2 Def Apos'!$E$4='4 Res Conc'!D49,'2 Def Apos'!$E$6='4 Res Conc'!G49),"X",""),"") ->  | D49: =CRÍTICA_IGP1!$B$84 -> 0 | G49: =CRÍTICA_IGP1!$C$84 -> 0 | J49: =CRÍTICA_IGP1!$F$84 -> 0 | L49: =CRÍTICA_IGP1!$I$84 ->  | N49: =CRÍTICA_IGP1!$J$84 ->  | O49: =IF(AND(N49="SIM",CRÍTICA_IGP1!K84="SIM"),"SIM","NÃO") -> 
C50: =IF('2 Def Apos'!$E$8<>"REVER FUNDAMENTAÇÃO E/OU MODALIDADE",IF(AND('2 Def Apos'!$E$4='4 Res Conc'!D50,'2 Def Apos'!$E$6='4 Res Conc'!G50,'2 Def Apos'!$I$29="X"),"X",""),"") ->  | D50: =CRÍTICA_IGP1!$B$85 -> 0 | G50: =CRÍTICA_IGP1!$C$85 -> 0 | J50: =CRÍTICA_IGP1!$F$85 -> 0 | L50: =CRÍTICA_IGP1!$I$85 ->  | N50: =CRÍTICA_IGP1!$J$85 ->  | O50: =IF(AND(N50="SIM",CRÍTICA_IGP1!K85="SIM"),"SIM","NÃO") -> 
C51: =IF('2 Def Apos'!$E$8<>"REVER FUNDAMENTAÇÃO E/OU MODALIDADE",IF(AND('2 Def Apos'!$E$4='4 Res Conc'!D51,'2 Def Apos'!$E$6='4 Res Conc'!G51,'2 Def Apos'!$M$29="X"),"X",""),"") ->  | D51: =CRÍTICA_IGP1!$B$86 ->  | G51: =CRÍTICA_IGP1!$C$86 ->  | J51: =CRÍTICA_IGP1!$F$86 ->  | L51: =CRÍTICA_IGP1!$I$86 ->  | N51: =CRÍTICA_IGP1!$J$86 ->  | O51: =IF(AND(N51="SIM",CRÍTICA_IGP1!K86="SIM"),"SIM","NÃO") -> 
C52: =IF('2 Def Apos'!$E$8<>"REVER FUNDAMENTAÇÃO E/OU MODALIDADE",IF(AND('2 Def Apos'!$E$4='4 Res Conc'!D52,'2 Def Apos'!$E$6='4 Res Conc'!G52,'2 Def Apos'!$M$29="X"),"X",""),"") ->  | D52: =CRÍTICA_IGP1!$B$87 ->  | G52: =CRÍTICA_IGP1!$C$87 ->  | J52: =CRÍTICA_IGP1!$F$87 ->  | L52: =CRÍTICA_IGP1!$I$87 ->  | N52: =CRÍTICA_IGP1!$J$87 ->  | O52: =IF(AND(N52="SIM",CRÍTICA_IGP1!K87="SIM"),"SIM","NÃO") -> 
C53: =IF('2 Def Apos'!$E$8<>"REVER FUNDAMENTAÇÃO E/OU MODALIDADE",IF(AND('2 Def Apos'!$E$4='4 Res Conc'!D53,'2 Def Apos'!$E$6='4 Res Conc'!G53),"X",""),"") ->  | D53: =CRÍTICA_IGP1!$B$88 -> 0 | G53: =CRÍTICA_IGP1!$C$88 -> 0 | J53: =CRÍTICA_IGP1!$F$88 -> 0 | L53: =CRÍTICA_IGP1!$I$88 ->  | N53: =CRÍTICA_IGP1!$J$88 ->  | O53: =IF(AND(N53="SIM",CRÍTICA_IGP1!K88="SIM"),"SIM","NÃO") -> 
C54: =IF('2 Def Apos'!$E$8<>"REVER FUNDAMENTAÇÃO E/OU MODALIDADE",IF(AND('2 Def Apos'!$E$4='4 Res Conc'!D54,'2 Def Apos'!$E$6='4 Res Conc'!G54),"X",""),"") ->  | D54: =CRÍTICA_IGP1!$B$89 -> 0 | G54: =CRÍTICA_IGP1!$C$89 -> 0 | J54: =CRÍTICA_IGP1!$F$89 -> 0 | L54: =CRÍTICA_IGP1!$I$89 ->  | N54: =CRÍTICA_IGP1!$J$89 ->  | O54: =IF(AND(N54="SIM",CRÍTICA_IGP1!K89="SIM"),"SIM","NÃO") -> 
C55: =IF('2 Def Apos'!$E$8<>"REVER FUNDAMENTAÇÃO E/OU MODALIDADE",IF(AND('2 Def Apos'!$E$4='4 Res Conc'!D55,'2 Def Apos'!$E$6='4 Res Conc'!G55),"X",""),"") ->  | D55: =CRÍTICA_IGP1!$B$90 -> 0 | G55: =CRÍTICA_IGP1!$C$90 -> 0 | J55: =CRÍTICA_IGP1!$F$90 -> 0 | L55: =CRÍTICA_IGP1!$I$90 ->  | N55: =CRÍTICA_IGP1!$J$90 ->  | O55: =IF(AND(N55="SIM",CRÍTICA_IGP1!K90="SIM"),"SIM","NÃO") -> 
C56: =IF('2 Def Apos'!$E$8<>"REVER FUNDAMENTAÇÃO E/OU MODALIDADE",IF(AND('2 Def Apos'!$E$4='4 Res Conc'!D56,'2 Def Apos'!$E$6='4 Res Conc'!G56,OR('2 Def Apos'!I29="X",'2 Def Apos'!M29="X")),"X",""),"") ->  | D56: =CRÍTICA_IGP1!$B$91 ->  | G56: =CRÍTICA_IGP1!$C$91 ->  | J56: =CRÍTICA_IGP1!F91 ->  | L56: =CRÍTICA_IGP1!$I$91 ->  | N56: =CRÍTICA_IGP1!$J$91 ->  | O56: =IF(AND(N56="SIM",CRÍTICA_IGP1!K91="SIM"),"SIM","NÃO") -> 
C57: =IF('2 Def Apos'!$E$8<>"REVER FUNDAMENTAÇÃO E/OU MODALIDADE",IF(AND('2 Def Apos'!$E$4='4 Res Conc'!D57,'2 Def Apos'!$E$6='4 Res Conc'!G57),"X",""),"") ->  | D57: =CRÍTICA_IGP1!$B$92 ->  | G57: =CRÍTICA_IGP1!$C$92 ->  | J57: =CRÍTICA_IGP1!F92 ->  | L57: =CRÍTICA_IGP1!$I$92 ->  | N57: =CRÍTICA_IGP1!$J$92 ->  | O57: =IF(AND(N57="SIM",CRÍTICA_IGP1!K92="SIM"),"SIM","NÃO") -> 
C58: =IF(AND(D42=0,D43=0,D44=0,D45=0,D46=0,D47=0,D48=0,D49=0,D50=0,D51=0,D52=0,D53=0,D54=0,D55=0,D56=0,D57=0),"NÃO HÁ MODALIDADE E/OU REGRA QUE POSSIBILITE A APOSENTADORIA VOLUNTÁRIA","") -> 
C62: TERMO DE OPÇÃO DO SERVIDOR ESTATUTÁRIO
C66: =IF(OR('2 Def Apos'!E4=0,'2 Def Apos'!E6=0),"",CONCATENATE("Considerando a lista de possibilidades acima, Eu, ",'2 Def Apos'!E16,", matrícula nº ",'2 Def Apos'!E17,", declaro expressamente minha opção pela aposentadoria ",B81,", com fundamento no ",CRÍTICA_IGP1!O73)) -> 
C72: =IF(OR('2 Def Apos'!$E$4=0,'2 Def Apos'!$E$6=0),""," ________________________________________________________________________ ") -> ________________________________________________________________________
C73: =IF(OR('2 Def Apos'!$E$4=0,'2 Def Apos'!$E$6=0),"",CONCATENATE('2 Def Apos'!E16)) -> 
C74: =IF(OR('2 Def Apos'!$E$4=0,'2 Def Apos'!$E$6=0),"",CONCATENATE('2 Def Apos'!E12)) -> 
C75: HOJE: | D75: =TODAY() -> 2017-10-19 | F75: RUBRICA: | I75: MATRÍCULA:
C77: TRIBUNAL DE CONTAS DO ESTADO DO RIO DE JANEIRO - SUP
C79: Virgílio de Oliveira Souza (Técnica / Lógica) | H79: Luiz Cláudio Lopes de Sá - (Revisão / Lay out)
B81: =VLOOKUP($B$82,$C$42:$O$57,2,FALSE) -> 
B82: X
B83: =VLOOKUP($B$82,$C$42:$O$57,5,FALSE) -> 

Sheet 5 Cenários
C2: ABA 5 | L2: ='3 MTS'!L2 -> FAAP - MÓDULO II
B3: 1 | C3: CENÁRIOS DE CONCESSÃO
D5: =IF('2 Def Apos'!E16>0,"NOME:","") -> NOME: | E5: =IF('2 Def Apos'!E16>0,'2 Def Apos'!E16,"") ->  | J5: =IF('2 Def Apos'!E17>0,"MATRÍCULA:","") -> MATRÍCULA: | L5: =IF('2 Def Apos'!E17>0,'2 Def Apos'!E17,"") -> 
B7: 2 | C7: CONDIÇÕES DE APOSENTADORIA
B9: 3 | C9: REGRA DE OPÇÃO | F9: MODALIDADE | H9: CONCLUSÃO | M9: VARIÁVEL | N9: TEMPO FALTANTE | O9: DATA PREVISTA
B10: 4 | C10: TRANSIÇÃO EMENDA 47/05 | F10: VOL. INTEGRAL | H10: =IF(OR(CRÍTICA_IGP1!Q173="O SERVIDOR NÃO FAZ JUS A ESSA REGRA E/OU MODALIDADE",CRÍTICA_IGP1!Q173="MARQUE O SEXO"),CRÍTICA_IGP1!Q173,IF(OR(CRÍTICA_IGP1!Q173>0,CRÍTICA_IGP1!R173>0,CRÍTICA_IGP1!S173>0,CRÍTICA_IGP1!T173>0,CRÍTICA_IGP1!U173>0),"REGRA NÃO CUMPRIDA","REGRA CUMPRIDA")) -> O SERVIDOR NÃO FAZ JUS A ESSA REGRA E/OU MODALIDADE | M10: =IF(AND(H10<>"O SERVIDOR NÃO FAZ JUS A ESSA REGRA E/OU MODALIDADE",H10<>"MARQUE O SEXO",H10<>"REGRA CUMPRIDA"),R10,"") ->  | N10: =IF(CRÍTICA_IGP1!$AH$166<CRÍTICA_IGP1!$AH$173,"",IF(M10="","",HLOOKUP(M10,CRÍTICA_IGP1!$P$157:$U$173,17,FALSE))) ->  | O10: =IF(CRÍTICA_IGP1!$AH$166<CRÍTICA_IGP1!$AH$173,"LIMITADA À COMPULSÓRIA",IF(N10="","",CRÍTICA_IGP1!$AH$173)) ->  | R10: =IF(AND(CRÍTICA_IGP1!$Q$173>CRÍTICA_IGP1!$R$173,CRÍTICA_IGP1!$Q$173>CRÍTICA_IGP1!$S$173,CRÍTICA_IGP1!$Q$173>CRÍTICA_IGP1!$T$173,CRÍTICA_IGP1!$Q$173>CRÍTICA_IGP1!$U$173),"T. CONTRIBUIÇÃO",IF(AND(CRÍTICA_IGP1!$R$173>CRÍTICA_IGP1!$Q$173,CRÍTICA_IGP1!$R$173>CRÍTICA_IGP1!$S$173,CRÍTICA_IGP1!$R$173>CRÍTICA_IGP1!$T$173,CRÍTICA_IGP1!$R$173>CRÍTICA_IGP1!$U$173),"T. CARGO",IF(AND(CRÍTICA_IGP1!$S$173>CRÍTICA_IGP1!$Q$173,CRÍTICA_IGP1!$S$173>CRÍTICA_IGP1!$R$173,CRÍTICA_IGP1!$S$173>CRÍTICA_IGP1!$T$173,CRÍTICA_IGP1!$S$173>CRÍTICA_IGP1!$U$173),"T. CARREIRA",IF(AND(CRÍTICA_IGP1!$T$173>CRÍTICA_IGP1!$Q$173,CRÍTICA_IGP1!$T$173>CRÍTICA_IGP1!$R$173,CRÍTICA_IGP1!$T$173>CRÍTICA_IGP1!$S$173,CRÍTICA_IGP1!$T$173>CRÍTICA_IGP1!$U$173),"T. SERV. PÚBL.",IF(AND(CRÍTICA_IGP1!$U$173>CRÍTICA_IGP1!$Q$173,CRÍTICA_IGP1!$U$173>CRÍTICA_IGP1!$R$173,CRÍTICA_IGP1!$U$173>CRÍTICA_IGP1!$S$173,CRÍTICA_IGP1!$U$173>CRÍTICA_IGP1!$T$173),"IDADE",""))))) -> 
B11: 5 | C11: TRANS. ART. 6º EMENDA 41/03 | F11: VOL. INTEGRAL | H11: =IF(OR(CRÍTICA_IGP1!Q171="O SERVIDOR NÃO FAZ JUS A ESSA REGRA E/OU MODALIDADE",CRÍTICA_IGP1!Q171="MARQUE O SEXO"),CRÍTICA_IGP1!Q171,IF(OR(CRÍTICA_IGP1!Q171>0,CRÍTICA_IGP1!R171>0,CRÍTICA_IGP1!S171>0,CRÍTICA_IGP1!T171>0,CRÍTICA_IGP1!U171>0),"REGRA NÃO CUMPRIDA","REGRA CUMPRIDA")) -> O SERVIDOR NÃO FAZ JUS A ESSA REGRA E/OU MODALIDADE | M11: =IF(AND(H11<>"O SERVIDOR NÃO FAZ JUS A ESSA REGRA E/OU MODALIDADE",H11<>"MARQUE O SEXO",H11<>"REGRA CUMPRIDA"),R11,"") ->  | N11: =IF(CRÍTICA_IGP1!$AH$166<CRÍTICA_IGP1!$AH$171,"",IF(M11="","",HLOOKUP(M11,CRÍTICA_IGP1!$P$157:$U$173,15,FALSE))) ->  | O11: =IF(CRÍTICA_IGP1!$AH$166<CRÍTICA_IGP1!$AH$171,"LIMITADA À COMPULSÓRIA",IF(N11="","",CRÍTICA_IGP1!$AH$171)) ->  | R11: =IF(AND(CRÍTICA_IGP1!$Q$171>CRÍTICA_IGP1!$R$171,CRÍTICA_IGP1!$Q$171>CRÍTICA_IGP1!$S$171,CRÍTICA_IGP1!$Q$171>CRÍTICA_IGP1!$T$171,CRÍTICA_IGP1!$Q$171>CRÍTICA_IGP1!$U$171),"T. CONTRIBUIÇÃO",IF(AND(CRÍTICA_IGP1!$R$171>CRÍTICA_IGP1!$Q$171,CRÍTICA_IGP1!$R$171>CRÍTICA_IGP1!$S$171,CRÍTICA_IGP1!$R$171>CRÍTICA_IGP1!$T$171,CRÍTICA_IGP1!$R$171>CRÍTICA_IGP1!$U$171),"T. CARGO",IF(AND(CRÍTICA_IGP1!$S$171>CRÍTICA_IGP1!$Q$171,CRÍTICA_IGP1!$S$171>CRÍTICA_IGP1!$R$171,CRÍTICA_IGP1!$S$171>CRÍTICA_IGP1!$T$171,CRÍTICA_IGP1!$S$171>CRÍTICA_IGP1!$U$171),"T. CARREIRA",IF(AND(CRÍTICA_IGP1!$T$171>CRÍTICA_IGP1!$Q$171,CRÍTICA_IGP1!$T$171>CRÍTICA_IGP1!$R$171,CRÍTICA_IGP1!$T$171>CRÍTICA_IGP1!$S$171,CRÍTICA_IGP1!$T$171>CRÍTICA_IGP1!$U$171),"T. SERV. PÚBL.",IF(AND(CRÍTICA_IGP1!$U$171>CRÍTICA_IGP1!$Q$171,CRÍTICA_IGP1!$U$171>CRÍTICA_IGP1!$R$171,CRÍTICA_IGP1!$U$171>CRÍTICA_IGP1!$S$171,CRÍTICA_IGP1!$U$171>CRÍTICA_IGP1!$T$171),"IDADE",""))))) -> 
B12: 6 | C12: TRANS. ART. 6º EMENDA 41/03 | F12: VOL. ESPECIAL | H12: =IF(OR(CRÍTICA_IGP1!$Q$172="O SERVIDOR NÃO FAZ JUS A ESSA REGRA E/OU MODALIDADE",CRÍTICA_IGP1!$Q$172="MARQUE O SEXO",CRÍTICA_IGP1!$Q$172="CONFIRME MAGISTÉRIO"),CRÍTICA_IGP1!$Q$172,IF(OR(CRÍTICA_IGP1!$Q$172>0,CRÍTICA_IGP1!$R$172>0,CRÍTICA_IGP1!$S$172>0,CRÍTICA_IGP1!$T$172>0,CRÍTICA_IGP1!$U$172>0),"REGRA NÃO CUMPRIDA","REGRA CUMPRIDA")) -> O SERVIDOR NÃO FAZ JUS A ESSA REGRA E/OU MODALIDADE | M12: =IF(AND(H12<>"O SERVIDOR NÃO FAZ JUS A ESSA REGRA E/OU MODALIDADE",H12<>"MARQUE O SEXO",H12<>"REGRA CUMPRIDA",H12<>"CONFIRME MAGISTÉRIO"),R12,"") ->  | N12: =IF(CRÍTICA_IGP1!$AH$166<CRÍTICA_IGP1!$AH$172,"",IF(M12="","",HLOOKUP(M12,CRÍTICA_IGP1!$P$157:$U$173,16,FALSE))) ->  | O12: =IF(CRÍTICA_IGP1!$AH$166<CRÍTICA_IGP1!$AH$172,"LIMITADA À COMPULSÓRIA",IF(N12="","",CRÍTICA_IGP1!$AH$172)) ->  | R12: =IF(AND(CRÍTICA_IGP1!$Q$172>CRÍTICA_IGP1!$R$172,CRÍTICA_IGP1!$Q$172>CRÍTICA_IGP1!$S$172,CRÍTICA_IGP1!$Q$172>CRÍTICA_IGP1!$T$172,CRÍTICA_IGP1!$Q$172>CRÍTICA_IGP1!$U$172),"T. CONTRIBUIÇÃO",IF(AND(CRÍTICA_IGP1!$R$172>CRÍTICA_IGP1!$Q$172,CRÍTICA_IGP1!$R$172>CRÍTICA_IGP1!$S$172,CRÍTICA_IGP1!$R$172>CRÍTICA_IGP1!$T$172,CRÍTICA_IGP1!$R$172>CRÍTICA_IGP1!$U$172),"T. CARGO",IF(AND(CRÍTICA_IGP1!$S$172>CRÍTICA_IGP1!$Q$172,CRÍTICA_IGP1!$S$172>CRÍTICA_IGP1!$R$172,CRÍTICA_IGP1!$S$172>CRÍTICA_IGP1!$T$172,CRÍTICA_IGP1!$S$172>CRÍTICA_IGP1!$U$172),"T. CARREIRA",IF(AND(CRÍTICA_IGP1!$T$172>CRÍTICA_IGP1!$Q$172,CRÍTICA_IGP1!$T$172>CRÍTICA_IGP1!$R$172,CRÍTICA_IGP1!$T$172>CRÍTICA_IGP1!$S$172,CRÍTICA_IGP1!$T$172>CRÍTICA_IGP1!$U$172),"T. SERV. PÚBL.",IF(AND(CRÍTICA_IGP1!$U$172>CRÍTICA_IGP1!$Q$172,CRÍTICA_IGP1!$U$172>CRÍTICA_IGP1!$R$172,CRÍTICA_IGP1!$U$172>CRÍTICA_IGP1!$S$172,CRÍTICA_IGP1!$U$172>CRÍTICA_IGP1!$T$172),"IDADE",""))))) -> 
B13: 7 | C13: TRANSIÇÃO EMENDA 20/98 | F13: VOL. INTEGRAL | H13: =IF(CRÍTICA_IGP1!AH167>=37986,"A PARTIR DE 31/12/2003 ESSA REGRA NÃO SE APLICA AO SERVIDOR",U13) ->  | M13: =IF(AND(H13<>"A PARTIR DE 31/12/2003 ESSA REGRA NÃO SE APLICA AO SERVIDOR",H13<>"REGRA CUMPRIDA"),R13,"") ->  | N13: =IF(M13="","",IF(CRÍTICA_IGP1!$AH$166<CRÍTICA_IGP1!$AH$167,"",HLOOKUP(M13,CRÍTICA_IGP1!$P$157:$U$173,11,FALSE))) ->  | O13: =IF(H13="a partir de 31/12/2003 essa regra não se aplica ao servidor","",IF(N13="","",CRÍTICA_IGP1!AH167)) ->  | R13: =IF('5 Cenários'!U13<>"O SERVIDOR NÃO FAZ JUS A ESSA REGRA E/OU MODALIDADE",IF(AND(CRÍTICA_IGP1!Q167>CRÍTICA_IGP1!R167,CRÍTICA_IGP1!Q167>=CRÍTICA_IGP1!T167,CRÍTICA_IGP1!Q167>=CRÍTICA_IGP1!U167),CRÍTICA_IGP1!$Q$157,IF(AND(CRÍTICA_IGP1!R167>CRÍTICA_IGP1!Q167,CRÍTICA_IGP1!R167>=CRÍTICA_IGP1!T167,CRÍTICA_IGP1!R167>=CRÍTICA_IGP1!U167),CRÍTICA_IGP1!$R$157,IF(AND(CRÍTICA_IGP1!T167>CRÍTICA_IGP1!Q167,CRÍTICA_IGP1!T167>CRÍTICA_IGP1!R167,CRÍTICA_IGP1!T167>=CRÍTICA_IGP1!U167),CRÍTICA_IGP1!$T$157,IF(AND(CRÍTICA_IGP1!U167>CRÍTICA_IGP1!Q167,CRÍTICA_IGP1!T167>CRÍTICA_IGP1!R167,CRÍTICA_IGP1!U167>CRÍTICA_IGP1!T167),CRÍTICA_IGP1!$U$157,"")))),"") ->  | U13: =IF(OR(CRÍTICA_IGP1!Q167="A PARTIR DE 31/12/2003 ESSA REGRA NÃO SE APLICA AO SERVIDOR",CRÍTICA_IGP1!AH167>=37986),"A PARTIR DE 31/12/2003 ESSA REGRA NÃO SE APLICA AO SERVIDOR",IF(OR(CRÍTICA_IGP1!Q167>0,CRÍTICA_IGP1!R167>0,CRÍTICA_IGP1!T167>0,CRÍTICA_IGP1!U167>0,VI_TRANS_EC20!N82="NÃO"),"REGRA NÃO CUMPRIDA","REGRA CUMPRIDA")) -> 
B14: 8 | C14: TRANSIÇÃO EMENDA 20/98 | F14: VOL. ESPECIAL | H14: =IF(CRÍTICA_IGP1!AH168>=37986,"A PARTIR DE 31/12/2003 ESSA REGRA NÃO SE APLICA AO SERVIDOR",U14) ->  | M14: =IF(AND(H14<>"A PARTIR DE 31/12/2003 ESSA REGRA NÃO SE APLICA AO SERVIDOR",H14<>"regra cumprida",H14<>"CONFIRME MAGISTÉRIO"),R14,"") ->  | N14: =IF(M14="","",IF(CRÍTICA_IGP1!AH166<CRÍTICA_IGP1!AH168,"",HLOOKUP(M14,CRÍTICA_IGP1!P157:U173,12,FALSE))) ->  | O14: =IF(H14="a partir de 31/12/2003 essa regra não se aplica ao servidor","",IF(N14="","",CRÍTICA_IGP1!AH168)) ->  | R14: =IF('5 Cenários'!U14<>"O SERVIDOR NÃO FAZ JUS A ESSA REGRA E/OU MODALIDADE",IF(AND(CRÍTICA_IGP1!Q168>CRÍTICA_IGP1!R168,CRÍTICA_IGP1!Q168>=CRÍTICA_IGP1!T168,CRÍTICA_IGP1!Q168>=CRÍTICA_IGP1!U168),CRÍTICA_IGP1!$Q$157,IF(AND(CRÍTICA_IGP1!R168>CRÍTICA_IGP1!Q168,CRÍTICA_IGP1!R168>=CRÍTICA_IGP1!T168,CRÍTICA_IGP1!R168>=CRÍTICA_IGP1!U168),CRÍTICA_IGP1!$R$157,IF(AND(CRÍTICA_IGP1!T168>CRÍTICA_IGP1!Q168,CRÍTICA_IGP1!T168>CRÍTICA_IGP1!R168,CRÍTICA_IGP1!T168>=CRÍTICA_IGP1!U168),CRÍTICA_IGP1!$T$157,IF(AND(CRÍTICA_IGP1!U168>CRÍTICA_IGP1!Q168,CRÍTICA_IGP1!T168>CRÍTICA_IGP1!R168,CRÍTICA_IGP1!U168>CRÍTICA_IGP1!T168),CRÍTICA_IGP1!$U$157,"")))),"") ->  | U14: =IF(OR(CRÍTICA_IGP1!Q168="A PARTIR DE 31/12/2003 ESSA REGRA NÃO SE APLICA AO SERVIDOR",CRÍTICA_IGP1!AH168>=37986,CRÍTICA_IGP1!Q168="CONFIRME MAGISTÉRIO"),CRÍTICA_IGP1!Q168,IF(OR(CRÍTICA_IGP1!Q168>0,CRÍTICA_IGP1!R168>0,CRÍTICA_IGP1!T168>0,CRÍTICA_IGP1!U168>0,VE_TRANS_EC20!N90="NÃO"),"REGRA NÃO CUMPRIDA","REGRA CUMPRIDA")) -> 
B15: 9 | C15: TRANSIÇÃO EMENDA 20/98 | F15: VOL. PROP. TSC | H15: =IF(CRÍTICA_IGP1!AH169>=37986,"A PARTIR DE 31/12/2003 ESSA REGRA NÃO SE APLICA AO SERVIDOR",U15) ->  | M15: =IF(AND(H15<>"A PARTIR DE 31/12/2003 ESSA REGRA NÃO SE APLICA AO SERVIDOR",H15<>"regra cumprida"),R15,"") ->  | N15: =IF(M15="","",IF(CRÍTICA_IGP1!AH166<CRÍTICA_IGP1!AH169,"",HLOOKUP(M15,CRÍTICA_IGP1!P157:U173,13,FALSE))) ->  | O15: =IF(H15="a partir de 31/12/2003 essa regra não se aplica ao servidor","",IF(N15="","",CRÍTICA_IGP1!AH169)) ->  | R15: =IF('5 Cenários'!U15<>"O SERVIDOR NÃO FAZ JUS A ESSA REGRA E/OU MODALIDADE",IF(AND(CRÍTICA_IGP1!Q169>CRÍTICA_IGP1!R169,CRÍTICA_IGP1!Q169>=CRÍTICA_IGP1!T169,CRÍTICA_IGP1!Q169>=CRÍTICA_IGP1!U169),CRÍTICA_IGP1!$Q$157,IF(AND(CRÍTICA_IGP1!R169>CRÍTICA_IGP1!Q169,CRÍTICA_IGP1!R169>=CRÍTICA_IGP1!T169,CRÍTICA_IGP1!R169>=CRÍTICA_IGP1!U169),CRÍTICA_IGP1!$R$157,IF(AND(CRÍTICA_IGP1!T169>CRÍTICA_IGP1!Q169,CRÍTICA_IGP1!T169>CRÍTICA_IGP1!R169,CRÍTICA_IGP1!T169>=CRÍTICA_IGP1!U169),CRÍTICA_IGP1!$T$157,IF(AND(CRÍTICA_IGP1!U169>CRÍTICA_IGP1!Q169,CRÍTICA_IGP1!T169>CRÍTICA_IGP1!R169,CRÍTICA_IGP1!U169>CRÍTICA_IGP1!T169),CRÍTICA_IGP1!$U$157,"")))),"") ->  | U15: =IF(OR(CRÍTICA_IGP1!Q169="A PARTIR DE 31/12/2003 ESSA REGRA NÃO SE APLICA AO SERVIDOR",CRÍTICA_IGP1!AH169>=37986),"A PARTIR DE 31/12/2003 ESSA REGRA NÃO SE APLICA AO SERVIDOR",IF(OR(CRÍTICA_IGP1!Q169>0,CRÍTICA_IGP1!R169>0,CRÍTICA_IGP1!T169>0,CRÍTICA_IGP1!U169>0,VPTC_TRANS_EC20!N84="NÃO"),"REGRA NÃO CUMPRIDA","REGRA CUMPRIDA")) -> 
B16: 10 | C16: REGRA PERMANENTE EC20/98 | F16: COMPULSÓRIA | H16: =IF(OR(CRÍTICA_IGP1!Q162="A PARTIR DE 20/02/2004 ESSA REGRA NÃO SE APLICA AO SERVIDOR",CRÍTICA_IGP1!AH162>=38037),"A PARTIR DE 20/02/2004 ESSA REGRA NÃO SE APLICA AO SERVIDOR",IF(CRÍTICA_IGP1!U162>0,"REGRA NÃO CUMPRIDA","REGRA CUMPRIDA")) ->  | M16: =IF(H16="A PARTIR DE 20/02/2004 ESSA REGRA NÃO SE APLICA AO SERVIDOR","",IF(CRÍTICA_IGP1!$Q$20>0,"IDADE","")) ->  | N16: =IF(M16<>"",IF(CRÍTICA_IGP1!$Q$20>0,CRÍTICA_IGP1!Q20,""),"") ->  | O16: =IF(N16<>"",CRÍTICA_IGP1!AH162,"") -> 
B17: 11 | C17: REGRA PERMANENTE EC20/98 | F17: PROP. IDADE | H17: =IF(OR(CRÍTICA_IGP1!Q161="A PARTIR DE 20/02/2004 ESSA REGRA NÃO SE APLICA AO SERVIDOR",CRÍTICA_IGP1!AH161>=38037),"A PARTIR DE 20/02/2004 ESSA REGRA NÃO SE APLICA AO SERVIDOR",IF(CRÍTICA_IGP1!U161>0,"REGRA NÃO CUMPRIDA","REGRA CUMPRIDA")) ->  | M17: =IF(H17="A PARTIR DE 20/02/2004 ESSA REGRA NÃO SE APLICA AO SERVIDOR","",IF(CRÍTICA_IGP1!$U$161>0,"IDADE","")) ->  | N17: =IF(M17="","",IF(CRÍTICA_IGP1!AH162<CRÍTICA_IGP1!AH161,"",IF(CRÍTICA_IGP1!AH161>0,CRÍTICA_IGP1!AH161,""))) ->  | O17: =IF(CRÍTICA_IGP1!$AH$162<CRÍTICA_IGP1!$AH$161,"LIMITADA À COMPULSÓRIA",IF(AND(N17>0,N17<>""),CRÍTICA_IGP1!$AH$161,"")) -> 
B18: 12 | C18: REGRA PERMANENTE EC20/98 | F18: VOL. INTEGRAL | H18: =IF(OR(CRÍTICA_IGP1!Q159="A PARTIR DE 20/02/2004 ESSA REGRA NÃO SE APLICA AO SERVIDOR",CRÍTICA_IGP1!Q159="REVER FUNDAMENTAÇÃO E/OU MODALIDADE"),CRÍTICA_IGP1!Q159,IF(OR(CRÍTICA_IGP1!Q159>0,CRÍTICA_IGP1!R159>0,CRÍTICA_IGP1!T159>0,CRÍTICA_IGP1!U159>0),"REGRA NÃO CUMPRIDA","REGRA CUMPRIDA")) -> A PARTIR DE 20/02/2004 ESSA REGRA NÃO SE APLICA AO SERVIDOR | M18: =IF(AND(H18<>"A PARTIR DE 20/02/2004 ESSA REGRA NÃO SE APLICA AO SERVIDOR",H18<>"PREENCHA CAMPO DESTINADO AO SEXO",H18<>"REGRA CUMPRIDA",H18<>"REVER FUNDAMENTAÇÃO E/OU MODALIDADE"),R18,"") ->  | N18: =IF(M18="","",IF(CRÍTICA_IGP1!$AH$162<CRÍTICA_IGP1!$AH$159,"",HLOOKUP(M18,CRÍTICA_IGP1!$P$157:$U$173,3,FALSE))) ->  | O18: =IF(CRÍTICA_IGP1!$AH$162<CRÍTICA_IGP1!$AH$159,"LIMITADA À COMPULSÓRIA",IF(N18="","",CRÍTICA_IGP1!$AH$159)) ->  | R18: =IF('5 Cenários'!H18<>"O SERVIDOR NÃO FAZ JUS A ESSA REGRA E/OU MODALIDADE",IF(AND(CRÍTICA_IGP1!Q159>CRÍTICA_IGP1!R159,CRÍTICA_IGP1!Q159>=CRÍTICA_IGP1!T159,CRÍTICA_IGP1!Q159>=CRÍTICA_IGP1!U159),CRÍTICA_IGP1!$Q$157,IF(AND(CRÍTICA_IGP1!R159>CRÍTICA_IGP1!Q159,CRÍTICA_IGP1!R159>=CRÍTICA_IGP1!T159,CRÍTICA_IGP1!R159>=CRÍTICA_IGP1!U159),CRÍTICA_IGP1!$R$157,IF(AND(CRÍTICA_IGP1!T159>CRÍTICA_IGP1!Q159,CRÍTICA_IGP1!T159>CRÍTICA_IGP1!R159,CRÍTICA_IGP1!T159>=CRÍTICA_IGP1!U159),CRÍTICA_IGP1!$T$157,IF(AND(CRÍTICA_IGP1!U159>CRÍTICA_IGP1!Q159,CRÍTICA_IGP1!T159>CRÍTICA_IGP1!R159,CRÍTICA_IGP1!U159>CRÍTICA_IGP1!T159),CRÍTICA_IGP1!$U$157,"")))),"") -> 
B19: 13 | C19: REGRA PERMANENTE EC20/98 | F19: VOL. ESPECIAL | H19: =IF(OR(CRÍTICA_IGP1!Q160="A PARTIR DE 20/02/2004 ESSA REGRA NÃO SE APLICA AO SERVIDOR",CRÍTICA_IGP1!Q160="REVEJA FUNDAMENTAÇÃO E/OU MODALIDADE",CRÍTICA_IGP1!Q160="CONFIRME MAGISTÉRIO OU REVEJA FUNDAMENTAÇÃO"),CRÍTICA_IGP1!Q160,IF(OR(CRÍTICA_IGP1!Q160>0,CRÍTICA_IGP1!R160>0,CRÍTICA_IGP1!T160>0,CRÍTICA_IGP1!U160>0),"REGRA NÃO CUMPRIDA","REGRA CUMPRIDA")) -> A PARTIR DE 20/02/2004 ESSA REGRA NÃO SE APLICA AO SERVIDOR | M19: =IF(AND(H19<>"A PARTIR DE 20/02/2004 ESSA REGRA NÃO SE APLICA AO SERVIDOR",H19<>"PREENCHA CAMPO DESTINA AO SEXO",H19<>"regra cumprida",H19<>"CONFIRME MAGISTÉRIO OU REVEJA FUNDAMENTAÇÃO"),R19,"") ->  | N19: =IF(M19="","",IF(CRÍTICA_IGP1!$AH$162<CRÍTICA_IGP1!$AH$160,"",HLOOKUP(M19,CRÍTICA_IGP1!$P$157:$U$173,4,FALSE))) ->  | O19: =IF(CRÍTICA_IGP1!$AH$162<CRÍTICA_IGP1!$AH$160,"LIMITADA À COMPULSÓRIA",IF(N19="","",CRÍTICA_IGP1!$AH$160)) ->  | R19: =IF('5 Cenários'!H19<>"O SERVIDOR NÃO FAZ JUS A ESSA REGRA E/OU MODALIDADE",IF(AND(CRÍTICA_IGP1!Q160>CRÍTICA_IGP1!R160,CRÍTICA_IGP1!Q160>=CRÍTICA_IGP1!T160,CRÍTICA_IGP1!Q160>=CRÍTICA_IGP1!U160),CRÍTICA_IGP1!$Q$157,IF(AND(CRÍTICA_IGP1!R160>CRÍTICA_IGP1!Q160,CRÍTICA_IGP1!R160>=CRÍTICA_IGP1!T160,CRÍTICA_IGP1!R160>=CRÍTICA_IGP1!U160),CRÍTICA_IGP1!$R$157,IF(AND(CRÍTICA_IGP1!T160>CRÍTICA_IGP1!Q160,CRÍTICA_IGP1!T160>CRÍTICA_IGP1!R160,CRÍTICA_IGP1!T160>=CRÍTICA_IGP1!U160),CRÍTICA_IGP1!$T$157,IF(AND(CRÍTICA_IGP1!U160>CRÍTICA_IGP1!Q160,CRÍTICA_IGP1!T160>CRÍTICA_IGP1!R160,CRÍTICA_IGP1!U160>CRÍTICA_IGP1!T160),CRÍTICA_IGP1!$U$157,"")))),"") -> 
B20: 14 | C20: REGRA PERMANENTE EC41/03 | F20: COMPULSÓRIA | H20: =IF(CRÍTICA_IGP1!U166>0,"REGRA NÃO CUMPRIDA","REGRA CUMPRIDA") ->  | M20: =IF(CRÍTICA_IGP1!$Q$20>0,"IDADE","") ->  | N20: =IF(CRÍTICA_IGP1!$Q$20>0,CRÍTICA_IGP1!$Q$20,"") ->  | O20: =IF(N20<>"",CRÍTICA_IGP1!AH166,"") -> 
B21: 15 | C21: REGRA PERMANENTE EC41/03 | F21: PROP. IDADE | H21: =IF(CRÍTICA_IGP1!U165>0,"REGRA NÃO CUMPRIDA","REGRA CUMPRIDA") ->  | M21: =IF(CRÍTICA_IGP1!$U$165>0,"IDADE","") ->  | N21: =IF(CRÍTICA_IGP1!$AH$166<CRÍTICA_IGP1!$AH$165,"",IF(CRÍTICA_IGP1!$AH$165>0,CRÍTICA_IGP1!$U$165,"")) ->  | O21: =IF(CRÍTICA_IGP1!AH166<CRÍTICA_IGP1!AH165,"LIMITADA À COMPULSÓRIA",IF(AND(N21>0,N21<>""),CRÍTICA_IGP1!AH165,"")) -> 
B22: 16 | C22: REGRA PERMANENTE EC41/03 | F22: VOL. INTEGRAL | H22: =IF(OR(CRÍTICA_IGP1!Q163>0,CRÍTICA_IGP1!R163>0,CRÍTICA_IGP1!T163>0,CRÍTICA_IGP1!U163>0),"REGRA NÃO CUMPRIDA","REGRA CUMPRIDA") ->  | M22: =IF(H22<>"REGRA CUMPRIDA",R22,"") ->  | N22: =IF(CRÍTICA_IGP1!$AH$166<CRÍTICA_IGP1!$AH$163,"",IF(M22="","",HLOOKUP(M22,CRÍTICA_IGP1!$P$157:$U$173,7,FALSE))) ->  | O22: =IF(CRÍTICA_IGP1!$AH$166<CRÍTICA_IGP1!$AH$163,"LIMITADA À COMPULSÓRIA",IF(N22="","",CRÍTICA_IGP1!$AH$163)) ->  | R22: =IF('5 Cenários'!H22<>"REGRA CUMPRIDA",IF(AND(CRÍTICA_IGP1!Q163>CRÍTICA_IGP1!R163,CRÍTICA_IGP1!Q163>=CRÍTICA_IGP1!T163,CRÍTICA_IGP1!Q163>=CRÍTICA_IGP1!U163),CRÍTICA_IGP1!$Q$157,IF(AND(CRÍTICA_IGP1!R163>CRÍTICA_IGP1!Q163,CRÍTICA_IGP1!R163>=CRÍTICA_IGP1!T163,CRÍTICA_IGP1!R163>=CRÍTICA_IGP1!U163),CRÍTICA_IGP1!$R$157,IF(AND(CRÍTICA_IGP1!T163>CRÍTICA_IGP1!Q163,CRÍTICA_IGP1!T163>CRÍTICA_IGP1!R163,CRÍTICA_IGP1!T163>=CRÍTICA_IGP1!U163),CRÍTICA_IGP1!$T$157,IF(AND(CRÍTICA_IGP1!U163>CRÍTICA_IGP1!Q163,CRÍTICA_IGP1!U163>CRÍTICA_IGP1!R163,CRÍTICA_IGP1!U163>CRÍTICA_IGP1!T163),CRÍTICA_IGP1!$U$157,"")))),"") -> 
B23: 17 | C23: REGRA PERMANENTE EC41/03 | F23: VOL. ESPECIAL | H23: =IF(OR(CRÍTICA_IGP1!Q164="PREENCHA CAMPO DESTINADO AO SEXO",CRÍTICA_IGP1!Q164="CONFIRME EFETIVO MAGISTÉRIO"),CRÍTICA_IGP1!Q164,IF(OR(CRÍTICA_IGP1!Q164>0,CRÍTICA_IGP1!R164>0,CRÍTICA_IGP1!T164>0,CRÍTICA_IGP1!U164>0),"REGRA NÃO CUMPRIDA","REGRA CUMPRIDA")) -> CONFIRME EFETIVO MAGISTÉRIO | M23: =IF('2 Def Apos'!$I$27<>"X","",IF(H23<>"REGRA CUMPRIDA",R23,"")) ->  | N23: =IF(CRÍTICA_IGP1!$AH$166<CRÍTICA_IGP1!$AH$164,"",IF(M23="","",HLOOKUP(M23,CRÍTICA_IGP1!$P$157:$U$173,8,FALSE))) ->  | O23: =IF(CRÍTICA_IGP1!$AH$166<CRÍTICA_IGP1!$AH$164,"LIMITADA À COMPULSÓRIA",IF(N23="","",CRÍTICA_IGP1!$AH$164)) ->  | R23: =IF('5 Cenários'!H23<>"O SERVIDOR NÃO FAZ JUS A ESSA REGRA E/OU MODALIDADE",IF(AND(CRÍTICA_IGP1!Q164>CRÍTICA_IGP1!R164,CRÍTICA_IGP1!Q164>=CRÍTICA_IGP1!T164,CRÍTICA_IGP1!Q164>=CRÍTICA_IGP1!U164),CRÍTICA_IGP1!$Q$157,IF(AND(CRÍTICA_IGP1!R164>CRÍTICA_IGP1!Q164,CRÍTICA_IGP1!R164>=CRÍTICA_IGP1!T164,CRÍTICA_IGP1!R164>=CRÍTICA_IGP1!U164),CRÍTICA_IGP1!$R$157,IF(AND(CRÍTICA_IGP1!T164>CRÍTICA_IGP1!Q164,CRÍTICA_IGP1!T164>CRÍTICA_IGP1!R164,CRÍTICA_IGP1!T164>=CRÍTICA_IGP1!U164),CRÍTICA_IGP1!$T$157,IF(AND(CRÍTICA_IGP1!U164>CRÍTICA_IGP1!Q164,CRÍTICA_IGP1!T164>CRÍTICA_IGP1!R164,CRÍTICA_IGP1!U164>CRÍTICA_IGP1!T164),CRÍTICA_IGP1!$U$157,"")))),"") -> 
B24: 18 | C24: TRANS. ART. 2º EMENDA 41/03 | F24: VOL. REDUTOR | H24: =IF(CRÍTICA_IGP1!Q170="O SERVIDOR NÃO FAZ JUS A ESSA REGRA E/OU MODALIDADE",CRÍTICA_IGP1!Q170,IF(OR(CRÍTICA_IGP1!Q170>0,CRÍTICA_IGP1!R170>0,CRÍTICA_IGP1!U170>0,AND(CRÍTICA_IGP1!T170>0,CRÍTICA_IGP1!T170<>"NADA A CUMPRIR")),"REGRA NÃO CUMPRIDA","REGRA CUMPRIDA")) -> O SERVIDOR NÃO FAZ JUS A ESSA REGRA E/OU MODALIDADE | M24: =IF(H24<>"O SERVIDOR NÃO FAZ JUS A ESSA REGRA E/OU MODALIDADE",R24,"") ->  | N24: =IF(CRÍTICA_IGP1!$AH$166<CRÍTICA_IGP1!$AH$170,"",IF(M24="","",HLOOKUP(M24,CRÍTICA_IGP1!$P$157:$U$173,14,FALSE))) ->  | O24: =IF(CRÍTICA_IGP1!$AH$166<CRÍTICA_IGP1!$AH$170,"LIMITADA À COMPULSÓRIA",IF(N24="","",CRÍTICA_IGP1!$AH$170)) ->  | R24: =IF('5 Cenários'!H24<>"O SERVIDOR NÃO FAZ JUS A ESSA REGRA E/OU MODALIDADE",IF(AND(CRÍTICA_IGP1!Q170>CRÍTICA_IGP1!R170,CRÍTICA_IGP1!Q170>=CRÍTICA_IGP1!T170,CRÍTICA_IGP1!Q170>=CRÍTICA_IGP1!U170),CRÍTICA_IGP1!$Q$157,IF(AND(CRÍTICA_IGP1!R170>CRÍTICA_IGP1!Q170,CRÍTICA_IGP1!R170>=CRÍTICA_IGP1!T170,CRÍTICA_IGP1!R170>=CRÍTICA_IGP1!U170),CRÍTICA_IGP1!$R$157,IF(AND(CRÍTICA_IGP1!T170>CRÍTICA_IGP1!Q170,CRÍTICA_IGP1!T170>CRÍTICA_IGP1!R170,CRÍTICA_IGP1!T170>=CRÍTICA_IGP1!U170),CRÍTICA_IGP1!$T$157,IF(AND(CRÍTICA_IGP1!U170>CRÍTICA_IGP1!Q170,CRÍTICA_IGP1!U170>CRÍTICA_IGP1!R170,CRÍTICA_IGP1!U170>CRÍTICA_IGP1!T170),CRÍTICA_IGP1!$U$157,"")))),"") -> 
C28: TRIBUNAL DE CONTAS DO ESTADO DO RIO DE JANEIRO - SUP
C29: Virgílio de Oliveira Souza (Técnica / Lógica) | H29: Luiz Cláudio Lopes de Sá - (Revisão / Lay out)
C32: =IF('2 Def Apos'!E6='2 Def Apos'!M52,VLOOKUP(B10,B10:$L$26,7,FALSE),IF(AND('2 Def Apos'!E6='2 Def Apos'!M51,'2 Def Apos'!E4='2 Def Apos'!F47),VLOOKUP(B11,B10:$L$26,7,FALSE),IF(AND('2 Def Apos'!E6='2 Def Apos'!M51,'2 Def Apos'!E4='2 Def Apos'!F48),VLOOKUP(B12,B10:L26,7,FALSE),IF(AND('2 Def Apos'!E4='2 Def Apos'!F47,'2 Def Apos'!E6='2 Def Apos'!M49),VLOOKUP(B13,B10:L26,7,FALSE),IF(AND('2 Def Apos'!E4='2 Def Apos'!F48,'2 Def Apos'!E6='2 Def Apos'!M49),VLOOKUP(B14,B10:L26,7,FALSE),IF(AND('2 Def Apos'!E4='2 Def Apos'!F54,'2 Def Apos'!E6='2 Def Apos'!M49),VLOOKUP(B15,B10:L26,7,FALSE),IF(AND('2 Def Apos'!E6='2 Def Apos'!M48,'2 Def Apos'!I29="X",OR('2 Def Apos'!E4='2 Def Apos'!F50,'2 Def Apos'!E4='2 Def Apos'!F51)),VLOOKUP(B16,B10:L26,7,FALSE),IF(AND('2 Def Apos'!E6='2 Def Apos'!M48,'2 Def Apos'!I29="X",'2 Def Apos'!E4='2 Def Apos'!F49),VLOOKUP(B17,B10:L26,7,FALSE),IF(AND('2 Def Apos'!E6='2 Def Apos'!M48,'2 Def Apos'!I29="X",'2 Def Apos'!E4='2 Def Apos'!F47),VLOOKUP(B18,B10:L26,7,FALSE),IF(AND('2 Def Apos'!E6='2 Def Apos'!M48,'2 Def Apos'!I29="X",'2 Def Apos'!E4='2 Def Apos'!F48),VLOOKUP(B19,B10:L26,7,FALSE),IF(AND('2 Def Apos'!E6='2 Def Apos'!M48,'2 Def Apos'!M29="X",OR('2 Def Apos'!E4='2 Def Apos'!F50,'2 Def Apos'!E4='2 Def Apos'!F51)),VLOOKUP(B20,B10:L26,7,FALSE),IF(AND('2 Def Apos'!E6='2 Def Apos'!M48,'2 Def Apos'!M29="X",'2 Def Apos'!E4='2 Def Apos'!F49),VLOOKUP(B21,B10:L26,7,FALSE),IF(AND('2 Def Apos'!E6='2 Def Apos'!M48,'2 Def Apos'!M29="X",'2 Def Apos'!E4='2 Def Apos'!F47),VLOOKUP(B22,B10:L26,7,FALSE),IF(AND('2 Def Apos'!E6='2 Def Apos'!M48,'2 Def Apos'!M29="X",'2 Def Apos'!E4='2 Def Apos'!F48),VLOOKUP(B23,B10:L26,7,FALSE),IF(AND('2 Def Apos'!E6='2 Def Apos'!M50,'2 Def Apos'!E4='2 Def Apos'!F55),VLOOKUP(B24,B10:L26,7,FALSE),"REVER FUNDAMENTAÇÃO_FICHA FUNCIONAL"))))))))))))))) -> O SERVIDOR NÃO FAZ JUS A ESSA REGRA E/OU MODALIDADE | D32: =COUNTIF(H10:L26,"REGRA CUMPRIDA") -> 0

Sheet 6 L Chec -Docs
B1: ABA 6 | K1: ='1 Hist'!N1 -> FAAP - MÓDULO II
B2: LISTA DE CHECAGEM ANTES DO ENVIO DO PROCESSO AO TCE/RJ (DOCUMENTOS INDISPENSÁVEIS)
B4: ='1 Hist'!$C$4 -> ESTADO DO RIO DE JANEIRO
A6: 1 | B6: ENTE DA FEDERAÇÃO: | E6: ='1 Hist'!$F$6 -> ESTADO DO RIO DE JANEIRO
A7: 2 | B7: PODER: | E7: ='1 Hist'!$F$7 -> 0
A8: 3 | B8: ÓRGÃO/ ENTIDADE: | E8: ='1 Hist'!$F$8 -> 0
A10: 4 | B10: =IF('1 Hist'!$F$12<>0,"NOME:","") ->  | D10: =IF('1 Hist'!$F$40<>0,'1 Hist'!$F$12,"") ->  | L10: =IF('2 Def Apos'!$E$17>0,"MATRÍCULA:","") -> MATRÍCULA: | N10: =IF('2 Def Apos'!$E$17>0,'2 Def Apos'!$E$17,"") -> 
A12: 5 | B12: ID | C12: DOCUMENTOS INDISPENSÁVEIS | L12: JUNTADO? | M12: fls. | N12: OBSERVAÇÃO
B13: =IF(C13="","",MAX($B$12:$B$12)+1) -> 1 | C13: =IF(OR('2 Def Apos'!$E$4='2 Def Apos'!$F$47,'2 Def Apos'!$E$4='2 Def Apos'!$F$48,'2 Def Apos'!$E$4='2 Def Apos'!$F$49,'2 Def Apos'!$E$4='2 Def Apos'!$F$54,'2 Def Apos'!$E$4='2 Def Apos'!$F$55),"REQUERIMENTO DO INTERESSADO (padrão do órgão OU FAAP ABA 10);","") -> REQUERIMENTO DO INTERESSADO (padrão do órgão OU FAAP ABA 10); | N13: =IF(AND(C13<>"",L13<>"X",M13=0),"INSIRA A DOCUMENTAÇÃO NECESSÁRIA, OU JUSTIFIQUE.",IF(AND(C13<>"",L13="X",M13=0),"INDIQUE A FOLHA DO DOCUMENTO.",IF(AND(C13<>"",L13<>"X",M13>0),"",""))) -> INSIRA A DOCUMENTAÇÃO NECESSÁRIA, OU JUSTIFIQUE.
B14: =IF(C14="","",MAX($B$13:B13)+1) -> 2 | C14: =IF(OR('2 Def Apos'!$E$4='2 Def Apos'!$F$47,'2 Def Apos'!$E$4='2 Def Apos'!$F$48,'2 Def Apos'!$E$4='2 Def Apos'!$F$49,'2 Def Apos'!$E$4='2 Def Apos'!$F$50,'2 Def Apos'!$E$4='2 Def Apos'!$F$51,'2 Def Apos'!$E$4='2 Def Apos'!$F$54,'2 Def Apos'!$E$4='2 Def Apos'!$F$55),"DOCUMENTO DE IDENTIDADE DO SERVIDOR (cópia com 'Confere com Original' contendo rubrica e matrícula do servidor que atestou a autenticidade);","") -> DOCUMENTO DE IDENTIDADE DO SERVIDOR (cópia com 'Confere com Original' contendo rubrica e matrícula do servidor que atestou a autenticidade); | N14: =IF(AND(C14<>"",L14<>"X",M14=0),"INSIRA A DOCUMENTAÇÃO NECESSÁRIA, OU JUSTIFIQUE.",IF(AND(C14<>"",L14="X",M14=0),"INDIQUE A FOLHA DO DOCUMENTO.",IF(AND(C14<>"",L14<>"X",M14>0),"",""))) -> INSIRA A DOCUMENTAÇÃO NECESSÁRIA, OU JUSTIFIQUE.
B15: =IF(C15="","",MAX($B$13:B14)+1) -> 3 | C15: =IF(OR('2 Def Apos'!$E$4='2 Def Apos'!$F$47,'2 Def Apos'!$E$4='2 Def Apos'!$F$48,'2 Def Apos'!$E$4='2 Def Apos'!$F$49,'2 Def Apos'!$E$4='2 Def Apos'!$F$50,'2 Def Apos'!$E$4='2 Def Apos'!$F$51,'2 Def Apos'!$E$4='2 Def Apos'!$F$54,'2 Def Apos'!$E$4='2 Def Apos'!$F$55),"CPF / MF - CADASTRO DE PESSOA FÍSICA DO MINISTÉRIO DA FAZENDA DO SERVIDOR (cópia com 'Confere com Original' contendo rubrica e matrícula do servidor que atestou a autenticidade);","") -> CPF / MF - CADASTRO DE PESSOA FÍSICA DO MINISTÉRIO DA FAZENDA DO SERVIDOR (cópia com 'Confere com Original' contendo rubrica e matrícula do servidor que atestou a autenticidade); | N15: =IF(AND(C15<>"",L15<>"X",M15=0),"INSIRA A DOCUMENTAÇÃO NECESSÁRIA, OU JUSTIFIQUE.",IF(AND(C15<>"",L15="X",M15=0),"INDIQUE A FOLHA DO DOCUMENTO.",IF(AND(C15<>"",L15<>"X",M15>0),"",""))) -> INSIRA A DOCUMENTAÇÃO NECESSÁRIA, OU JUSTIFIQUE.
B16: =IF(C16="","",MAX($B$13:B15)+1) ->  | C16: =IF(OR('2 Def Apos'!$E$4='2 Def Apos'!$F$52,'2 Def Apos'!$E$4='2 Def Apos'!$F$53),"LAUDO ELABORADO POR JUNTA MÉDICA OFICIAL, ESPECIFICANDO SE A MOLÉSTIA SE ENQUADRA NAS DETERMINANTES DE PROVENTOS INTEGRAIS OU PROPORCIONAIS (cópia com 'Confere com Original' contendo rubrica e matrícula do servidor que atestou a autenticidade);","") -> 
B17: =IF(C17="","",MAX($B$13:B16)+1) -> 4 | C17: =IF(OR('2 Def Apos'!$E$4='2 Def Apos'!$F$47,'2 Def Apos'!$E$4='2 Def Apos'!$F$48,'2 Def Apos'!$E$4='2 Def Apos'!$F$49,'2 Def Apos'!$E$4='2 Def Apos'!$F$50,'2 Def Apos'!$E$4='2 Def Apos'!$F$51,'2 Def Apos'!$E$4='2 Def Apos'!$F$52,'2 Def Apos'!$E$4='2 Def Apos'!$F$53,'2 Def Apos'!$E$4='2 Def Apos'!$F$54,'2 Def Apos'!$E$4='2 Def Apos'!$F$55),"ATO DE APOSENTADORIA, DATADO E ASSINADO (padrão do órgão OU FAAP ABA 11);","") -> ATO DE APOSENTADORIA, DATADO E ASSINADO (padrão do órgão OU FAAP ABA 11); | N17: INSIRA A DOCUMENTAÇÃO NECESSÁRIA, OU JUSTIFIQUE.
B18: =IF(C18="","",MAX($B$13:B17)+1) -> 5 | C18: =IF(OR('2 Def Apos'!$E$4='2 Def Apos'!$F$47,'2 Def Apos'!$E$4='2 Def Apos'!$F$48,'2 Def Apos'!$E$4='2 Def Apos'!$F$49,'2 Def Apos'!$E$4='2 Def Apos'!$F$50,'2 Def Apos'!$E$4='2 Def Apos'!$F$51,'2 Def Apos'!$E$4='2 Def Apos'!$F$52,'2 Def Apos'!$E$4='2 Def Apos'!$F$53,'2 Def Apos'!$E$4='2 Def Apos'!$F$54,'2 Def Apos'!$E$4='2 Def Apos'!$F$55),"COMPROVAÇÃO DA PUBLICAÇÃO DO ATO DE APOSENTADORIA (demonstrando a data e o veículo de publicação);","") -> COMPROVAÇÃO DA PUBLICAÇÃO DO ATO DE APOSENTADORIA (demonstrando a data e o veículo de publicação); | N18: INSIRA A DOCUMENTAÇÃO NECESSÁRIA, OU JUSTIFIQUE.
B19: =IF(C19="","",MAX($B$13:B18)+1) -> 6 | C19: =IF(OR('2 Def Apos'!$E$4='2 Def Apos'!$F$47,'2 Def Apos'!$E$4='2 Def Apos'!$F$48,'2 Def Apos'!$E$4='2 Def Apos'!$F$49,'2 Def Apos'!$E$4='2 Def Apos'!$F$50,'2 Def Apos'!$E$4='2 Def Apos'!$F$51,'2 Def Apos'!$E$4='2 Def Apos'!$F$52,'2 Def Apos'!$E$4='2 Def Apos'!$F$53,'2 Def Apos'!$E$4='2 Def Apos'!$F$54,'2 Def Apos'!$E$4='2 Def Apos'!$F$55),"APOSTILA DE FIXAÇÃO DE PROVENTOS, DATADA E ASSINADA (padrão do órgão OU FAAP ABA 12);","") -> APOSTILA DE FIXAÇÃO DE PROVENTOS, DATADA E ASSINADA (padrão do órgão OU FAAP ABA 12); | N19: INSIRA A DOCUMENTAÇÃO NECESSÁRIA, OU JUSTIFIQUE.
B20: =IF(C20="","",MAX($B$13:B19)+1) -> 7 | C20: =IF(OR('2 Def Apos'!$E$4='2 Def Apos'!$F$47,'2 Def Apos'!$E$4='2 Def Apos'!$F$48,'2 Def Apos'!$E$4='2 Def Apos'!$F$49,'2 Def Apos'!$E$4='2 Def Apos'!$F$50,'2 Def Apos'!$E$4='2 Def Apos'!$F$51,'2 Def Apos'!$E$4='2 Def Apos'!$F$52,'2 Def Apos'!$E$4='2 Def Apos'!$F$53,'2 Def Apos'!$E$4='2 Def Apos'!$F$54,'2 Def Apos'!$E$4='2 Def Apos'!$F$55),"COMPROVAÇÃO DA PUBLICAÇÃO DA FIXAÇÃO DE PROVENTOS (demonstrando a data e o veículo de publicação);","") -> COMPROVAÇÃO DA PUBLICAÇÃO DA FIXAÇÃO DE PROVENTOS (demonstrando a data e o veículo de publicação); | N20: INSIRA A DOCUMENTAÇÃO NECESSÁRIA, OU JUSTIFIQUE.
B21: =IF(C21="","",MAX($B$13:B20)+1) ->  | C21: =IF('1 Hist'!$K$91="X","DECISÃO JUDICIAL, TRANSITADA EM JULGADO, EM TERMOS QUE EVIDENCIEM A NATUREZA E EXTENSÃO DO DIREITO PECUNIÁRIO RECONHECIDO AO INTERESSADO (cópia com 'Confere com Original' contendo rubrica e matrícula do servidor que atestou a autenticidade);","") -> 
B22: =IF(C22="","",MAX($B$13:B21)+1) ->  | C22: =IF(OR('3 MTS'!$H$9<>0,'3 MTS'!$H$10<>0,'3 MTS'!H14<>0,'3 MTS'!$H$37<>0,'3 MTS'!$H$38<>0,'3 MTS'!$H$53<>0,'3 MTS'!$H$54<>0),"CERTIDÃO DISCRIMINATIVA CONSTANDO TEMPO DE SERVIÇO/CONTRIBUIÇÃO AVERBADO DE VÍNCULO OBRIGATÓRIO AO RGPS - INSS;","") -> 
B23: =IF(C23="","",MAX($B$13:B22)+1) ->  | C23: =IF('3 MTS'!$H$11<>0,"CERTIDÃO DISCRIMINATIVA CONSTANDO TEMPO DE SERVIÇO/CONTRIBUIÇÃO AVERBADO, PRESTADO À ADMINISTRAÇÃO PÚBLICA, DE VÍNCULO OBRIGATÓRIO AO RPPS;","") -> 
B24: =IF(C24="","",MAX($B$13:B23)+1) ->  | C24: =IF('3 MTS'!$H$12<>0,"CERTIDÃO DISCRIMINATIVA (OU CERTIFICADO DE RESERVISTA) CONSTANDO TEMPO DE SERVIÇO MILITAR AVERBADO;","") -> 
B25: =IF(C25="","",MAX($B$13:B24)+1) ->  | C25: =IF(OR('3 MTS'!$H$9<>0,'3 MTS'!$H$10<>0,'3 MTS'!H14<>0,'3 MTS'!$H$37<>0,'3 MTS'!$H$38<>0,'3 MTS'!$H$53<>0,'3 MTS'!$H$54<>0),CONCATENATE("PROVA DE COMUNICAÇÃO AO INSS, DE APROVEITAMENTO DO TEMPO DE SERVIÇO PRESTADO EM ATIVIDADE PÚBLICA OU PRIVADA, PARA EFEITO DE APOSENTADORIA NO SERVIÇO PÚBLICO, INDICANDO OS PERÍODOS AVERBADOS (padrão do órgão OU FAAP ABA 15);"),"") -> 
B26: =IF(C26="","",MAX($B$13:B25)+1) ->  | C26: =IF('3 MTS'!H11<>0,CONCATENATE("PROVA DE COMUNICAÇÃO AO INSTITUTO DE PREVIDÊNCIA DO RPPS DE OUTRO ENTE PÚBLICO, SOBRE O APROVEITAMENTO DO TEMPO DE SERVIÇO/CONTRIBUIÇÃO PARA EFEITO DE APOSENTADORIA NO SERVIÇO PÚBLICO, INDICANDO OS PERÍODOS AVERBADOS (padrão do órgão OU FAAP ABA 16);"),"") -> 
B27: =IF(C27="","",MAX($B$13:B26)+1) ->  | C27: =IF(OR('1 Hist'!$F$12<>"",'3 MTS'!$F$73<>0),"DEMONSTRATIVO DO HISTÓRICO FUNCIONAL DO SERVIDOR (FAAP ABA 1);","") -> 
B28: =IF(C28="","",MAX($B$13:B27)+1) ->  | C28: =IF(OR('1 Hist'!$F$12<>"",'3 MTS'!$F$73<>0),"DEFINIÇÃO DA APOSENTADORIA (FAAP ABA 2)","") ->  | N28: =IF(AND(C28<>"",L28<>"X",M28=0),"INSIRA A DOCUMENTAÇÃO NECESSÁRIA, OU JUSTIFIQUE.",IF(AND(C28<>"",L28="X",M28=0),"INDIQUE A FOLHA DO DOCUMENTO.",IF(AND(C28<>"",L28<>"X",M28>0),"",""))) -> 
B29: =IF(C29="","",MAX($B$13:B28)+1) ->  | C29: =IF(OR('1 Hist'!$F$12<>"",'3 MTS'!$F$73<>0),"MAPA DE TEMPO DE SERVIÇO - MTS (FAAP ABA 3);","") ->  | N29: =IF(AND(C29<>"",L29<>"X",M29=0),"INSIRA A DOCUMENTAÇÃO NECESSÁRIA, OU JUSTIFIQUE.",IF(AND(C29<>"",L29="X",M29=0),"INDIQUE A FOLHA DO DOCUMENTO.",IF(AND(C29<>"",L29<>"X",M29>0),"",""))) -> 
B30: =IF(C30="","",MAX($B$13:B29)+1) ->  | C30: =IF(OR('1 Hist'!F15<>"",'3 MTS'!F76<>0),"RESUMO CONCLUSIVO (FAAP ABA 4);","") ->  | N30: =IF(AND(C30<>"",L30<>"X",M30=0),"INSIRA A DOCUMENTAÇÃO NECESSÁRIA, OU JUSTIFIQUE.",IF(AND(C30<>"",L30="X",M30=0),"INDIQUE A FOLHA DO DOCUMENTO.",IF(AND(C30<>"",L30<>"X",M30>0),"",""))) -> 
B31: =IF(C31="","",MAX($B$13:B30)+1) ->  | C31: =IF('1 Hist'!$K$87="X","DEMONSTRATIVO DO TEMPO DE EXERCÍCIO DE CARGO EM COMISSÃO OU FUNÇÃO GRATIFICADA PARA EFEITO DE INCORPORAÇÃO (FAAP ABA 8 OU padrão do órgão contendo o mesmo nível de detalhamento); ","") -> 
B32: =IF(C32="","",MAX($B$13:B31)+1) ->  | C32: =IF('1 Hist'!$K$88="X","DEMONSTRATIVO DO TEMPO DE PERCEPÇÃO DE VANTAGENS FINANCEIRAS (GRATIFICAÇÕES) PARA EFEITO DE INCORPORAÇÃO (FAAP ABA 9 OU padrão do órgão contendo o mesmo nível de detalhamento); ","") -> 
B33: =IF(C33="","",MAX($B$13:B32)+1) ->  | C33: =IF('2 Def Apos'!$E$4='2 Def Apos'!$F$48,"DEMONSTRATIVO DE EFETIVO EXERCÍCIO DE FUNÇÕES DE MAGISTÉRIO (FAAP ABA 7 OU padrão do órgão contendo o mesmo nível de detalhamento);","") -> 
B34: =IF(C34="","",MAX($B$13:B33)+1) ->  | C34: =IF(OR('2 Def Apos'!$E$4='2 Def Apos'!$F$47,'2 Def Apos'!$E$4='2 Def Apos'!$F$48,'2 Def Apos'!$E$4='2 Def Apos'!$F$49,'2 Def Apos'!$E$4='2 Def Apos'!$F$50,'2 Def Apos'!$E$4='2 Def Apos'!$F$51,'2 Def Apos'!$E$4='2 Def Apos'!$F$52,'2 Def Apos'!$E$4='2 Def Apos'!$F$53,'2 Def Apos'!$E$4='2 Def Apos'!$F$54,'2 Def Apos'!$E$4='2 Def Apos'!$F$55),"DECLARAÇÃO DO SERVIDOR QUANTO À ACUMULAÇÃO, OU NÃO, DE CARGOS, FUNÇÕES OU EMPREGO NA ADMINISTRAÇÃO PÚBLICA (FAAP ABA 13 OU padrão do órgão contendo o mesmo nível de detalhamento);","") -> DECLARAÇÃO DO SERVIDOR QUANTO À ACUMULAÇÃO, OU NÃO, DE CARGOS, FUNÇÕES OU EMPREGO NA ADMINISTRAÇÃO PÚBLICA (FAAP ABA 13 OU padrão do órgão contendo o mesmo nível de detalhamento); | N34: INSIRA A DOCUMENTAÇÃO NECESSÁRIA, OU JUSTIFIQUE.
B35: =IF(C35="","",MAX($B$13:B34)+1) ->  | C35: =IF(OR('2 Def Apos'!$E$4='2 Def Apos'!$F$47,'2 Def Apos'!$E$4='2 Def Apos'!$F$48,'2 Def Apos'!$E$4='2 Def Apos'!$F$49,'2 Def Apos'!$E$4='2 Def Apos'!$F$50,'2 Def Apos'!$E$4='2 Def Apos'!$F$51,'2 Def Apos'!$E$4='2 Def Apos'!$F$52,'2 Def Apos'!$E$4='2 Def Apos'!$F$53,'2 Def Apos'!$E$4='2 Def Apos'!$F$54,'2 Def Apos'!$E$4='2 Def Apos'!$F$55),"DECLARAÇÃO DA AUTORIDADE COMPETENTE SOBRE A ACUMULAÇÃO, OU NÃO, DE CARGOS, FUNÇÕES OU EMPREGO NA ADMINISTRAÇÃO PÚBLICA PELO SERVIDOR (FAAP ABA 14 OU padrão do órgão contendo o mesmo nível de detalhamento);","") -> DECLARAÇÃO DA AUTORIDADE COMPETENTE SOBRE A ACUMULAÇÃO, OU NÃO, DE CARGOS, FUNÇÕES OU EMPREGO NA ADMINISTRAÇÃO PÚBLICA PELO SERVIDOR (FAAP ABA 14 OU padrão do órgão contendo o mesmo nível de detalhamento); | N35: INSIRA A DOCUMENTAÇÃO NECESSÁRIA, OU JUSTIFIQUE.
B36: =IF(C36="","",MAX($B$13:B35)+1) ->  | C36: =IF('1 Hist'!$K$90="X","CÓPIA DO DIPLOMA QUE COMPROVA A ESCOLARIDADE PARA EFEITO DE GRATIFICAÇÃO INCORPORADA;","") -> 
B37: =IF(C37="","",MAX($B$13:B36)+1) ->  | C37: =IF('1 Hist'!$K$89="X","CÓPIA DO DIPLOMA QUE COMPROVA A ESCOLARIDADE PARA EFEITO DE PROMOÇÃO (NÍVEL E REFERÊNCIA MAIS ALTOS);","") -> 
B38: =IF(C38="","",MAX($B$13:B37)+1) ->  | C38: =IF('1 Hist'!$F$40<>0,"CÓPIA DA TABELA NA QUAL CONSTA O VALOR DO VENCIMENTO BASE DO SERVIDOR, E/OU DO CARGO EM COMISSÃO OU FUNÇÃO GRATIFICADA INCORPORADA, À DATA DA VALIDADE DA APOSENTADORIA;","") -> 
B39: =IF(C39="","",MAX($B$13:B38)+1) ->  | C39: =IF(OR('4 Res Conc'!$H$31="SIM",'4 Res Conc'!$H$35="SIM"),"DEMONSTRATIVO DA MEMÓRIA DE CÁLCULO DA MÉDIA ARITMÉTICA SIMPLES DAS 80% MAIORES BASES DE CONTRIBUIÇÃO.","") -> 
B40: =IF(C40="","",MAX($B$13:B39)+1) ->  | C40: =IF(OR('4 Res Conc'!$H$31="SIM",'4 Res Conc'!$H$35="SIM"),"COMPROVANTE DA ÚLTIMA REMUNERAÇÃO DO CARGO EFETIVO (EM PARCELAS PERMANENTES).","") ->  | N40: =IF(AND(C40<>"",L40<>"X",M40=0),"INSIRA A DOCUMENTAÇÃO NECESSÁRIA, OU JUSTIFIQUE.",IF(AND(C40<>"",L40="X",M40=0),"INDIQUE A FOLHA DO DOCUMENTO.",IF(AND(C40<>"",L40<>"X",M40>0),"",""))) -> 
B41: =IF(C41="","",MAX($B$13:B40)+1) ->  | C41: =IF(OR('1 Hist'!$F$12<>"",'3 MTS'!$F$73<>0),"LISTA DE CHECAGEM DE DOCUMENTOS INDISPENSÁVEIS (FAAP ABA 6);","") ->  | N41: =IF(AND(C41<>"",L41<>"X",M41=0),"INSIRA A DOCUMENTAÇÃO NECESSÁRIA, OU JUSTIFIQUE.",IF(AND(C41<>"",L41="X",M41=0),"INDIQUE A FOLHA DO DOCUMENTO.",IF(AND(C41<>"",L41<>"X",M41>0),"",""))) -> 
B42: =IF(C42="","",MAX($B$13:B41)+1) ->  | C42: =IF(OR('1 Hist'!$F$12<>"",'3 MTS'!$F$73<>0),"LISTA DE VERIFICAÇÃO DE PENDÊNCIAS (FAAP ABA 17);","") ->  | N42: =IF(AND(C42<>"",L42<>"X",M42=0),"INSIRA A DOCUMENTAÇÃO NECESSÁRIA, OU JUSTIFIQUE.",IF(AND(C42<>"",L42="X",M42=0),"INDIQUE A FOLHA DO DOCUMENTO.",IF(AND(C42<>"",L42<>"X",M42>0),"",""))) -> 
A43: 6 | B43: =COUNTBLANK(B13:B40) -> 16 | L43: =COUNTIF(L13:L40,"X") -> 0 | M43: =COUNTA(M13:M40) -> 0
B44: =COUNTA(B13:B40) -> 28 | I44: HOJE | K44: RUBRICA: | N44: _________________________________________
B45: =B44-B43 -> 12 | I45: =TODAY() -> 2017-10-19 | K45: MATRÍCULA: | N45: _________________________________________
B46: TRIBUNAL DE CONTAS DO ESTADO DO RIO DE JANEIRO - SUP
B47: Virgílio de Oliveira Souza (Técnica / Lógica) | J47: Luiz Cláudio Lopes de Sá - (Revisão / Lay out)
H50: X

Sheet 7 Magist
C2: ABA 7 | M2: ='1 Hist'!N1 -> FAAP - MÓDULO II
C3: DEMONSTRATIVO DE EFETIVO EXERCÍCIO DE FUNÇÕES DE MAGISTÉRIO
C5: ='1 Hist'!C4 -> ESTADO DO RIO DE JANEIRO
B7: 1 | C7: ENTE DA FEDERAÇÃO: | F7: ='1 Hist'!$F$6 -> ESTADO DO RIO DE JANEIRO
B8: 2 | C8: PODER: | F8: ='1 Hist'!$F$7 -> 0
B9: 3 | C9: ÓRGÃO/ ENTIDADE: | F9: ='1 Hist'!$F$8 -> 0
B11: 4 | C11: =IF('1 Hist'!$F$12<>0,"NOME:","") ->  | D11: =IF('1 Hist'!$F$40<>0,'1 Hist'!$F$12,"") ->  | M11: =IF('2 Def Apos'!$E$17>0,"MATRÍCULA:","") -> MATRÍCULA: | N11: =IF('2 Def Apos'!$E$17>0,'2 Def Apos'!$E$17,"") -> 
C12: =IF('1 Hist'!$F$40<>0,"CARGO","") ->  | D12: =IF('1 Hist'!$F$40<>0,'1 Hist'!$F$40,"") ->  | M12: =IF(OR('1 Hist'!$O$14="X",'1 Hist'!$R$14="X"),"SEXO:","") -> SEXO: | N12: =IF(AND('1 Hist'!$O$14="X",'1 Hist'!$R$14="X"),"",IF('1 Hist'!$O$14="X","MASCULINO",IF('1 Hist'!$R$14="X","FEMININO",""))) -> MASCULINO
B14: 5 | C14: SITUAÇÃO FUNCIONAL DO PROFESSOR - colocar em ordem crescente de data | T14: 36145 | U14: 36145 | W14: 37986 | X14: 37986 | Z14: 38037 | AB14: 38037
C16: VÍNCULO | D16: PERÍODO | H16: nº de DIAS automático | I16: nº de DIAS manual | J16: FALTAS | K16: LIC. sem VCTOS /SUSP /OUTROS | L16: FUNÇÃO EXERCIDA | M16: LOTAÇÃO | N16: EFETIVO MAGISTÉRIO? | R16: ATÉ | S16: 1998-12-16 | U16: ATÉ | V16: 2003-12-31 | X16: ATÉ | Y16: 2004-02-20 | AA16: APÓS | AB16: 2004-02-20 | AF16: INSS - INICIATIVA PRIVADA
D17: início | E17: a | G17: término | R17: ANTES DA EC 20 | U17: ENTRE EC 20 E EC41 | X17: ENTRE EC 41 E LEI Nº 10.887/04 | AA17: APÓS LEI 10.887 | AD17: SOMA TOTAL | AE17: TEMPO TOTAL | AF17: TEMPO TOTAL-1 | AG17: TEMPO TOTAL-2 | AH17: TEMPO TOTAL-3 | AI17: TEMPO TOTAL-4 | AJ17: TEMPO TOTAL
E18: a | H18: =IF(AND(N18="SIM",OR(C18=$B$90,C18=$B$91)),I18,IF(AND(N18="SIM",I18=0,OR(C18=$B$92,C18=$B$93)),IF(AND(D18<>0,G18<>0),(G18-D18+1)-J18-K18,0),IF(AND(N18="SIM",I18<>0,OR(C18=$B$92,C18=$B$93)),I18,0))) -> 0 | N18: NÃO | R18: =IF(D18<CRÍTICA_IGP1!$Q$11,D18,0) -> 00:00:00 | S18: =IF(AND(G18<>0,R18<>0),IF(G18<CRÍTICA_IGP1!$Q$11,G18,CRÍTICA_IGP1!$Q$11-1),0) -> 00:00:00 | T18: =IF(N18="SIM",IF(AND(AE18<>0,H18<=AE18),H18*(AF18/AE18),0),0) -> 0 | U18: =IF(AND(D18>=CRÍTICA_IGP1!$Q$11,D18<CRÍTICA_IGP1!$Q$13),D18,IF(S18=CRÍTICA_IGP1!$Q$11-1,CRÍTICA_IGP1!$Q$11,0)) -> 00:00:00 | V18: =IF(AND(G18<>0,U18<>0),IF(G18<CRÍTICA_IGP1!$Q$13,G18,CRÍTICA_IGP1!$Q$13-1),0) -> 00:00:00 | W18: =IF(N18="SIM",IF(AND(AE18<>0,H18<=AE18),H18*(AG18/AE18),0),0) -> 0 | X18: =IF(AND(D18>=CRÍTICA_IGP1!$Q$13,D18<CRÍTICA_IGP1!$Q$12),D18,IF(V18=CRÍTICA_IGP1!$Q$13-1,CRÍTICA_IGP1!$Q$13,0)) -> 00:00:00 | Y18: =IF(AND(G18<>0,X18<>0),IF(G18<CRÍTICA_IGP1!$Q$12,G18,CRÍTICA_IGP1!$Q$12-1),0) -> 00:00:00 | Z18: =IF(N18="SIM",IF(AND(AE18<>0,H18<=AE18),H18*(AH18/AE18),0),0) -> 0 | AA18: =IF(AND(D18<>0,D18>=CRÍTICA_IGP1!$Q$12),D18,IF(Y18=CRÍTICA_IGP1!$Q$12-1,CRÍTICA_IGP1!$Q$12,0)) -> 00:00:00 | AB18: =IF(AND(G18<>0,AA18<>0),IF(G18>=CRÍTICA_IGP1!$Q$12,G18,0),0) -> 00:00:00 | AC18: =IF(N18="SIM",IF(AND(AE18<>0,H18<=AE18),H18*(AI18/AE18),0),0) -> 0 | AD18: =T18+W18+Z18+AC18 -> 0 | AE18: =IF(AND(N18="SIM",D18<>0,G18<>0),G18-D18+1,0) -> 0 | AF18: =IF(AND(R18<>0,S18<>0),(S18-R18)+1,0) -> 0 | AG18: =IF(AND(U18<>0,V18<>0),(V18-U18)+1,0) -> 0 | AH18: =IF(AND(X18<>0,Y18<>0),(Y18-X18)+1,0) -> 0 | AI18: =IF(AND(AA18<>0,AB18<>0),(AB18-AA18)+1,0) -> 0 | AJ18: =SUM(AF18:AI18) -> 0
E19: a | H19: =IF(AND(N19="SIM",OR(C19=$B$90,C19=$B$91)),I19,IF(AND(N19="SIM",I19=0,OR(C19=$B$92,C19=$B$93)),IF(AND(D19<>0,G19<>0),(G19-D19+1)-J19-K19,0),IF(AND(N19="SIM",I19<>0,OR(C19=$B$92,C19=$B$93)),I19,0))) -> 0 | N19: NÃO | R19: =IF(D19<CRÍTICA_IGP1!$Q$11,D19,0) -> 00:00:00 | S19: =IF(AND(G19<>0,R19<>0),IF(G19<CRÍTICA_IGP1!$Q$11,G19,CRÍTICA_IGP1!$Q$11-1),0) -> 00:00:00 | T19: =IF(N19="SIM",IF(AND(AE19<>0,H19<=AE19),H19*(AF19/AE19),0),0) -> 0 | U19: =IF(AND(D19>=CRÍTICA_IGP1!$Q$11,D19<CRÍTICA_IGP1!$Q$13),D19,IF(S19=CRÍTICA_IGP1!$Q$11-1,CRÍTICA_IGP1!$Q$11,0)) -> 00:00:00 | V19: =IF(AND(G19<>0,U19<>0),IF(G19<CRÍTICA_IGP1!$Q$13,G19,CRÍTICA_IGP1!$Q$13-1),0) -> 00:00:00 | W19: =IF(N19="SIM",IF(AND(AE19<>0,H19<=AE19),H19*(AG19/AE19),0),0) -> 0 | X19: =IF(AND(D19>=CRÍTICA_IGP1!$Q$13,D19<CRÍTICA_IGP1!$Q$12),D19,IF(V19=CRÍTICA_IGP1!$Q$13-1,CRÍTICA_IGP1!$Q$13,0)) -> 00:00:00 | Y19: =IF(AND(G19<>0,X19<>0),IF(G19<CRÍTICA_IGP1!$Q$12,G19,CRÍTICA_IGP1!$Q$12-1),0) -> 00:00:00 | Z19: =IF(N19="SIM",IF(AND(AE19<>0,H19<=AE19),H19*(AH19/AE19),0),0) -> 0 | AA19: =IF(AND(D19<>0,D19>=CRÍTICA_IGP1!$Q$12),D19,IF(Y19=CRÍTICA_IGP1!$Q$12-1,CRÍTICA_IGP1!$Q$12,0)) -> 00:00:00 | AB19: =IF(AND(G19<>0,AA19<>0),IF(G19>=CRÍTICA_IGP1!$Q$12,G19,0),0) -> 00:00:00 | AC19: =IF(N19="SIM",IF(AND(AE19<>0,H19<=AE19),H19*(AI19/AE19),0),0) -> 0 | AD19: =T19+W19+Z19+AC19 -> 0 | AE19: =IF(AND(N19="SIM",D19<>0,G19<>0),G19-D19+1,0) -> 0 | AF19: =IF(AND(R19<>0,S19<>0),(S19-R19)+1,0) -> 0 | AG19: =IF(AND(U19<>0,V19<>0),(V19-U19)+1,0) -> 0 | AH19: =IF(AND(X19<>0,Y19<>0),(Y19-X19)+1,0) -> 0 | AI19: =IF(AND(AA19<>0,AB19<>0),(AB19-AA19)+1,0) -> 0 | AJ19: =SUM(AF19:AI19) -> 0
E20: a | H20: 0 | N20: NÃO | R20: =IF(D20<CRÍTICA_IGP1!$Q$11,D20,0) -> 00:00:00 | S20: =IF(AND(G20<>0,R20<>0),IF(G20<CRÍTICA_IGP1!$Q$11,G20,CRÍTICA_IGP1!$Q$11-1),0) -> 00:00:00 | T20: 0 | U20: =IF(AND(D20>=CRÍTICA_IGP1!$Q$11,D20<CRÍTICA_IGP1!$Q$13),D20,IF(S20=CRÍTICA_IGP1!$Q$11-1,CRÍTICA_IGP1!$Q$11,0)) -> 00:00:00 | V20: =IF(AND(G20<>0,U20<>0),IF(G20<CRÍTICA_IGP1!$Q$13,G20,CRÍTICA_IGP1!$Q$13-1),0) -> 00:00:00 | W20: 0 | X20: =IF(AND(D20>=CRÍTICA_IGP1!$Q$13,D20<CRÍTICA_IGP1!$Q$12),D20,IF(V20=CRÍTICA_IGP1!$Q$13-1,CRÍTICA_IGP1!$Q$13,0)) -> 00:00:00 | Y20: =IF(AND(G20<>0,X20<>0),IF(G20<CRÍTICA_IGP1!$Q$12,G20,CRÍTICA_IGP1!$Q$12-1),0) -> 00:00:00 | Z20: 0 | AA20: =IF(AND(D20<>0,D20>=CRÍTICA_IGP1!$Q$12),D20,IF(Y20=CRÍTICA_IGP1!$Q$12-1,CRÍTICA_IGP1!$Q$12,0)) -> 00:00:00 | AB20: =IF(AND(G20<>0,AA20<>0),IF(G20>=CRÍTICA_IGP1!$Q$12,G20,0),0) -> 00:00:00 | AC20: 0 | AD20: 0 | AE20: 0 | AF20: 0 | AG20: 0 | AH20: 0 | AI20: 0 | AJ20: 0
E21: a | H21: 0 | N21: NÃO | R21: =IF(D21<CRÍTICA_IGP1!$Q$11,D21,0) -> 00:00:00 | S21: =IF(AND(G21<>0,R21<>0),IF(G21<CRÍTICA_IGP1!$Q$11,G21,CRÍTICA_IGP1!$Q$11-1),0) -> 00:00:00 | T21: 0 | U21: =IF(AND(D21>=CRÍTICA_IGP1!$Q$11,D21<CRÍTICA_IGP1!$Q$13),D21,IF(S21=CRÍTICA_IGP1!$Q$11-1,CRÍTICA_IGP1!$Q$11,0)) -> 00:00:00 | V21: =IF(AND(G21<>0,U21<>0),IF(G21<CRÍTICA_IGP1!$Q$13,G21,CRÍTICA_IGP1!$Q$13-1),0) -> 00:00:00 | W21: 0 | X21: =IF(AND(D21>=CRÍTICA_IGP1!$Q$13,D21<CRÍTICA_IGP1!$Q$12),D21,IF(V21=CRÍTICA_IGP1!$Q$13-1,CRÍTICA_IGP1!$Q$13,0)) -> 00:00:00 | Y21: =IF(AND(G21<>0,X21<>0),IF(G21<CRÍTICA_IGP1!$Q$12,G21,CRÍTICA_IGP1!$Q$12-1),0) -> 00:00:00 | Z21: 0 | AA21: =IF(AND(D21<>0,D21>=CRÍTICA_IGP1!$Q$12),D21,IF(Y21=CRÍTICA_IGP1!$Q$12-1,CRÍTICA_IGP1!$Q$12,0)) -> 00:00:00 | AB21: =IF(AND(G21<>0,AA21<>0),IF(G21>=CRÍTICA_IGP1!$Q$12,G21,0),0) -> 00:00:00 | AC21: 0 | AD21: 0 | AE21: 0 | AF21: 0 | AG21: 0 | AH21: 0 | AI21: 0 | AJ21: 0
E22: a | H22: 0 | N22: NÃO | R22: =IF(D22<CRÍTICA_IGP1!$Q$11,D22,0) -> 00:00:00 | S22: =IF(AND(G22<>0,R22<>0),IF(G22<CRÍTICA_IGP1!$Q$11,G22,CRÍTICA_IGP1!$Q$11-1),0) -> 00:00:00 | T22: 0 | U22: =IF(AND(D22>=CRÍTICA_IGP1!$Q$11,D22<CRÍTICA_IGP1!$Q$13),D22,IF(S22=CRÍTICA_IGP1!$Q$11-1,CRÍTICA_IGP1!$Q$11,0)) -> 00:00:00 | V22: =IF(AND(G22<>0,U22<>0),IF(G22<CRÍTICA_IGP1!$Q$13,G22,CRÍTICA_IGP1!$Q$13-1),0) -> 00:00:00 | W22: 0 | X22: =IF(AND(D22>=CRÍTICA_IGP1!$Q$13,D22<CRÍTICA_IGP1!$Q$12),D22,IF(V22=CRÍTICA_IGP1!$Q$13-1,CRÍTICA_IGP1!$Q$13,0)) -> 00:00:00 | Y22: =IF(AND(G22<>0,X22<>0),IF(G22<CRÍTICA_IGP1!$Q$12,G22,CRÍTICA_IGP1!$Q$12-1),0) -> 00:00:00 | Z22: 0 | AA22: =IF(AND(D22<>0,D22>=CRÍTICA_IGP1!$Q$12),D22,IF(Y22=CRÍTICA_IGP1!$Q$12-1,CRÍTICA_IGP1!$Q$12,0)) -> 00:00:00 | AB22: =IF(AND(G22<>0,AA22<>0),IF(G22>=CRÍTICA_IGP1!$Q$12,G22,0),0) -> 00:00:00 | AC22: 0 | AD22: 0 | AE22: 0 | AF22: 0 | AG22: 0 | AH22: 0 | AI22: 0 | AJ22: 0
E23: a | H23: 0 | N23: NÃO | R23: =IF(D23<CRÍTICA_IGP1!$Q$11,D23,0) -> 00:00:00 | S23: =IF(AND(G23<>0,R23<>0),IF(G23<CRÍTICA_IGP1!$Q$11,G23,CRÍTICA_IGP1!$Q$11-1),0) -> 00:00:00 | T23: 0 | U23: =IF(AND(D23>=CRÍTICA_IGP1!$Q$11,D23<CRÍTICA_IGP1!$Q$13),D23,IF(S23=CRÍTICA_IGP1!$Q$11-1,CRÍTICA_IGP1!$Q$11,0)) -> 00:00:00 | V23: =IF(AND(G23<>0,U23<>0),IF(G23<CRÍTICA_IGP1!$Q$13,G23,CRÍTICA_IGP1!$Q$13-1),0) -> 00:00:00 | W23: 0 | X23: =IF(AND(D23>=CRÍTICA_IGP1!$Q$13,D23<CRÍTICA_IGP1!$Q$12),D23,IF(V23=CRÍTICA_IGP1!$Q$13-1,CRÍTICA_IGP1!$Q$13,0)) -> 00:00:00 | Y23: =IF(AND(G23<>0,X23<>0),IF(G23<CRÍTICA_IGP1!$Q$12,G23,CRÍTICA_IGP1!$Q$12-1),0) -> 00:00:00 | Z23: 0 | AA23: =IF(AND(D23<>0,D23>=CRÍTICA_IGP1!$Q$12),D23,IF(Y23=CRÍTICA_IGP1!$Q$12-1,CRÍTICA_IGP1!$Q$12,0)) -> 00:00:00 | AB23: =IF(AND(G23<>0,AA23<>0),IF(G23>=CRÍTICA_IGP1!$Q$12,G23,0),0) -> 00:00:00 | AC23: 0 | AD23: 0 | AE23: 0 | AF23: 0 | AG23: 0 | AH23: 0 | AI23: 0 | AJ23: 0
E24: a | H24: 0 | N24: NÃO | R24: =IF(D24<CRÍTICA_IGP1!$Q$11,D24,0) -> 00:00:00 | S24: =IF(AND(G24<>0,R24<>0),IF(G24<CRÍTICA_IGP1!$Q$11,G24,CRÍTICA_IGP1!$Q$11-1),0) -> 00:00:00 | T24: 0 | U24: =IF(AND(D24>=CRÍTICA_IGP1!$Q$11,D24<CRÍTICA_IGP1!$Q$13),D24,IF(S24=CRÍTICA_IGP1!$Q$11-1,CRÍTICA_IGP1!$Q$11,0)) -> 00:00:00 | V24: =IF(AND(G24<>0,U24<>0),IF(G24<CRÍTICA_IGP1!$Q$13,G24,CRÍTICA_IGP1!$Q$13-1),0) -> 00:00:00 | W24: 0 | X24: =IF(AND(D24>=CRÍTICA_IGP1!$Q$13,D24<CRÍTICA_IGP1!$Q$12),D24,IF(V24=CRÍTICA_IGP1!$Q$13-1,CRÍTICA_IGP1!$Q$13,0)) -> 00:00:00 | Y24: =IF(AND(G24<>0,X24<>0),IF(G24<CRÍTICA_IGP1!$Q$12,G24,CRÍTICA_IGP1!$Q$12-1),0) -> 00:00:00 | Z24: 0 | AA24: =IF(AND(D24<>0,D24>=CRÍTICA_IGP1!$Q$12),D24,IF(Y24=CRÍTICA_IGP1!$Q$12-1,CRÍTICA_IGP1!$Q$12,0)) -> 00:00:00 | AB24: =IF(AND(G24<>0,AA24<>0),IF(G24>=CRÍTICA_IGP1!$Q$12,G24,0),0) -> 00:00:00 | AC24: 0 | AD24: 0 | AE24: 0 | AF24: 0 | AG24: 0 | AH24: 0 | AI24: 0 | AJ24: 0
E25: a | H25: 0 | N25: NÃO | R25: =IF(D25<CRÍTICA_IGP1!$Q$11,D25,0) -> 00:00:00 | S25: =IF(AND(G25<>0,R25<>0),IF(G25<CRÍTICA_IGP1!$Q$11,G25,CRÍTICA_IGP1!$Q$11-1),0) -> 00:00:00 | T25: 0 | U25: =IF(AND(D25>=CRÍTICA_IGP1!$Q$11,D25<CRÍTICA_IGP1!$Q$13),D25,IF(S25=CRÍTICA_IGP1!$Q$11-1,CRÍTICA_IGP1!$Q$11,0)) -> 00:00:00 | V25: =IF(AND(G25<>0,U25<>0),IF(G25<CRÍTICA_IGP1!$Q$13,G25,CRÍTICA_IGP1!$Q$13-1),0) -> 00:00:00 | W25: 0 | X25: =IF(AND(D25>=CRÍTICA_IGP1!$Q$13,D25<CRÍTICA_IGP1!$Q$12),D25,IF(V25=CRÍTICA_IGP1!$Q$13-1,CRÍTICA_IGP1!$Q$13,0)) -> 00:00:00 | Y25: =IF(AND(G25<>0,X25<>0),IF(G25<CRÍTICA_IGP1!$Q$12,G25,CRÍTICA_IGP1!$Q$12-1),0) -> 00:00:00 | Z25: 0 | AA25: =IF(AND(D25<>0,D25>=CRÍTICA_IGP1!$Q$12),D25,IF(Y25=CRÍTICA_IGP1!$Q$12-1,CRÍTICA_IGP1!$Q$12,0)) -> 00:00:00 | AB25: =IF(AND(G25<>0,AA25<>0),IF(G25>=CRÍTICA_IGP1!$Q$12,G25,0),0) -> 00:00:00 | AC25: 0 | AD25: 0 | AE25: 0 | AF25: 0 | AG25: 0 | AH25: 0 | AI25: 0 | AJ25: 0
E26: a | H26: 0 | N26: NÃO | R26: =IF(D26<CRÍTICA_IGP1!$Q$11,D26,0) -> 00:00:00 | S26: =IF(AND(G26<>0,R26<>0),IF(G26<CRÍTICA_IGP1!$Q$11,G26,CRÍTICA_IGP1!$Q$11-1),0) -> 00:00:00 | T26: 0 | U26: =IF(AND(D26>=CRÍTICA_IGP1!$Q$11,D26<CRÍTICA_IGP1!$Q$13),D26,IF(S26=CRÍTICA_IGP1!$Q$11-1,CRÍTICA_IGP1!$Q$11,0)) -> 00:00:00 | V26: =IF(AND(G26<>0,U26<>0),IF(G26<CRÍTICA_IGP1!$Q$13,G26,CRÍTICA_IGP1!$Q$13-1),0) -> 00:00:00 | W26: 0 | X26: =IF(AND(D26>=CRÍTICA_IGP1!$Q$13,D26<CRÍTICA_IGP1!$Q$12),D26,IF(V26=CRÍTICA_IGP1!$Q$13-1,CRÍTICA_IGP1!$Q$13,0)) -> 00:00:00 | Y26: =IF(AND(G26<>0,X26<>0),IF(G26<CRÍTICA_IGP1!$Q$12,G26,CRÍTICA_IGP1!$Q$12-1),0) -> 00:00:00 | Z26: 0 | AA26: =IF(AND(D26<>0,D26>=CRÍTICA_IGP1!$Q$12),D26,IF(Y26=CRÍTICA_IGP1!$Q$12-1,CRÍTICA_IGP1!$Q$12,0)) -> 00:00:00 | AB26: =IF(AND(G26<>0,AA26<>0),IF(G26>=CRÍTICA_IGP1!$Q$12,G26,0),0) -> 00:00:00 | AC26: 0 | AD26: 0 | AE26: 0 | AF26: 0 | AG26: 0 | AH26: 0 | AI26: 0 | AJ26: 0
E27: a | H27: 0 | N27: NÃO | R27: =IF(D27<CRÍTICA_IGP1!$Q$11,D27,0) -> 00:00:00 | S27: =IF(AND(G27<>0,R27<>0),IF(G27<CRÍTICA_IGP1!$Q$11,G27,CRÍTICA_IGP1!$Q$11-1),0) -> 00:00:00 | T27: 0 | U27: =IF(AND(D27>=CRÍTICA_IGP1!$Q$11,D27<CRÍTICA_IGP1!$Q$13),D27,IF(S27=CRÍTICA_IGP1!$Q$11-1,CRÍTICA_IGP1!$Q$11,0)) -> 00:00:00 | V27: =IF(AND(G27<>0,U27<>0),IF(G27<CRÍTICA_IGP1!$Q$13,G27,CRÍTICA_IGP1!$Q$13-1),0) -> 00:00:00 | W27: 0 | X27: =IF(AND(D27>=CRÍTICA_IGP1!$Q$13,D27<CRÍTICA_IGP1!$Q$12),D27,IF(V27=CRÍTICA_IGP1!$Q$13-1,CRÍTICA_IGP1!$Q$13,0)) -> 00:00:00 | Y27: =IF(AND(G27<>0,X27<>0),IF(G27<CRÍTICA_IGP1!$Q$12,G27,CRÍTICA_IGP1!$Q$12-1),0) -> 00:00:00 | Z27: 0 | AA27: =IF(AND(D27<>0,D27>=CRÍTICA_IGP1!$Q$12),D27,IF(Y27=CRÍTICA_IGP1!$Q$12-1,CRÍTICA_IGP1!$Q$12,0)) -> 00:00:00 | AB27: =IF(AND(G27<>0,AA27<>0),IF(G27>=CRÍTICA_IGP1!$Q$12,G27,0),0) -> 00:00:00 | AC27: 0 | AD27: 0 | AE27: 0 | AF27: 0 | AG27: 0 | AH27: 0 | AI27: 0 | AJ27: 0
E28: a | H28: 0 | N28: NÃO | R28: =IF(D28<CRÍTICA_IGP1!$Q$11,D28,0) -> 00:00:00 | S28: =IF(AND(G28<>0,R28<>0),IF(G28<CRÍTICA_IGP1!$Q$11,G28,CRÍTICA_IGP1!$Q$11-1),0) -> 00:00:00 | T28: 0 | U28: =IF(AND(D28>=CRÍTICA_IGP1!$Q$11,D28<CRÍTICA_IGP1!$Q$13),D28,IF(S28=CRÍTICA_IGP1!$Q$11-1,CRÍTICA_IGP1!$Q$11,0)) -> 00:00:00 | V28: =IF(AND(G28<>0,U28<>0),IF(G28<CRÍTICA_IGP1!$Q$13,G28,CRÍTICA_IGP1!$Q$13-1),0) -> 00:00:00 | W28: 0 | X28: =IF(AND(D28>=CRÍTICA_IGP1!$Q$13,D28<CRÍTICA_IGP1!$Q$12),D28,IF(V28=CRÍTICA_IGP1!$Q$13-1,CRÍTICA_IGP1!$Q$13,0)) -> 00:00:00 | Y28: =IF(AND(G28<>0,X28<>0),IF(G28<CRÍTICA_IGP1!$Q$12,G28,CRÍTICA_IGP1!$Q$12-1),0) -> 00:00:00 | Z28: 0 | AA28: =IF(AND(D28<>0,D28>=CRÍTICA_IGP1!$Q$12),D28,IF(Y28=CRÍTICA_IGP1!$Q$12-1,CRÍTICA_IGP1!$Q$12,0)) -> 00:00:00 | AB28: =IF(AND(G28<>0,AA28<>0),IF(G28>=CRÍTICA_IGP1!$Q$12,G28,0),0) -> 00:00:00 | AC28: 0 | AD28: 0 | AE28: 0 | AF28: 0 | AG28: 0 | AH28: 0 | AI28: 0 | AJ28: 0
E29: a | H29: 0 | N29: NÃO | R29: =IF(D29<CRÍTICA_IGP1!$Q$11,D29,0) -> 00:00:00 | S29: =IF(AND(G29<>0,R29<>0),IF(G29<CRÍTICA_IGP1!$Q$11,G29,CRÍTICA_IGP1!$Q$11-1),0) -> 00:00:00 | T29: 0 | U29: =IF(AND(D29>=CRÍTICA_IGP1!$Q$11,D29<CRÍTICA_IGP1!$Q$13),D29,IF(S29=CRÍTICA_IGP1!$Q$11-1,CRÍTICA_IGP1!$Q$11,0)) -> 00:00:00 | V29: =IF(AND(G29<>0,U29<>0),IF(G29<CRÍTICA_IGP1!$Q$13,G29,CRÍTICA_IGP1!$Q$13-1),0) -> 00:00:00 | W29: 0 | X29: =IF(AND(D29>=CRÍTICA_IGP1!$Q$13,D29<CRÍTICA_IGP1!$Q$12),D29,IF(V29=CRÍTICA_IGP1!$Q$13-1,CRÍTICA_IGP1!$Q$13,0)) -> 00:00:00 | Y29: =IF(AND(G29<>0,X29<>0),IF(G29<CRÍTICA_IGP1!$Q$12,G29,CRÍTICA_IGP1!$Q$12-1),0) -> 00:00:00 | Z29: 0 | AA29: =IF(AND(D29<>0,D29>=CRÍTICA_IGP1!$Q$12),D29,IF(Y29=CRÍTICA_IGP1!$Q$12-1,CRÍTICA_IGP1!$Q$12,0)) -> 00:00:00 | AB29: =IF(AND(G29<>0,AA29<>0),IF(G29>=CRÍTICA_IGP1!$Q$12,G29,0),0) -> 00:00:00 | AC29: 0 | AD29: 0 | AE29: 0 | AF29: 0 | AG29: 0 | AH29: 0 | AI29: 0 | AJ29: 0
E30: a | H30: 0 | N30: NÃO | R30: =IF(D30<CRÍTICA_IGP1!$Q$11,D30,0) -> 00:00:00 | S30: =IF(AND(G30<>0,R30<>0),IF(G30<CRÍTICA_IGP1!$Q$11,G30,CRÍTICA_IGP1!$Q$11-1),0) -> 00:00:00 | T30: 0 | U30: =IF(AND(D30>=CRÍTICA_IGP1!$Q$11,D30<CRÍTICA_IGP1!$Q$13),D30,IF(S30=CRÍTICA_IGP1!$Q$11-1,CRÍTICA_IGP1!$Q$11,0)) -> 00:00:00 | V30: =IF(AND(G30<>0,U30<>0),IF(G30<CRÍTICA_IGP1!$Q$13,G30,CRÍTICA_IGP1!$Q$13-1),0) -> 00:00:00 | W30: 0 | X30: =IF(AND(D30>=CRÍTICA_IGP1!$Q$13,D30<CRÍTICA_IGP1!$Q$12),D30,IF(V30=CRÍTICA_IGP1!$Q$13-1,CRÍTICA_IGP1!$Q$13,0)) -> 00:00:00 | Y30: =IF(AND(G30<>0,X30<>0),IF(G30<CRÍTICA_IGP1!$Q$12,G30,CRÍTICA_IGP1!$Q$12-1),0) -> 00:00:00 | Z30: 0 | AA30: =IF(AND(D30<>0,D30>=CRÍTICA_IGP1!$Q$12),D30,IF(Y30=CRÍTICA_IGP1!$Q$12-1,CRÍTICA_IGP1!$Q$12,0)) -> 00:00:00 | AB30: =IF(AND(G30<>0,AA30<>0),IF(G30>=CRÍTICA_IGP1!$Q$12,G30,0),0) -> 00:00:00 | AC30: 0 | AD30: 0 | AE30: 0 | AF30: 0 | AG30: 0 | AH30: 0 | AI30: 0 | AJ30: 0
